Workbook

Sheet Sumário
A1: ARSAE-MG
A2: Gerência de Regulação Tarifária (GRT)
A3: Data: 10/04/2020
A4: Cálculo do Índice de Reajuste Tarifário (IRT) e Efeito Tarifário Médio (ETM) - Reajuste Tarifário da Copasa - 2020
B7: Esta planilha contém cálculos referentes ao reajuste tarifário anual da Copasa - 2020 | R7: PR0: | S7: =EDATE(S8,-12) -> 2019-08-01 | T7: =EDATE(S7,11) -> 2020-07-01
R8: PR1: | S8: 2020-08-01 | T8: =EDATE(S8,11) -> 2021-07-01
B10: Conteúdo das abas principais:
B38: Conteúdo de abas complementares e/ou específicas do prestador:

Sheet 1.Anterior (IRT_2019)
A1: ARSAE-MG | K1: WACC regulatório | L1: 0.07944007398 | Q1: Receita op. 2018 sem resíduos sólidos | R1: 4465133440 | T1: Receita operacional (sem resíduos sólidos) jan a abr de 2019 | V1: 1581098230
A2: Gerência de Regulação Tarifária (GRT) | G2: PR0: | H2: =EDATE(H3,-12) -> 2018-08-01 | I2: =EDATE(H2,11) -> 2019-07-01 | K2: Itens calculados sobre a RT ou CO (% a.a.) | Q2: Receita op. 2019 sem resíduos sólidos (estimativa) | R2: 4908841167 | T2: Receita acima proporcionalizada para 7 meses (jan-jul) | V2: 2766921902
A3: Data: 22/05/2019 | G3: PR1: | H3: 2019-08-01 | I3: =EDATE(H3,11) -> 2020-07-01 | K3: PIS e Cofins | L3: 0.06460099001 | P3: Receita a considerar | R3: 4723962947 | T3: Receita acima atualizada pelo ETM e proporc. p/ 5 meses (ago-dez) | V3: 2141919264
A4: Cálculo do Índice de Reajuste Tarifário (IRT) e Efeito Tarifário Médio (ETM) - Reajuste Tarifário da Copasa - 2019 | K4: Proteção de Mananciais | L4: 0.005 | T4: Estimativa da RO 2019 | V4: 4908841167
K5: NCG | L5: 0.02461953171
E6: Antes mudança estrutura tarifária | F6: Variação Mercado | G6: Após mudança estrutura tarifária | K6: Receitas irrecuperáveis | L6: 0.02016046323
D7: Receita Base PR0 | E7: 4854069099 | F7: -0.006067918212 | G7: 4853789131 | K7: Incentivo atendimento telefônico | L7: 0.02213743939
D8: Receita de Aplicação PR0 | E8: 4815734557 | F8: -0.006041456556 | G8: 4815715216 | K8: Fator de Qualidade (FQ) | L8: -0.004576694867
K9: Fator de incentivo à redução Perdas (IP) | L9: -0.0001071428571
D10: Componentes Financeiros PR0 com var. de mercado | K10: Fator de Produtividade (FP) | L10: 0.0173091355
B13: Grupo | D13: Subgrupo (classificação regulatória) | E13: RT0 base | F13: Peso RT base (reaj. 2018) | G13: Ajuste índices itens não administráveis | H13: Valores ajustados | I13: Índices de inflação utilizados | J13: Inflação prevista (%) | K13: Valores atualizados para preços de ago/19-jul/20 | L13: Fator de Produtividade | M13: Valores após FP | N13: Fator de Incentivo redução Perdas (IP) | O13: Valores após IP | P13: Fator de Qualidade | Q13: Valores após FQ (RT1 base) | R13: RT1 aplicação (com impacto dos CF) | U13: (%) RT base | V13: (%) RT aplic | W13: Check FX
B14: Custos Operacionais (1) | C14: Custos impactados pelo Fator de Produtividade | D14: Energia Elétrica | E14: 436710537 | F14: 0.08996792754 | G14: 0.006913241886 | H14: 439729622.5 | I14: IEE | J14: 0.02275737478 | K14: 449736714.4 | L14: 0.0173091355 | M14: 457521268.1 | N14: -0.0001071428571 | O14: 457473082 | P14: -0.004576694867 | Q14: 455414774.3 | R14: 455414774.3 | U14: =Q14/$Q$50 -> 0.09013635445 | V14: =R14/$R$53 -> 0.0872590225 | W14: =(1+L14+N14+P14)*K14 -> 455414774.3 | X14: =W14=Q14 -> TRUE
D15: Pessoal | E15: 1287298964 | F15: 0.2651999668 | H15: 1287298964 | I15: INPC | J15: 0.03769597329 | K15: 1335824951 | L15: 0.0173091355 | M15: 1358946926 | N15: -0.0001071428571 | O15: 1358803802 | P15: -0.004576694867 | Q15: 1352690139 | R15: 1352690139 | U15: =Q15/$Q$50 -> 0.2677263996 | V15: =R15/$R$53 -> 0.2591800397 | W15: =(1+L15+N15+P15)*K15 -> 1352690139 | X15: =W15=Q15 -> TRUE
D16: Combustíveis e Lubrificantes | E16: 32068034.91 | F16: 0.006606423241 | G16: -0.1598584885 | H16: 26941687.32 | I16: IPCA BH Comb | J16: 0.02227124242 | K16: 27541712.17 | L16: 0.0173091355 | M16: 28018435.4 | N16: -0.0001071428571 | O16: 28015484.5 | P16: -0.004576694867 | Q16: 27889434.49 | R16: 27889434.49 | U16: 0.005519917434 | V16: =R16/$R$53 -> 0.005343710676 | W16: 27889434.49 | X16: TRUE
D17: Material de Tratamento | E17: 77326178.01 | F17: 0.01593017661 | G17: 0.006941536656 | H17: 77862940.51 | I17: IGP-M | J17: 0.06124678263 | K17: 82631795.1 | L17: 0.0173091355 | M17: 84062080.04 | N17: -0.0001071428571 | O17: 84053226.64 | P17: -0.004576694867 | Q17: 83675046.12 | R17: 83675046.12 | U17: 0.01656108682 | V17: 0.01603242395 | W17: 83675046.12 | X17: TRUE
D18: Outros Materiais | E18: 12618755.17 | F18: 0.002599624132 | H18: 12618755.17 | I18: IGP-M | J18: 0.06124678263 | K18: 13391613.32 | L18: 0.0173091355 | M18: 13623410.57 | N18: -0.0001071428571 | O18: 13621975.76 | P18: -0.004576694867 | Q18: 13560686.43 | R18: 13560686.43 | U18: 0.00268395078 | V18: 0.002598273725 | W18: 13560686.43 | X18: TRUE
D19: Serviços de Terceiros | E19: 109295019.1 | F19: 0.02251616467 | H19: 109295019.1 | I19: IPCA | J19: 0.03614560282 | K19: 113245553.5 | L19: 0.0173091355 | M19: 115205736.1 | N19: -0.0001071428571 | O19: 115193602.7 | P19: -0.004576694867 | Q19: 114675312.3 | R19: 114675312.3 | U19: 0.02269670459 | V19: 0.02197218058 | W19: 114675312.3 | X19: TRUE
D20: Aluguel | E20: 29931016.18 | F20: 0.006166170189 | H20: 29931016.18 | I20: IGP-M | J20: 0.06124678263 | K20: 31764194.62 | L20: 0.0173091355 | M20: 32314005.37 | N20: -0.0001071428571 | O20: 32310602.06 | P20: -0.004576694867 | Q20: 32165227.03 | R20: 32165227.03 | U20: 0.006366188513 | V20: 0.006162967097 | W20: 32165227.03 | X20: TRUE
D21: Comercialização | E21: 56979428.84 | F21: 0.01173848738 | H21: 56979428.84 | I21: IPCA | J21: 0.03614560282 | K21: 59038984.65 | L21: 0.0173091355 | M21: 60060898.43 | N21: -0.0001071428571 | O21: 60054572.83 | P21: -0.004576694867 | Q21: 59784369.41 | R21: 59784369.41 | U21: 0.01183260934 | V21: 0.01145488888 | W21: 59784369.41 | X21: TRUE
D22: Telecomunicação | E22: 18278236.52 | F22: 0.003765549305 | G22: -0.02160790122 | H22: 17883282.19 | I22: IPCA BH Tel | J22: -0.001677708161 | K22: 17853279.27 | L22: 0.0173091355 | M22: 18162304.1 | N22: -0.0001071428571 | O22: 18160391.24 | P22: -0.004576694867 | Q22: 18078682.23 | R22: 18078682.23 | U22: 0.00357815908 | V22: 0.003463937116 | W22: 18078682.23 | X22: TRUE
D23: Comunicação, Publicidade e Propaganda Legal | E23: 2033427.419 | F23: 0.0004189119226 | H23: 2033427.419 | I23: IPCA | J23: 0.03614560282 | K23: 2106926.879 | L23: 0.0173091355 | M23: 2143395.962 | N23: -0.0001071428571 | O23: 2143170.219 | P23: -0.004576694867 | Q23: 2133527.458 | R23: 2133527.458 | U23: 0.0004222708573 | V23: 0.0004087911306 | W23: 2133527.458 | X23: TRUE
D24: Programas Educativos | E24: 4945.146752 | F24: 1.018763155e-06 | H24: 4945.146752 | I24: IPCA | J24: 0.03614560282 | K24: 5123.892062 | L24: 0.0173091355 | M24: 5212.582204 | N24: -0.0001071428571 | O24: 5212.033216 | P24: -0.004576694867 | Q24: 5188.582725 | R24: 5188.582725 | U24: 1.026931839e-06 | V24: 9.941501294e-07 | W24: 5188.582725 | X24: FALSE
D25: Indenizações | E25: 605677.8254 | F25: 0.000124777339 | H25: 605677.8254 | I25: IGP-M | J25: 0.06124678263 | K25: 642773.6435 | L25: 0.0173091355 | M25: 653899.4996 | N25: -0.0001071428571 | O25: 653830.631 | P25: -0.004576694867 | Q25: 650888.8522 | R25: 650888.8522 | U25: 0.0001288248682 | V25: 0.0001247125219 | W25: 650888.8522 | X25: TRUE
D26: Outros custos operacionais | E26: 16598477.09 | F26: 0.003419497488 | H26: 16598477.09 | I26: IPCA | J26: 0.03614560282 | K26: 17198439.05 | L26: 0.0173091355 | M26: 17496129.17 | N26: -0.0001071428571 | O26: 17494286.48 | P26: -0.004576694867 | Q26: 17415574.47 | R26: 17415574.47 | U26: 0.003446915827 | V26: 0.003336883409 | W26: 17415574.47 | X26: TRUE
D27: Subtotal | E27: 2079748697 | F27: 0.4284546954 | G27: -0.0009450439123 | H27: 2077783243 | J27: 0.03522928518 | K27: 2150982062 | L27: 0.0173091355 | M27: 2188213702 | N27: -0.0001071428571 | O27: 2187983239 | P27: -0.004576694867 | Q27: 2178138851 | R27: 2178138851 | U27: 0.4311004091 | V27: 0.4173388254 | W27: 2178138851 | X27: TRUE
D28: Atendimento Telefônico | E28: 13271187.44 | F28: 0.002734033482 | H28: 13271187.44 | I28: IPCA | J28: 0.03614560282 | K28: 13750882.51 | L28: 0.02213743939 | M28: 14055291.84 | N28: -0.0001071428571 | O28: 14053818.53 | P28: -0.004576694867 | Q28: 13990884.93 | R28: 13990884.93 | U28: 0.002769096294 | V28: 0.002680701225 | W28: 13990884.93 | X28: TRUE
D29: Autosserviços de Água e Esgoto | E29: 8026722.144 | F29: 0.001653606898 | G29: -0.0004441592242 | H29: 8023157.001 | I29: Variação da receita | J29: 0.03771796366 | K29: 8325774.145 | L29: 0.008177828545 | M29: 8393860.899 | N29: -0.0001071428571 | O29: 8392968.851 | P29: -0.004576694867 | Q29: 8354864.324 | R29: 8630362.689 | U29: 0.001653606898 | V29: 0.001653606898 | W29: 8354864.324 | X29: FALSE
D30: Manutenção | E30: 267251395.6 | F30: 0.05505718813 | H30: 267251395.6 | I30: INCC-DI MS | J30: 0.05347762991 | K30: 281543366.8 | M30: 281543366.8 | N30: -0.0001071428571 | O30: 281513201.5 | P30: -0.004576694867 | Q30: 280224663.4 | R30: 280224663.4 | U30: 0.05546247291 | V30: 0.05369200032 | W30: 280224663.4 | X30: TRUE
D31: Treinamento | E31: 808332.2985 | F31: 0.0001665267391 | H31: 808332.2985 | I31: IPCA | J31: 0.03614560282 | K31: 837549.9567 | M31: 837549.9567 | N31: -0.0001071428571 | O31: 837460.2192 | P31: -0.004576694867 | Q31: 833627.0086 | R31: 833627.0086 | U31: 0.0001649926699 | V31: 0.0001597257753 | W31: 833627.0086 | X31: TRUE
D32: Subtotal | E32: 289357637.5 | F32: 0.05961135525 | G32: -1.232088675e-05 | H32: 289354072.3 | J32: 0.05219729923 | K32: 304457573.4 | L32: 0.001223474514 | M32: 304830069.5 | N32: -0.0001071428571 | O32: 304797449.1 | P32: -0.004576694867 | Q32: 303404039.6 | R32: 303679538 | U32: 0.06005016878 | V32: 0.05818603422 | W32: 303404039.6 | X32: TRUE
D33: Total de Custos Operacionais | E33: 2369106335 | F33: 0.4880660506 | G33: -0.0008311230945 | H33: 2367137316 | J33: 0.03730342086 | K33: 2455439635 | L33: 0.01531462452 | M33: 2493043771 | N33: -0.0001071428571 | O33: 2492780688 | P33: -0.004576694867 | Q33: 2481542890 | R33: 2481818389 | U33: 0.4911505778 | V33: 0.4755248596 | W33: 2481542890 | X33: TRUE
B34: Tributos e Outras Obrigações (2) | D34: PIS e Cofins | E34: 313577669.4 | F34: 0.06460099001 | G34: -0.0004441592242 | H34: 313438390.9 | I34: Variação da receita | J34: 0.03771796366 | K34: 325260648.8 | L34: 0.008177828545 | M34: 327920574.6 | N34: -0.0001071428571 | O34: 327885725.3 | P34: -0.004576694867 | Q34: 326397106.5 | R34: 333315247.2 | U34: 0.06460099001 | V34: 0.06386433708 | W34: 326397106.5 | X34: TRUE
D35: TFAS | E35: 35079374.62 | F35: 0.00722679754 | H35: 35079374.62 | I35: Variação TFAS | J35: 0.1173232546 | K35: 39195001.02 | M35: 39195001.02 | N35: -0.0001071428571 | O35: 39190801.56 | P35: -0.004576694867 | Q35: 39011418 | R35: 39011418 | U35: 0.007721196585 | V35: 0.007474720613 | W35: 39011418 | X35: TRUE
D36: Proteção de Mananciais | E36: 21418354.63 | F36: 0.004412453591 | H36: 21418354.63 | I36: Variação da Receita Op. | J36: 0.1027838108 | K36: 23619814.74 | M36: 23619814.74 | N36: -0.0001071428571 | O36: 23617284.04 | P36: -0.004576694867 | Q36: 23509183.36 | R36: 23509183.36 | U36: 0.00465297176 | V36: 0.004504439635 | W36: 23509183.36 | X36: TRUE
D37: Outros Tributos | E37: 8334678.236 | F37: 0.001717049771 | H37: 8334678.236 | I37: IPCA | J37: 0.03614560282 | K37: 8635940.206 | M37: 8635940.206 | N37: -0.0001071428571 | O37: 8635014.926 | P37: -0.004576694867 | Q37: 8595490.863 | R37: 8595490.863 | U37: 0.001701232052 | V37: 0.001646925337 | W37: 8595490.863 | X37: TRUE
D38: Total de Tributos e Outras Obrigações | E38: 378410076.9 | F38: 0.07795729091 | G38: -0.000368062118 | H38: 378270798.4 | J38: 0.04874974857 | K38: 396711404.8 | L38: 0.006704939123 | M38: 399371330.6 | N38: -0.0001071428571 | O38: 399328825.8 | P38: -0.004576694867 | Q38: 397513198.7 | R38: 404431339.4 | U38: 0.07867639041 | V38: 0.07749042267 | W38: 397513198.7 | X38: TRUE
B39: Custos de Capital (3) | D39: Depreciação/Amortização | E39: 816048583.3 | F39: 0.168116392 | H39: 816048583.3 | I39: IPCA | J39: 0.03614560282 | K39: 845545151.3 | M39: 845545151.3 | N39: -0.0001071428571 | O39: 845454557.2 | P39: -0.004576694867 | Q39: 841584755 | R39: 841584755 | U39: 0.1665676786 | V39: 0.1612505066 | W39: 841584755 | X39: TRUE
D40: Tributos sobre o lucro | E40: 396967842.6 | F40: 0.0817804268 | H40: 396967842.6 | I40: IPCA | J40: 0.03614560282 | K40: 411316484.6 | M40: 411316484.6 | N40: -0.0001071428571 | O40: 411272415 | P40: -0.004576694867 | Q40: 409389944.9 | R40: 409389944.9 | U40: 0.08102705329 | V40: 0.07844050837 | W40: 409389944.9 | X40: TRUE
D41: Remuneração da base de ativos | E41: 940774690.1 | F41: 0.193811557 | H41: 940774690.1 | I41: IPCA | J41: 0.03614560282 | K41: 974779558.4 | M41: 974779558.4 | N41: -0.0001071428571 | O41: 974675117.7 | P41: -0.004576694867 | Q41: 970213849.1 | R41: 970213849.1 | U41: 0.192026136 | V41: 0.1858962793 | W41: 970213849.1 | X41: TRUE
D42: Remuneração da NCG | E42: 9493478.739 | F42: 0.00195577742 | G42: -0.0004441592242 | H42: 9489262.123 | I42: Variação da receita | J42: 0.03771796366 | K42: 9847177.767 | L42: 0.008177828545 | M42: 9927706.298 | N42: -0.0001071428571 | O42: 9926651.243 | P42: -0.004576694867 | Q42: 9881583.715 | R42: 10207425.05 | U42: 0.00195577742 | V42: 0.00195577742 | W42: 9881583.715 | X42: FALSE
D43: Total de Custos de Capital | E43: 2163284595 | F43: 0.4456641532 | G43: -1.949173105e-06 | H43: 2163280378 | J43: 0.0361525 | K43: 2241488372 | L43: 3.592636591e-05 | M43: 2241568901 | N43: -0.0001071428571 | O43: 2241328741 | P43: -0.004576694867 | Q43: 2231070133 | R43: 2231395974 | U43: 0.4415766454 | V43: 0.4275430717 | W43: 2231070133 | X43: TRUE
B44: RI (4) | D44: Receitas Irrecuperáveis | E44: 97860281.6 | F44: 0.02016046323 | G44: -0.0004441592242 | H44: 97816816.05 | I44: Variação da receita | J44: 0.03771796366 | K44: 101506267.2 | L44: 0.008177828545 | M44: 102336368 | N44: -0.0001071428571 | O44: 102325492.3 | P44: -0.004576694867 | Q44: 101860929.1 | R44: 105219753.2 | U44: 0.02016046323 | V44: 0.02016046323 | W44: 101860929.1 | X44: TRUE
B45: RR | D45: Receita Requerida = (1) + (2) + (3) + (4) | E45: 5008661288 | F45: 1.031847958 | G45: -0.0004304502623 | H45: 5006505308 | J45: 0.0376790514 | K45: 5195145679 | L45: 0.007925608596 | M45: 5236320370 | N45: -0.0001071428571 | O45: 5235763748 | P45: -0.004576694867 | Q45: 5211987151 | R45: 5222865455 | U45: 1.031564077 | V45: 1.000718817 | W45: 5211987151 | X45: TRUE
B46: Outras Receitas (OR) | D46: Prodes | E46: 12071892.07 | F46: 0.002486963374 | H46: 12071892.07 | I46: IPCA | J46: 0.03614560282 | K46: 12508237.88 | M46: 12508237.88 | N46: -0.0001071428571 | O46: 12506897.71 | P46: -0.004576694867 | Q46: 12449651.32 | R46: 12449651.32 | U46: 0.002464053096 | V46: 0.002385395614 | W46: 12449651.32 | X46: TRUE
D47: Serviços de ligação | E47: 31128214.49 | F47: 0.006412808275 | H47: 31128214.49 | I47: INPC | J47: 0.03769597329 | K47: 32301622.83 | M47: 32301622.83 | N47: -0.0001071428571 | O47: 32298161.94 | P47: -0.004576694867 | Q47: 32150327.27 | R47: 32150327.27 | U47: 0.00636323953 | V47: 0.006160112251 | W47: 32150327.27 | X47: TRUE
D48: Outras | E48: 111392082.2 | F48: 0.02294818635 | H48: 111392082.2 | I48: IPCA | J48: 0.03614560282 | K48: 115418416.2 | M48: 115418416.2 | N48: -0.0001071428571 | O48: 115406049.9 | P48: -0.004576694867 | Q48: 114877815.1 | R48: 114877815.1 | U48: 0.02273678423 | V48: 0.02201098079 | W48: 114877815.1 | X48: TRUE
D49: Total de Outras Receitas | E49: 154592188.8 | F49: 0.031847958 | G49: 0 | H49: 154592188.8 | J49: 0.03645778072 | K49: 160228276.9 | L49: 0 | M49: 160228276.9 | N49: -0.0001071428571 | O49: 160211109.6 | P49: -0.004576694867 | Q49: 159477793.7 | R49: 159477793.7 | U49: 0.03156407686 | V49: 0.03055648866 | W49: 159477793.7 | X49: TRUE
B50: RT base | D50: Receita Tarifária base = RR - OR | E50: 4854069099 | F50: 1 | G50: -0.0004441592242 | H50: 4851913119 | J50: 0.03771796366 | K50: 5034917402 | L50: 0.008177828545 | M50: 5076092093 | N50: -0.0001071428571 | O50: 5075552638 | P50: -0.004576694867 | Q50: 5052509357 | R50: 5063387662 | U50: 1 | V50: 0.9701623286 | W50: 5052509357 | X50: TRUE
B52: CF | D52: Componentes Financeiros | R52: 155726204.5 | V52: =R52/R53 -> 0.02983767139
B53: RT aplic | D53: RT1 aplicação = RT base + CF | R53: 5219113866 | V53: =V50+V52 -> 1
V54: =V53=100% -> TRUE
Q56: IRT | R56: 0.04088121827
Q57: ETM | R57: 0.08376277897

Sheet 2.IRT_2020
A1: ARSAE-MG | L1: WACC regulatório | M1: 0.07944007398
A2: Gerência de Regulação Tarifária (GRT) | L2: Itens calculados sobre a RT ou CO (% a.a.) | S2: 0 | T2: Previsão da RO 2020
A3: Data: 20/05/2020 | L3: PIS e Cofins | N3: ='1.Anterior (IRT_2019)'!L3 -> 0.06460099001 | S3: 0 | T3: 878572284.3 | U3: Receita jan-fev/20
A4: =Sumário!A4 -> Cálculo do Índice de Reajuste Tarifário (IRT) e Efeito Tarifário Médio (ETM) - Reajuste Tarifário da Copasa - 2020 | L4: Proteção de Mananciais | N4: 0.005 | P4: Receita para proteção de mananciais | S4: 0 | T4: =T3/2*7 -> 3075002995 | U4: Receita acima proporcionalizada para 7 meses (jan-jul)
L5: NCG | N5: ='1.Anterior (IRT_2019)'!L5 -> 0.02461953171 | Q5: RO 2019 sem resíduos sólidos | R5: 5049030159 | T5: =T4*(1+T54)/7*5 -> 2263112585 | U5: Receita acima atualizada pelo ETM e proporcionalizada para 5 meses (ago-dez)
B6: Legenda: | F6: Antes mudança estrutura tarifária | H6: Após mudança estrutura tarifária | L6: Receitas irrecuperáveis | N6: ='1.Anterior (IRT_2019)'!L6 -> 0.02016046323 | Q6: Receita operacional 2020 | R6: =T6 -> 5338115580 | T6: =T4+T5 -> 5338115580 | U6: Estimativa da RO 2020
B7: Entrada de dados | E7: RT0 base | F7: 5265754459 | G7: =F7/'1.Anterior (IRT_2019)'!Q50-1 -> 0.04220578065 | H7: 5266458509 | I7: =H7/F7-1 -> 0.0001337035773 | L7: Incentivo atendimento telefônico | N7: 0.03119462 | Q7: RO 2020 sem resíduos sólidos | R7: =SUM(R6:R6) -> 5338115580
B8: Destaque | E8: RT0 aplicação | F8: 5439366058 | G8: =F8/'1.Anterior (IRT_2019)'!R53-1 -> 0.04220107041 | H8: 5439382567 | I8: =H8/F8-1 -> 3.035035934e-06 | L8: Fator de Qualidade (FQ) | N8: 0.008989671123 | P8: RO para aplicar 0,5% mananciais | R8: =5/12*R5+7/12*R6 -> 5217663321 | S8: =R8/'1.Anterior (IRT_2019)'!R3-1 -> 0.1045097897
B9: Cálculo pendente | L9: Fator de incentivo à redução Perdas (IP) | N9: -0.004480191914 | S9: =L36/S10-1 -> 0.1045097897
B10: Cálculo circular | L10: Fator de Produtividade (FP) | N10: ='1.Anterior (IRT_2019)'!L10 -> 0.0173091355 | O10: =IF(AND(M27-N10<0.00000000000001,M27-N10>-0.000000000000001),"VERDADEIRO","falso") -> VERDADEIRO | S10: =0.5%*'1.Anterior (IRT_2019)'!R3 -> 23619814.74
B11: Def. Revisão 2017
E12: Etapas → | F12: A - Mercado | H12: B - Inflação | M12: C - Fator X (FP + IP + FQ) | S12: D - Componentes Fin.
C13: Grupo | E13: Subgrupo (classificação regulatória) | F13: RT0 base | G13: Peso RT base (reaj. 2019) | H13: Ajuste índices itens não administráveis | I13: Valores ajustados | J13: Índices de inflação utilizados | K13: Inflação prevista (%) | L13: Valores atualizados para preços de ago/20-jul/21 | M13: Fator de Produtividade | N13: Valores após FP | O13: Fator de Incentivo redução Perdas (IP) | P13: Valores após IP | Q13: Fator de Qualidade | R13: Valores após FQ (RT1 base) | S13: RT1 aplicação (com impacto dos CF) | V13: (%) RT base | W13: (%) RT aplic | X13: Check FX
C14: Custos Operacionais (1) | D14: Custos impactados pelo Fator de Produtividade | E14: Energia Elétrica | F14: =G14*$F$7 -> 474635910.4 | G14: =VLOOKUP(E14,'1.Anterior (IRT_2019)'!$D$14:$X$50,18,FALSE) -> 0.09013635445 | H14: 0.05045441345 | I14: =F14*(1+H14) -> 498583386.8 | J14: IEE | K14: ='3.3.EE_Índice'!EF45 -> -0.0328867323 | L14: =I14*(1+K14) -> 482186608.4 | M14: =$N$10 -> 0.0173091355 | N14: =L14*(1+M14) -> 490532841.8 | O14: =$N$9 -> -0.004480191914 | P14: =N14+O14*L14 -> 488372553.2 | Q14: =$N$8 -> 0.008989671123 | R14: =P14+Q14*L14 -> 492707252.3 | S14: =R14 -> 492707252.3 | V14: =R14/copiar_RTbase_FQ -> 0.09033093732 | W14: =S14/copiar_RTaplic -> 0.0879127804 | X14: =(1+M14+O14+Q14)*L14 -> 492707252.3 | Y14: =X14=R14 -> TRUE
E15: Pessoal | F15: =G15*$F$7 -> 1409781482 | G15: =VLOOKUP(E15,'1.Anterior (IRT_2019)'!$D$14:$X$50,18,FALSE) -> 0.2677263996 | I15: =F15 -> 1409781482 | J15: INPC | K15: =HLOOKUP(J15,'3.1.Índices_inflação'!$B$105:$AI$1015,8,FALSE) -> 0.02336476283 | L15: 1442720692 | M15: 0.0173091355 | N15: =L15*(1+M15) -> 1467692940 | O15: -0.004480191914 | P15: =N15+O15*L15 -> 1461229275 | Q15: 0.008989671123 | R15: =P15+Q15*L15 -> 1474198859 | S15: =R15 -> 1474198859 | V15: 0.2702736039 | W15: 0.2630383863 | X15: =(1+M15+O15+Q15)*L15 -> 1474198859 | Y15: =X15=R15 -> TRUE
E16: Combustíveis e Lubrificantes | F16: =G16*$F$7 -> 29066529.84 | G16: =VLOOKUP(E16,'1.Anterior (IRT_2019)'!$D$14:$X$50,18,FALSE) -> 0.005519917434 | H16: -0.04811484622 | I16: =F16*(1+H16) -> 27667998.23 | J16: IPCA BH Comb | K16: =HLOOKUP(J16,'3.1.Índices_inflação'!$B$105:$AI$1015,8,FALSE) -> -0.1271265499 | L16: 24150661.07 | M16: 0.0173091355 | N16: 24568688.13 | O16: -0.004480191914 | P16: 24460488.54 | Q16: 0.008989671123 | R16: 24677595.04 | S16: 24677595.04 | V16: 0.004524289586 | W16: 0.004403174468 | X16: 24677595.04 | Y16: TRUE
E17: Material de Tratamento | F17: 87206616.77 | G17: =VLOOKUP(E17,'1.Anterior (IRT_2019)'!$D$14:$X$50,18,FALSE) -> 0.01656108682 | H17: -0.002290615186 | I17: =F17*(1+H17) -> 87006859.97 | J17: IGP-M | K17: =HLOOKUP(J17,'3.1.Índices_inflação'!$B$105:$AI$1015,8,FALSE) -> 0.0649930156 | L17: 92661698.17 | M17: 0.0173091355 | N17: 94265592.06 | O17: -0.004480191914 | P17: 93850449.87 | Q17: 0.008989671123 | R17: 94683448.06 | S17: 94683448.06 | V17: 0.01735887705 | W17: 0.01689418034 | X17: 94683448.06 | Y17: TRUE
E18: Outros Materiais | F18: 14133025.79 | G18: =VLOOKUP(E18,'1.Anterior (IRT_2019)'!$D$14:$X$50,18,FALSE) -> 0.00268395078 | I18: =F18 -> 14133025.79 | J18: IGP-M | K18: =HLOOKUP(J18,'3.1.Índices_inflação'!$B$105:$AI$1015,8,FALSE) -> 0.0649930156 | L18: 15051573.75 | M18: 0.0173091355 | N18: 15312103.48 | O18: -0.004480191914 | P18: 15244669.54 | Q18: 0.008989671123 | R18: 15379978.24 | S18: 15379978.24 | V18: 0.002819702458 | W18: 0.002744219094 | X18: 15379978.24 | Y18: TRUE
E19: Serviços de Terceiros | F19: 119515273.4 | G19: =VLOOKUP(E19,'1.Anterior (IRT_2019)'!$D$14:$X$50,18,FALSE) -> 0.02269670459 | I19: =F19 -> 119515273.4 | J19: IPCA | K19: =HLOOKUP(J19,'3.1.Índices_inflação'!$B$105:$AI$1015,8,FALSE) -> 0.02132125491 | L19: 122063489 | M19: 0.0173091355 | N19: 124176302.5 | O19: -0.004480191914 | P19: 123629434.6 | Q19: 0.008989671123 | R19: 124726745.2 | S19: 124726745.2 | V19: 0.02286689257 | W19: 0.02225474643 | X19: 124726745.2 | Y19: TRUE
E20: Aluguel | F20: 33522785.55 | G20: =VLOOKUP(E20,'1.Anterior (IRT_2019)'!$D$14:$X$50,18,FALSE) -> 0.006366188513 | I20: =F20 -> 33522785.55 | J20: IGP-M | K20: =HLOOKUP(J20,'3.1.Índices_inflação'!$B$105:$AI$1015,8,FALSE) -> 0.0649930156 | L20: =I20*(1+K20) -> 35701532.47 | M20: 0.0173091355 | N20: 36319495.14 | O20: -0.004480191914 | P20: 36159545.42 | Q20: 0.008989671123 | R20: 36480490.45 | S20: 36480490.45 | V20: 0.006688184275 | W20: 0.00650914175 | X20: 36480490.45 | Y20: TRUE
E21: Comercialização | F21: 62307615.39 | G21: =VLOOKUP(E21,'1.Anterior (IRT_2019)'!$D$14:$X$50,18,FALSE) -> 0.01183260934 | I21: =F21 -> 62307615.39 | J21: IPCA | K21: =HLOOKUP(J21,'3.1.Índices_inflação'!$B$105:$AI$1015,8,FALSE) -> 0.02132125491 | L21: 63636091.94 | M21: 0.0173091355 | N21: 64737577.68 | O21: -0.004480191914 | P21: 64452475.78 | Q21: 0.008989671123 | R21: 65024543.31 | S21: 65024543.31 | V21: 0.01192133446 | W21: 0.01160220064 | X21: 65024543.31 | Y21: TRUE
E22: Telecomunicação | F22: 18841707.13 | G22: =VLOOKUP(E22,'1.Anterior (IRT_2019)'!$D$14:$X$50,18,FALSE) -> 0.00357815908 | H22: 0.006877592148 | I22: =F22*(1+H22) -> 18971292.71 | J22: IPCA BH Tel | K22: =HLOOKUP(J22,'3.1.Índices_inflação'!$B$105:$AI$1015,8,FALSE) -> 0.00474510496 | L22: 19061313.48 | M22: 0.0173091355 | N22: 19391248.34 | O22: -0.004480191914 | P22: 19305850 | Q22: 0.008989671123 | R22: 19477204.94 | S22: 19477204.94 | V22: 0.003570871284 | W22: 0.003475279149 | X22: 19477204.94 | Y22: TRUE
E23: Comunicação, Publicidade e Propaganda Legal | F23: 2223574.65 | G23: =VLOOKUP(E23,'1.Anterior (IRT_2019)'!$D$14:$X$50,18,FALSE) -> 0.0004222708573 | I23: =F23 -> 2223574.65 | J23: IPCA | K23: =HLOOKUP(J23,'3.1.Índices_inflação'!$B$105:$AI$1015,8,FALSE) -> 0.02132125491 | L23: 2270984.052 | M23: 0.0173091355 | N23: 2310292.822 | O23: -0.004480191914 | P23: 2300118.378 | Q23: 0.008989671123 | R23: 2320533.778 | S23: 2320533.778 | V23: 0.0004254371947 | W23: 0.0004140482517 | X23: 2320533.778 | Y23: TRUE
E24: Programas Educativos | F24: =G24*$F$7 -> 5407.57091 | G24: =VLOOKUP(E24,'1.Anterior (IRT_2019)'!$D$14:$X$50,18,FALSE) -> 1.026931839e-06 | I24: =F24 -> 5407.57091 | J24: IPCA | K24: =HLOOKUP(J24,'3.1.Índices_inflação'!$B$105:$AI$1015,8,FALSE) -> 0.02132125491 | L24: 5522.867108 | M24: 0.0173091355 | N24: 5618.463163 | O24: -0.004480191914 | P24: 5593.719658 | Q24: 0.008989671123 | R24: 5643.368417 | S24: 5643.368417 | V24: 1.03463214e-06 | W24: 1.006935064e-06 | X24: 5643.368417 | Y24: TRUE
E25: Indenizações | F25: 678360.1243 | G25: =VLOOKUP(E25,'1.Anterior (IRT_2019)'!$D$14:$X$50,18,FALSE) -> 0.0001288248682 | I25: =F25 -> 678360.1243 | J25: IGP-M | K25: =HLOOKUP(J25,'3.1.Índices_inflação'!$B$105:$AI$1015,8,FALSE) -> 0.0649930156 | L25: 722448.7944 | M25: 0.0173091355 | N25: 734953.7585 | O25: -0.004480191914 | P25: 731717.0492 | Q25: 0.008989671123 | R25: 738211.6263 | S25: 738211.6263 | V25: 0.0001353407076 | W25: 0.0001317176402 | X25: 738211.6263 | Y25: TRUE
E26: Outros custos operacionais | F26: 18150612.38 | G26: =VLOOKUP(E26,'1.Anterior (IRT_2019)'!$D$14:$X$50,18,FALSE) -> 0.003446915827 | I26: =F26 -> 18150612.38 | J26: IPCA | K26: =HLOOKUP(J26,'3.1.Índices_inflação'!$B$105:$AI$1015,8,FALSE) -> 0.02132125491 | L26: 18537606.22 | M26: 0.0173091355 | N26: =L26*(1+M26) -> 18858476.15 | O26: -0.004480191914 | P26: 18775424.12 | Q26: 0.008989671123 | R26: =P26+Q26*L26 -> 18942071.1 | S26: 18942071.1 | V26: 0.00347276203 | W26: 0.003379796278 | X26: 18942071.1 | Y26: TRUE
E27: Subtotal | F27: =G27*$F$7 -> 2270068901 | G27: =SUM(G14:G26) -> 0.4311004091 | H27: =I27/F27-1 -> 0.009902242884 | I27: =SUM(I14:I26) -> 2292547675 | K27: =L27/I27-1 -> 0.01143816897 | L27: =SUM(L14:L26) -> 2318770223 | M27: 0.0173091355 | N27: =SUM(N14:N26) -> 2358906131 | O27: -0.004480191914 | P27: =SUM(P14:P26) -> 2348517595 | Q27: 0.008989671123 | R27: =SUM(R14:R26) -> 2369362577 | S27: =SUM(S14:S26) -> 2369362577 | V27: 0.4343892675 | W27: 0.4227606777 | X27: =(1+M27+O27+Q27)*L27 -> 2369362577 | Y27: TRUE
E28: Atendimento Telefônico | F28: =G28*$F$7 -> 14581381.15 | G28: =VLOOKUP(E28,'1.Anterior (IRT_2019)'!$D$14:$X$50,18,FALSE) -> 0.002769096294 | I28: =F28 -> 14581381.15 | J28: IPCA | K28: =HLOOKUP(J28,'3.1.Índices_inflação'!$B$105:$AI$1015,8,FALSE) -> 0.02132125491 | L28: =I28*(1+K28) -> 14892274.5 | M28: =$N$7 -> 0.03119462 | N28: =L28*(1+M28) -> 15356833.34 | O28: -0.004480191914 | P28: 15290113.1 | Q28: 0.008989671123 | R28: =P28+Q28*L28 -> 15423989.75 | S28: =R28 -> 15423989.75 | V28: 0.002827771348 | W28: 0.00275207198 | X28: 15423989.75 | Y28: TRUE
E29: Autosserviços de Água e Esgoto | F29: 8707487.895 | G29: =VLOOKUP(E29,'1.Anterior (IRT_2019)'!$D$14:$X$50,18,FALSE) -> 0.001653606898 | H29: =I29/F29-1 -> 0.004682672663 | I29: =$F$29/copiar_RTbase_ref*colar_RTbase_ajust -> 8748262.21 | J29: Variação da receita | K29: =L29/I29-1 -> 0.01800117069 | L29: =G29*colar_RTbase_inflac -> 8905741.171 | M29: =N29/L29-1 -> 0.008269419499 | N29: =$F$29/copiar_RTbase_ref*colar_RTbase_FP -> 8979386.481 | O29: -0.004480191914 | P29: =$F$29/copiar_RTbase_ref*colar_RTbase_IP -> 8939487.052 | Q29: 0.008989671123 | R29: =$F$29/copiar_RTbase_ref*colar_RTbase_FQ -> 9019546.736 | S29: =$F$29/copiar_RTbase_ref*colar_RTaplic -> 9267641.26 | V29: 0.001653606898 | W29: 0.001653606898 | X29: =(1+M29+O29+Q29)*L29 -> 9019546.736 | Y29: =X29=R29 -> TRUE | Z29: =X29-R29 -> 0
E30: Manutenção | F30: 292051764.1 | G30: =VLOOKUP(E30,'1.Anterior (IRT_2019)'!$D$14:$X$50,18,FALSE) -> 0.05546247291 | I30: =F30 -> 292051764.1 | J30: INCC-DI MS | K30: =HLOOKUP(J30,'3.1.Índices_inflação'!$B$105:$AI$1015,8,FALSE) -> 0.04080564044 | L30: =I30*(1+K30) -> 303969123.3 | N30: 303969123.3 | O30: -0.004480191914 | P30: 302607283.3 | Q30: 0.008989671123 | R30: =P30+Q30*L30 -> 305339865.8 | S30: =R30 -> 305339865.8 | V30: 0.05597976516 | W30: 0.05448118826 | X30: 305339865.8 | Y30: TRUE
E31: Treinamento | F31: 868810.8873 | G31: =VLOOKUP(E31,'1.Anterior (IRT_2019)'!$D$14:$X$50,18,FALSE) -> 0.0001649926699 | I31: =F31 -> 868810.8873 | J31: IPCA | K31: =HLOOKUP(J31,'3.1.Índices_inflação'!$B$105:$AI$1015,8,FALSE) -> 0.02132125491 | L31: =I31*(1+K31) -> 887335.0257 | N31: 887335.0257 | O31: -0.004480191914 | P31: 883359.5945 | Q31: 0.008989671123 | R31: =P31+Q31*L31 -> 891336.4445 | S31: =R31 -> 891336.4445 | V31: 0.000163413987 | W31: 0.0001590393986 | X31: 891336.4445 | Y31: TRUE
E32: Subtotal | F32: =G32*$F$7 -> 316209444 | G32: =SUM(G28:G31) -> 0.06005016878 | H32: =I32/F32-1 -> 0.0001289471782 | I32: =SUM(I28:I31) -> 316250218.3 | K32: =L32/I32-1 -> 0.0392229159 | L32: =SUM(L28:L31) -> 328654474 | M32: =N32/L32-1 -> 0.001637598743 | N32: =SUM(N28:N31) -> 329192678.2 | O32: -0.004480191914 | P32: =SUM(P28:P31) -> 327720243.1 | Q32: 0.008989671123 | R32: =SUM(R28:R31) -> 330674738.7 | S32: =SUM(S28:S31) -> 330922833.2 | V32: 0.0606245574 | W32: 0.05904590653 | X32: 330674738.7 | Y32: TRUE
E33: Total de Custos Operacionais | F33: =SUM(F14:F26)+SUM(F28:F31) -> 2586278345 | G33: =G27+G32 -> 0.4911505778 | H33: =I33/F33-1 -> 0.008707317981 | I33: =SUM(I14:I26)+SUM(I28:I31) -> 2608797893 | K33: =L33/I33-1 -> 0.014806361 | L33: =SUM(L14:L26)+SUM(L28:L31) -> 2647424697 | M33: =N33/L33-1 -> 0.01536365215 | N33: =SUM(N14:N26)+SUM(N28:N31) -> 2688098809 | O33: -0.004480191914 | P33: =SUM(P14:P26)+SUM(P28:P31) -> 2676237838 | Q33: 0.008989671123 | R33: =SUM(R14:R26)+SUM(R28:R31) -> 2700037315 | S33: =SUM(S14:S26)+SUM(S28:S31) -> 2700285410 | V33: =V27+V32 -> 0.4950138249 | W33: =W27+W32 -> 0.4818065843 | X33: 2700037315 | Y33: TRUE
C34: Tributos e Outras Obrigações (2) | E34: PIS e Cofins | F34: =G34*$F$7 -> 340172951.2 | G34: =VLOOKUP(E34,'1.Anterior (IRT_2019)'!$D$14:$X$50,18,FALSE) -> 0.06460099001 | H34: =I34/F34-1 -> 0.004682672663 | I34: =$N$3*colar_RTbase_ajust -> 341765869.8 | J34: Variação da receita | K34: =L34/I34-1 -> 0.01800117069 | L34: =$N$3*colar_RTbase_inflac -> 347918055.5 | M34: =N34/L34-1 -> 0.008269419499 | N34: =$N$3*colar_RTbase_FP -> 350795135.9 | O34: -0.004480191914 | P34: =$N$3*colar_RTbase_IP -> 349236396.2 | Q34: 0.008989671123 | R34: =$N$3*colar_RTbase_FQ -> 352364065.1 | S34: =$N$3*(colar_RTaplic-'4.Componentes Financeiros'!F16-'4.Componentes Financeiros'!F17-'4.Componentes Financeiros'!F18) -> 358712890.1 | T34: =R34/F34-1 -> 0.03583798737 | U34: =S34/F34-1 -> 0.05450150835 | V34: =R34/copiar_RTbase_FQ -> 0.06460099001 | W34: =S34/copiar_RTaplic -> 0.06400443142 | X34: 352364065.1 | Y34: TRUE | Z34: =X34-R34 -> 0
E35: TFAS | F35: =G35*$F$7 -> 40657925.35 | G35: =VLOOKUP(E35,'1.Anterior (IRT_2019)'!$D$14:$X$50,18,FALSE) -> 0.007721196585 | I35: =F35 -> 40657925.35 | J35: Variação TFAS | K35: ='3.2.TFAS'!O25 -> 0.02030165608 | L35: =I35*(1+K35) -> 41483348.57 | N35: =L35*(1+M35) -> 41483348.57 | O35: -0.004480191914 | P35: =N35+O35*L35 -> 41297495.2 | Q35: 0.008989671123 | R35: =P35+Q35*L35 -> 41670416.86 | S35: =R35 -> 41670416.86 | T35: IRT | U35: =N3*copiar_RTaplic/(G34*F8)-1 -> 0.03035919772 | V35: =R35/copiar_RTbase_FQ -> 0.007639684207 | W35: =S35/copiar_RTaplic -> 0.007435170053 | X35: 41670416.86 | Y35: TRUE
E36: Proteção de Mananciais | F36: =G36*$F$7 -> 24501406.79 | G36: =VLOOKUP(E36,'1.Anterior (IRT_2019)'!$D$14:$X$50,18,FALSE) -> 0.00465297176 | I36: =F36 -> 24501406.79 | J36: Variação da Receita Op. | K36: =L36/I36-1 -> 0.06476811012 | L36: =$N$4*$R$8 -> 26088316.61 | N36: =L36*(1+M36) -> 26088316.61 | O36: -0.004480191914 | P36: =N36+O36*L36 -> 25971435.94 | Q36: 0.008989671123 | R36: =P36+Q36*L36 -> 26205961.33 | S36: =R36 -> 26205961.33 | U36: ETM | V36: =R36/copiar_RTbase_FQ -> 0.004804494026 | W36: =S36/copiar_RTaplic -> 0.004675877842 | X36: 26205961.33 | Y36: TRUE
E37: Outros Tributos | F37: =G37*$F$7 -> 8958270.265 | G37: =VLOOKUP(E37,'1.Anterior (IRT_2019)'!$D$14:$X$50,18,FALSE) -> 0.001701232052 | I37: =F37 -> 8958270.265 | J37: IPCA | K37: =HLOOKUP(J37,'3.1.Índices_inflação'!$B$105:$AI$1015,8,FALSE) -> 0.02132125491 | L37: =I37*(1+K37) -> 9149271.829 | N37: =L37*(1+M37) -> 9149271.829 | O37: -0.004480191914 | P37: =N37+O37*L37 -> 9108281.335 | Q37: 0.008989671123 | R37: =P37+Q37*L37 -> 9190530.28 | S37: =R37 -> 9190530.28 | V37: =R37/copiar_RTbase_FQ -> 0.001684954323 | W37: =S37/copiar_RTaplic -> 0.001639848138 | X37: 9190530.28 | Y37: TRUE
E38: Total de Tributos e Outras Obrigações | F38: =SUM(F34:F37) -> 414290553.6 | G38: =SUM(G34:G37) -> 0.07867639041 | H38: =I38/F38-1 -> 0.003844930968 | I38: =SUM(I34:I37) -> 415883472.2 | K38: =L38/I38-1 -> 0.02105282114 | L38: =SUM(L34:L37) -> 424638992.5 | M38: =N38/L38-1 -> 0.006775356015 | N38: =SUM(N34:N37) -> 427516072.9 | O38: -0.004480191914 | P38: =SUM(P34:P37) -> 425613608.7 | Q38: 0.008989671123 | R38: =SUM(R34:R37) -> 429430973.6 | S38: =SUM(S34:S37) -> 435779798.6 | V38: =SUM(V34:V37) -> 0.07873012256 | W38: =SUM(W34:W37) -> 0.07775532745 | X38: 429430973.6 | Y38: TRUE | Z38: =X38-R38 -> 0
C39: Custos de Capital (3) | E39: Depreciação/Amortização | F39: =G39*$F$7 -> 877104496.6 | G39: =VLOOKUP(E39,'1.Anterior (IRT_2019)'!$D$14:$X$50,18,FALSE) -> 0.1665676786 | I39: =F39 -> 877104496.6 | J39: IPCA | K39: =HLOOKUP(J39,'3.1.Índices_inflação'!$B$105:$AI$1015,8,FALSE) -> 0.02132125491 | L39: =I39*(1+K39) -> 895805465.1 | N39: =L39*(1+M39) -> 895805465.1 | O39: -0.004480191914 | P39: =N39+O39*L39 -> 891792084.7 | Q39: 0.008989671123 | R39: =P39+Q39*L39 -> 899845081.2 | S39: =R39 -> 899845081.2 | V39: =R39/copiar_RTbase_FQ -> 0.1649739257 | W39: =S39/copiar_RTaplic -> 0.1605575779 | X39: 899845081.2 | Y39: =X39=R39 -> TRUE
E40: Tributos sobre o lucro | F40: =G40*$F$7 -> 426668567.1 | G40: =VLOOKUP(E40,'1.Anterior (IRT_2019)'!$D$14:$X$50,18,FALSE) -> 0.08102705329 | I40: =F40 -> 426668567.1 | J40: IPCA | K40: =HLOOKUP(J40,'3.1.Índices_inflação'!$B$105:$AI$1015,8,FALSE) -> 0.02132125491 | L40: =I40*(1+K40) -> 435765676.4 | N40: =L40*(1+M40) -> 435765676.4 | O40: -0.004480191914 | P40: =N40+O40*L40 -> 433813362.6 | Q40: 0.008989671123 | R40: =P40+Q40*L40 -> 437730752.7 | S40: =R40 -> 437730752.7 | V40: =R40/copiar_RTbase_FQ -> 0.0802517702 | W40: =S40/copiar_RTaplic -> 0.07810343233 | X40: 437730752.7 | Y40: =X40=R40 -> TRUE
E41: Remuneração da base de ativos | F41: =G41*$F$7 -> 1011162482 | G41: =VLOOKUP(E41,'1.Anterior (IRT_2019)'!$D$14:$X$50,18,FALSE) -> 0.192026136 | I41: =F41 -> 1011162482 | J41: IPCA | K41: =HLOOKUP(J41,'3.1.Índices_inflação'!$B$105:$AI$1015,8,FALSE) -> 0.02132125491 | L41: =I41*(1+K41) -> 1032721735 | N41: =L41*(1+M41) -> 1032721735 | O41: -0.004480191914 | P41: =N41+O41*L41 -> 1028094943 | Q41: 0.008989671123 | R41: =P41+Q41*L41 -> 1037378772 | S41: =R41 -> 1037378772 | V41: =R41/copiar_RTbase_FQ -> 0.1901887915 | W41: =S41/copiar_RTaplic -> 0.1850974423 | X41: 1037378772 | Y41: TRUE
E42: Remuneração da NCG | F42: =G42*$F$7 -> 10298643.67 | G42: =VLOOKUP(E42,'1.Anterior (IRT_2019)'!$D$14:$X$50,18,FALSE) -> 0.00195577742 | H42: =I42/F42-1 -> 0.004682672663 | I42: =$N$5*$M$1*colar_RTbase_ajust -> 10346868.85 | J42: Variação da receita | K42: =L42/I42-1 -> 0.01800117069 | L42: =$N$5*$M$1*colar_RTbase_inflac -> 10533124.6 | M42: =N42/L42-1 -> 0.008269419499 | N42: =$N$5*$M$1*colar_RTbase_FP -> 10620227.43 | O42: -0.004480191914 | P42: =$N$5*$M$1*colar_RTbase_IP -> 10573037.01 | Q42: 0.008989671123 | R42: =$N$5*$M$1*colar_RTbase_FQ -> 10667726.33 | S42: =$N$5*$M$1*colar_RTaplic -> 10961156.21 | V42: =R42/copiar_RTbase_FQ -> 0.00195577742 | W42: =S42/copiar_RTaplic -> 0.00195577742 | X42: 10667726.33 | Y42: TRUE | Z42: =X42-R42 -> 0
E43: Total de Custos de Capital | F43: =SUM(F39:F42) -> 2325234189 | G43: =SUM(G39:G42) -> 0.4415766454 | H43: =I43/F43-1 -> 2.073992263e-05 | I43: =SUM(I39:I42) -> 2325282415 | K43: =L43/I43-1 -> 0.02130648144 | L43: =SUM(L39:L42) -> 2374826001 | M43: =N43/L43-1 -> 3.667756118e-05 | N43: =SUM(N39:N42) -> 2374913104 | O43: -0.004480191914 | P43: =SUM(P39:P42) -> 2364273428 | Q43: 0.008989671123 | R43: =SUM(R39:R42) -> 2385622332 | S43: =SUM(S39:S42) -> 2385915762 | V43: =SUM(V39:V42) -> 0.4373702648 | W43: =SUM(W39:W42) -> 0.4257142299 | X43: 2385622332 | Y43: =X43-R43 -> 0
C44: RI (4) | E44: Receitas Irrecuperáveis | F44: =G44*$F$7 -> 106160049.2 | G44: =VLOOKUP(E44,'1.Anterior (IRT_2019)'!$D$14:$X$50,18,FALSE) -> 0.02016046323 | H44: =I44/F44-1 -> 0.004682672663 | I44: =$N$6*colar_RTbase_ajust -> 106657161.9 | J44: Variação da receita | K44: =L44/I44-1 -> 0.01800117069 | L44: =$N$6*colar_RTbase_inflac -> 108577115.7 | M44: =N44/L44-1 -> 0.008269419499 | N44: =$N$6*colar_RTbase_FP -> 109474985.4 | O44: -0.004480191914 | P44: =$N$6*colar_RTbase_IP -> 108988539.1 | Q44: 0.008989671123 | R44: =$N$6*colar_RTbase_FQ -> 109964611.7 | S44: =$N$6*colar_RTaplic -> 112989333.3 | V44: =R44/copiar_RTbase_FQ -> 0.02016046323 | W44: =S44/copiar_RTaplic -> 0.02016046323 | X44: 109964611.7 | Y44: TRUE | Z44: =X44-R44 -> 0
C45: RR | E45: Receita Requerida = (1) + (2) + (3) + (4) | F45: =F33+F38+F43+F44 -> 5431963137 | G45: =G33+G38+G43+G44 -> 1.031564077 | H45: =I45/F45-1 -> 0.004539390977 | I45: =I33+I38+I43+I44 -> 5456620942 | K45: =L45/I45-1 -> 0.01811484895 | L45: =L33+L38+L43+L44 -> 5555466806 | M45: =N45/L45-1 -> 0.008016637771 | N45: =N33+N38+N43+N44 -> 5600002971 | O45: -0.004480191914 | P45: =P33+P38+P43+P44 -> 5575113414 | Q45: 0.008989671123 | R45: =R33+R38+R43+R44 -> 5625055233 | S45: =S33+S38+S43+S44 -> 5634970304 | V45: =V33+V38+V43+V44 -> 1.031274675 | W45: =W33+W38+W43+W44 -> 1.005436605 | X45: 5625055233 | Y45: =X45=R45 -> TRUE
C46: Outras Receitas (OR) | E46: Prodes | F46: =G46*$F$7 -> 12975098.58 | G46: =VLOOKUP(E46,'1.Anterior (IRT_2019)'!$D$14:$X$50,18,FALSE) -> 0.002464053096 | I46: =F46 -> 12975098.58 | J46: IPCA | K46: =HLOOKUP(J46,'3.1.Índices_inflação'!$B$105:$AI$1015,8,FALSE) -> 0.02132125491 | L46: =I46*(1+K46) -> 13251743.96 | N46: =L46 -> 13251743.96 | O46: -0.004480191914 | P46: =N46+O46*L46 -> 13192373.61 | Q46: 0.008989671123 | R46: =P46+Q46*L46 -> 13311502.43 | S46: =R46 -> 13311502.43 | V46: =R46/copiar_RTbase_FQ -> 0.002440476542 | W46: =S46/copiar_RTaplic -> 0.002375145046 | X46: 13311502.43 | Y46: =X46=R46 -> TRUE
E47: Serviços de ligação | F47: =G47*$F$7 -> 33507256.93 | G47: =VLOOKUP(E47,'1.Anterior (IRT_2019)'!$D$14:$X$50,18,FALSE) -> 0.00636323953 | I47: =F47 -> 33507256.93 | J47: INPC | K47: =HLOOKUP(J47,'3.1.Índices_inflação'!$B$105:$AI$1015,8,FALSE) -> 0.02336476283 | L47: =I47*(1+K47) -> 34290146.04 | N47: =L47 -> 34290146.04 | O47: -0.004480191914 | P47: =N47+O47*L47 -> 34136519.61 | Q47: 0.008989671123 | R47: =P47+Q47*L47 -> 34444776.74 | S47: =R47 -> 34444776.74 | V47: =R47/copiar_RTbase_FQ -> 0.006314964829 | W47: =S47/copiar_RTaplic -> 0.006145913379 | X47: 34444776.74 | Y47: TRUE
E48: Outras | F48: =G48*$F$7 -> 119726322.9 | G48: =VLOOKUP(E48,'1.Anterior (IRT_2019)'!$D$14:$X$50,18,FALSE) -> 0.02273678423 | I48: =F48 -> 119726322.9 | J48: IPCA | K48: =HLOOKUP(J48,'3.1.Índices_inflação'!$B$105:$AI$1015,8,FALSE) -> 0.02132125491 | L48: =I48*(1+K48) -> 122279038.4 | N48: =L48 -> 122279038.4 | O48: -0.004480191914 | P48: =N48+O48*L48 -> 121731204.8 | Q48: 0.008989671123 | R48: =P48+Q48*L48 -> 122830453.2 | S48: =R48 -> 122830453.2 | V48: =R48/copiar_RTbase_FQ -> 0.02251923412 | W48: =S48/copiar_RTaplic -> 0.02191639479 | X48: =(1+M48+O48+Q48)*L48 -> 122830453.2 | Y48: TRUE
E49: Total de Outras Receitas | F49: =SUM(F46:F48) -> 166208678.4 | G49: =SUM(G46:G48) -> 0.03156407686 | H49: =I49/F49-1 -> 0 | I49: =SUM(I46:I48) -> 166208678.4 | K49: =L49/I49-1 -> 0.02173322103 | L49: =SUM(L46:L48) -> 169820928.4 | N49: =SUM(N46:N48) -> 169820928.4 | O49: -0.004480191914 | P49: =SUM(P46:P48) -> 169060098 | Q49: 0.008989671123 | R49: =SUM(R46:R48) -> 170586732.3 | S49: =SUM(S46:S48) -> 170586732.3 | V49: =SUM(V46:V48) -> 0.03127467549 | W49: =SUM(W46:W48) -> 0.03043745321 | X49: =(1+O49+Q49)*N49 -> 170586732.3 | Y49: =X49=R49 -> TRUE
C50: RT base | E50: Receita Tarifária base = RR - OR | F50: =F45-F49 -> 5265754459 | G50: =G45-G49 -> 1 | H50: =I50/F50-1 -> 0.004682672663 | I50: =I45-I49 -> 5290412263 | K50: =L50/I50-1 -> 0.01800117069 | L50: =L45-L49 -> 5385645878 | M50: =N50/L50-1 -> 0.008269419499 | N50: =N45-N49 -> 5430182043 | O50: -0.004480191914 | P50: =P45-P49 -> 5406053316 | Q50: 0.008989671123 | R50: =R45-R49 -> 5454468501 | S50: =S45-S49 -> 5464383572 | V50: =V45-V49 -> 1 | W50: =W45-W49 -> 0.9749991516 | X50: 5454468501 | Y50: TRUE | Z50: =X50-R50 -> 0
E51: Valores para cálculo circular | G51: =copiar_RTbase_ref=F7 -> TRUE | I51: 5290412263 | K51: =(1+H50)*(1+K50)-1 -> 0.02276813695 | L51: 5385645878 | N51: 5430182043 | P51: 5406053316 | R51: 5454468501 | V51: =V50=100% -> TRUE
A52: % da RR coberto por OR | C52: CF | E52: Componentes Financeiros | S52: ='4.Componentes Financeiros'!F24 -> 140117275.9 | W52: =S52/copiar_RTaplic -> 0.02500084837
A53: =F49/F45 -> 0.03059827069 | C53: RT aplic | E53: RT1 aplicação = RT base + CF | S53: =S50+S52 -> 5604500848 | T53: =copiar_RTaplic/F8-1 -> 0.03035919772 | U53: =T53=S58 -> TRUE | W53: =W50+W52 -> 1
A54: =(F49-F47)/F45 -> 0.02442973528 | M54: RT1 aplicação p/ circular | S54: 5604500848 | T54: =colar_RTaplic/F8-1 -> 0.03035919772 | W54: =W53=100% -> TRUE
S55: =S56-S57 -> 8.881784197e-16
O56: Faixa de variação do IRT (limite FX) | S56: =(1+K51)*(1+H76)-1 -> 0.03583798737
O57: Mínimo | P57: Máximo | R57: IRT | S57: =copiar_RTbase_FQ/F7-1 -> 0.03583798737
E58: Impactos sobre a Receita Tarifária base (desagregação do IRT) | O58: =G60-3% -> -0.007231863054 | P58: =G60+3% -> 0.05276813695 | R58: ETM | S58: =copiar_RTaplic/F8-1 -> 0.03035919772 | V58: =copiar_RTbase_FQ/F8-1 -> 0.002776507877 | W58: -> ETM se os CF fossem 0. Ou seja, os CF são responsáveis por
E59: Aspectos | F59: Variação em R$ | G59: Impacto individual | H59: Impacto acumulado | S59: =IF(AND(T54-S58<0.00001,T54-S58>-0.00001),"VERDADEIRO","falso") -> VERDADEIRO | V59: =(1+S57)/(1+F96)-1 -> 0.002776507877 | W59: =S58-V58 -> 0.02758268984 | X59: (pontos percentuais) do ETM deste reajuste.
E60: Correção inflacionária | F60: =copiar_RTbase_inflac-copiar_RTbase_ref -> 119891418.6 | G60: =F60/$F$7 -> 0.02276813695 | H60: =F60/F7 -> 0.02276813695
E61: Fator de Produtividade + Incentivo Atend. Telefônico | F61: =copiar_RTbase_FP-copiar_RTbase_inflac -> 44536165.03 | G61: =F61/$F$7 -> 0.008457698775 | H61: =F61/L50 -> 0.008269419499
E62: Fator de incentivo redução de Perdas | F62: =copiar_RTbase_IP-copiar_RTbase_FP -> -24128727.11 | G62: =F62/$F$7 -> -0.004582197537 | H62: =F62/colar_RTbase_FP -> -0.004443447185
E63: Fator de Qualidade | F63: =copiar_RTbase_FQ-copiar_RTbase_IP -> 48415185.23 | G63: =F63/$F$7 -> 0.009194349187 | H63: =F63/copiar_RTbase_IP -> 0.008955735802
E64: Total | F64: =SUM(F60:F63) -> 188714041.8 | G64: =F64/$F$7 -> 0.03583798737 | H64: =((1+H60)*(1+H61)*(1+H62)*(1+H63))-1 -> 0.03583798737
G65: =SUM(G60:G63)-G64 -> 0 | H65: =H64-G64 -> 0
E66: Total incentivos | F66: =E67=(F61+F63+F62) -> TRUE | G66: =IF(AND(S57-G64<0.0000000001,S57-G64>-0.0000000001),"verdadeiro","falso") -> verdadeiro | H66: =IF(AND(S57-H64<0.0000000001,S57-H64>-0.0000000001),"verdadeiro","falso") -> verdadeiro
E67: =copiar_RTbase_FQ-copiar_RTbase_inflac -> 68822623.15 | F67: =E67/$F$7 -> 0.01306985042 | G67: =E67/copiar_RTbase_inflac -> 0.01277889871
F68: =G61+G63+G62 -> 0.01306985042 | G68: =(1+H61)*(1+H63)*(1+H62)-1 -> 0.01277889871
F69: =F67=F68 -> TRUE | G69: =IF(AND(G68-G67<0.0000000001,G68-G67>-0.0000000001),"verdadeiro","falso") -> verdadeiro
E72: Aspectos | F72: Variação em R$ | G72: Impacto individual | H72: Impacto acumulado
E73: =E60 -> Correção inflacionária | F73: =F74+F75 -> 119891418.6 | G73: =G74+G75 -> 0.02276813695 | H73: =(1+H74)*(1+H75)-1 -> 0.02276813695 | I73: =G73=G60 -> TRUE
E74: Ajuste inflação projetada no reajuste 2019 p/ itens não adm. | F74: =copiar_RTbase_ajust-copiar_RTbase_ref -> 24657804.46 | G74: =F74/$F$7 -> 0.004682672663 | H74: =F74/$F$7 -> 0.004682672663
E75: Inflação projetada para o próximo período | F75: =copiar_RTbase_inflac-copiar_RTbase_ajust -> 95233614.19 | G75: =F75/$F$7 -> 0.01808546428 | H75: =F75/copiar_RTbase_ajust -> 0.01800117069
E76: Fator X | F76: =F77+F78+F79 -> 68822623.15 | G76: =G77+G78+G79 -> 0.01306985042 | H76: =(1+H77)*(1+H78)*(1+H79)-1 -> 0.01277889871
E77: Fator de Produtividade + Incentivo Atend. Telefônico | F77: 44536165.03 | G77: =F77/$F$7 -> 0.008457698775 | H77: =H61 -> 0.008269419499
E78: Fator de incentivo redução de Perdas | F78: -24128727.11 | G78: =F78/$F$7 -> -0.004582197537 | H78: =H62 -> -0.004443447185
E79: Fator de Qualidade | F79: 48415185.23 | G79: =F79/$F$7 -> 0.009194349187 | H79: =H63 -> 0.008955735802
E80: Total | F80: =F73+F76 -> 188714041.8 | G80: =F80/$F$7 -> 0.03583798737 | H80: =((1+H73)*(1+H77)*(1+H78)*(1+H79))-1 -> 0.03583798737
F81: =(F61+F62+F63)-(F77+F78+F79) -> -9.983778e-07 | G81: =(G61+G62+G63)-(G77+G78+G79) -> -1.890848589e-16 | H81: =IF(AND(H64-H80<0.0000000001,H64-H80>-0.0000000001),"verdadeiro","falso") -> verdadeiro
G82: =G73+G76 -> 0.03583798737 | H82: =(1+H73)*(1+H76)-1 -> 0.03583798737
E83: resumido | G83: =G82=G80 -> TRUE | H83: =IF(AND(H80-H82<0.0000000001,H80-H82>-0.0000000001),"VERDADEIRO","falso") -> VERDADEIRO
E84: Aspectos | F84: Impacto acumulado | G84: Impacto individual
E85: Variação da Receita Tarifária base (IRT) | F85: =S57 -> 0.03583798737 | G85: =F85 -> 0.03583798737
E86: (-) Componentes Financeiros considerados no ano anterior | F86: =(F8-F7)/F7 -> 0.0329699382 | G86: =G85+G87-F88 -> 0.03306147949
E87: (+) Componentes Financeiros calculados neste reajuste | F87: =(copiar_RTaplic-copiar_RTbase_FQ)/copiar_RTbase_FQ -> 0.02750631834 | G87: =W59 -> 0.02758268984 | I87: (impacto da variação dos CF)
E88: Total | F88: =(1+F85)/(1+F86)*(1+F87)-1 -> 0.03035919772 | G88: =G85-G86+G87 -> 0.03035919772
F89: =IF(AND(S58-F88<0.000001,S58-F88>-0.000001),"verdadeiro","falso") -> verdadeiro | G89: =G88=F88 -> TRUE
E90: completo
E91: Aspectos | F91: Impacto acumulado
E92: Correção inflacionária | F92: =H60 -> 0.02276813695
E93: Fator de Produtividade | F93: =H61 -> 0.008269419499
E94: Fator de Qualidade | F94: =H63 -> 0.008955735802
E95: Fator de incentivo redução de Perdas | F95: =H62 -> -0.004443447185
E96: (-) Impacto Componentes Financeiros PR anterior | F96: =F86 -> 0.0329699382
E97: (+) Impacto dos novos Componentes Financeiros | F97: =F87 -> 0.02750631834
E98: Total | F98: =(1+F92)*(1+F93)*(1+F95)*(1+F94)/(1+F96)*(1+F97)-1 -> 0.03035919772
F99: =IF(AND(S58-F98<0.00001,S58-F98>-0.00001),"verdadeiro","falso") -> verdadeiro
E128: Dados gráfico
E129: Inflação | F129: =F132+F133 -> 0.02276813695
E130: Fator X | F130: =F134+F135+F136 -> 0.01306985042
E132: Ajuste inflação passada itens não adm. | F132: =G74 -> 0.004682672663
E133: Inflação projetada PR1 | F133: =G75 -> 0.01808546428
E134: FP + incentivo atend. Telefônico | F134: =G77 -> 0.008457698775
E135: IP | F135: =G78 -> -0.004582197537
E136: FQ | F136: =G79 -> 0.009194349187
E138: =TEXT("* O Fator X aplicado foi de ", )&TEXT(#REF!,"0,00%")&TEXT(" sobre a receita base após correção inflacionária, mas o impacto sobre a receita base do período anterior (PR0) foi de ", )&TEXT(F130,"0,00%")&TEXT(".", ) -> 
E140: =TEXT("Inflação: ", )&TEXT(F129,"0,00%") -> Inflação: 2,28%
E141: =TEXT("Fator X: ", )&TEXT(F130,"0,00%")&TEXT(" *", ) -> Fator X: 1,31% *

Sheet 3.1.Índices_inflação
A1: Mês | B1: INPC | C1: Δ% | D1: IGP-M | E1: Δ% | F1: IGP-DI | G1: Δ% | H1: INCC | I1: Δ% | J1: INCC-DI MB | K1: Δ% | L1: INCC-DI MS | M1: Δ% | N1: INCC-M | O1: Δ% | P1: SELIC | Q1: Δ% | R1: IPCA | S1: Δ% | T1: IPCA 15 | U1: Δ% | V1: IPCA BH Fixo | W1: Δ% | X1: IPCA BH Cel | Y1: Δ% | Z1: IPCA BH Int | AA1: Δ% | AB1: IPCA BH Gas | AC1: Δ% | AD1: IPCA BH Die | AE1: Δ% | AF1: IPCA BH Tel | AG1: Δ% | AH1: IPCA BH Comb | AI1: Δ%
A2: 2012-12-01 | B2: 100 | D2: 100 | F2: 100 | H2: 100 | J2: 100 | L2: 100 | N2: 100 | P2: 100 | R2: 100 | T2: 100 | V2: 100 | X2: 100 | Z2: 100 | AB2: 100 | AD2: 100 | AF2: =AVERAGE(V2,X2,Z2) -> 100 | AH2: =0.4*AD2+0.6*AB2 -> 100
A3: 2013-01-01 | B3: 100.92 | C3: =B3/B2-1 -> 0.0092 | D3: 100.34 | E3: =D3/D2-1 -> 0.0034 | F3: 100.31 | G3: =F3/F2-1 -> 0.0031 | H3: 100.65 | I3: =H3/H2-1 -> 0.0065 | J3: 100.66 | K3: =J3/J2-1 -> 0.0066 | L3: 100.63 | M3: =L3/L2-1 -> 0.0063 | N3: 100.39 | O3: =N3/N2-1 -> 0.0039 | P3: 100.6 | Q3: =P3/P2-1 -> 0.006 | R3: 100.86 | S3: =R3/R2-1 -> 0.0086 | T3: 100.88 | U3: =T3/T2-1 -> 0.0088 | V3: 100 | W3: =V3/V2-1 -> 0 | X3: 100 | Y3: =X3/X2-1 -> 0 | Z3: 100 | AA3: =Z3/Z2-1 -> 0 | AB3: 99.68 | AC3: =AB3/AB2-1 -> -0.0032 | AD3: 99.67 | AE3: =AD3/AD2-1 -> -0.0033 | AF3: =AVERAGE(V3,X3,Z3) -> 100 | AG3: =AF3/AF2-1 -> 0 | AH3: =0.4*AD3+0.6*AB3 -> 99.676 | AI3: =AH3/AH2-1 -> -0.00324
A4: 2013-02-01 | B4: 101.444784 | C4: =B4/B3-1 -> 0.0052 | D4: 100.630986 | E4: 0.0029 | F4: 100.51062 | G4: 0.002 | H4: 101.2539 | I4: 0.006 | J4: 101.435082 | K4: 0.0077 | L4: 101.072772 | M4: 0.0044 | N4: 101.19312 | O4: 0.008 | P4: 101.09294 | Q4: 0.0049 | R4: 101.46516 | S4: 0.006 | T4: 101.565984 | U4: 0.0068 | V4: 100.19 | W4: 0.0019 | X4: 100 | Y4: 0 | Z4: 100 | AA4: 0 | AB4: 103.108992 | AC4: 0.0344 | AD4: 103.427559 | AE4: 0.0377 | AF4: =AVERAGE(V4,X4,Z4) -> 100.0633333 | AG4: 0.0006333333333 | AH4: =0.4*AD4+0.6*AB4 -> 103.2364188 | AI4: 0.03571992054
A5: 2013-03-01 | B5: 102.0534527 | C5: 0.006 | D5: 100.8423111 | E5: 0.0021 | F5: 100.8222029 | G5: 0.0031 | H5: 101.7601695 | I5: 0.005 | J5: 101.9625444 | K5: 0.0052 | L5: 101.5579213 | M5: 0.0048 | N5: 101.4764607 | O5: 0.0028 | P5: 101.6489512 | Q5: 0.0055 | R5: 101.9420463 | S5: 0.0047 | T5: 102.0636573 | U5: 0.0049 | V5: 100.280171 | W5: 0.0009 | X5: 100 | Y5: 0 | Z5: 100 | AA5: 0 | AB5: 103.1605465 | AC5: 0.0005 | AD5: 107.368149 | AE5: 0.0381 | AF5: 100.0933903 | AG5: 0.0003003797595 | AH5: 104.8435875 | AI5: 0.01556784626
A6: 2013-04-01 | B6: 102.6555681 | C6: 0.0059 | D6: 100.9935745 | E6: 0.0015 | F6: 100.7617096 | G6: -0.0006 | H6: 102.5131948 | I6: 0.0074 | J6: 102.9311886 | K6: 0.0095 | L6: 102.0657109 | M6: 0.005 | N6: 102.328863 | O6: 0.0084 | P6: 102.2690098 | Q6: 0.0061 | R6: 102.5027275 | S6: 0.0055 | T6: 102.584182 | U6: 0.0051 | V6: 98.83613654 | W6: -0.0144 | X6: 100 | Y6: 0 | Z6: 100 | AA6: 0 | AB6: 102.6447438 | AC6: -0.005 | AD6: 107.5077276 | AE6: 0.0013 | AF6: 99.61204551 | AG6: -0.004808957107 | AH6: =0.4*AD6+0.6*AB6 -> 104.5899373 | AI6: -0.002419320133
A7: 2013-05-01 | B7: 103.0148626 | C7: 0.0035 | D7: 100.9935745 | E7: 0 | F7: 101.0841471 | G7: 0.0032 | H7: 104.8197416 | I7: 0.0225 | J7: 106.8116944 | K7: 0.0377 | L7: 102.7189315 | M7: 0.0064 | N7: 103.5977409 | O7: 0.0124 | P7: 102.8826238 | Q7: 0.006 | R7: 102.8819876 | S7: 0.0037 | T7: 103.0560692 | U7: 0.0046 | V7: 98.36172308 | W7: -0.0048 | X7: 100 | Y7: 0 | Z7: 100 | AA7: 0 | AB7: 102.2752227 | AC7: -0.0036 | AD7: 108.8300726 | AE7: 0.0123 | AF7: 99.45390769 | AG7: -0.001587537106 | AH7: 104.8971627 | AI7: 0.002937427645
A8: 2013-06-01 | B8: 103.3033042 | C8: 0.0028 | D8: 101.7510263 | E8: 0.0075 | F8: 101.8523866 | G8: 0.0076 | H8: 106.0251687 | I8: 0.0115 | J8: 108.6702179 | K8: 0.0174 | L8: 103.2325261 | M8: 0.005 | N8: 105.6282566 | O8: 0.0196 | P8: 103.5102078 | Q8: 0.0061 | R8: 103.1494808 | S8: 0.0026 | T8: 103.4476823 | U8: 0.0038 | V8: 98.36172308 | W8: 0 | X8: 100.7 | Y8: 0.007 | Z8: 100 | AA8: 0 | AB8: 101.5797512 | AC8: -0.0068 | AD8: 108.2097412 | AE8: -0.0057 | AF8: 99.68724103 | AG8: 0.002346145453 | AH8: 104.2317472 | AI8: -0.006343503077
A9: 2013-07-01 | B9: 103.1690099 | C9: -0.0013 | D9: 102.015579 | E9: 0.0026 | F9: 101.9949799 | G9: 0.0014 | H9: 106.5340895 | I9: 0.0048 | J9: 109.2679041 | K9: 0.0055 | L9: 103.6454562 | M9: 0.004 | N9: 106.3993429 | O9: 0.0073 | P9: 104.2554813 | Q9: 0.0072 | R9: 103.1804256 | S9: 0.0003 | T9: 103.5200957 | U9: 0.0007 | V9: 98.36172308 | W9: 0 | X9: 103.2175 | Y9: 0.025 | Z9: 100 | AA9: 0 | AB9: 100.9905886 | AC9: -0.0058 | AD9: 109.0213143 | AE9: 0.0075 | AF9: 100.5264077 | AG9: 0.0084179947 | AH9: 104.2028789 | AI9: -0.0002769627409
A10: 2013-08-01 | B10: 103.3340803 | C10: 0.0016 | D10: 102.1686024 | E10: 0.0015 | F10: 102.4641568 | G10: 0.0046 | H10: 106.8643452 | I10: 0.0031 | J10: 109.2679041 | K10: 0 | L10: 104.3295162 | M10: 0.0066 | N10: 106.7291809 | O10: 0.0031 | P10: 104.9956953 | Q10: 0.0071 | R10: 103.4280586 | S10: 0.0024 | T10: 103.6857278 | U10: 0.0016 | V10: 98.36172308 | W10: 0 | X10: 103.2175 | Y10: 0 | Z10: 100 | AA10: 0 | AB10: 100.3846451 | AC10: -0.006 | AD10: 109.4573995 | AE10: 0.004 | AF10: 100.5264077 | AG10: 0 | AH10: 104.0137469 | AI10: -0.001815036381
A11: 2013-09-01 | B11: 103.6130823 | C11: 0.0027 | D11: 103.7011314 | E11: 0.015 | F11: 103.8576694 | G11: 0.0136 | H11: 107.3238618 | I11: 0.0043 | J11: 109.2679041 | K11: 0 | L11: 105.2789148 | M11: 0.0091 | N11: 107.1881163 | O11: 0.0043 | P11: 105.7411647 | Q11: 0.0071 | R11: 103.7900568 | S11: 0.0035 | T11: 103.9656793 | U11: 0.0027 | V11: 98.36172308 | W11: 0 | X11: 103.2175 | Y11: 0 | Z11: 100 | AA11: 0 | AB11: 99.26033706 | AC11: -0.0112 | AD11: 109.3917251 | AE11: -0.0006 | AF11: 100.5264077 | AG11: 0 | AH11: 103.3128923 | AI11: -0.006738095799
A12: 2013-10-01 | B12: 104.2451221 | C12: 0.0061 | D12: 104.5929611 | E12: 0.0086 | F12: 104.5119727 | G12: 0.0063 | H12: 107.6029039 | I12: 0.0026 | J12: 109.2679041 | K12: 0 | L12: 105.8579489 | M12: 0.0055 | N12: 107.5418371 | O12: 0.0033 | P12: 106.5976681 | Q12: 0.0081 | R12: 104.3816602 | S12: 0.0057 | T12: 104.4647145 | U12: 0.0048 | V12: 98.36172308 | W12: 0 | X12: 103.2175 | Y12: 0 | Z12: 100 | AA12: 0 | AB12: 99.28018913 | AC12: 0.0002 | AD12: 109.8402312 | AE12: 0.0041 | AF12: 100.5264077 | AG12: 0 | AH12: 103.5042059 | AI12: 0.001851788924
A13: 2013-11-01 | B13: 104.8080458 | C13: 0.0054 | D13: 104.8962807 | E13: 0.0029 | F13: 104.8046062 | G13: 0.0028 | H13: 107.979514 | I13: 0.0035 | J13: 109.7596097 | K13: 0.0045 | L13: 106.1120079 | M13: 0.0024 | N13: 107.8322001 | O13: 0.0027 | P13: 107.3651713 | Q13: 0.0072 | R13: 104.9453211 | S13: 0.0054 | T13: 105.0601634 | U13: 0.0057 | V13: 98.36172308 | W13: 0 | X13: 104.7244755 | Y13: 0.0146 | Z13: 100 | AA13: 0 | AB13: 99.22062101 | AC13: -0.0006 | AD13: 110.4333684 | AE13: 0.0054 | AF13: 101.0287329 | AG13: 0.004996947351 | AH13: 103.70572 | AI13: 0.001946916354
A14: 2013-12-01 | B14: 105.5626637 | C14: 0.0072 | D14: 105.5256584 | E14: 0.006 | F14: 105.527758 | G14: 0.0069 | H14: 108.0874936 | I14: 0.001 | J14: 109.7596097 | K14: 0 | L14: 106.3348432 | M14: 0.0021 | N14: 108.0694309 | O14: 0.0022 | P14: 108.2133562 | Q14: 0.0079 | R14: 105.9108181 | S14: 0.0092 | T14: 105.8481146 | U14: 0.0075 | V14: 98.36172308 | W14: 0 | X14: 104.7244755 | Y14: 0 | Z14: 100 | AA14: 0 | AB14: 103.4374974 | AC14: 0.0425 | AD14: 116.0986002 | AE14: 0.0513 | AF14: 101.0287329 | AG14: 0 | AH14: 108.5019385 | AI14: 0.04624835117
A15: 2014-01-01 | B15: 106.2277085 | C15: 0.0063 | D15: 106.0321816 | E15: 0.0048 | F15: 105.949869 | G15: 0.004 | H15: 109.0386635 | I15: 0.0088 | J15: 111.065749 | K15: 0.0119 | L15: 106.9090513 | M15: 0.0054 | N15: 108.8259169 | O15: 0.007 | P15: 109.1331697 | Q15: 0.0085 | R15: 106.4933276 | S15: 0.0055 | T15: 106.557297 | U15: 0.0067 | V15: 98.36172308 | W15: 0 | X15: 104.7244755 | Y15: 0 | Z15: 100 | AA15: 0 | AB15: 103.9857161 | AC15: 0.0053 | AD15: 116.2379185 | AE15: 0.0012 | AF15: 101.0287329 | AG15: 0 | AH15: 108.8865971 | AI15: 0.003545176935
A16: 2014-02-01 | B16: 106.9075658 | C16: 0.0064 | D16: 106.4351039 | E16: 0.0038 | F16: 106.8504429 | G16: 0.0085 | H16: 109.3984911 | I16: 0.0033 | J16: 111.1323885 | K16: 0.0006 | L16: 107.5718874 | M16: 0.0062 | N16: 109.304751 | O16: 0.0044 | P16: 109.9953218 | Q16: 0.0079 | R16: 107.2281315 | S16: 0.0069 | T16: 107.3031981 | U16: 0.007 | V16: 98.36172308 | W16: 0 | X16: 105.0595938 | Y16: 0.0032 | Z16: 100 | AA16: 0 | AB16: 104.2352819 | AC16: 0.0024 | AD16: 117.1213267 | AE16: 0.0076 | AF16: 101.140439 | AG16: 0.001105686512 | AH16: 109.3896998 | AI16: 0.004620428198
A17: 2014-03-01 | B17: 107.7842079 | C17: 0.0082 | D17: 108.2125701 | E17: 0.0167 | F17: 108.4318295 | G17: 0.0148 | H17: 109.7048069 | I17: 0.0028 | J17: 111.1435017 | K17: 0.0001 | L17: 108.1850472 | M17: 0.0057 | N17: 109.5452214 | O17: 0.0022 | P17: 110.8422857 | Q17: 0.0077 | R17: 108.2146303 | S17: 0.0092 | T17: 108.0865114 | U17: 0.0073 | V17: 94.30922009 | W17: -0.0412 | X17: 106.3833447 | Y17: 0.0126 | Z17: 100 | AA17: 0 | AB17: 104.7564583 | AC17: 0.005 | AD17: 117.1564631 | AE17: 0.0003 | AF17: 100.2308549 | AG17: -0.008993277521 | AH17: 109.7164602 | AI17: 0.002987122237
A18: 2014-04-01 | B18: 108.6249247 | C18: 0.0078 | D18: 109.0566282 | E18: 0.0078 | F18: 108.9197727 | G18: 0.0045 | H18: 110.6702092 | I18: 0.0088 | J18: 112.2438224 | K18: 0.0099 | L18: 109.0180721 | M18: 0.0077 | N18: 110.2791744 | O18: 0.0067 | P18: 111.7511925 | Q18: 0.0082 | R18: 108.9396684 | S18: 0.0067 | T18: 108.9295862 | U18: 0.0078 | V18: 94.48840761 | W18: 0.0019 | X18: 106.7237714 | Y18: 0.0032 | Z18: 100 | AA18: 0 | AB18: 104.7774096 | AC18: 0.0002 | AD18: 117.0393067 | AE18: -0.001 | AF18: 100.4040597 | AG18: 0.001728058097 | AH18: 109.6821684 | AI18: -0.0003125493676
A19: 2014-05-01 | B19: 109.2766742 | C19: 0.006 | D19: 108.9148545 | E19: -0.0013 | F19: 108.4296337 | G19: -0.0045 | H19: 112.9389485 | I19: 0.0205 | J19: 116.0825611 | K19: 0.0342 | L19: 109.6394751 | M19: 0.0057 | N19: 111.7899991 | O19: 0.0137 | P19: 112.7234278 | Q19: 0.0087 | R19: 109.4407908 | S19: 0.0046 | T19: 109.5613778 | U19: 0.0058 | V19: 94.83801472 | W19: 0.0037 | X19: 106.7237714 | Y19: 0 | Z19: 100 | AA19: 0 | AB19: 104.6097657 | AC19: -0.0016 | AD19: 117.49576 | AE19: 0.0039 | AF19: 100.5205954 | AG19: 0.001160667239 | AH19: 109.7641634 | AI19: 0.0007475691483
A20: 2014-06-01 | B20: 109.5607936 | C20: 0.0026 | D20: 108.1088846 | E20: -0.0074 | F20: 107.746527 | G20: -0.0063 | H20: 113.6843455 | I20: 0.0066 | J20: 117.2317784 | K20: 0.0099 | L20: 109.9683935 | M20: 0.003 | N20: 113.1873741 | O20: 0.0125 | P20: 113.64776 | Q20: 0.0082 | R20: 109.878554 | S20: 0.004 | T20: 110.0763163 | U20: 0.0047 | V20: 94.83801472 | W20: 0 | X20: 106.7237714 | Y20: 0 | Z20: 100 | AA20: 0 | AB20: 104.3377803 | AC20: -0.0026 | AD20: 117.5192591 | AE20: 0.0002 | AF20: 100.5205954 | AG20: 0 | AH20: 109.6103718 | AI20: -0.00140110915
A21: 2014-07-01 | B21: 109.7032226 | C21: 0.0013 | D21: 107.4494204 | E21: -0.0061 | F21: 107.1539211 | G21: -0.0055 | H21: 114.5369781 | I21: 0.0075 | J21: 118.5330512 | K21: 0.0111 | L21: 110.342286 | M21: 0.0034 | N21: 114.0928731 | O21: 0.008 | P21: 114.7274137 | Q21: 0.0095 | R21: 109.8895419 | S21: 0.0001 | T21: 110.263446 | U21: 0.0017 | V21: 94.83801472 | W21: 0 | X21: 106.7237714 | Y21: 0 | Z21: 100 | AA21: 0 | AB21: 104.2543101 | AC21: -0.0008 | AD21: 117.3547321 | AE21: -0.0014 | AF21: 100.5205954 | AG21: 0 | AH21: 109.4944789 | AI21: -0.001057317092
A22: 2014-08-01 | B22: 109.9006884 | C22: 0.0018 | D22: 107.159307 | E22: -0.0027 | F22: 107.2182135 | G22: 0.0006 | H22: 114.6286077 | I22: 0.0008 | J22: 118.5330512 | K22: 0 | L22: 110.5188337 | M22: 0.0016 | N22: 114.3096495 | O22: 0.0019 | P22: 115.7255422 | Q22: 0.0087 | R22: 110.1642657 | S22: 0.0025 | T22: 110.4178148 | U22: 0.0014 | V22: 94.83801472 | W22: 0 | X22: 107.1506665 | Y22: 0.004 | Z22: 100 | AA22: 0 | AB22: 104.1083541 | AC22: -0.0014 | AD22: 117.6011771 | AE22: 0.0021 | AF22: 100.6628937 | AG22: 0.001415613998 | AH22: 109.5054833 | AI22: 0.0001005014557
A23: 2014-09-01 | B23: 110.4392018 | C23: 0.0049 | D23: 107.3736256 | E23: 0.002 | F23: 107.2396571 | G23: 0.0002 | H23: 114.8005506 | I23: 0.0015 | J23: 118.5330512 | K23: 0 | L23: 110.8835458 | M23: 0.0033 | N23: 114.492545 | O23: 0.0016 | P23: 116.7786446 | Q23: 0.0091 | R23: 110.792202 | S23: 0.0057 | T23: 110.8484443 | U23: 0.0039 | V23: 95.13201256 | W23: 0.0031 | X23: 106.7220638 | Y23: -0.004 | Z23: 100 | AA23: 0 | AB23: 103.1922005 | AC23: -0.0088 | AD23: 117.7775788 | AE23: 0.0015 | AF23: 100.6180255 | AG23: -0.0004457280313 | AH23: 109.0263519 | AI23: -0.004375410152
A24: 2014-10-01 | B24: 110.8588708 | C24: 0.0038 | D24: 107.6742717 | E24: 0.0028 | F24: 107.8723711 | G24: 0.0059 | H24: 114.9957115 | I24: 0.0017 | J24: 118.5330512 | K24: 0 | L24: 111.293815 | M24: 0.0037 | N24: 114.7215301 | O24: 0.002 | P24: 117.8880417 | Q24: 0.0095 | R24: 111.2575293 | S24: 0.0042 | T24: 111.3805169 | U24: 0.0048 | V24: 95.16055217 | W24: 0.0003 | X24: 106.7220638 | Y24: 0 | Z24: 100 | AA24: 0 | AB24: 103.4914579 | AC24: 0.0029 | AD24: 117.6362458 | AE24: -0.0012 | AF24: 100.6275387 | AG24: 9.45476838e-05 | AH24: 109.1493731 | AI24: 0.001128361988
A25: 2014-11-01 | B25: 111.4464228 | C25: 0.0053 | D25: 108.7294796 | E25: 0.0098 | F25: 109.1021161 | G25: 0.0114 | H25: 115.5016927 | I25: 0.0044 | J25: 119.0783032 | K25: 0.0046 | L25: 111.761249 | M25: 0.0042 | N25: 115.0656947 | O25: 0.003 | P25: 118.8783013 | Q25: 0.0084 | R25: 111.8249427 | S25: 0.0051 | T25: 111.8037628 | U25: 0.0038 | V25: 95.16055217 | W25: 0 | X25: 107.2450019 | Y25: 0.0049 | Z25: 100 | AA25: 0 | AB25: 105.0955755 | AC25: 0.0155 | AD25: 121.6005872 | AE25: 0.0337 | AF25: 100.8018514 | AG25: 0.001732256463 | AH25: 111.6975802 | AI25: 0.02334605395
A26: 2014-12-01 | B26: 112.1373906 | C26: 0.0062 | D26: 109.4036024 | E26: 0.0062 | F26: 109.5167042 | G26: 0.0038 | H26: 115.594094 | I26: 0.0008 | J26: 119.0783032 | K26: 0 | L26: 111.9624192 | M26: 0.0018 | N26: 115.3533589 | O26: 0.0025 | P26: 120.019533 | Q26: 0.0096 | R26: 112.6971772 | S26: 0.0078 | T26: 112.6870125 | U26: 0.0079 | V26: 95.16055217 | W26: 0 | X26: 107.2450019 | Y26: 0 | Z26: 100 | AA26: 0 | AB26: 106.3041746 | AC26: 0.0115 | AD26: 123.7407576 | AE26: 0.0176 | AF26: 100.8018514 | AG26: 0 | AH26: 113.2788078 | AI26: 0.01415632821
A27: 2015-01-01 | B27: 113.797024 | C27: 0.0148 | D27: 110.2350698 | E27: 0.0076 | F27: 110.2504661 | G27: 0.0067 | H27: 116.6575597 | I27: 0.0092 | J27: 120.1142845 | K27: 0.0087 | L27: 113.0484547 | M27: 0.0097 | N27: 116.1608324 | O27: 0.007 | P27: 121.1477166 | Q27: 0.0094 | R27: 114.0946222 | S27: 0.0124 | T27: 113.689927 | U27: 0.0089 | V27: 95.16055217 | W27: 0 | X27: 108.5855645 | Y27: 0.0125 | Z27: 100 | AA27: 0 | AB27: 106.5805655 | AC27: 0.0026 | AD27: 123.480902 | AE27: -0.0021 | AF27: 101.2487055 | AG27: 0.004432995711 | AH27: 113.3407001 | AI27: 0.0005463711816
A28: 2015-02-01 | B28: 115.1170695 | C28: 0.0116 | D28: 110.5327045 | E28: 0.0027 | F28: 110.8347936 | G28: 0.0053 | H28: 117.0191981 | I28: 0.0031 | J28: 120.3665245 | K28: 0.0021 | L28: 113.5232582 | M28: 0.0042 | N28: 116.7416366 | O28: 0.005 | P28: 122.1411279 | Q28: 0.0082 | R28: 115.4865766 | S28: 0.0122 | T28: 115.202003 | U28: 0.0133 | V28: 94.39926775 | W28: -0.008 | X28: 109.8560156 | Y28: 0.0117 | Z28: 100 | AA28: 0 | AB28: 115.6825458 | AC28: 0.0854 | AD28: 129.778428 | AE28: 0.051 | AF28: 101.4184278 | AG28: 0.001676290359 | AH28: 121.3208987 | AI28: 0.07040894021
A29: 2015-03-01 | B29: 116.8553372 | C29: 0.0151 | D29: 111.615925 | E29: 0.0098 | F29: 112.1758946 | G29: 0.0121 | H29: 117.7447171 | I29: 0.0062 | J29: 121.004467 | K29: 0.0053 | L29: 114.351978 | M29: 0.0073 | N29: 117.1619065 | O29: 0.0036 | P29: 123.4113956 | Q29: 0.0104 | R29: 117.0109994 | S29: 0.0132 | T29: 116.6305078 | U29: 0.0124 | V29: 89.42442634 | W29: -0.0527 | X29: 109.8560156 | Y29: 0 | Z29: 100 | AA29: 0 | AB29: 119.1067491 | AC29: 0.0296 | AD29: 131.8808385 | AE29: 0.0162 | AF29: 99.7601473 | AG29: -0.01635087929 | AH29: 124.2163849 | AI29: 0.02386634338
A30: 2015-04-01 | B30: 117.6850101 | C30: 0.0071 | D30: 112.9218313 | E30: 0.0117 | F30: 113.2079128 | G30: 0.0092 | H30: 118.2863428 | I30: 0.0046 | J30: 121.137572 | K30: 0.0011 | L30: 115.3125346 | M30: 0.0084 | N30: 117.9234589 | O30: 0.0065 | P30: 124.5838038 | Q30: 0.0095 | R30: 117.8417775 | S30: 0.0071 | T30: 117.8784543 | U30: 0.0107 | V30: 89.42442634 | W30: 0 | X30: 110.229526 | Y30: 0.0034 | Z30: 100 | AA30: 0 | AB30: 119.5593548 | AC30: 0.0038 | AD30: 132.1446002 | AE30: 0.002 | AF30: 99.88465079 | AG30: 0.001248028273 | AH30: 124.5934529 | AI30: 0.003035574246
A31: 2015-05-01 | B31: 118.8500917 | C31: 0.0099 | D31: 113.3848108 | E31: 0.0041 | F31: 113.6607444 | G31: 0.004 | H31: 119.4100631 | I31: 0.0095 | J31: 122.5669953 | K31: 0.0118 | L31: 116.1197223 | M31: 0.007 | N31: 118.4541144 | O31: 0.0045 | P31: 125.8171835 | Q31: 0.0099 | R31: 118.7138067 | S31: 0.0074 | T31: 118.585725 | U31: 0.006 | V31: 89.42442634 | W31: 0 | X31: 110.5932835 | Y31: 0.0033 | Z31: 100 | AA31: 0 | AB31: 118.6626596 | AC31: -0.0075 | AD31: 131.8935255 | AE31: -0.0019 | AF31: 100.0059033 | AG31: 0.001213925039 | AH31: 123.955006 | AI31: -0.005124241905
A32: 2015-06-01 | B32: 119.7652374 | C32: 0.0077 | D32: 114.144489 | E32: 0.0067 | F32: 114.4336375 | G32: 0.0068 | H32: 121.6072083 | I32: 0.0184 | J32: 126.5871927 | K32: 0.0328 | L32: 116.3867977 | M32: 0.0023 | N32: 120.6692064 | O32: 0.0187 | P32: 127.1634274 | Q32: 0.0107 | R32: 119.6516458 | S32: 0.0079 | T32: 119.7597237 | U32: 0.0099 | V32: 90.30972816 | W32: 0.0099 | X32: 111.654979 | Y32: 0.0096 | Z32: 100 | AA32: 0 | AB32: 119.0067813 | AC32: 0.0029 | AD32: 132.0913657 | AE32: 0.0015 | AF32: 100.6549024 | AG32: 0.006489608041 | AH32: 124.2406151 | AI32: 0.002304135608
A33: 2015-07-01 | B33: 120.4598758 | C33: 0.0058 | D33: 114.932086 | E33: 0.0069 | F33: 115.0973526 | G33: 0.0058 | H33: 122.2760479 | I33: 0.0055 | J33: 127.5998903 | K33: 0.008 | L33: 116.6894034 | M33: 0.0026 | N33: 121.4656231 | O33: 0.0066 | P33: 128.6639558 | Q33: 0.0118 | R33: 120.393486 | S33: 0.0062 | T33: 120.466306 | U33: 0.0059 | V33: 91.14960863 | W33: 0.0093 | X33: 112.6263773 | Y33: 0.0087 | Z33: 100 | AA33: 0 | AB33: 118.0785284 | AC33: -0.0078 | AD33: 131.536582 | AE33: -0.0042 | AF33: 101.258662 | AG33: 0.00599831287 | AH33: 123.4617499 | AI33: -0.00626900656
A34: 2015-08-01 | B34: 120.7610255 | C34: 0.0025 | D34: 115.2538958 | E34: 0.0028 | F34: 115.557742 | G34: 0.004 | H34: 122.9974766 | I34: 0.0059 | J34: 128.7100093 | K34: 0.0087 | L34: 117.0044648 | M34: 0.0027 | N34: 122.4373481 | O34: 0.008 | P34: 130.0921257 | Q34: 0.0111 | R34: 120.6583516 | S34: 0.0022 | T34: 120.9843111 | U34: 0.0043 | V34: 91.14960863 | W34: 0 | X34: 112.6263773 | Y34: 0 | Z34: 100 | AA34: 0 | AB34: 117.8305635 | AC34: -0.0021 | AD34: 132.4047234 | AE34: 0.0066 | AF34: 101.258662 | AG34: 0 | AH34: 123.6602275 | AI34: 0.001607604224
A35: 2015-09-01 | B35: 121.3769067 | C35: 0.0051 | D35: 116.3488078 | E35: 0.0095 | F35: 117.198662 | G35: 0.0142 | H35: 123.268071 | I35: 0.0022 | J35: 128.7100093 | K35: 0 | L35: 117.5543858 | M35: 0.0047 | N35: 122.7067103 | O35: 0.0022 | P35: 131.5361483 | Q35: 0.0111 | R35: 121.3099067 | S35: 0.0054 | T35: 121.45615 | U35: 0.0039 | V35: 91.14960863 | W35: 0 | X35: 112.6263773 | Y35: 0 | Z35: 100 | AA35: 0 | AB35: 117.9012619 | AC35: 0.0006 | AD35: 132.7489757 | AE35: 0.0026 | AF35: 101.258662 | AG35: 0 | AH35: 123.8403474 | AI35: 0.001456571113
A36: 2015-10-01 | B36: 122.3115089 | C36: 0.0077 | D36: 118.5478003 | E36: 0.0189 | F36: 119.2613584 | G36: 0.0176 | H36: 123.7118361 | I36: 0.0036 | J36: 128.7100093 | K36: 0 | L36: 118.4595545 | M36: 0.0077 | N36: 123.0380184 | O36: 0.0027 | P36: 132.9961996 | Q36: 0.0111 | R36: 122.304648 | S36: 0.0082 | T36: 122.2577606 | U36: 0.0066 | V36: 91.97907007 | W36: 0.0091 | X36: 113.7075905 | Y36: 0.0096 | Z36: 100 | AA36: 0 | AB36: 124.8928067 | AC36: 0.0593 | AD36: 135.8022022 | AE36: 0.023 | AF36: 101.8955535 | AG36: 0.006289748858 | AH36: 129.2565649 | AI36: 0.04373548353
A37: 2015-11-01 | B37: 123.6691666 | C37: 0.0111 | D37: 120.3497269 | E37: 0.0152 | F37: 120.6805686 | G37: 0.0119 | H37: 124.1324563 | I37: 0.0034 | J37: 128.7100093 | K37: 0 | L37: 119.3124633 | M37: 0.0072 | N37: 123.5301705 | O37: 0.004 | P37: 134.4059593 | Q37: 0.0106 | R37: 123.5399249 | S37: 0.0101 | T37: 123.2969515 | U37: 0.0085 | V37: 92.77009007 | W37: 0.0086 | X37: 116.9823691 | Y37: 0.0288 | Z37: 100 | AA37: 0 | AB37: 127.665427 | AC37: 0.0222 | AD37: 137.9342967 | AE37: 0.0157 | AF37: 103.2508197 | AG37: 0.01330054312 | AH37: 131.7729749 | AI37: 0.01946833429
A38: 2015-12-01 | B38: 124.7821891 | C38: 0.009 | D38: 120.9394405 | E38: 0.0049 | F38: 121.2115631 | G38: 0.0044 | H38: 124.2565888 | I38: 0.001 | J38: 128.7357513 | K38: 0.0002 | L38: 119.5510882 | M38: 0.002 | N38: 123.6784067 | O38: 0.0012 | P38: 135.9650684 | Q38: 0.0116 | R38: 124.7259082 | S38: 0.0096 | T38: 124.7518555 | U38: 0.0118 | V38: 92.77009007 | W38: 0 | X38: 116.9823691 | Y38: 0 | Z38: 100 | AA38: 0 | AB38: 129.4910426 | AC38: 0.0143 | AD38: 138.5136208 | AE38: 0.0042 | AF38: 103.2508197 | AG38: 0 | AH38: 133.1000739 | AI38: 0.01007110133
A39: 2016-01-01 | B39: 126.6664002 | C39: 0.0151 | D39: 122.3181502 | E39: 0.0114 | F39: 123.0661 | G39: 0.0153 | H39: 124.7411895 | I39: 0.0039 | J39: 129.0833379 | K39: 0.0027 | L39: 120.184709 | M39: 0.0053 | N39: 124.0741776 | O39: 0.0032 | P39: 137.4062981 | Q39: 0.0106 | R39: 126.3099272 | S39: 0.0127 | T39: 125.8995726 | U39: 0.0092 | V39: 92.77009007 | W39: 0 | X39: 116.9823691 | Y39: 0 | Z39: 100 | AA39: 0 | AB39: 130.8377495 | AC39: 0.0104 | AD39: 139.1646348 | AE39: 0.0047 | AF39: 103.2508197 | AG39: 0 | AH39: 134.1685036 | AI39: 0.008027266115
A40: 2016-02-01 | B40: 127.869731 | C40: 0.0095 | D40: 123.8960543 | E40: 0.0129 | F40: 124.0383222 | G40: 0.0079 | H40: 125.4147919 | I40: 0.0054 | J40: 129.8062046 | K40: 0.0056 | L40: 120.797651 | M40: 0.0051 | N40: 124.7193633 | O40: 0.0052 | P40: 138.7803611 | Q40: 0.01 | R40: 127.4467166 | S40: 0.009 | T40: 127.6873465 | U40: 0.0142 | V40: 94.14308741 | W40: 0.0148 | X40: 116.9823691 | Y40: 0 | Z40: 100 | AA40: 0 | AB40: 133.1012425 | AC40: 0.0173 | AD40: 140.6954458 | AE40: 0.011 | AF40: 103.7084855 | AG40: 0.00443256314 | AH40: 136.1389238 | AI40: 0.01468616091
A41: 2016-03-01 | B41: 128.4323578 | C41: 0.0044 | D41: 124.5279242 | E41: 0.0051 | F41: 124.571687 | G41: 0.0043 | H41: 126.2174466 | I41: 0.0064 | J41: 131.0653247 | K41: 0.0097 | L41: 121.1117249 | M41: 0.0026 | N41: 125.7046463 | O41: 0.0079 | P41: 140.3902133 | Q41: 0.0116 | R41: 127.9947375 | S41: 0.0043 | T41: 128.2364021 | U41: 0.0043 | V41: 90.59389301 | W41: -0.0377 | X41: 116.9823691 | Y41: 0 | Z41: 100 | AA41: 0 | AB41: 133.7135082 | AC41: 0.0046 | AD41: 141.1597408 | AE41: 0.0033 | AF41: 102.5254207 | AG41: -0.01140759883 | AH41: 136.6920012 | AI41: 0.004062595783
A42: 2016-04-01 | B42: 129.2543249 | C42: 0.0064 | D42: 124.9388663 | E42: 0.0033 | F42: 125.020145 | G42: 0.0036 | H42: 126.9116425 | I42: 0.0055 | J42: 132.0089951 | K42: 0.0072 | L42: 121.535616 | M42: 0.0035 | N42: 126.2200353 | O42: 0.0041 | P42: 141.8783496 | Q42: 0.0106 | R42: 128.7755053 | S42: 0.0061 | T42: 128.8904078 | U42: 0.0051 | V42: 90.59389301 | W42: 0 | X42: 116.9823691 | Y42: 0 | Z42: 100 | AA42: 0 | AB42: 133.2321396 | AC42: -0.0036 | AD42: 141.3714804 | AE42: 0.0015 | AF42: 102.5254207 | AG42: 0 | AH42: 136.4878759 | AI42: -0.001493323175
A43: 2016-05-01 | B43: 130.5210173 | C43: 0.0098 | D43: 125.963365 | E43: 0.0082 | F43: 126.4328727 | G43: 0.0113 | H43: 127.0131719 | I43: 0.0008 | J43: 132.1278032 | K43: 0.0009 | L43: 121.6206909 | M43: 0.0007 | N43: 126.4598534 | O43: 0.0019 | P43: 143.4531992 | Q43: 0.0111 | R43: 129.7799543 | S43: 0.0078 | T43: 129.9988653 | U43: 0.0086 | V43: 90.59389301 | W43: 0 | X43: 116.9823691 | Y43: 0 | Z43: 100 | AA43: 0 | AB43: 131.0204861 | AC43: -0.0166 | AD43: 137.8796048 | AE43: -0.0247 | AF43: 102.5254207 | AG43: 0 | AH43: 133.7641336 | AI43: -0.01995592882
A44: 2016-06-01 | B44: 131.1344661 | C44: 0.0047 | D44: 128.0921459 | E44: 0.0169 | F44: 128.4937285 | G44: 0.0163 | H44: 129.4645261 | I44: 0.0193 | J44: 136.6597868 | K44: 0.0343 | L44: 121.9004185 | M44: 0.0023 | N44: 128.3820432 | O44: 0.0152 | P44: 145.1172564 | Q44: 0.0116 | R44: 130.2341841 | S44: 0.0035 | T44: 130.5188608 | U44: 0.004 | V44: 90.59389301 | W44: 0 | X44: 116.9823691 | Y44: 0 | Z44: 100 | AA44: 0 | AB44: 130.7060369 | AC44: -0.0024 | AD44: 139.1480972 | AE44: 0.0092 | AF44: 102.5254207 | AG44: 0 | AH44: 134.082861 | AI44: 0.00238275715
A45: 2016-07-01 | B45: 131.9737266 | C45: 0.0064 | D45: 128.3227118 | E45: 0.0018 | F45: 127.992603 | G45: -0.0039 | H45: 130.0989022 | I45: 0.0049 | J45: 137.8897249 | K45: 0.009 | L45: 121.9247986 | M45: 0.0002 | N45: 129.7814074 | O45: 0.0109 | P45: 146.7280579 | Q45: 0.0111 | R45: 130.9114019 | S45: 0.0052 | T45: 131.2236626 | U45: 0.0054 | V45: 90.59389301 | W45: 0 | X45: 116.9823691 | Y45: 0 | Z45: 100 | AA45: 0 | AB45: 129.9479419 | AC45: -0.0058 | AD45: 138.9532898 | AE45: -0.0014 | AF45: 102.5254207 | AG45: 0 | AH45: 133.5500811 | AI45: -0.003973512639
A46: 2016-08-01 | B46: 132.3828452 | C46: 0.0031 | D46: 128.5151958 | E46: 0.0015 | F46: 128.5429712 | G46: 0.0043 | H46: 130.4761891 | I46: 0.0029 | J46: 138.3033941 | K46: 0.003 | L46: 122.2783805 | M46: 0.0029 | N46: 130.1188391 | O46: 0.0026 | P46: 148.5181402 | Q46: 0.0122 | R46: 131.4874121 | S46: 0.0044 | T46: 131.8141691 | U46: 0.0045 | V46: 90.59389301 | W46: 0 | X46: 116.9823691 | Y46: 0 | Z46: 100 | AA46: 0 | AB46: 130.8315879 | AC46: 0.0068 | AD46: 139.9676489 | AE46: 0.0073 | AF46: 102.5254207 | AG46: 0 | AH46: 134.4860123 | AI46: 0.007008091659
A47: 2016-09-01 | B47: 132.4887515 | C47: 0.0008 | D47: 128.7722262 | E47: 0.002 | F47: 128.581534 | G47: 0.0003 | H47: 130.9067605 | I47: 0.0033 | J47: 138.9672504 | K47: 0.0048 | L47: 122.461798 | M47: 0.0015 | N47: 130.6002788 | O47: 0.0037 | P47: 150.1666916 | Q47: 0.0111 | R47: 131.592602 | S47: 0.0008 | T47: 132.1173417 | U47: 0.0023 | V47: 91.44547561 | W47: 0.0094 | X47: 116.9823691 | Y47: 0 | Z47: 100 | AA47: 0 | AB47: 128.2934551 | AC47: -0.0194 | AD47: 140.2895744 | AE47: 0.0023 | AF47: 102.8092816 | AG47: 0.002768687637 | AH47: 133.0919028 | AI47: -0.01036620406
A48: 2016-10-01 | B48: 132.7139823 | C48: 0.0017 | D48: 128.9782618 | E48: 0.0016 | F48: 128.74869 | G48: 0.0013 | H48: 131.1816647 | I48: 0.0021 | J48: 139.5092226 | K48: 0.0039 | L48: 122.461798 | M48: 0 | N48: 130.8222993 | O48: 0.0017 | P48: 151.7434418 | Q48: 0.0105 | R48: 131.9347428 | S48: 0.0026 | T48: 132.3683646 | U48: 0.0019 | V48: 92.0398712 | W48: 0.0065 | X48: 116.9823691 | Y48: 0 | Z48: 100 | AA48: 0 | AB48: 130.9106416 | AC48: 0.0204 | AD48: 140.75253 | AE48: 0.0033 | AF48: 103.0074134 | AG48: 0.00192717876 | AH48: 134.847397 | AI48: 0.01319008964
A49: 2016-11-01 | B49: 132.8068821 | C49: 0.0007 | D49: 128.9395683 | E49: -0.0003 | F49: 128.8130644 | G49: 0.0005 | H49: 131.3915553 | I49: 0.0016 | J49: 140.0254068 | K49: 0.0037 | L49: 122.3515824 | M49: -0.0009 | N49: 131.0446972 | O49: 0.0017 | P49: 153.3215736 | Q49: 0.0104 | R49: 132.1722253 | S49: 0.0018 | T49: 132.7125224 | U49: 0.0026 | V49: 92.0398712 | W49: 0 | X49: 116.9823691 | Y49: 0 | Z49: 100 | AA49: 0 | AB49: 131.002279 | AC49: 0.0007 | AD49: 139.8094881 | AE49: -0.0067 | AF49: 103.0074134 | AG49: 0 | AH49: 134.5251627 | AI49: -0.002389622034
A50: 2016-12-01 | B50: 132.9928118 | C50: 0.0014 | D50: 129.635842 | E50: 0.0054 | F50: 129.8822128 | G50: 0.0083 | H50: 131.8382866 | I50: 0.0034 | J50: 140.781544 | K50: 0.0054 | L50: 122.4984043 | M50: 0.0012 | N50: 131.5164581 | O50: 0.0036 | P50: 155.0387752 | Q50: 0.0112 | R50: 132.568742 | S50: 0.003 | T50: 132.9646762 | U50: 0.0019 | V50: 92.0398712 | W50: 0 | X50: 117.321618 | Y50: 0.0029 | Z50: 100 | AA50: 0 | AB50: 133.4258212 | AC50: 0.0185 | AD50: 142.7734492 | AE50: 0.0212 | AF50: 103.1204964 | AG50: 0.001097813769 | AH50: 137.1648724 | AI50: 0.01962242382
A51: 2017-01-01 | B51: 133.5513816 | C51: 0.0042 | D51: 130.4655114 | E51: 0.0064 | F51: 130.4407063 | G51: 0.0043 | H51: 132.3788236 | I51: 0.0041 | J51: 141.1757323 | K51: 0.0028 | L51: 123.1966452 | M51: 0.0057 | N51: 131.8978558 | O51: 0.0029 | P51: 156.7286979 | Q51: 0.0109 | R51: 133.0725032 | S51: 0.0038 | T51: 133.3768667 | U51: 0.0031 | V51: 92.0398712 | W51: 0 | X51: 119.1518352 | Y51: 0.0156 | Z51: 100 | AA51: 0 | AB51: 136.4679299 | AC51: 0.0228 | AD51: 145.7574143 | AE51: 0.0209 | AF51: 103.7305688 | AG51: 0.005916112072 | AH51: 140.1837237 | AI51: 0.02200892413
A52: 2017-02-01 | B52: 133.8719049 | C52: 0.0024 | D52: 130.5698838 | E52: 0.0008 | F52: 130.5189708 | G52: 0.0006 | H52: 133.239286 | I52: 0.0065 | J52: 142.276903 | K52: 0.0078 | L52: 123.8126285 | M52: 0.005 | N52: 132.5969144 | O52: 0.0053 | P52: 158.0922376 | Q52: 0.0087 | R52: 133.5116424 | S52: 0.0033 | T52: 134.0971017 | U52: 0.0054 | V52: 92.0398712 | W52: 0 | X52: 120.7127243 | Y52: 0.0131 | Z52: 100 | AA52: 0 | AB52: 135.3625397 | AC52: -0.0081 | AD52: 146.0197777 | AE52: 0.0018 | AF52: 104.2508652 | AG52: 0.005015843962 | AH52: 139.6254349 | AI52: -0.003982550802
A53: 2017-03-01 | B53: 134.300295 | C53: 0.0032 | D53: 130.5829408 | E53: 0.0001 | F53: 130.0229987 | G53: -0.0038 | H53: 133.4524688 | I53: 0.0016 | J53: 142.7464168 | K53: 0.0033 | L53: 123.7631034 | M53: -0.0004 | N53: 133.0742633 | O53: 0.0036 | P53: 159.7522061 | Q53: 0.0105 | R53: 133.8454216 | S53: 0.0025 | T53: 134.2982474 | U53: 0.0015 | V53: 89.7480784 | W53: -0.0249 | X53: 120.7127243 | Y53: 0 | Z53: 100 | AA53: 0 | AB53: 132.3710276 | AC53: -0.0221 | AD53: 144.9684353 | AE53: -0.0072 | AF53: 103.4869342 | AG53: -0.007327813825 | AH53: 137.4099907 | AI53: -0.01586705343
A54: 2017-04-01 | B54: 134.4077352 | C54: 0.0008 | D54: 129.1465284 | E54: -0.011 | F54: 128.4107135 | G54: -0.0124 | H54: 133.4257783 | I54: -0.0002 | J54: 142.7464168 | K54: 0 | L54: 123.7012219 | M54: -0.0005 | N54: 132.9678039 | O54: -0.0008 | P54: 161.0142485 | Q54: 0.0079 | R54: 134.0328051 | S54: 0.0014 | T54: 134.5802737 | U54: 0.0021 | V54: 87.59412452 | W54: -0.024 | X54: 122.2699184 | Y54: 0.0129 | Z54: 100 | AA54: 0 | AB54: 128.7837727 | AC54: -0.0271 | AD54: 142.6634371 | AE54: -0.0159 | AF54: 103.2880143 | AG54: -0.001922174179 | AH54: 134.3356385 | AI54: -0.02237357082
A55: 2017-05-01 | B55: 134.8916031 | C55: 0.0036 | D55: 127.9454657 | E55: -0.0093 | F55: 127.7558188 | G55: -0.0051 | H55: 134.2663607 | I55: 0.0063 | J55: 144.4022752 | K55: 0.0116 | L55: 123.7012219 | M55: 0 | N55: 133.1406621 | O55: 0.0013 | P55: 162.511681 | Q55: 0.0093 | R55: 134.4483068 | S55: 0.0031 | T55: 134.9032664 | U55: 0.0024 | V55: 86.945928 | W55: -0.0074 | X55: 122.2699184 | Y55: 0 | Z55: 100 | AA55: 0 | AB55: 127.8951647 | AC55: -0.0069 | AD55: 143.8047446 | AE55: 0.008 | AF55: 103.0719488 | AG55: -0.002091873956 | AH55: 134.2589967 | AI55: -0.0005705248515
A56: 2017-06-01 | B56: 134.4869283 | C56: -0.003 | D56: 127.0882311 | E56: -0.0067 | F56: 126.529363 | G56: -0.0096 | H56: 135.5150379 | I56: 0.0093 | J56: 146.8571139 | K56: 0.017 | L56: 123.6888517 | M56: -0.0001 | N56: 134.9513751 | O56: 0.0136 | P56: 163.8280256 | Q56: 0.0081 | R56: 134.1390757 | S56: -0.0023 | T56: 135.1191116 | U56: 0.0016 | V56: 86.945928 | W56: 0 | X56: 122.2699184 | Y56: 0 | Z56: 101.04 | AA56: 0.0104 | AB56: 125.5163146 | AC56: -0.0186 | AD56: 143.1144819 | AE56: -0.0048 | AF56: 103.4186155 | AG56: 0.003363346387 | AH56: 132.5555815 | AI56: -0.01268753074
A57: 2017-07-01 | B57: 134.715556 | C57: 0.0017 | D57: 126.1731958 | E57: -0.0072 | F57: 126.1497749 | G57: -0.003 | H57: 135.921583 | I57: 0.003 | J57: 147.5767138 | K57: 0.0049 | L57: 123.7754339 | M57: 0.0007 | N57: 135.2482681 | O57: 0.0022 | P57: 165.1386498 | Q57: 0.008 | R57: 134.4610095 | S57: 0.0024 | T57: 134.8758972 | U57: -0.0018 | V57: 86.945928 | W57: 0 | X57: 122.2699184 | Y57: 0 | Z57: 101.04 | AA57: 0 | AB57: 126.8718908 | AC57: 0.0108 | AD57: 139.6940458 | AE57: -0.0239 | AF57: 103.4186155 | AG57: 0 | AH57: 132.0007528 | AI57: -0.004185630824
A58: 2017-08-01 | B58: 134.6751414 | C58: -0.0003 | D58: 126.299369 | E58: 0.001 | F58: 126.4525344 | G58: 0.0024 | H58: 136.4109007 | I58: 0.0036 | J58: 148.0637169 | K58: 0.0033 | L58: 124.2581581 | M58: 0.0039 | N58: 135.7892612 | O58: 0.004 | P58: 166.459759 | Q58: 0.008 | R58: 134.7164854 | S58: 0.0019 | T58: 135.3479628 | U58: 0.0035 | V58: 86.945928 | W58: 0 | X58: 122.2699184 | Y58: 0 | Z58: 101.04 | AA58: 0 | AB58: 137.4403193 | AC58: 0.0833 | AD58: 147.0978302 | AE58: 0.053 | AF58: =AVERAGE(V58,X58,Z58) -> 103.4186155 | AG58: 0 | AH58: 141.3033237 | AI58: 0.07047361986
A59: 2017-09-01 | B59: 134.6482063 | C59: -0.0002 | D59: 126.892976 | E59: 0.0047 | F59: 127.2365401 | G59: 0.0062 | H59: 136.4927472 | I59: 0.0006 | J59: 147.9452659 | K59: -0.0008 | L59: 124.5563777 | M59: 0.0024 | N59: 135.9793661 | O59: 0.0014 | P59: 167.5251015 | Q59: 0.0064 | R59: 134.9320318 | S59: 0.0016 | T59: 135.4968456 | U59: 0.0011 | V59: 86.945928 | W59: 0 | X59: 123.8349734 | Y59: 0.0128 | Z59: 101.04 | AA59: 0 | AB59: 141.1374639 | AC59: 0.0269 | AD59: 149.9221085 | AE59: 0.0192 | AF59: 103.9403005 | AG59: 0.005044401174 | AH59: 144.6513218 | AI59: 0.02369369667
A60: 2017-10-01 | B60: 135.1464047 | C60: 0.0037 | D60: 127.146762 | E60: 0.002 | F60: 127.3637766 | G60: 0.001 | H60: 136.9158748 | I60: 0.0031 | J60: 147.9600605 | K60: 0.0001 | L60: 125.3909054 | M60: 0.0067 | N60: 136.2377269 | O60: 0.0019 | P60: 168.5972621 | Q60: 0.0064 | R60: 135.4987463 | S60: 0.0042 | T60: 135.9575349 | U60: 0.0034 | V60: 86.945928 | W60: 0 | X60: 125.3333766 | Y60: 0.0121 | Z60: 101.04 | AA60: 0 | AB60: 141.6032176 | AC60: 0.0033 | AD60: 150.4618281 | AE60: 0.0036 | AF60: 104.4397682 | AG60: 0.004805332713 | AH60: 145.1466618 | AI60: 0.003424372545
A61: 2017-11-01 | B61: 135.3896682 | C61: =B61/B60-1 -> 0.0018 | D61: 127.8079252 | E61: 0.0052 | F61: 128.3826868 | G61: =F61/F60-1 -> 0.008 | H61: 137.340314 | I61: =H61/H60-1 -> 0.0031 | J61: 148.0340405 | K61: 0.0005 | L61: 126.1808681 | M61: 0.0063 | N61: 136.6191926 | O61: 0.0028 | P61: 169.5582665 | Q61: 0.0057 | R61: 135.8781428 | S61: 0.0028 | T61: 136.392599 | U61: 0.0032 | V61: 86.73725777 | W61: -0.0024 | X61: 125.3333766 | Y61: 0 | Z61: 101.04 | AA61: 0 | AB61: 141.0226444 | AC61: -0.0041 | AD61: 150.4166896 | AE61: -0.0003 | AF61: =AVERAGE(V61,X61,Z61) -> 104.3702114 | AG61: -0.0006659986288 | AH61: =0.4*AD61+0.6*AB61 -> 144.7802624 | AI61: -0.002524338694
A62: 2017-12-01 | B62: 135.7416814 | C62: =B62/B61-1 -> 0.0026 | D62: 128.9454157 | E62: 0.0089 | F62: 129.3327187 | G62: =F62/F61-1 -> 0.0074 | H62: 137.4364522 | I62: =H62/H61-1 -> 0.0007 | J62: 148.1080575 | K62: 0.0005 | L62: 126.3196671 | M62: 0.0011 | N62: 136.8104594 | O62: 0.0014 | P62: 170.4738812 | Q62: 0.0054 | R62: 136.4760067 | S62: 0.0044 | T62: 136.8699731 | U62: 0.0035 | V62: 86.62449934 | W62: -0.0013 | X62: 125.3333766 | Y62: 0 | Z62: 101.04 | AA62: 0 | AB62: 145.0135852 | AC62: 0.0283 | AD62: 152.9136066 | AE62: 0.0166 | AF62: =AVERAGE(V62,X62,Z62) -> 104.3326253 | AG62: -0.0003601233007 | AH62: 148.1735938 | AI62: 0.02343780335
A63: 2018-01-01 | B63: 136.0538872 | C63: =B63/B62-1 -> 0.0023 | D63: 129.9254008 | E63: =D63/D62-1 -> 0.0076 | F63: 130.0828485 | G63: =F63/F62-1 -> 0.0058 | H63: 137.8625052 | I63: =H63/H62-1 -> 0.0031 | J63: 148.1080575 | K63: 0 | L63: 127.1912728 | M63: 0.0069 | N63: 137.1935287 | O63: 0.0028 | P63: 171.4626297 | Q63: 0.0058 | R63: 136.8717871 | S63: 0.0029 | T63: 137.403766 | U63: 0.0039 | V63: 86.62449934 | W63: =V63/V62-1 -> 0 | X63: 125.3333766 | Y63: 0 | Z63: 102.45456 | AA63: 0.014 | AB63: 154.1929451 | AC63: 0.0633 | AD63: 159.7182621 | AE63: 0.0445 | AF63: 104.8041453 | AG63: 0.004519391692 | AH63: 156.4030719 | AI63: 0.05553943827
A64: 2018-02-01 | B64: 136.2987842 | C64: =B64/B63-1 -> 0.0018 | D64: 130.0163486 | E64: =D64/D63-1 -> 0.0007 | F64: 130.2779727 | G64: =F64/F63-1 -> 0.0015 | H64: 138.0417264 | I64: =H64/H63-1 -> 0.0013 | J64: 148.1080575 | K64: 0 | L64: 127.5474084 | M64: 0.0028 | N64: 137.3855997 | O64: 0.0014 | P64: 172.268504 | Q64: 0.0047 | R64: 137.3097768 | S64: =R64/R63-1 -> 0.0032 | T64: 137.9259003 | U64: =T64/T63-1 -> 0.0038 | V64: 86.41660054 | W64: =V64/V63-1 -> -0.0024 | X64: 126.2483102 | Y64: 0.0073 | Z64: 102.45456 | AA64: 0 | AB64: 157.0609339 | AC64: 0.0186 | AD64: 160.9321209 | AE64: 0.0076 | AF64: 105.0398236 | AG64: 0.002248749635 | AH64: 158.6094087 | AI64: 0.01410673561
A65: 2018-03-01 | B65: =B64*(1+C65) -> 136.3941934 | C65: 0.0007 | D65: =D64*(1+E65) -> 130.8484533 | E65: 0.0064 | F65: =F64*(1+G65) -> 131.0075294 | G65: 0.0056 | H65: =H64*(1+I65) -> 138.3730266 | I65: 0.0024 | J65: =J64*(1+K65) -> 148.1524899 | K65: 0.0003 | L65: =L64*(1+M65) -> 128.1851454 | M65: 0.005 | N65: =N64*(1+O65) -> 137.7015865 | O65: 0.0023 | P65: =P64*(1+Q65) -> 173.1815271 | Q65: 0.0053 | R65: =R64*(1+S65) -> 137.4333556 | S65: 0.0009 | T65: =T64*(1+U65) -> 138.0638262 | U65: 0.001 | V65: =V64*(1+W65) -> 85.29318473 | W65: -0.013 | X65: =X64*(1+Y65) -> 126.2483102 | Y65: 0 | Z65: =Z64*(1+AA65) -> 102.45456 | AA65: 0 | AB65: =AB64*(1+AC65) -> 157.752002 | AC65: 0.0044 | AD65: =AD64*(1+AE65) -> 160.481511 | AE65: -0.0028 | AF65: 104.6653516 | AG65: -0.003565047264 | AH65: 158.8438056 | AI65: 0.001477824626
A66: 2018-04-01 | B66: 136.6806212 | C66: 0.0021 | D66: 131.5942894 | E66: 0.0057 | F66: 132.2258994 | G66: 0.0093 | H66: 138.7743084 | I66: 0.0029 | J66: 148.5525017 | K66: 0.0027 | L66: 128.5825193 | M66: 0.0031 | N66: 138.087151 | O66: 0.0028 | P66: 174.082071 | Q66: 0.0052 | R66: 137.735709 | S66: 0.0022 | T66: 138.3537602 | U66: 0.0021 | V66: 85.29318473 | W66: 0 | X66: 126.2483102 | Y66: 0 | Z66: 102.45456 | AA66: 0 | AB66: 158.935142 | AC66: 0.0075 | AD66: 164.5737895 | AE66: 0.0255 | AF66: 104.6653516 | AG66: 0 | AH66: 161.190601 | AI66: 0.01477423317
A67: 2018-05-01 | B67: 137.2683479 | C67: 0.0043 | D67: 133.4102906 | E67: 0.0138 | F67: 134.3944042 | G67: 0.0164 | H67: 139.0934893 | I67: 0.0023 | J67: 148.7010542 | K67: 0.001 | L67: 129.0839912 | M67: 0.0039 | N67: 138.5014124 | O67: 0.003 | P67: 174.9872978 | Q67: 0.0052 | R67: 138.2866518 | S67: 0.004 | T67: 138.5474555 | U67: 0.0014 | V67: 85.29318473 | W67: 0 | X67: 126.2483102 | Y67: 0 | Z67: 102.45456 | AA67: 0 | AB67: 163.2263909 | AC67: 0.027 | AD67: 168.9679097 | AE67: 0.0267 | AF67: 104.6653516 | AG67: =AF67/AF66-1 -> 0 | AH67: 165.5229984 | AI67: =AH67/AH66-1 -> 0.02687748135
A68: 2018-06-01 | B68: 139.2312852 | C68: 0.0143 | D68: 135.9050631 | E68: 0.0187 | F68: 136.3834413 | G68: 0.0148 | H68: 140.4426961 | I68: 0.0097 | J68: 150.366506 | K68: 0.0112 | L68: 130.1037547 | M68: 0.0079 | N68: 139.5540232 | O68: 0.0076 | P68: 175.8972318 | Q68: 0.0052 | R68: 140.0290636 | S68: 0.0126 | T68: 140.0853322 | U68: 0.0111 | V68: 85.42112451 | W68: 0.0015 | X68: 126.2483102 | Y68: 0 | Z68: 102.45456 | AA68: 0 | AB68: 174.0972685 | AC68: 0.0666 | AD68: 164.8788863 | AE68: -0.0242 | AF68: =AVERAGE(V68,X68,Z68) -> 104.7079982 | AG68: 0.0004074566387 | AH68: =0.4*AD68+0.6*AB68 -> 170.4099156 | AI68: 0.02952409793
A69: 2018-07-01 | B69: 139.5793635 | C69: 0.0025 | D69: 136.5981789 | E69: 0.0051 | F69: 136.9835285 | G69: 0.0044 | H69: 141.2993966 | I69: 0.0061 | J69: 150.7123489 | K69: 0.0023 | L69: 131.5088753 | M69: 0.0108 | N69: 140.5588121 | O69: 0.0072 | P69: 176.8470768 | Q69: 0.0054 | R69: 140.4911595 | S69: 0.0033 | T69: 140.9818784 | U69: 0.0064 | V69: 85.43820873 | W69: 0.0002 | X69: 126.2483102 | Y69: 0 | Z69: 102.45456 | AA69: 0 | AB69: 170.754601 | AC69: -0.0192 | AD69: 160.5260837 | AE69: -0.0264 | AF69: 104.713693 | AG69: 5.438688285e-05 | AH69: 166.663194 | AI69: -0.02198652325
A70: 2018-08-01 | B70: 139.5793635 | C70: 0 | D70: 137.5543661 | E70: 0.007 | F70: 137.9150165 | G70: 0.0068 | H70: 141.5113457 | I70: 0.0015 | J70: 150.7123489 | K70: 0 | L70: 131.9428545 | M70: 0.0033 | N70: 140.9664327 | O70: 0.0029 | P70: 177.8551051 | Q70: 0.0057 | R70: 140.3647175 | S70: -0.0009 | T70: 141.1651548 | U70: 0.0013 | V70: 85.43820873 | W70: 0 | X70: 126.2483102 | Y70: 0 | Z70: 102.45456 | AA70: 0 | AB70: 168.4835648 | AC70: -0.0133 | AD70: 161.1842406 | AE70: 0.0041 | AF70: 104.713693 | AG70: 0 | AH70: 165.5638351 | AI70: -0.00659629107
A71: 2018-09-01 | B71: 139.9981015 | C71: 0.003 | D71: 139.6451925 | E71: 0.0152 | F71: 140.3836953 | G71: 0.0179 | H71: 141.8368218 | I71: 0.0023 | J71: 150.8027763 | K71: 0.0006 | L71: 132.5234031 | M71: 0.0044 | N71: 141.2060756 | O71: 0.0017 | P71: 178.6910241 | Q71: 0.0047 | R71: 141.0384681 | S71: 0.0048 | T71: 141.2922034 | U71: 0.0009 | V71: 85.43820873 | W71: 0 | X71: 126.2483102 | Y71: 0 | Z71: 102.45456 | AA71: 0 | AB71: 174.026674 | AC71: 0.0329 | AD71: 170.968124 | AE71: 0.0607 | AF71: 104.713693 | AG71: 0 | AH71: 172.803254 | AI71: 0.04372584705
A72: 2018-10-01 | B72: 140.5580939 | C72: 0.004 | D72: 140.8880347 | E72: 0.0089 | F72: 140.7486929 | G72: 0.0026 | H72: 142.3332506 | I72: 0.0035 | J72: 151.0440608 | K72: 0.0016 | L72: 133.2787865 | M72: 0.0057 | N72: 141.6720557 | O72: 0.0033 | P72: 179.6559557 | Q72: 0.0054 | R72: 141.6731412 | S72: 0.0045 | T72: 142.1116982 | U72: 0.0058 | V72: 85.43820873 | W72: 0 | X72: 126.2483102 | Y72: 0 | Z72: 102.45456 | AA72: 0 | AB72: 176.2194101 | AC72: 0.0126 | AD72: 175.6868442 | AE72: 0.0276 | AF72: 104.713693 | AG72: 0 | AH72: 176.0063838 | AI72: 0.01853628141
A73: 2018-11-01 | B73: 140.2066987 | C73: -0.0025 | D73: 140.1976834 | E73: -0.0049 | F73: 139.1441578 | G73: -0.0114 | H73: 142.5182839 | I73: 0.0013 | J73: 151.0440608 | K73: 0 | L73: 133.665295 | M73: 0.0029 | N73: 142.040403 | O73: 0.0026 | P73: 180.5362699 | Q73: 0.0049 | R73: 141.3756276 | S73: -0.0021 | T73: 142.3817105 | U73: 0.0019 | V73: 85.43820873 | W73: 0 | X73: 126.2483102 | Y73: 0 | Z73: 102.45456 | AA73: 0 | AB73: 171.2500228 | AC73: -0.0282 | AD73: 174.4218989 | AE73: -0.0072 | AF73: 104.713693 | AG73: 0 | AH73: 172.5187732 | AI73: -0.0198152502
A74: 2018-12-01 | B74: 140.4029881 | C74: 0.0014 | D74: 138.6835484 | E74: -0.0108 | F74: 138.5180091 | G74: -0.0045 | H74: 142.7035576 | I74: 0.0013 | J74: 151.1346872 | K74: 0.0006 | L74: 133.9727252 | M74: 0.0023 | N74: 142.2250556 | O74: 0.0013 | P74: 181.4208976 | Q74: 0.0049 | R74: 141.5876911 | S74: 0.0015 | T74: 142.1538997 | U74: -0.0016 | V74: 85.43820873 | W74: 0 | X74: 126.2483102 | Y74: 0 | Z74: 102.45456 | AA74: 0 | AB74: 164.4171469 | AC74: -0.0399 | AD74: 167.2182745 | AE74: -0.0413 | AF74: =AVERAGE(V74,X74,Z74) -> 104.713693 | AG74: =AF74/AF73-1 -> 0 | AH74: =0.4*AD74+0.6*AB74 -> 165.5375979 | AI74: =AH74/AH73-1 -> -0.04046617759
A75: 2019-01-01 | B75: 140.9084388 | C75: 0.0036 | D75: 138.6974167 | E75: 0.0001 | F75: 138.6149717 | G75: 0.0007 | H75: 143.4028051 | I75: 0.0049 | J75: 151.739226 | K75: 0.004 | L75: 134.7765615 | M75: 0.006 | N75: 142.7939558 | O75: 0.004 | P75: 182.4005704 | Q75: 0.0054 | R75: 142.0407717 | S75: 0.0032 | T75: 142.5803614 | U75: 0.003 | V75: 85.711611 | W75: 0.0032 | X75: 126.2483102 | Y75: 0 | Z75: 102.45456 | AA75: 0 | AB75: 161.1616874 | AC75: -0.0198 | AD75: 163.4056979 | AE75: -0.0228 | AF75: 104.8048271 | AG75: 0.0008703168299 | AH75: 162.0592916 | AI75: -0.02101218341
A76: 2019-02-01 | B76: 141.6693444 | C76: 0.0054 | D76: 139.917954 | E76: 0.0088 | F76: 140.3476588 | G76: 0.0125 | H76: 143.5318676 | I76: 0.0009 | J76: 151.7999217 | K76: 0.0004 | L76: 134.9787264 | M76: 0.0015 | N76: 143.0652643 | O76: 0.0019 | P76: 183.2943332 | Q76: 0.0049 | R76: 142.651547 | S76: 0.0043 | T76: 143.0651346 | U76: 0.0034 | V76: 85.711611 | W76: 0 | X76: 126.2483102 | Y76: 0 | Z76: 102.45456 | AA76: 0 | AB76: 160.3397628 | AC76: -0.0051 | AD76: 164.3534509 | AE76: 0.0058 | AF76: 104.8048271 | AG76: 0 | AH76: 161.945238 | AI76: -0.0007037766436
A77: 2019-03-01 | B77: 142.7601984 | C77: 0.0077 | D77: 141.6809202 | E77: 0.0126 | F77: 141.8493788 | G77: 0.0107 | H77: 143.9768164 | I77: 0.0031 | J77: 151.9820816 | K77: 0.0012 | L77: 135.7076115 | M77: 0.0054 | N77: 143.3370883 | O77: 0.0019 | P77: 184.1558166 | Q77: 0.0047 | R77: 143.7214336 | S77: 0.0075 | T77: 143.8376864 | U77: 0.0054 | V77: 85.00020463 | W77: -0.0083 | X77: 126.2483102 | Y77: 0 | Z77: 102.45456 | AA77: 0 | AB77: 164.4765286 | AC77: 0.0258 | AD77: 167.4268604 | AE77: 0.0187 | AF77: 104.5676916 | AG77: -0.002262638695 | AH77: 165.6566614 | AI77: 0.02291776767
A78: 2019-04-01 | B78: 143.6167596 | C78: 0.006 | D78: 142.9843847 | E78: 0.0092 | F78: 143.1260232 | G78: 0.009 | H78: 144.5239283 | I78: 0.0038 | J78: 152.2860457 | K78: 0.002 | L78: 136.4947156 | M78: 0.0058 | N78: 144.03944 | O78: 0.0049 | P78: 185.1134268 | Q78: 0.0052 | R78: 144.5406458 | S78: 0.0057 | T78: 144.8733177 | U78: 0.0072 | V78: 85.00020463 | W78: 0 | X78: 126.2483102 | Y78: 0 | Z78: 102.45456 | AA78: 0 | AB78: 168.5390989 | AC78: 0.0247 | AD78: 170.0387195 | AE78: 0.0156 | AF78: 104.5676916 | AG78: 0 | AH78: 169.1389471 | AI78: 0.02102110314
A79: 2019-05-01 | B79: 143.8321847 | C79: 0.0015 | D79: 143.6278144 | E79: 0.0045 | F79: 143.6985273 | G79: 0.004 | H79: 144.5672855 | I79: 0.0003 | J79: 152.3012743 | K79: 0.0001 | L79: 136.5766125 | M79: 0.0006 | N79: 144.1690755 | O79: 0.0009 | P79: 186.1130393 | Q79: 0.0054 | R79: 144.7285486 | S79: 0.0013 | T79: 145.3803743 | U79: 0.0035 | V79: 85.00020463 | W79: 0 | X79: 126.2483102 | Y79: 0 | Z79: 102.45456 | AA79: 0 | AB79: 173.3087554 | AC79: 0.0283 | AD79: 173.7285597 | AE79: 0.0217 | AF79: 104.5676916 | AG79: 0 | AH79: 173.4766771 | AI79: 0.02564595593
A80: 2019-06-01 | B80: 143.8465679 | C80: 0.0001 | D80: 144.7768369 | E80: 0.008 | F80: 144.603828 | G80: 0.0063 | H80: 145.8394776 | I80: 0.0088 | J80: 154.6924043 | K80: 0.0157 | L80: 136.6995314 | M80: 0.0009 | N80: 144.8034195 | O80: 0.0044 | P80: 186.9877706 | Q80: 0.0047 | R80: 144.7430215 | S80: 0.0001 | T80: 145.4676025 | U80: 0.0006 | V80: 85.00020463 | W80: 0 | X80: 126.2483102 | Y80: 0 | Z80: 102.45456 | AA80: 0 | AB80: 168.8720512 | AC80: -0.0256 | AD80: 172.5298326 | AE80: -0.0069 | AF80: 104.5676916 | AG80: 0 | AH80: 170.3351638 | AI80: -0.01810913928
A81: 2019-07-01 | B81: 143.9904145 | C81: 0.001 | D81: 145.3559443 | E81: 0.004 | F81: 144.5893676 | G81: -0.0001 | H81: 146.6853465 | I81: 0.0058 | J81: 155.9918205 | K81: 0.0084 | L81: 137.0549502 | M81: 0.0026 | N81: 146.1211306 | O81: 0.0091 | P81: 188.0536009 | Q81: 0.0057 | R81: 145.0180332 | S81: 0.0019 | T81: 145.5985234 | U81: 0.0009 | V81: 84.79620414 | W81: -0.0024 | X81: 128.5586543 | Y81: 0.0183 | Z81: 102.45456 | AA81: 0 | AB81: 163.7214537 | AC81: -0.0305 | AD81: 169.2172598 | AE81: -0.0192 | AF81: 105.2698061 | AG81: 0.00671444992 | AH81: 165.9197761 | AI81: -0.02592176245
A82: 2019-08-01 | B82: 144.163203 | C82: 0.0012 | D82: 144.3820594 | E82: -0.0067 | F82: 143.8519618 | G82: -0.0051 | H82: 147.301425 | I82: 0.0042 | J82: 157.0681641 | K82: 0.0069 | L82: 137.1920051 | M82: 0.001 | N82: 146.6179424 | O82: 0.0034 | P82: 188.9938689 | Q82: 0.005 | R82: 145.1775531 | S82: 0.0011 | T82: 145.7150022 | U82: 0.0008 | V82: 84.08391603 | W82: -0.0084 | X82: 129.2143034 | Y82: 0.0051 | Z82: 102.45456 | AA82: 0 | AB82: 162.739125 | AC82: -0.006 | AD82: 167.9142869 | AE82: -0.0077 | AF82: 105.2509265 | AG82: -0.0001793454364 | AH82: 164.8091897 | AI82: -0.006693514296
A83: 2019-09-01 | B83: 144.0911214 | C83: -0.0005 | D83: 144.3676212 | E83: -0.0001 | F83: 144.5712217 | G83: 0.005 | H83: 147.9790115 | I83: 0.0046 | J83: 158.0734003 | K83: 0.0064 | L83: 137.5487043 | M83: 0.0026 | N83: 147.4976501 | O83: 0.006 | P83: 189.8632407 | Q83: 0.0046 | R83: 145.119482 | S83: -0.0004 | T83: 145.8461457 | U83: 0.0009 | V83: 84.34457617 | W83: 0.0031 | X83: 129.2143034 | Y83: 0 | Z83: 102.45456 | AA83: 0 | AB83: 163.0157815 | AC83: 0.0017 | AD83: 172.9349241 | AE83: 0.0299 | AF83: 105.3378132 | AG83: 0.0008255196997 | AH83: 166.9834385 | AI83: 0.0131925215
A84: 2019-10-01 | B84: 144.1487578 | C84: 0.0004 | D84: 145.3493211 | E84: 0.0068 | F84: 145.3663634 | G84: 0.0055 | H84: 148.2453738 | I84: 0.0018 | J84: 158.0734003 | K84: 0 | L84: 138.0988992 | M84: 0.004 | N84: 147.6746472 | O84: 0.0012 | P84: 190.7745843 | Q84: 0.0048 | R84: 145.2646015 | S84: 0.001 | T84: 145.9774072 | U84: 0.0009 | V84: 84.34457617 | W84: 0 | X84: 129.2143034 | Y84: 0 | Z84: 102.45456 | AA84: 0 | AB84: 165.2817008 | AC84: 0.0139 | AD84: 176.0304592 | AE84: 0.0179 | AF84: 105.3378132 | AG84: 0 | AH84: 169.5812042 | AI84: 0.01555702588
A85: 2019-11-01 | B85: 144.9271611 | C85: 0.0054 | D85: 145.785369 | E85: 0.003 | F85: 146.6019775 | G85: 0.0085 | H85: 148.3046719 | I85: 0.0004 | J85: 158.0734003 | K85: 0 | L85: 138.2093783 | M85: 0.0008 | N85: 147.8961592 | O85: 0.0015 | P85: 191.4995277 | Q85: 0.0038 | R85: 146.005451 | S85: 0.0051 | T85: 146.1817756 | U85: 0.0014 | V85: 84.34457617 | W85: 0 | X85: 129.2143034 | Y85: 0 | Z85: 102.45456 | AA85: 0 | AB85: 166.2568629 | AC85: 0.0059 | AD85: 176.1536806 | AE85: 0.0007 | AF85: 105.3378132 | AG85: 0 | AH85: 170.21559 | AI85: =AH85/AH84-1 -> 0.003740896596
A86: 2019-12-01 | B86: 146.6952725 | C86: 0.0122 | D86: 148.8322832 | E86: 0.0209 | F86: 149.1528519 | G86: 0.0174 | H86: 148.6161117 | I86: 0.0021 | J86: 158.5792352 | K86: 0.0032 | L86: 138.3061248 | M86: 0.0007 | N86: 148.1032138 | O86: 0.0014 | P86: 192.2080759 | Q86: 0.0037 | R86: 147.6845137 | S86: 0.0115 | T86: 147.7166843 | U86: 0.0105 | V86: 84.34457617 | W86: 0 | X86: 129.2143034 | Y86: 0 | Z86: 102.45456 | AA86: 0 | AB86: 170.1638992 | AC86: 0.0235 | AD86: 177.9152174 | AE86: 0.01 | AF86: 105.3378132 | AG86: 0 | AH86: 173.2644264 | AI86: 0.0179116172
A87: 2020-01-01 | B87: 146.9739935 | C87: 0.0019 | D87: 149.5466782 | E87: 0.0048 | F87: 149.2870894 | G87: 0.0009 | H87: 149.180853 | I87: 0.0038 | J87: 158.6743828 | K87: 0.0006 | L87: 139.3572514 | M87: 0.0076 | N87: 148.4882822 | O87: 0.0026 | P87: 192.9384666 | Q87: 0.0038 | R87: 147.9946512 | S87: 0.0021 | T87: 148.7654727 | U87: 0.0071 | V87: 84.34457617 | W87: 0 | X87: 129.2143034 | Y87: 0 | Z87: 102.45456 | AA87: 0 | AB87: 171.3890792 | AC87: 0.0072 | AD87: 181.313398 | AE87: 0.0191 | AF87: 105.3378132 | AG87: 0 | AH87: 175.3588067 | AI87: 0.01208776867
A88: 2020-02-01 | B88: 147.2238493 | C88: 0.0017 | D88: 149.4868595 | E88: -0.0004 | F88: 149.3020181 | G88: 0.0001 | H88: 149.6731498 | I88: 0.0033 | J88: 159.007599 | K88: 0.0021 | L88: 140.0122305 | M88: 0.0047 | N88: 149.0079912 | O88: 0.0035 | P88: 193.4979882 | Q88: 0.0029 | R88: 148.3646378 | S88: 0.0025 | T88: 149.0927568 | U88: 0.0022 | V88: 85.01089832 | W88: 0.0079 | X88: 129.2143034 | Y88: 0 | Z88: 102.45456 | AA88: 0 | AB88: 170.5492727 | AC88: -0.0049 | AD88: 178.7931418 | AE88: -0.0139 | AF88: 105.5599206 | AG88: 0.002108524728 | AH88: 173.8468204 | AI88: -0.00862224381
A89: 2020-03-01 | B89: 147.4888522 | C89: 0.0018 | D89: 151.3404966 | E89: 0.0124 | F89: 151.7505712 | G89: 0.0164 | H89: 150.0623 | I89: 0.0026 | J89: 159.3415149 | K89: 0.0021 | L89: 140.4462684 | M89: 0.0031 | N89: 149.5742216 | O89: 0.0038 | P89: 194.1558813 | Q89: 0.0034 | R89: 148.468493 | S89: 0.0007 | T89: 149.1225753 | U89: 0.0002 | V89: 85.09590922 | W89: 0.001 | X89: 129.2143034 | Y89: 0 | Z89: 102.45456 | AA89: 0 | AB89: 168.9802194 | AC89: -0.0092 | AD89: 173.339951 | AE89: -0.0305 | AF89: 105.5882575 | AG89: 0.0002684443674 | AH89: 170.724112 | AI89: -0.01796241259
A90: 2020-04-01 | B90: 147.1496279 | C90: -0.0023 | D90: 152.5512206 | E90: 0.008 | F90: 151.8264465 | G90: 0.0005 | H90: 150.392437 | I90: 0.0022 | J90: 159.3415149 | K90: 0 | L90: 141.1204105 | M90: 0.0048 | N90: 149.8434552 | O90: 0.0018 | P90: 194.6995178 | Q90: 0.0028 | R90: 148.0082407 | S90: -0.0031 | T90: 149.107663 | U90: -0.0001 | V90: 85.09590922 | W90: 0 | X90: 129.2143034 | Y90: 0 | Z90: 102.45456 | AA90: 0 | AB90: 156.2053148 | AC90: -0.0756 | AD90: 164.4302775 | AE90: -0.0514 | AF90: 105.5882575 | AG90: 0 | AH90: 159.4952999 | AI90: -0.06577168281
A91: 2020-05-01 | B91: 146.7817538 | C91: -0.0025 | D91: 152.978364 | E91: 0.0028 | F91: 153.4509895 | G91: 0.0107 | H91: 150.6932219 | I91: 0.002 | J91: 159.3415149 | K91: 0 | L91: 141.7413403 | M91: 0.0044 | N91: 150.1581264 | O91: 0.0021 | P91: 195.1667967 | Q91: 0.0024 | R91: 147.4458094 | S91: -0.0038 | T91: 148.2279278 | U91: -0.0059 | V91: 85.09590922 | W91: 0 | X91: 129.2143034 | Y91: 0 | Z91: 102.45456 | AA91: 0 | AB91: 145.8801435 | AC91: -0.0661 | AD91: 152.262437 | AE91: -0.074 | AF91: =AVERAGE(V91,X91,Z91) -> 105.5882575 | AG91: =AF91/AF90-1 -> 0 | AH91: =0.4*AD91+0.6*AB91 -> 148.4330609 | AI91: =AH91/AH90-1 -> -0.06935777422
A92: 2020-06-01 | B92: 146.9872483 | C92: 0.0014 | D92: 154.3092757 | E92: 0.0087 | F92: 154.4484209 | G92: 0.0065 | H92: 151.2156251 | I92: =AVERAGE(I80:I91) -> 0.003466666667 | J92: 159.944357 | K92: =AVERAGE(K80:K91) -> 0.003783333333 | L92: 142.1807384 | M92: =AVERAGE(M80:M91) -> 0.0031 | N92: 150.668664 | O92: =AVERAGE(O80:O91) -> 0.0034 | P92: 195.3687734 | Q92: 0.001034893177 | R92: 147.6817227 | S92: 0.0016 | T92: 148.1241683 | U92: -0.0007 | V92: 85.10441881 | W92: =AVERAGE(W80:W91) -> 0.0001 | X92: 129.4662713 | Y92: =AVERAGE(Y80:Y91) -> 0.00195 | Z92: 102.45456 | AA92: =AVERAGE(AA80:AA91) -> 0 | AB92: 143.8657819 | AC92: =AVERAGE(AC80:AC91) -> -0.01380833333 | AD92: 150.6636814 | AE92: =AVERAGE(AE80:AE91) -> -0.0105 | AF92: =AVERAGE(V92,X92,Z92) -> 105.6750834 | AG92: =AF92/AF91-1 -> 0.0008223057142 | AH92: =0.4*AD92+0.6*AB92 -> 146.5849417 | AI92: =AH92/AH91-1 -> -0.01245085976
A93: 2020-07-01 | B93: 147.3547164 | C93: 0.0025 | D93: 154.8030654 | E93: 0.0032 | F93: 154.7418729 | G93: 0.0019 | H93: 151.6726323 | I93: =AVERAGE(I81:I92) -> 0.003022222222 | J93: 160.3906462 | K93: =AVERAGE(K81:K92) -> 0.002790277778 | L93: 142.6475652 | M93: =AVERAGE(M81:M92) -> 0.003283333333 | N93: 151.1683818 | O93: =AVERAGE(O81:O92) -> 0.003316666667 | P93: 195.5709593 | Q93: 0.001034893177 | R93: 148.1099997 | S93: 0.0029 | T93: 148.5241035 | U93: 0.0027 | V93: 85.11363845 | W93: =AVERAGE(W81:W92) -> 0.0001083333333 | X93: 129.7397688 | Y93: =AVERAGE(Y81:Y92) -> 0.0021125 | Z93: 102.45456 | AA93: =AVERAGE(AA81:AA92) -> 0 | AB93: 142.0206033 | AC93: =AVERAGE(AC81:AC92) -> -0.01282569444 | AD93: 149.0365136 | AE93: =AVERAGE(AE81:AE92) -> -0.0108 | AF93: =AVERAGE(V93,X93,Z93) -> 105.7693224 | AG93: =AF93/AF92-1 -> 0.0008917811544 | AH93: =0.4*AD93+0.6*AB93 -> 144.8269674 | AI93: =AH93/AH92-1 -> -0.01199287061
A96: TRUE | C96: Previsão Bacen 12/06/2020 | E96: Previsão Bacen 12/06/2020 | G96: Previsão Bacen 12/06/2020 | Q96: Previsão Bacen 12/06/2020 | S96: Previsão Bacen 12/06/2020 | U96: Previsão Bacen 12/06/2020
A97: Acumulado ANOS | B97: INPC | D97: IGP-M | F97: IGP-DI | H97: INCC | J97: INCC-DI MB | L97: INCC-DI MS | N97: INCC-M | P97: SELIC | R97: IPCA | T97: IPCA 15 | V97: IPCA BH Fixo | X97: IPCA BH Cel | Z97: IPCA BH Int | AB97: IPCA BH Gas | AD97: IPCA BH Die | AF97: IPCA BH Tel | AH97: IPCA BH Comb
A98: 2013 | B98: =B14/B2-1 -> 0.05562663707 | D98: =D14/D2-1 -> 0.05525658421 | F98: =F14/F2-1 -> 0.05527757994 | H98: =H14/H2-1 -> 0.08087493555 | J98: =J14/J2-1 -> 0.09759609658 | L98: =L14/L2-1 -> 0.06334843158 | N98: =N14/N2-1 -> 0.08069430928 | P98: =P14/P2-1 -> 0.08213356184 | R98: =R14/R2-1 -> 0.0591081808 | T98: =T14/T2-1 -> 0.05848114629 | V98: =V14/V2-1 -> -0.01638276918 | X98: =X14/X2-1 -> 0.047244755 | Z98: =Z14/Z2-1 -> 0 | AB98: =AB14/AB2-1 -> 0.03437497405 | AD98: =AD14/AD2-1 -> 0.1609860023 | AF98: =AF14/AF2-1 -> 0.01028732861 | AH98: =AH14/AH2-1 -> 0.08501938533
A99: 2014 | B99: =B26/B14-1 -> 0.06228269215 | D99: =D26/D14-1 -> 0.03674882508 | F99: =F26/F14-1 -> 0.03779997091 | H99: =H26/H14-1 -> 0.06944929719 | J99: =J26/J14-1 -> 0.08490093574 | L99: =L26/L14-1 -> 0.05292316139 | N99: =N26/N14-1 -> 0.0674004472 | P99: =P26/P14-1 -> 0.1091009207 | R99: =R26/R14-1 -> 0.06407616596 | T99: =T26/T14-1 -> 0.06461048404 | V99: =V26/V14-1 -> -0.03254488448 | X99: =X26/X14-1 -> 0.02406816962 | Z99: =Z26/Z14-1 -> 0 | AB99: =AB26/AB14-1 -> 0.02771410084 | AD99: =AD26/AD14-1 -> 0.06582471565 | AF99: =AF26/AF14-1 -> -0.002245712537 | AH99: =AH26/AH14-1 -> 0.04402565838
A100: 2015 | B100: =B38/B26-1 -> 0.112761662 | D100: =D38/D26-1 -> 0.1054429461 | F100: =F38/F26-1 -> 0.1067860742 | H100: =H38/H26-1 -> 0.07493890454 | J100: =J38/J26-1 -> 0.08110166043 | L100: =L38/L26-1 -> 0.06777871601 | N100: =N38/N26-1 -> 0.07216996411 | P100: =P38/P26-1 -> 0.132857836 | R100: =R38/R26-1 -> 0.10673498 | T100: =T38/T26-1 -> 0.107065071 | V100: =V38/V26-1 -> -0.025120305 | X100: =X38/X26-1 -> 0.09079553367 | Z100: =Z38/Z26-1 -> 0 | AB100: =AB38/AB26-1 -> 0.2181181318 | AD100: =AD38/AD26-1 -> 0.1193855889 | AF100: =AF38/AF26-1 -> 0.02429487485 | AH100: =AH38/AH26-1 -> 0.1749777073
A101: 2016 | B101: =B50/B38-1 -> 0.06579963613 | D101: =D50/D38-1 -> 0.0719070751 | F101: =F50/F38-1 -> 0.07153318977 | H101: =H50/H38-1 -> 0.06101646533 | J101: =J50/J38-1 -> 0.09356990973 | L101: =L50/L38-1 -> 0.02465319327 | N101: =N50/N38-1 -> 0.06337445332 | P101: =P50/P38-1 -> 0.1402838763 | R101: =R50/R38-1 -> 0.06288055054 | T101: =T50/T38-1 -> 0.06583325421 | V101: =V50/V38-1 -> -0.007871274845 | X101: =X50/X38-1 -> 0.0029 | Z101: =Z50/Z38-1 -> 0 | AB101: =AB50/AB38-1 -> 0.03038649247 | AD101: =AD50/AD38-1 -> 0.0307538596 | AF101: =AF50/AF38-1 -> -0.001262201459 | AH101: =AH50/AH38-1 -> 0.03053941605
A102: 2017 | B102: =B62/B50-1 -> 0.02066930964 | D102: =D62/D50-1 -> -0.005325890366 | F102: =F62/F50-1 -> -0.004230711057 | H102: =H62/H50-1 -> 0.04246236578 | J102: =J62/J50-1 -> 0.05204171896 | L102: =L62/L50-1 -> 0.03119438808 | N102: =N62/N50-1 -> 0.04025352747 | P102: =P62/P50-1 -> 0.09955642316 | R102: =R62/R50-1 -> 0.02947349908 | T102: =T62/T50-1 -> 0.02937093539 | V102: =V62/V50-1 -> -0.05883723856 | X102: =X62/X50-1 -> 0.06828885159 | Z102: =Z62/Z50-1 -> 0.0104 | AB102: =AB62/AB50-1 -> 0.08684798703 | AD102: =AD62/AD50-1 -> 0.07102271066 | AF102: =AF62/AF50-1 -> 0.01175449055 | AH102: =AH62/AH50-1 -> 0.08025904264
A103: 2018 | B103: =B74/B62-1 -> 0.03433953868 | D103: =D74/D62-1 -> 0.07552135634 | F103: =F74/F62-1 -> 0.0710206239 | H103: =H74/H62-1 -> 0.03832393341 | J103: =J74/J62-1 -> 0.0204352805 | L103: =L74/L62-1 -> 0.06058484991 | N103: =N74/N62-1 -> 0.03957735493 | P103: =P74/P62-1 -> 0.064215212 | R103: =R74/R62-1 -> 0.03745482122 | T103: =T74/T62-1 -> 0.03860544807 | V103: =V74/V62-1 -> -0.01369463157 | X103: =X74/X62-1 -> 0.0073 | Z103: =Z74/Z62-1 -> 0.014 | AB103: =AB74/AB62-1 -> 0.1338051303 | AD103: =AD74/AD62-1 -> 0.09354738422 | AF103: =AF74/AF62-1 -> 0.003652430682 | AH103: =AH74/AH62-1 -> 0.1171869003
A104: 2019 | B104: =B86/B74-1 -> 0.04481588663 | D104: =D86/D74-1 -> 0.07317908281 | F104: =F86/F74-1 -> 0.07677588541 | H104: =H86/H74-1 -> 0.04143242256 | J104: =J86/J74-1 -> 0.04925770613 | L104: =L86/L74-1 -> 0.03234538735 | N104: =N86/N74-1 -> 0.04132997711 | P104: =P86/P74-1 -> 0.05945940358 | R104: =R86/R74-1 -> 0.04306039984 | T104: =T86/T74-1 -> 0.03913212759 | V104: =V86/V74-1 -> -0.01280027503 | X104: =X86/X74-1 -> 0.02349333 | Z104: =Z86/Z74-1 -> 0 | AB104: =AB86/AB74-1 -> 0.03495226864 | AD104: =AD86/AD74-1 -> 0.0639699392 | AF104: =AF86/AF74-1 -> 0.005960254069 | AH104: =AH86/AH74-1 -> 0.04667718156
A105: Acumulado PRs | B105: INPC | D105: IGP-M | F105: IGP-DI | H105: INCC | J105: INCC-DI MB | L105: INCC-DI MS | N105: INCC-M | P105: SELIC | R105: IPCA | T105: IPCA 15 | V105: IPCA BH Fixo | X105: IPCA BH Cel | Z105: IPCA BH Int | AB105: IPCA BH Gas | AD105: IPCA BH Die | AF105: IPCA BH Tel | AH105: IPCA BH Comb
A106: PR2013/14 | B106: =B21/B9-1 -> 0.06333503385 | D106: =D21/D9-1 -> 0.05326481949 | F106: =F21/F9-1 -> 0.0505803443 | H106: =H21/H9-1 -> 0.07512044892 | J106: =J21/J9-1 -> 0.08479294241 | L106: =L21/L9-1 -> 0.06461286433 | N106: =N21/N9-1 -> 0.07230806106 | P106: =P21/P9-1 -> 0.1004449091 | R106: =R21/R9-1 -> 0.06502314966 | T106: =T21/T9-1 -> 0.06514049596 | V106: =V21/V9-1 -> -0.03582397964 | X106: =X21/X9-1 -> 0.03396973776 | Z106: =Z21/Z9-1 -> 0 | AB106: =AB21/AB9-1 -> 0.03231708539 | AD106: =AD21/AD9-1 -> 0.0764384278 | AF106: =AF21/AF9-1 -> -5.781883008e-05 | AH106: =AH21/AH9-1 -> 0.05078170667
A107: PR2014/15 | B107: =B33/B21-1 -> 0.09805229878 | D107: =D33/D21-1 -> 0.06963895705 | F107: =F33/F21-1 -> 0.07413103871 | H107: =H33/H21-1 -> 0.06756830793 | J107: =J33/J21-1 -> 0.0764920755 | L107: =L33/L21-1 -> 0.05752207591 | N107: =N33/N21-1 -> 0.0646206011 | P107: =P33/P21-1 -> 0.1214752577 | R107: =R33/R21-1 -> 0.09558638537 | T107: =T33/T21-1 -> 0.09253166282 | V107: =V33/V21-1 -> -0.03889164168 | X107: =X33/X21-1 -> 0.05530732104 | Z107: =Z33/Z21-1 -> 0 | AB107: =AB33/AB21-1 -> 0.1326009289 | AD107: =AD33/AD21-1 -> 0.1208459991 | AF107: =AF33/AF21-1 -> 0.007342441596 | AH107: =AH33/AH21-1 -> 0.1275614177
A108: PR2015/16 | B108: =B45/B33-1 -> 0.0955824567 | D108: =D45/D33-1 -> 0.1165090292 | F108: =F45/F33-1 -> 0.1120377668 | H108: =H45/H33-1 -> 0.0639769969 | J108: =J45/J33-1 -> 0.08064140645 | L108: =L45/L33-1 -> 0.04486607206 | N108: =N45/N33-1 -> 0.0684620396 | P108: =P45/P33-1 -> 0.1403975338 | R108: =R45/R33-1 -> 0.0873628323 | T108: =T45/T33-1 -> 0.08929763787 | V108: =V45/V33-1 -> -0.006096741712 | X108: =X45/X33-1 -> 0.03867648 | Z108: =Z45/Z33-1 -> 0 | AB108: =AB45/AB33-1 -> 0.1005213532 | AD108: =AD45/AD33-1 -> 0.05638513421 | AF108: =AF45/AF33-1 -> 0.01251012715 | AH108: =AH45/AH33-1 -> 0.08171220013
A109: PR2016/17 | B109: =B57/B45-1 -> 0.02077557004 | D109: =D57/D45-1 -> -0.01675086132 | F109: =F57/F45-1 -> -0.0143979263 | H109: =H57/H45-1 -> 0.04475580234 | J109: =J57/J45-1 -> 0.07025170915 | L109: =L57/L45-1 -> 0.01517849847 | N109: =N57/N45-1 -> 0.04212360449 | P109: =P57/P45-1 -> 0.1254742425 | R109: =R57/R45-1 -> 0.02711457958 | T109: =T57/T45-1 -> 0.02783213422 | V109: =V57/V45-1 -> -0.04026722872 | X109: =X57/X45-1 -> 0.0451995402 | Z109: =Z57/Z45-1 -> 0.0104 | AB109: =AB57/AB45-1 -> -0.02367141057 | AD109: =AD57/AD45-1 -> 0.00533097073 | AF109: =AF57/AF45-1 -> 0.008711934618 | AH109: =AH57/AH45-1 -> -0.01160110327
A110: PR2017/18 | B110: =B69/B57-1 -> 0.03610427448 | D110: =D69/D57-1 -> 0.08262438799 | F110: =F69/F57-1 -> 0.08588008661 | H110: =H69/H57-1 -> 0.03956556015 | J110: =J69/J57-1 -> 0.02124749285 | L110: =L69/L57-1 -> 0.06247961394 | N110: =N69/N57-1 -> 0.03926515375 | P110: =P69/P57-1 -> 0.07090058568 | R110: =R69/R57-1 -> 0.04484682992 | T110: =T69/T57-1 -> 0.04527110697 | V110: =V69/V57-1 -> -0.01734088416 | X110: =X69/X57-1 -> 0.03253778062 | Z110: =Z69/Z57-1 -> 0.014 | AB110: =AB69/AB57-1 -> 0.3458820535 | AD110: =AD69/AD57-1 -> 0.1491261692 | AF110: =AF69/AF57-1 -> 0.01252267302 | AH110: =AH69/AH57-1 -> 0.2625927542
A111: PR2018/19 | B111: =B81/B69-1 -> 0.03160245846 | D111: =D81/D69-1 -> 0.06411333924 | F111: =F81/F69-1 -> 0.05552374956 | H111: =H81/H69-1 -> 0.03811728925 | J111: =J81/J69-1 -> 0.03503011957 | L111: =L81/L69-1 -> 0.04217262842 | N111: =N81/N69-1 -> 0.03957289011 | P111: =P81/P69-1 -> 0.06336844412 | R111: =R81/R69-1 -> 0.03222176901 | T111: =T81/T69-1 -> 0.03274637195 | V111: =V81/V69-1 -> -0.007514256256 | X111: =X81/X69-1 -> 0.0183 | Z111: =Z81/Z69-1 -> 0 | AB111: =AB81/AB69-1 -> -0.04118862528 | AD111: =AD81/AD69-1 -> 0.0541418315 | AF111: =AF81/AF69-1 -> 0.005310796945 | AH111: =AH81/AH69-1 -> -0.00446060031
A112: PR2019/20 | B112: =B93/B81-1 -> 0.02336476283 | D112: =D93/D81-1 -> 0.0649930156 | F112: =F93/F81-1 -> 0.07021612644 | H112: =H93/H81-1 -> 0.03399989068 | J112: =J93/J81-1 -> 0.02819907884 | L112: =L93/L81-1 -> 0.04080564044 | N112: =N93/N81-1 -> 0.03454155592 | P112: =P93/P81-1 -> 0.03997455142 | R112: =R93/R81-1 -> 0.02132125491 | T112: =T93/T81-1 -> 0.02009347405 | V112: =V93/V81-1 -> 0.00374349671 | X112: =X93/X81-1 -> 0.009187359134 | Z112: =Z93/Z81-1 -> 0 | AB112: =AB93/AB81-1 -> -0.1325473838 | AD112: =AD93/AD81-1 -> -0.1192593843 | AF112: =AF93/AF81-1 -> 0.00474510496 | AH112: =AH93/AH81-1 -> -0.1271265499
A114: Acum. do período | B114: INPC | D114: IGP-M | F114: IGP-DI | H114: INCC | J114: INCC-DI MB | L114: INCC-DI MS | N114: INCC-M | P114: SELIC | R114: IPCA | T114: IPCA 15 | V114: IPCA BH Fixo | X114: IPCA BH Cel | Z114: IPCA BH Int | AB114: IPCA BH Gas | AD114: IPCA BH Die | AF114: IPCA BH Tel | AH114: IPCA BH Comb
A115: abr19 - mar20 | B115: =B89/B77-1 -> 0.03312305466 | D115: =D89/D77-1 -> 0.06817838534 | F115: =F89/F77-1 -> 0.06980074604 | H115: =H89/H77-1 -> 0.04226710755 | J115: =J89/J77-1 -> 0.04842303311 | L115: =L89/L77-1 -> 0.03491813663 | N115: =N89/N77-1 -> 0.04351374327 | P115: =P89/P77-1 -> 0.05430219336 | R115: =R89/R77-1 -> 0.03302958572 | T115: =T89/T77-1 -> 0.03674203242 | V115: =V89/V77-1 -> 0.001125933569 | X115: =X89/X77-1 -> 0.02349333 | Z115: =Z89/Z77-1 -> 0 | AB115: =AB89/AB77-1 -> 0.0273819665 | AD115: =AD89/AD77-1 -> 0.03531745452 | AF115: =AF89/AF77-1 -> 0.009759859061 | AH115: =AH89/AH77-1 -> 0.030590081
A116: mai19 - abr20 | B116: =B90/B78-1 -> 0.02459927598 | D116: 0.06690825647 | F116: =F90/F78-1 -> 0.06078854947 | H116: =H90/H78-1 -> 0.04060579318 | J116: =J90/J78-1 -> 0.04633037236 | L116: =L90/L78-1 -> 0.0338891864 | N116: =N90/N78-1 -> 0.04029462434 | P116: =P90/P78-1 -> 0.05178495772 | R116: =R90/R78-1 -> 0.02399044845 | T116: =T90/T78-1 -> 0.02922791722 | V116: =V90/V78-1 -> 0.001125933569 | X116: =X90/X78-1 -> 0.02349333 | Z116: =Z90/Z78-1 -> 0 | AB116: =AB90/AB78-1 -> -0.07318055057 | AD116: =AD90/AD78-1 -> -0.03298332281 | AF116: =AF90/AF78-1 -> 0.009759859061 | AH116: =AH90/AH78-1 -> -0.05701612422
A117: jun19 - mai20 | B117: 0.02050701726 | D117: 0.06510263772 | F117: =F91/F79-1 -> 0.06786751688 | H117: =H91/H79-1 -> 0.04237429248 | J117: =J91/J79-1 -> 0.04622574979 | L117: =L91/L79-1 -> 0.03781560946 | N117: =N91/N79-1 -> 0.04154185539 | P117: =P91/P79-1 -> 0.04864655024 | R117: =R91/R79-1 -> 0.0187748774 | T117: =T91/T79-1 -> 0.01958691829 | V117: =V91/V79-1 -> 0.001125933569 | X117: =X91/X79-1 -> 0.02349333 | Z117: =Z91/Z79-1 -> 0 | AB117: =AB91/AB79-1 -> -0.1582644327 | AD117: =AD91/AD79-1 -> -0.1235612772 | AF117: =AF91/AF79-1 -> 0.009759859061 | AH117: =AH91/AH79-1 -> -0.1443630154
A118: jul19 - jun20 | B118: 0.02183354373 | D118: 0.06584229233 | F118: =F92/F80-1 -> 0.06807975329 | H118: =H92/H80-1 -> 0.03686345826 | J118: =J92/J80-1 -> 0.03395094077 | L118: =L92/L80-1 -> 0.04009675077 | N118: =N92/N80-1 -> 0.04050487624 | P118: =P92/P80-1 -> 0.0448211281 | R118: =R92/R80-1 -> 0.02030288692 | T118: =T92/T80-1 -> 0.0182622501 | V118: =V92/V80-1 -> 0.001226046163 | X118: =X92/X80-1 -> 0.02548914199 | Z118: =Z92/Z80-1 -> 0 | AB118: =AB92/AB80-1 -> -0.1480781999 | AD118: =AD92/AD80-1 -> -0.1267383786 | AF118: =AF92/AF80-1 -> 0.01059019036 | AH118: =AH92/AH80-1 -> -0.139432291
A119: ago19 - jul20 | B119: 0.02336476283 | D119: 0.0649930156 | F119: =F93/F81-1 -> 0.07021612644 | H119: =H93/H81-1 -> 0.03399989068 | J119: =J93/J81-1 -> 0.02819907884 | L119: =L93/L81-1 -> 0.04080564044 | N119: =N93/N81-1 -> 0.03454155592 | P119: =P93/P81-1 -> 0.03997455142 | R119: =R93/R81-1 -> 0.02132125491 | T119: =T93/T81-1 -> 0.02009347405 | V119: =V93/V81-1 -> 0.00374349671 | X119: =X93/X81-1 -> 0.009187359134 | Z119: =Z93/Z81-1 -> 0 | AB119: =AB93/AB81-1 -> -0.1325473838 | AD119: =AD93/AD81-1 -> -0.1192593843 | AF119: =AF93/AF81-1 -> 0.00474510496 | AH119: =AH93/AH81-1 -> -0.1271265499
A122: Acum. de cada PR até o PR 2020 | B122: INPC | D122: IGP-M | F122: IGP-DI | H122: INCC | J122: INCC-DI MB | L122: INCC-DI MS | N122: INCC-M | P122: SELIC | R122: IPCA | T122: IPCA 15 | V122: IPCA BH Fixo | X122: IPCA BH Cel | Z122: IPCA BH Int | AB122: IPCA BH Gas | AD122: IPCA BH Die | AF122: IPCA BH Tel | AH122: IPCA BH Comb
A123: PR2014 - PR2020 | B123: =(1+B106)*(1+B107)*(1+B108)*(1+B109)*(1+B110)*(1+B111)*(1+B112)-1 -> 0.428284681 | D123: =(1+D106)*(1+D107)*(1+D108)*(1+D109)*(1+D110)*(1+D111)*(1+D112)-1 -> 0.5174453444 | F123: =(1+F106)*(1+F107)*(1+F108)*(1+F109)*(1+F110)*(1+F111)*(1+F112)-1 -> 0.5171518544 | H123: =(1+H106)*(1+H107)*(1+H108)*(1+H109)*(1+H110)*(1+H111)*(1+H112)-1 -> 0.4237004609 | J123: =(1+J106)*(1+J107)*(1+J108)*(1+J109)*(1+J110)*(1+J111)*(1+J112)-1 -> 0.4678660446 | L123: =(1+L106)*(1+L107)*(1+L108)*(1+L109)*(1+L110)*(1+L111)*(1+L112)-1 -> 0.3763031241 | N123: =(1+N106)*(1+N107)*(1+N108)*(1+N109)*(1+N110)*(1+N111)*(1+N112)-1 -> 0.420764242 | P123: =(1+P106)*(1+P107)*(1+P108)*(1+P109)*(1+P110)*(1+P111)*(1+P112)-1 -> 0.875881793 | R123: =(1+R106)*(1+R107)*(1+R108)*(1+R109)*(1+R110)*(1+R111)*(1+R112)-1 -> 0.4354466829 | T123: =(1+T106)*(1+T107)*(1+T108)*(1+T109)*(1+T110)*(1+T111)*(1+T112)-1 -> 0.4347369234 | V123: =(1+V106)*(1+V107)*(1+V108)*(1+V109)*(1+V110)*(1+V111)*(1+V112)-1 -> -0.1346873989 | X123: =(1+X106)*(1+X107)*(1+X108)*(1+X109)*(1+X110)*(1+X111)*(1+X112)-1 -> 0.2569551559 | Z123: =(1+Z106)*(1+Z107)*(1+Z108)*(1+Z109)*(1+Z110)*(1+Z111)*(1+Z112)-1 -> 0.0245456 | AB123: =(1+AB106)*(1+AB107)*(1+AB108)*(1+AB109)*(1+AB110)*(1+AB111)*(1+AB112)-1 -> 0.406275627 | AD123: =(1+AD106)*(1+AD107)*(1+AD108)*(1+AD109)*(1+AD110)*(1+AD111)*(1+AD112)-1 -> 0.3670401479 | AF123: =(1+AF106)*(1+AF107)*(1+AF108)*(1+AF109)*(1+AF110)*(1+AF111)*(1+AF112)-1 -> 0.05215460141 | AH123: =(1+AH106)*(1+AH107)*(1+AH108)*(1+AH109)*(1+AH110)*(1+AH111)*(1+AH112)-1 -> 0.3898557217
A124: PR2015 - PR2020 | B124: =(1+B107)*(1+B108)*(1+B109)*(1+B110)*(1+B111)*(1+B112)-1 -> 0.3432122854 | D124: =(1+D107)*(1+D108)*(1+D109)*(1+D110)*(1+D111)*(1+D112)-1 -> 0.4407063791 | F124: =(1+F107)*(1+F108)*(1+F109)*(1+F110)*(1+F111)*(1+F112)-1 -> 0.4441083565 | H124: =(1+H107)*(1+H108)*(1+H109)*(1+H110)*(1+H111)*(1+H112)-1 -> 0.3242241484 | J124: =(1+J107)*(1+J108)*(1+J109)*(1+J110)*(1+J111)*(1+J112)-1 -> 0.3531301571 | L124: =(1+L107)*(1+L108)*(1+L109)*(1+L110)*(1+L111)*(1+L112)-1 -> 0.292773336 | N124: =(1+N107)*(1+N108)*(1+N109)*(1+N110)*(1+N111)*(1+N112)-1 -> 0.324959024 | P124: =(1+P107)*(1+P108)*(1+P109)*(1+P110)*(1+P111)*(1+P112)-1 -> 0.704657614 | R124: =(1+R107)*(1+R108)*(1+R109)*(1+R110)*(1+R111)*(1+R112)-1 -> 0.3478079639 | T124: =(1+T107)*(1+T108)*(1+T109)*(1+T110)*(1+T111)*(1+T112)-1 -> 0.3469931233 | V124: =(1+V107)*(1+V108)*(1+V109)*(1+V110)*(1+V111)*(1+V112)-1 -> -0.1025366916 | X124: =(1+X107)*(1+X108)*(1+X109)*(1+X110)*(1+X111)*(1+X112)-1 -> 0.2156595208 | Z124: =(1+Z107)*(1+Z108)*(1+Z109)*(1+Z110)*(1+Z111)*(1+Z112)-1 -> 0.0245456 | AB124: =(1+AB107)*(1+AB108)*(1+AB109)*(1+AB110)*(1+AB111)*(1+AB112)-1 -> 0.3622516249 | AD124: =(1+AD107)*(1+AD108)*(1+AD109)*(1+AD110)*(1+AD111)*(1+AD112)-1 -> 0.2699659475 | AF124: =(1+AF107)*(1+AF108)*(1+AF109)*(1+AF110)*(1+AF111)*(1+AF112)-1 -> 0.05221543928 | AH124: =(1+AH107)*(1+AH108)*(1+AH109)*(1+AH110)*(1+AH111)*(1+AH112)-1 -> 0.3226873982
A125: PR2016 - PR2020 | B125: =(1+B108)*(1+B109)*(1+B110)*(1+B111)*(1+B112)-1 -> 0.2232680419 | D125: =(1+D108)*(1+D109)*(1+D110)*(1+D111)*(1+D112)-1 -> 0.3469090385 | F125: =(1+F108)*(1+F109)*(1+F110)*(1+F111)*(1+F112)-1 -> 0.3444433728 | H125: =(1+H108)*(1+H109)*(1+H110)*(1+H111)*(1+H112)-1 -> 0.2404116332 | J125: =(1+J108)*(1+J109)*(1+J110)*(1+J111)*(1+J112)-1 -> 0.2569810665 | L125: =(1+L108)*(1+L109)*(1+L110)*(1+L111)*(1+L112)-1 -> 0.2224551765 | N125: =(1+N108)*(1+N109)*(1+N110)*(1+N111)*(1+N112)-1 -> 0.2445363378 | P125: =(1+P108)*(1+P109)*(1+P110)*(1+P111)*(1+P112)-1 -> 0.5200135735 | R125: =(1+R108)*(1+R109)*(1+R110)*(1+R111)*(1+R112)-1 -> 0.2302160577 | T125: =(1+T108)*(1+T109)*(1+T110)*(1+T111)*(1+T112)-1 -> 0.2329099184 | V125: =(1+V108)*(1+V109)*(1+V110)*(1+V111)*(1+V112)-1 -> -0.06622047281 | X125: =(1+X108)*(1+X109)*(1+X110)*(1+X111)*(1+X112)-1 -> 0.1519483439 | Z125: =(1+Z108)*(1+Z109)*(1+Z110)*(1+Z111)*(1+Z112)-1 -> 0.0245456 | AB125: =(1+AB108)*(1+AB109)*(1+AB110)*(1+AB111)*(1+AB112)-1 -> 0.2027640011 | AD125: =(1+AD108)*(1+AD109)*(1+AD110)*(1+AD111)*(1+AD112)-1 -> 0.1330423167 | AF125: =(1+AF108)*(1+AF109)*(1+AF110)*(1+AF111)*(1+AF112)-1 -> 0.04454592185 | AH125: =(1+AH108)*(1+AH109)*(1+AH110)*(1+AH111)*(1+AH112)-1 -> 0.1730513101
A126: PR2017 - PR2020 | B126: =(1+B109)*(1+B110)*(1+B111)*(1+B112)-1 -> 0.1165458468 | D126: =(1+D109)*(1+D110)*(1+D111)*(1+D112)-1 -> 0.2063574975 | F126: =(1+F109)*(1+F110)*(1+F111)*(1+F112)-1 -> 0.2089907491 | H126: =(1+H109)*(1+H110)*(1+H111)*(1+H112)-1 -> 0.1658256116 | J126: =(1+J109)*(1+J110)*(1+J111)*(1+J112)-1 -> 0.1631805509 | L126: =(1+L109)*(1+L110)*(1+L111)*(1+L112)-1 -> 0.1699635094 | N126: =(1+N109)*(1+N110)*(1+N111)*(1+N112)-1 -> 0.1647922824 | P126: =(1+P109)*(1+P110)*(1+P111)*(1+P112)-1 -> 0.332880446 | R126: =(1+R109)*(1+R110)*(1+R111)*(1+R112)-1 -> 0.1313758584 | T126: =(1+T109)*(1+T110)*(1+T111)*(1+T112)-1 -> 0.131839339 | V126: =(1+V109)*(1+V110)*(1+V111)*(1+V112)-1 -> -0.06049253848 | X126: =(1+X109)*(1+X110)*(1+X111)*(1+X112)-1 -> 0.1090540376 | Z126: =(1+Z109)*(1+Z110)*(1+Z111)*(1+Z112)-1 -> 0.0245456 | AB126: =(1+AB109)*(1+AB110)*(1+AB111)*(1+AB112)-1 -> 0.09290382924 | AD126: =(1+AD109)*(1+AD110)*(1+AD111)*(1+AD112)-1 -> 0.07256556347 | AF126: =(1+AF109)*(1+AF110)*(1+AF111)*(1+AF112)-1 -> 0.0316399746 | AH126: =(1+AH109)*(1+AH110)*(1+AH111)*(1+AH112)-1 -> 0.0844393823
A127: PR2018 - PR2020 | B127: =(1+B110)*(1+B111)*(1+B112)-1 -> 0.09382109017 | D127: =(1+D110)*(1+D111)*(1+D112)-1 -> 0.2269092848 | F127: =(1+F110)*(1+F111)*(1+F112)-1 -> 0.2266519942 | H127: =(1+H110)*(1+H111)*(1+H112)-1 -> 0.1158833567 | J127: =(1+J110)*(1+J111)*(1+J112)-1 -> 0.08682895895 | L127: =(1+L110)*(1+L111)*(1+L112)-1 -> 0.1524707341 | N127: =(1+N110)*(1+N111)*(1+N112)-1 -> 0.117710296 | P127: =(1+P110)*(1+P111)*(1+P112)-1 -> 0.1842833853 | R127: =(1+R110)*(1+R111)*(1+R112)-1 -> 0.1015089074 | T127: =(1+T110)*(1+T111)*(1+T112)-1 -> 0.1011908475 | V127: =(1+V110)*(1+V111)*(1+V112)-1 -> -0.0210738972 | X127: =(1+X110)*(1+X111)*(1+X112)-1 -> 0.06109311663 | Z127: =(1+Z110)*(1+Z111)*(1+Z112)-1 -> 0.014 | AB127: =(1+AB110)*(1+AB111)*(1+AB112)-1 -> 0.1194016452 | AD127: =(1+AD110)*(1+AD111)*(1+AD112)-1 -> 0.06687806772 | AF127: =(1+AF110)*(1+AF111)*(1+AF112)-1 -> 0.02273001756 | AH127: =(1+AH110)*(1+AH111)*(1+AH112)-1 -> 0.09716773854
A128: PR2019 - PR2020 | B128: =(1+B111)*(1+B112)-1 -> 0.05570560523 | D128: =(1+D111)*(1+D112)-1 -> 0.1332732741 | F128: =(1+F111)*(1+F112)-1 -> 0.1296385386 | H128: =(1+H111)*(1+H112)-1 -> 0.07341316359 | J128: =(1+J111)*(1+J112)-1 -> 0.06421701552 | L128: =(1+L111)*(1+L112)-1 -> 0.08469914996 | N128: =(1+N111)*(1+N112)-1 -> 0.07548135523 | P128: =(1+P111)*(1+P112)-1 -> 0.1058761207 | R128: =(1+R111)*(1+R112)-1 -> 0.05423003247 | T128: =(1+T111)*(1+T112)-1 -> 0.05349783437 | V128: =(1+V111)*(1+V112)-1 -> -0.00379888914 | X128: =(1+X111)*(1+X112)-1 -> 0.02765548781 | Z128: =(1+Z111)*(1+Z112)-1 -> 0 | AB128: =(1+AB111)*(1+AB112)-1 -> -0.1682765646 | AD128: =(1+AD111)*(1+AD112)-1 -> -0.07157447428 | AF128: =(1+AF111)*(1+AF112)-1 -> 0.01008110219 | AH128: =(1+AH111)*(1+AH112)-1 -> -0.1310200895
A129: PR2020 - PR2020 | B129: =B112 -> 0.02336476283 | D129: =D112 -> 0.0649930156 | F129: =F112 -> 0.07021612644 | H129: =H112 -> 0.03399989068 | J129: =J112 -> 0.02819907884 | L129: =L112 -> 0.04080564044 | N129: =N112 -> 0.03454155592 | P129: =P112 -> 0.03997455142 | R129: =R112 -> 0.02132125491 | T129: =T112 -> 0.02009347405 | V129: =V112 -> 0.00374349671 | X129: =X112 -> 0.009187359134 | Z129: =Z112 -> 0 | AB129: =AB112 -> -0.1325473838 | AD129: =AD112 -> -0.1192593843 | AF129: =AF112 -> 0.00474510496 | AH129: =AH112 -> -0.1271265499
A131: Para procv na planilha de compensação itens não adm.:
B132: 2 | C132: 3 | D132: 4 | E132: 5 | F132: 6 | G132: 7 | H132: 8 | I132: 9 | J132: 10 | K132: 11 | L132: 12 | M132: 13 | N132: 14 | O132: 15 | P132: 16 | Q132: 17 | R132: 18 | S132: 19 | T132: 20 | U132: 21 | V132: 22 | W132: 23 | X132: 24 | Y132: 25 | Z132: 26 | AA132: 27 | AB132: 28 | AC132: 29 | AD132: 30 | AE132: 31 | AF132: 32 | AG132: 33 | AH132: 34 | AI132: 35 | AJ132: 36

Sheet 3.2.TFAS
A1: ARSAE-MG
A2: 2019-04-10 | C2: TFAS
C3: Cálculo da TFAS prevista para o próximo PR e da variação necessária na parcela da tarifa destinada para essa despesa. Essa variação alimenta a plan. 2 na coluna de inflação prevista (%)
D6: IGP-DI | H6: =CONCATENATE(TEXT("Estimativa TFAS ",),TEXT(Sumário!T8,"aaaa")) -> Estimativa TFAS 2021 | K6: TFAS - PR0 | N6: Estimativa TFAS - PR1 | R6: TFAS anual Copasa 2019 (Resolução Arsae 119, de 15 de janeiro de 2019):
C7: =EDATE(C8,-1) -> 2018-10-01 | D7: =IFERROR(VLOOKUP(C7,'3.1.Índices_inflação'!A:AI,6,FALSE),D6*(1+B7)) -> 140.7486929 | H7: Ufemg 2020 | I7: 3.7116 | K7: =Sumário!S7 -> 2019-08-01 | L7: =$R$8 -> 3129018.479 | N7: =Sumário!S8 -> 2020-08-01 | O7: =$R$12 -> 3283981.532 | R7: 37548221.75
C8: =EDATE(C9,-1) -> 2018-11-01 | D8: =IFERROR(VLOOKUP(C8,'3.1.Índices_inflação'!A:AI,6,FALSE),D7*(1+B8)) -> 139.1441578 | H8: Ufemg 2021 | I8: =I7*(1+E31) -> 3.985057092 | K8: =EDATE(K7,1) -> 2019-09-01 | L8: =$R$8 -> 3129018.479 | N8: =EDATE(N7,1) -> 2020-09-01 | O8: =$R$12 -> 3283981.532 | R8: =R7/12 -> 3129018.479 | S8: mensal
C9: 2018-12-01 | D9: =IFERROR(VLOOKUP(C9,'3.1.Índices_inflação'!A:AI,6,FALSE),D8*(1+B9)) -> 138.5180091 | H9: Economias A+E | I9: =H17 -> 8968351.654 | K9: =EDATE(K8,1) -> 2019-10-01 | L9: =$R$8 -> 3129018.479 | N9: =EDATE(N8,1) -> 2020-10-01 | O9: =$R$12 -> 3283981.532
C10: 2019-01-01 | D10: =IFERROR(VLOOKUP(C10,'3.1.Índices_inflação'!A:AI,6,FALSE),D9*(1+B10)) -> 138.6149717 | H10: =RIGHT(H6,9) -> TFAS 2021 | I10: =1.2022*I8*I9 -> 42965898.7 | K10: 2019-11-01 | L10: =$R$8 -> 3129018.479 | N10: 2020-11-01 | O10: =$R$12 -> 3283981.532 | R10: TFAS anual Copasa 2020 (Resolução Arsae 134, de 17 de janeiro de 2020):
C11: 2019-02-01 | D11: =IFERROR(VLOOKUP(C11,'3.1.Índices_inflação'!A:AI,6,FALSE),D10*(1+B11)) -> 140.3476588 | I11: =I10/R11-1 -> 0.0902897972 | K11: 2019-12-01 | L11: =$R$8 -> 3129018.479 | N11: 2020-12-01 | O11: =$R$12 -> 3283981.532 | R11: 39407778.38
C12: 2019-03-01 | D12: =IFERROR(VLOOKUP(C12,'3.1.Índices_inflação'!A:AI,6,FALSE),D11*(1+B12)) -> 141.8493788 | K12: 2020-01-01 | L12: =$R$12 -> 3283981.532 | N12: 2021-01-01 | O12: =$I$10/12 -> 3580491.558 | R12: =R11/12 -> 3283981.532 | S12: mensal
C13: 2019-04-01 | D13: =IFERROR(VLOOKUP(C13,'3.1.Índices_inflação'!A:AI,6,FALSE),D12*(1+B13)) -> 143.1260232 | H13: Econ A + E (histograma) | K13: 2020-02-01 | L13: =$R$12 -> 3283981.532 | N13: 2021-02-01 | O13: =$I$10/12 -> 3580491.558
C14: 2019-05-01 | D14: =IFERROR(VLOOKUP(C14,'3.1.Índices_inflação'!A:AI,6,FALSE),D13*(1+B14)) -> 143.6985273 | G14: 2019-02-01 | H14: 8708729 | K14: 2020-03-01 | L14: 3283981.532 | N14: 2021-03-01 | O14: 3580491.558
C15: 2019-06-01 | D15: =IFERROR(VLOOKUP(C15,'3.1.Índices_inflação'!A:AI,6,FALSE),D14*(1+B15)) -> 144.603828 | G15: 2019-12-01 | H15: 8826882 | I15: =H15/H14-1 -> 0.01356719218 | K15: 2020-04-01 | L15: 3283981.532 | N15: 2021-04-01 | O15: 3580491.558
C16: 2019-07-01 | D16: =IFERROR(VLOOKUP(C16,'3.1.Índices_inflação'!A:AI,6,FALSE),D15*(1+B16)) -> 144.5893676 | G16: 2020-02-01 | H16: 8848305 | K16: 2020-05-01 | L16: 3283981.532 | N16: 2021-05-01 | O16: 3580491.558
C17: 2019-08-01 | D17: =IFERROR(VLOOKUP(C17,'3.1.Índices_inflação'!A:AI,6,FALSE),D16*(1+B17)) -> 143.8519618 | G17: 2020-12-01 | H17: =H16*(1+I15) -> 8968351.654 | I17: =H17/H16-1 -> 0.01356719218 | K17: 2020-06-01 | L17: 3283981.532 | N17: 2021-06-01 | O17: 3580491.558
C18: 2019-09-01 | D18: =IFERROR(VLOOKUP(C18,'3.1.Índices_inflação'!A:AI,6,FALSE),D17*(1+B18)) -> 144.5712217 | E18: =CONCATENATE(TEXT(C8,"mmm/aa"),TEXT(" a ",),TEXT(C19,"mmm/aa")) -> nov/18 a out/19 | K18: 2020-07-01 | L18: 3283981.532 | N18: =EDATE(N17,1) -> 2021-07-01 | O18: 3580491.558
C19: 2019-10-01 | D19: =IFERROR(VLOOKUP(C19,'3.1.Índices_inflação'!A:AI,6,FALSE),D18*(1+B19)) -> 145.3663634 | E19: =D19/D7-1 -> 0.03280791027 | K19: PR0 | L19: =SUM(L7:L18) -> 38632963.12 | N19: PR1 | O19: =SUM(O7:O18) -> 41483348.57 | Q19: =O19='2.IRT_2020'!L35 -> TRUE
C20: 2019-11-01 | D20: =IFERROR(VLOOKUP(C20,'3.1.Índices_inflação'!A:AI,6,FALSE),D19*(1+B20)) -> 146.6019775 | L20: =SUM(L7:L11)/5*12=R7 -> TRUE | O20: =SUM(O7:O11)/5*12=R11 -> TRUE
C21: 2019-12-01 | D21: =IFERROR(VLOOKUP(C21,'3.1.Índices_inflação'!A:AI,6,FALSE),D20*(1+B21)) -> 149.1528519 | L21: =SUM(L12:L18)/7*12=R11 -> TRUE | O21: =SUM(O12:O18)/7*12=I10 -> TRUE
C22: 2020-01-01 | D22: =IFERROR(VLOOKUP(C22,'3.1.Índices_inflação'!A:AI,6,FALSE),D21*(1+B22)) -> 149.2870894
C23: 2020-02-01 | D23: =IFERROR(VLOOKUP(C23,'3.1.Índices_inflação'!A:AI,6,FALSE),D22*(1+B23)) -> 149.3020181 | K23: Prevista: | L23: =CONCATENATE(TEXT('2.IRT_2020'!G35,"0,00%"),TEXT(" da RT base",)) -> 0,77% da RT base
C24: 2020-03-01 | D24: =IFERROR(VLOOKUP(C24,'3.1.Índices_inflação'!A:AI,6,FALSE),D23*(1+B24)) -> 151.7505712 | K24: TFAS PR0 | O24: Variação TFAS
C25: 2020-04-01 | D25: =IFERROR(VLOOKUP(C25,'3.1.Índices_inflação'!A:AI,6,FALSE),D24*(1+B25)) -> 151.8264465 | K25: ='2.IRT_2020'!G35 -> 0.007721196585 | L25: =K25*'2.IRT_2020'!F7 -> 40657925.35 | O25: =O19/L25-1 -> 0.02030165608
C26: 2020-05-01 | D26: =IFERROR(VLOOKUP(C26,'3.1.Índices_inflação'!A:AI,6,FALSE),D25*(1+B26)) -> 153.4509895
C27: 2020-06-01 | D27: =IFERROR(VLOOKUP(C27,'3.1.Índices_inflação'!A:AI,6,FALSE),D26*(1+B27)) -> 154.4484209
C28: 2020-07-01 | D28: =IFERROR(VLOOKUP(C28,'3.1.Índices_inflação'!A:AI,6,FALSE),D27*(1+B28)) -> 154.7418729
B29: 0.0023 | C29: 2020-08-01 | D29: =IFERROR(VLOOKUP(C29,'3.1.Índices_inflação'!A:AI,6,FALSE),D28*(1+B29)) -> 155.0977792
B30: 0.0029 | C30: =EDATE(C31,-1) -> 2020-09-01 | D30: =IFERROR(VLOOKUP(C30,'3.1.Índices_inflação'!A:AI,6,FALSE),D29*(1+B30)) -> 155.5475628 | E30: =CONCATENATE(TEXT(C20,"mmm/aa"),TEXT(" a ",),TEXT(C31,"mmm/aa")) -> nov/19 a out/20 | T30: TFAS PR0 | U30: =L25 -> 40657925.35 | V30: =CONCATENATE(TEXT("(",),TEXT('2.IRT_2020'!G35,"0,00%"),TEXT(" * RT0 base)",)) -> (0,77% * RT0 base)
B31: 0.0034 | C31: =CONCATENATE("out/",YEAR(Sumário!T7)) -> out/2020 | D31: =IFERROR(VLOOKUP(C31,'3.1.Índices_inflação'!A:AI,6,FALSE),D30*(1+B31)) -> 156.0764245 | E31: =D31/D19-1 -> 0.07367633679 | T31: TFAS PR1 | U31: =O19 -> 41483348.57 | V31: (estimada para ago/20 a jul/21)
B32: Variações em vermelho são previsão do Bacen consultadas em 12/06/20 | T32: Variação | U32: =U31/U30-1 -> 0.02030165608

Sheet 3.3.EE_Índice
A1: ARSAE-MG | AS1: Valores para procv: | AT1: 2 | AU1: 3 | AV1: 4 | AW1: 5 | AX1: 6 | AY1: 7 | AZ1: 8 | BA1: 9 | BB1: 10 | BC1: 11 | BD1: 12 | BE1: 13 | BF1: 14 | BG1: 15 | BH1: 16 | BI1: 17 | BJ1: 18 | BK1: 19 | BL1: 20 | BM1: 21 | BN1: 22 | BO1: 23 | BP1: 24 | BQ1: 25 | BR1: 26 | BS1: 27 | BT1: 28 | BU1: 29 | BV1: 30 | BW1: 31 | BX1: 32 | BY1: 33 | BZ1: 34 | CA1: 35 | CB1: 36 | CC1: 37 | CD1: 38 | CE1: 39 | CF1: 40 | CG1: 41 | CH1: 42 | CI1: 43
A2: 2019-04-10 | D2: Cálculo do índice de Energia Elétrica
CK3: para energia | CL3: 1 | CM3: 1 | CN3: 1000 | CO3: 1000 | CP3: 1 | CQ3: 1 | CR3: 1000 | CS3: 1000 | CT3: 1 | CU3: 1 | CV3: 1000 | CW3: 1000 | CX3: 1 | CY3: 1 | CZ3: 1000 | DA3: 1000 | DB3: 1 | DC3: 1 | DD3: 1000 | DE3: 1000 | DF3: 1 | DG3: 1 | DH3: 1000 | DI3: 1000 | DJ3: 1 | DK3: 1 | DL3: 1000 | DM3: 1000 | DN3: 1 | DO3: 1 | DP3: 1000 | DQ3: 1000 | DR3: 1 | DS3: 1 | DT3: 1000 | DU3: 1000 | DV3: 1 | DW3: 1 | DX3: 1000 | DY3: 1000
D4: Perfil de consumo da Copasa no PR0
D5: AES | E5: AES | F5: AES | G5: AES | H5: AES | I5: AES | J5: AES | K5: AES | L5: AES | M5: AES | N5: AES | O5: AES | P5: ADM | Q5: ADM | R5: ADM | S5: ADM | T5: AES | U5: AES | V5: AES | W5: AES | X5: ADM | Y5: ADM | Z5: ADM | AA5: ADM | AB5: AES | AC5: AES | AD5: AES | AE5: AES | AF5: ADM | AG5: ADM | AH5: ADM | AI5: ADM | AJ5: AES | AK5: AES | AL5: AES | AM5: AES | AN5: ADM | AO5: ADM | AP5: ADM | AQ5: ADM | AV5: =CONCATENATE(TEXT("Tarifas observadas de ",),TEXT(Sumário!S7,"MMM/AA"),TEXT(" - ",),TEXT(Sumário!T7,"MMM/AA")) -> Tarifas observadas de ago/19 - jul/20 | CL5: =CONCATENATE(TEXT("Faturamento simulado com tarifas vigentes no período ",),TEXT(Sumário!S7,"MMM/AA"),TEXT(" - ",),TEXT(Sumário!T7,"MMM/AA")) -> Faturamento simulado com tarifas vigentes no período ago/19 - jul/20
D6: A2 | H6: A3 | L6: A4 | P6: A4 | T6: A4 | X6: A4 | AB6: A4 | AF6: A4 | AJ6: B3 | AN6: B3 | AV6: A2 | AZ6: A3 | BD6: A4 | BH6: A4 | BL6: A4 | BP6: A4 | BT6: A4 | BX6: A4 | CB6: B3 | CF6: B3 | CL6: A2 | CP6: A3 | CT6: A4 | CX6: A4 | DB6: A4 | DF6: A4 | DJ6: A4 | DN6: A4 | DR6: B3 | DV6: B3 | EA6: TOTAL sem bandeiras | EC6: Bandeiras | EE6: TOTAL com bandeiras
D7: AZ_AES | H7: AZ_AES | L7: AZ_AES | P7: AZ_ADM | T7: VD_AES | X7: VD_ADM | AB7: EQ_AES | AF7: EQ_ADM | AJ7: EQ_AES | AN7: EQ_ADM | AV7: AZ_AES | AZ7: AZ_AES | BD7: AZ_AES | BH7: AZ_ADM | BL7: VD_AES | BP7: VD_ADM | BT7: EQ_AES | BX7: EQ_ADM | CB7: EQ_AES | CF7: EQ_ADM | CL7: AZ_AES | CP7: AZ_AES | CT7: AZ_AES | CX7: AZ_ADM | DB7: VD_AES | DF7: VD_ADM | DJ7: EQ_AES | DN7: EQ_ADM | DR7: EQ_AES | DV7: EQ_ADM
D8: D_P | E8: D_FP | F8: E_P | G8: E_FP | H8: D_P | I8: D_FP | J8: E_P | K8: E_FP | L8: D_P | M8: D_FP | N8: E_P | O8: E_FP | P8: D_P | Q8: D_FP | R8: E_P | S8: E_FP | T8: D_P | U8: D_FP | V8: E_P | W8: E_FP | X8: D_P | Y8: D_FP | Z8: E_P | AA8: E_FP | AB8: D_P | AC8: D_FP | AD8: E_P | AE8: E_FP | AF8: D_P | AG8: D_FP | AH8: E_P | AI8: E_FP | AJ8: D_P | AK8: D_FP | AL8: E_P | AM8: E_FP | AN8: D_P | AO8: D_FP | AP8: E_P | AQ8: E_FP | AV8: D_P | AW8: D_FP | AX8: E_P | AY8: E_FP | AZ8: D_P | BA8: D_FP | BB8: E_P | BC8: E_FP | BD8: D_P | BE8: D_FP | BF8: E_P | BG8: E_FP | BH8: D_P | BI8: D_FP | BJ8: E_P | BK8: E_FP | BL8: D_P | BM8: D_FP | BN8: E_P | BO8: E_FP | BP8: D_P | BQ8: D_FP | BR8: E_P | BS8: E_FP | BT8: D_P | BU8: D_FP | BV8: E_P | BW8: E_FP | BX8: D_P | BY8: D_FP | BZ8: E_P | CA8: E_FP | CB8: D_P | CC8: D_FP | CD8: E_P | CE8: E_FP | CF8: D_P | CG8: D_FP | CH8: E_P | CI8: E_FP | CL8: D_P | CM8: D_FP | CN8: E_P | CO8: E_FP | CP8: D_P | CQ8: D_FP | CR8: E_P | CS8: E_FP | CT8: D_P | CU8: D_FP | CV8: E_P | CW8: E_FP | CX8: D_P | CY8: D_FP | CZ8: E_P | DA8: E_FP | DB8: D_P | DC8: D_FP | DD8: E_P | DE8: E_FP | DF8: D_P | DG8: D_FP | DH8: E_P | DI8: E_FP | DJ8: D_P | DK8: D_FP | DL8: E_P | DM8: E_FP | DN8: D_P | DO8: D_FP | DP8: E_P | DQ8: E_FP | DR8: D_P | DS8: D_FP | DT8: E_P | DU8: E_FP | DV8: D_P | DW8: D_FP | DX8: E_P | DY8: E_FP
D9: kW | E9: kW | F9: kWh | G9: kWh | H9: kW | I9: kW | J9: kWh | K9: kWh | L9: kW | M9: kW | N9: kWh | O9: kWh | P9: kW | Q9: kW | R9: kWh | S9: kWh | T9: kW | U9: kW | V9: kWh | W9: kWh | X9: kW | Y9: kW | Z9: kWh | AA9: kWh | AB9: kW | AC9: kW | AD9: kWh | AE9: kWh | AF9: kW | AG9: kW | AH9: kWh | AI9: kWh | AJ9: kW | AK9: kW | AL9: kWh | AM9: kWh | AN9: kW | AO9: kW | AP9: kWh | AQ9: kWh | AS9: mês | AT9: Bandeira | AU9: Valor | AV9: R$/kW | AW9: R$/kW | AX9: R$/MWh | AY9: R$/MWh | AZ9: R$/kW | BA9: R$/kW | BB9: R$/MWh | BC9: R$/MWh | BD9: R$/kW | BE9: R$/kW | BF9: R$/MWh | BG9: R$/MWh | BH9: R$/kW | BI9: R$/kW | BJ9: R$/MWh | BK9: R$/MWh | BL9: R$/kW | BM9: R$/kW | BN9: R$/MWh | BO9: R$/MWh | BP9: R$/kW | BQ9: R$/kW | BR9: R$/MWh | BS9: R$/MWh | BT9: R$/kW | BU9: R$/kW | BV9: R$/MWh | BW9: R$/MWh | BX9: R$/kW | BY9: R$/kW | BZ9: R$/MWh | CA9: R$/MWh | CB9: R$/kW | CC9: R$/kW | CD9: R$/MWh | CE9: R$/MWh | CF9: R$/kW | CG9: R$/kW | CH9: R$/MWh | CI9: R$/MWh | CL9: R$ | CM9: R$ | CN9: R$ | CO9: R$ | CP9: R$ | CQ9: R$ | CR9: R$ | CS9: R$ | CT9: R$ | CU9: R$ | CV9: R$ | CW9: R$ | CX9: R$ | CY9: R$ | CZ9: R$ | DA9: R$ | DB9: R$ | DC9: R$ | DD9: R$ | DE9: R$ | DF9: R$ | DG9: R$ | DH9: R$ | DI9: R$ | DJ9: R$ | DK9: R$ | DL9: R$ | DM9: R$ | DN9: R$ | DO9: R$ | DP9: R$ | DQ9: R$ | DR9: R$ | DS9: R$ | DT9: R$ | DU9: R$ | DV9: R$ | DW9: R$ | DX9: R$ | DY9: R$ | EA9: R$ | EC9: R$ | EE9: R$
C10: =Sumário!S7 -> 2019-08-01 | AS10: =C10 -> 2019-08-01 | AT10: =VLOOKUP($AS10,'3.3.3.Tarifas_EE'!$B:$AR,AT$1,FALSE) -> Vermelha 1 | AU10: =VLOOKUP($AS10,'3.3.3.Tarifas_EE'!$B:$AR,AU$1,FALSE) -> 0.04 | AV10: =VLOOKUP($AS10,'3.3.3.Tarifas_EE'!$B:$AR,AV$1,FALSE) -> 9.81 | AW10: =VLOOKUP($AS10,'3.3.3.Tarifas_EE'!$B:$AR,AW$1,FALSE) -> 3.7 | AX10: =VLOOKUP($AS10,'3.3.3.Tarifas_EE'!$B:$AR,AX$1,FALSE) -> 510.05 | AY10: =VLOOKUP($AS10,'3.3.3.Tarifas_EE'!$B:$AR,AY$1,FALSE) -> 332.46 | AZ10: =VLOOKUP($AS10,'3.3.3.Tarifas_EE'!$B:$AR,AZ$1,FALSE) -> 20.16 | BA10: =VLOOKUP($AS10,'3.3.3.Tarifas_EE'!$B:$AR,BA$1,FALSE) -> 6.68 | BB10: =VLOOKUP($AS10,'3.3.3.Tarifas_EE'!$B:$AR,BB$1,FALSE) -> 522.19 | BC10: =VLOOKUP($AS10,'3.3.3.Tarifas_EE'!$B:$AR,BC$1,FALSE) -> 344.6 | BD10: =VLOOKUP($AS10,'3.3.3.Tarifas_EE'!$B:$AR,BD$1,FALSE) -> 43.85 | BE10: =VLOOKUP($AS10,'3.3.3.Tarifas_EE'!$B:$AR,BE$1,FALSE) -> 13.95 | BF10: =VLOOKUP($AS10,'3.3.3.Tarifas_EE'!$B:$AR,BF$1,FALSE) -> 534.25 | BG10: =VLOOKUP($AS10,'3.3.3.Tarifas_EE'!$B:$AR,BG$1,FALSE) -> 356.66 | BH10: =VLOOKUP($AS10,'3.3.3.Tarifas_EE'!$B:$AR,BH$1,FALSE) -> 43.85 | BI10: =VLOOKUP($AS10,'3.3.3.Tarifas_EE'!$B:$AR,BI$1,FALSE) -> 13.95 | BJ10: =VLOOKUP($AS10,'3.3.3.Tarifas_EE'!$B:$AR,BJ$1,FALSE) -> 534.25 | BK10: =VLOOKUP($AS10,'3.3.3.Tarifas_EE'!$B:$AR,BK$1,FALSE) -> 356.66 | BL10: =VLOOKUP($AS10,'3.3.3.Tarifas_EE'!$B:$AR,BL$1,FALSE) -> 0 | BM10: =VLOOKUP($AS10,'3.3.3.Tarifas_EE'!$B:$AR,BM$1,FALSE) -> 13.95 | BN10: =VLOOKUP($AS10,'3.3.3.Tarifas_EE'!$B:$AR,BN$1,FALSE) -> 1599.69 | BO10: =VLOOKUP($AS10,'3.3.3.Tarifas_EE'!$B:$AR,BO$1,FALSE) -> 356.66 | BP10: =VLOOKUP($AS10,'3.3.3.Tarifas_EE'!$B:$AR,BP$1,FALSE) -> 0 | BQ10: =VLOOKUP($AS10,'3.3.3.Tarifas_EE'!$B:$AR,BQ$1,FALSE) -> 13.95 | BR10: =VLOOKUP($AS10,'3.3.3.Tarifas_EE'!$B:$AR,BR$1,FALSE) -> 1599.69 | BS10: =VLOOKUP($AS10,'3.3.3.Tarifas_EE'!$B:$AR,BS$1,FALSE) -> 356.66 | BT10: =VLOOKUP($AS10,'3.3.3.Tarifas_EE'!$B:$AR,BT$1,FALSE) -> 0 | BU10: =VLOOKUP($AS10,'3.3.3.Tarifas_EE'!$B:$AR,BU$1,FALSE) -> 45.52 | BV10: =VLOOKUP($AS10,'3.3.3.Tarifas_EE'!$B:$AR,BV$1,FALSE) -> 0 | BW10: =VLOOKUP($AS10,'3.3.3.Tarifas_EE'!$B:$AR,BW$1,FALSE) -> 371.46 | BX10: =VLOOKUP($AS10,'3.3.3.Tarifas_EE'!$B:$AR,BX$1,FALSE) -> 0 | BY10: =VLOOKUP($AS10,'3.3.3.Tarifas_EE'!$B:$AR,BY$1,FALSE) -> 45.52 | BZ10: =VLOOKUP($AS10,'3.3.3.Tarifas_EE'!$B:$AR,BZ$1,FALSE) -> 0 | CA10: =VLOOKUP($AS10,'3.3.3.Tarifas_EE'!$B:$AR,CA$1,FALSE) -> 371.46 | CB10: =VLOOKUP($AS10,'3.3.3.Tarifas_EE'!$B:$AR,CB$1,FALSE) -> 0 | CC10: =VLOOKUP($AS10,'3.3.3.Tarifas_EE'!$B:$AR,CC$1,FALSE) -> 0 | CD10: =VLOOKUP($AS10,'3.3.3.Tarifas_EE'!$B:$AR,CD$1,FALSE) -> 0 | CE10: =VLOOKUP($AS10,'3.3.3.Tarifas_EE'!$B:$AR,CE$1,FALSE) -> 628.33 | CF10: =VLOOKUP($AS10,'3.3.3.Tarifas_EE'!$B:$AR,CF$1,FALSE) -> 0 | CG10: =VLOOKUP($AS10,'3.3.3.Tarifas_EE'!$B:$AR,CG$1,FALSE) -> 0 | CH10: =VLOOKUP($AS10,'3.3.3.Tarifas_EE'!$B:$AR,CH$1,FALSE) -> 0 | CI10: =VLOOKUP($AS10,'3.3.3.Tarifas_EE'!$B:$AR,CI$1,FALSE) -> 628.33 | CK10: =-IF($AS10<$AS$20,$CL$47,IF($AS10<$AS$41,$CL$48,$CL$49)) -> -0.12 | CL10: 397031.1048 | CM10: 178373.448 | CN10: 889783.8572 | CO10: 6835184.986 | CP10: 36368.64 | CQ10: 22402.5824 | CR10: 60821.64161 | CS10: 689330.9204 | CT10: 718312.533 | CU10: 258498.9238 | CV10: 469063.3794 | CW10: 3652478.478 | CX10: 0 | CY10: 0 | CZ10: 0 | DA10: 0 | DB10: 0 | DC10: 714124.5052 | DD10: 2174452.858 | DE10: 5961877.857 | DF10: 0 | DG10: 22293.216 | DH10: 55596.77804 | DI10: 111640.9143 | DJ10: 0 | DK10: 0 | DL10: 0 | DM10: 0 | DN10: 0 | DO10: 0 | DP10: 0 | DQ10: 0 | DR10: 0 | DS10: 0 | DT10: 0 | DU10: 7807150.547 | DV10: 0 | DW10: 0 | DX10: 0 | DY10: 90732.56106 | DZ10: =AS10 -> 2019-08-01 | EA10: =SUM(CL10:DY10) -> 31145519.73 | EC10: 3024187.12 | EE10: =(EA10+EC10) -> 34169706.85
C11: =EDATE(C10,1) -> 2019-09-01 | AS11: =EDATE(AS10,1) -> 2019-09-01 | AT11: =VLOOKUP($AS11,'3.3.3.Tarifas_EE'!$B:$AR,AT$1,FALSE) -> Vermelha 1 | AU11: =VLOOKUP($AS11,'3.3.3.Tarifas_EE'!$B:$AR,AU$1,FALSE) -> 0.04 | AV11: =VLOOKUP($AS11,'3.3.3.Tarifas_EE'!$B:$AR,AV$1,FALSE) -> 9.81 | AW11: =VLOOKUP($AS11,'3.3.3.Tarifas_EE'!$B:$AR,AW$1,FALSE) -> 3.7 | AX11: =VLOOKUP($AS11,'3.3.3.Tarifas_EE'!$B:$AR,AX$1,FALSE) -> 510.05 | AY11: =VLOOKUP($AS11,'3.3.3.Tarifas_EE'!$B:$AR,AY$1,FALSE) -> 332.46 | AZ11: =VLOOKUP($AS11,'3.3.3.Tarifas_EE'!$B:$AR,AZ$1,FALSE) -> 20.16 | BA11: =VLOOKUP($AS11,'3.3.3.Tarifas_EE'!$B:$AR,BA$1,FALSE) -> 6.68 | BB11: =VLOOKUP($AS11,'3.3.3.Tarifas_EE'!$B:$AR,BB$1,FALSE) -> 522.19 | BC11: =VLOOKUP($AS11,'3.3.3.Tarifas_EE'!$B:$AR,BC$1,FALSE) -> 344.6 | BD11: =VLOOKUP($AS11,'3.3.3.Tarifas_EE'!$B:$AR,BD$1,FALSE) -> 43.85 | BE11: =VLOOKUP($AS11,'3.3.3.Tarifas_EE'!$B:$AR,BE$1,FALSE) -> 13.95 | BF11: =VLOOKUP($AS11,'3.3.3.Tarifas_EE'!$B:$AR,BF$1,FALSE) -> 534.25 | BG11: =VLOOKUP($AS11,'3.3.3.Tarifas_EE'!$B:$AR,BG$1,FALSE) -> 356.66 | BH11: =VLOOKUP($AS11,'3.3.3.Tarifas_EE'!$B:$AR,BH$1,FALSE) -> 43.85 | BI11: =VLOOKUP($AS11,'3.3.3.Tarifas_EE'!$B:$AR,BI$1,FALSE) -> 13.95 | BJ11: =VLOOKUP($AS11,'3.3.3.Tarifas_EE'!$B:$AR,BJ$1,FALSE) -> 534.25 | BK11: =VLOOKUP($AS11,'3.3.3.Tarifas_EE'!$B:$AR,BK$1,FALSE) -> 356.66 | BL11: =VLOOKUP($AS11,'3.3.3.Tarifas_EE'!$B:$AR,BL$1,FALSE) -> 0 | BM11: =VLOOKUP($AS11,'3.3.3.Tarifas_EE'!$B:$AR,BM$1,FALSE) -> 13.95 | BN11: =VLOOKUP($AS11,'3.3.3.Tarifas_EE'!$B:$AR,BN$1,FALSE) -> 1599.69 | BO11: =VLOOKUP($AS11,'3.3.3.Tarifas_EE'!$B:$AR,BO$1,FALSE) -> 356.66 | BP11: =VLOOKUP($AS11,'3.3.3.Tarifas_EE'!$B:$AR,BP$1,FALSE) -> 0 | BQ11: =VLOOKUP($AS11,'3.3.3.Tarifas_EE'!$B:$AR,BQ$1,FALSE) -> 13.95 | BR11: =VLOOKUP($AS11,'3.3.3.Tarifas_EE'!$B:$AR,BR$1,FALSE) -> 1599.69 | BS11: =VLOOKUP($AS11,'3.3.3.Tarifas_EE'!$B:$AR,BS$1,FALSE) -> 356.66 | BT11: =VLOOKUP($AS11,'3.3.3.Tarifas_EE'!$B:$AR,BT$1,FALSE) -> 0 | BU11: =VLOOKUP($AS11,'3.3.3.Tarifas_EE'!$B:$AR,BU$1,FALSE) -> 45.52 | BV11: =VLOOKUP($AS11,'3.3.3.Tarifas_EE'!$B:$AR,BV$1,FALSE) -> 0 | BW11: =VLOOKUP($AS11,'3.3.3.Tarifas_EE'!$B:$AR,BW$1,FALSE) -> 371.46 | BX11: =VLOOKUP($AS11,'3.3.3.Tarifas_EE'!$B:$AR,BX$1,FALSE) -> 0 | BY11: =VLOOKUP($AS11,'3.3.3.Tarifas_EE'!$B:$AR,BY$1,FALSE) -> 45.52 | BZ11: =VLOOKUP($AS11,'3.3.3.Tarifas_EE'!$B:$AR,BZ$1,FALSE) -> 0 | CA11: =VLOOKUP($AS11,'3.3.3.Tarifas_EE'!$B:$AR,CA$1,FALSE) -> 371.46 | CB11: =VLOOKUP($AS11,'3.3.3.Tarifas_EE'!$B:$AR,CB$1,FALSE) -> 0 | CC11: =VLOOKUP($AS11,'3.3.3.Tarifas_EE'!$B:$AR,CC$1,FALSE) -> 0 | CD11: =VLOOKUP($AS11,'3.3.3.Tarifas_EE'!$B:$AR,CD$1,FALSE) -> 0 | CE11: =VLOOKUP($AS11,'3.3.3.Tarifas_EE'!$B:$AR,CE$1,FALSE) -> 628.33 | CF11: =VLOOKUP($AS11,'3.3.3.Tarifas_EE'!$B:$AR,CF$1,FALSE) -> 0 | CG11: =VLOOKUP($AS11,'3.3.3.Tarifas_EE'!$B:$AR,CG$1,FALSE) -> 0 | CH11: =VLOOKUP($AS11,'3.3.3.Tarifas_EE'!$B:$AR,CH$1,FALSE) -> 0 | CI11: =VLOOKUP($AS11,'3.3.3.Tarifas_EE'!$B:$AR,CI$1,FALSE) -> 628.33 | CK11: =-IF($AS11<$AS$20,$CL$47,IF($AS11<$AS$41,$CL$48,$CL$49)) -> -0.12 | CL11: 394907.436 | CM11: 177715.736 | CN11: 883188.9923 | CO11: 6538688.993 | CP11: 36510.5664 | CQ11: 22361.4336 | CR11: 57144.96448 | CS11: 709796.2182 | CT11: 724111.1517 | CU11: 258285.3214 | CV11: 404848.3672 | CW11: 4046295.317 | CX11: 0 | CY11: 0 | CZ11: 0 | DA11: 0 | DB11: 0 | DC11: 742609.7356 | DD11: 2238481.922 | DE11: 6158731.351 | DF11: 0 | DG11: 22293.216 | DH11: 58668.43879 | DI11: 118045.5578 | DJ11: 0 | DK11: 0 | DL11: 0 | DM11: 0 | DN11: 0 | DO11: 0 | DP11: 0 | DQ11: 0 | DR11: 0 | DS11: 0 | DT11: 0 | DU11: 8136172.887 | DV11: 0 | DW11: 0 | DX11: 0 | DY11: 102385.5692 | DZ11: =EDATE(DZ10,1) -> 2019-09-01 | EA11: =SUM(CL11:DY11) -> 31831243.17 | EC11: 3082623.84 | EE11: =(EA11+EC11) -> 34913867.01
C12: =EDATE(C11,1) -> 2019-10-01 | AS12: =EDATE(AS11,1) -> 2019-10-01 | AT12: =VLOOKUP($AS12,'3.3.3.Tarifas_EE'!$B:$AR,AT$1,FALSE) -> Amarela | AU12: =VLOOKUP($AS12,'3.3.3.Tarifas_EE'!$B:$AR,AU$1,FALSE) -> 0.015 | AV12: =VLOOKUP($AS12,'3.3.3.Tarifas_EE'!$B:$AR,AV$1,FALSE) -> 9.81 | AW12: =VLOOKUP($AS12,'3.3.3.Tarifas_EE'!$B:$AR,AW$1,FALSE) -> 3.7 | AX12: =VLOOKUP($AS12,'3.3.3.Tarifas_EE'!$B:$AR,AX$1,FALSE) -> 510.05 | AY12: =VLOOKUP($AS12,'3.3.3.Tarifas_EE'!$B:$AR,AY$1,FALSE) -> 332.46 | AZ12: =VLOOKUP($AS12,'3.3.3.Tarifas_EE'!$B:$AR,AZ$1,FALSE) -> 20.16 | BA12: =VLOOKUP($AS12,'3.3.3.Tarifas_EE'!$B:$AR,BA$1,FALSE) -> 6.68 | BB12: =VLOOKUP($AS12,'3.3.3.Tarifas_EE'!$B:$AR,BB$1,FALSE) -> 522.19 | BC12: =VLOOKUP($AS12,'3.3.3.Tarifas_EE'!$B:$AR,BC$1,FALSE) -> 344.6 | BD12: =VLOOKUP($AS12,'3.3.3.Tarifas_EE'!$B:$AR,BD$1,FALSE) -> 43.85 | BE12: =VLOOKUP($AS12,'3.3.3.Tarifas_EE'!$B:$AR,BE$1,FALSE) -> 13.95 | BF12: =VLOOKUP($AS12,'3.3.3.Tarifas_EE'!$B:$AR,BF$1,FALSE) -> 534.25 | BG12: =VLOOKUP($AS12,'3.3.3.Tarifas_EE'!$B:$AR,BG$1,FALSE) -> 356.66 | BH12: =VLOOKUP($AS12,'3.3.3.Tarifas_EE'!$B:$AR,BH$1,FALSE) -> 43.85 | BI12: =VLOOKUP($AS12,'3.3.3.Tarifas_EE'!$B:$AR,BI$1,FALSE) -> 13.95 | BJ12: =VLOOKUP($AS12,'3.3.3.Tarifas_EE'!$B:$AR,BJ$1,FALSE) -> 534.25 | BK12: =VLOOKUP($AS12,'3.3.3.Tarifas_EE'!$B:$AR,BK$1,FALSE) -> 356.66 | BL12: =VLOOKUP($AS12,'3.3.3.Tarifas_EE'!$B:$AR,BL$1,FALSE) -> 0 | BM12: =VLOOKUP($AS12,'3.3.3.Tarifas_EE'!$B:$AR,BM$1,FALSE) -> 13.95 | BN12: =VLOOKUP($AS12,'3.3.3.Tarifas_EE'!$B:$AR,BN$1,FALSE) -> 1599.69 | BO12: =VLOOKUP($AS12,'3.3.3.Tarifas_EE'!$B:$AR,BO$1,FALSE) -> 356.66 | BP12: =VLOOKUP($AS12,'3.3.3.Tarifas_EE'!$B:$AR,BP$1,FALSE) -> 0 | BQ12: =VLOOKUP($AS12,'3.3.3.Tarifas_EE'!$B:$AR,BQ$1,FALSE) -> 13.95 | BR12: =VLOOKUP($AS12,'3.3.3.Tarifas_EE'!$B:$AR,BR$1,FALSE) -> 1599.69 | BS12: =VLOOKUP($AS12,'3.3.3.Tarifas_EE'!$B:$AR,BS$1,FALSE) -> 356.66 | BT12: =VLOOKUP($AS12,'3.3.3.Tarifas_EE'!$B:$AR,BT$1,FALSE) -> 0 | BU12: =VLOOKUP($AS12,'3.3.3.Tarifas_EE'!$B:$AR,BU$1,FALSE) -> 45.52 | BV12: =VLOOKUP($AS12,'3.3.3.Tarifas_EE'!$B:$AR,BV$1,FALSE) -> 0 | BW12: =VLOOKUP($AS12,'3.3.3.Tarifas_EE'!$B:$AR,BW$1,FALSE) -> 371.46 | BX12: =VLOOKUP($AS12,'3.3.3.Tarifas_EE'!$B:$AR,BX$1,FALSE) -> 0 | BY12: =VLOOKUP($AS12,'3.3.3.Tarifas_EE'!$B:$AR,BY$1,FALSE) -> 45.52 | BZ12: =VLOOKUP($AS12,'3.3.3.Tarifas_EE'!$B:$AR,BZ$1,FALSE) -> 0 | CA12: =VLOOKUP($AS12,'3.3.3.Tarifas_EE'!$B:$AR,CA$1,FALSE) -> 371.46 | CB12: =VLOOKUP($AS12,'3.3.3.Tarifas_EE'!$B:$AR,CB$1,FALSE) -> 0 | CC12: =VLOOKUP($AS12,'3.3.3.Tarifas_EE'!$B:$AR,CC$1,FALSE) -> 0 | CD12: =VLOOKUP($AS12,'3.3.3.Tarifas_EE'!$B:$AR,CD$1,FALSE) -> 0 | CE12: =VLOOKUP($AS12,'3.3.3.Tarifas_EE'!$B:$AR,CE$1,FALSE) -> 628.33 | CF12: =VLOOKUP($AS12,'3.3.3.Tarifas_EE'!$B:$AR,CF$1,FALSE) -> 0 | CG12: =VLOOKUP($AS12,'3.3.3.Tarifas_EE'!$B:$AR,CG$1,FALSE) -> 0 | CH12: =VLOOKUP($AS12,'3.3.3.Tarifas_EE'!$B:$AR,CH$1,FALSE) -> 0 | CI12: =VLOOKUP($AS12,'3.3.3.Tarifas_EE'!$B:$AR,CI$1,FALSE) -> 628.33 | CK12: -0.12 | CL12: 395503.0992 | CM12: 177435.72 | CN12: 977291.3811 | CO12: 6763632.998 | CP12: 36368.64 | CQ12: 23601.776 | CR12: 61574.80669 | CS12: 755252.7902 | CT12: 709448.8694 | CU12: 254471.782 | CV12: 413188.6508 | CW12: 4142267.044 | CX12: 0 | CY12: 0 | CZ12: 0 | DA12: 0 | DB12: 0 | DC12: 745963.6615 | DD12: 2107087.481 | DE12: 5932007.411 | DF12: 0 | DG12: 22759.704 | DH12: 67537.12015 | DI12: 139005.182 | DJ12: 0 | DK12: 0 | DL12: 0 | DM12: 0 | DN12: 0 | DO12: 0 | DP12: 0 | DQ12: 0 | DR12: 0 | DS12: 0 | DT12: 0 | DU12: 7864304.75 | DV12: 0 | DW12: 0 | DX12: 0 | DY12: 109502.8893 | DZ12: =EDATE(DZ11,1) -> 2019-10-01 | EA12: =SUM(CL12:DY12) -> 31698205.76 | EC12: 1159586.01 | EE12: 32857791.77
C13: 2019-11-01 | AS13: 2019-11-01 | AT13: =VLOOKUP($AS13,'3.3.3.Tarifas_EE'!$B:$AR,AT$1,FALSE) -> Vermelha 1 | AU13: =VLOOKUP($AS13,'3.3.3.Tarifas_EE'!$B:$AR,AU$1,FALSE) -> 0.04169 | AV13: =VLOOKUP($AS13,'3.3.3.Tarifas_EE'!$B:$AR,AV$1,FALSE) -> 9.81 | AW13: =VLOOKUP($AS13,'3.3.3.Tarifas_EE'!$B:$AR,AW$1,FALSE) -> 3.7 | AX13: =VLOOKUP($AS13,'3.3.3.Tarifas_EE'!$B:$AR,AX$1,FALSE) -> 510.05 | AY13: =VLOOKUP($AS13,'3.3.3.Tarifas_EE'!$B:$AR,AY$1,FALSE) -> 332.46 | AZ13: =VLOOKUP($AS13,'3.3.3.Tarifas_EE'!$B:$AR,AZ$1,FALSE) -> 20.16 | BA13: =VLOOKUP($AS13,'3.3.3.Tarifas_EE'!$B:$AR,BA$1,FALSE) -> 6.68 | BB13: =VLOOKUP($AS13,'3.3.3.Tarifas_EE'!$B:$AR,BB$1,FALSE) -> 522.19 | BC13: =VLOOKUP($AS13,'3.3.3.Tarifas_EE'!$B:$AR,BC$1,FALSE) -> 344.6 | BD13: =VLOOKUP($AS13,'3.3.3.Tarifas_EE'!$B:$AR,BD$1,FALSE) -> 43.85 | BE13: =VLOOKUP($AS13,'3.3.3.Tarifas_EE'!$B:$AR,BE$1,FALSE) -> 13.95 | BF13: =VLOOKUP($AS13,'3.3.3.Tarifas_EE'!$B:$AR,BF$1,FALSE) -> 534.25 | BG13: =VLOOKUP($AS13,'3.3.3.Tarifas_EE'!$B:$AR,BG$1,FALSE) -> 356.66 | BH13: =VLOOKUP($AS13,'3.3.3.Tarifas_EE'!$B:$AR,BH$1,FALSE) -> 43.85 | BI13: =VLOOKUP($AS13,'3.3.3.Tarifas_EE'!$B:$AR,BI$1,FALSE) -> 13.95 | BJ13: =VLOOKUP($AS13,'3.3.3.Tarifas_EE'!$B:$AR,BJ$1,FALSE) -> 534.25 | BK13: =VLOOKUP($AS13,'3.3.3.Tarifas_EE'!$B:$AR,BK$1,FALSE) -> 356.66 | BL13: =VLOOKUP($AS13,'3.3.3.Tarifas_EE'!$B:$AR,BL$1,FALSE) -> 0 | BM13: =VLOOKUP($AS13,'3.3.3.Tarifas_EE'!$B:$AR,BM$1,FALSE) -> 13.95 | BN13: =VLOOKUP($AS13,'3.3.3.Tarifas_EE'!$B:$AR,BN$1,FALSE) -> 1599.69 | BO13: =VLOOKUP($AS13,'3.3.3.Tarifas_EE'!$B:$AR,BO$1,FALSE) -> 356.66 | BP13: =VLOOKUP($AS13,'3.3.3.Tarifas_EE'!$B:$AR,BP$1,FALSE) -> 0 | BQ13: =VLOOKUP($AS13,'3.3.3.Tarifas_EE'!$B:$AR,BQ$1,FALSE) -> 13.95 | BR13: =VLOOKUP($AS13,'3.3.3.Tarifas_EE'!$B:$AR,BR$1,FALSE) -> 1599.69 | BS13: =VLOOKUP($AS13,'3.3.3.Tarifas_EE'!$B:$AR,BS$1,FALSE) -> 356.66 | BT13: =VLOOKUP($AS13,'3.3.3.Tarifas_EE'!$B:$AR,BT$1,FALSE) -> 0 | BU13: =VLOOKUP($AS13,'3.3.3.Tarifas_EE'!$B:$AR,BU$1,FALSE) -> 45.52 | BV13: =VLOOKUP($AS13,'3.3.3.Tarifas_EE'!$B:$AR,BV$1,FALSE) -> 0 | BW13: =VLOOKUP($AS13,'3.3.3.Tarifas_EE'!$B:$AR,BW$1,FALSE) -> 371.46 | BX13: =VLOOKUP($AS13,'3.3.3.Tarifas_EE'!$B:$AR,BX$1,FALSE) -> 0 | BY13: =VLOOKUP($AS13,'3.3.3.Tarifas_EE'!$B:$AR,BY$1,FALSE) -> 45.52 | BZ13: =VLOOKUP($AS13,'3.3.3.Tarifas_EE'!$B:$AR,BZ$1,FALSE) -> 0 | CA13: =VLOOKUP($AS13,'3.3.3.Tarifas_EE'!$B:$AR,CA$1,FALSE) -> 371.46 | CB13: =VLOOKUP($AS13,'3.3.3.Tarifas_EE'!$B:$AR,CB$1,FALSE) -> 0 | CC13: =VLOOKUP($AS13,'3.3.3.Tarifas_EE'!$B:$AR,CC$1,FALSE) -> 0 | CD13: =VLOOKUP($AS13,'3.3.3.Tarifas_EE'!$B:$AR,CD$1,FALSE) -> 0 | CE13: =VLOOKUP($AS13,'3.3.3.Tarifas_EE'!$B:$AR,CE$1,FALSE) -> 628.33 | CF13: =VLOOKUP($AS13,'3.3.3.Tarifas_EE'!$B:$AR,CF$1,FALSE) -> 0 | CG13: =VLOOKUP($AS13,'3.3.3.Tarifas_EE'!$B:$AR,CG$1,FALSE) -> 0 | CH13: =VLOOKUP($AS13,'3.3.3.Tarifas_EE'!$B:$AR,CH$1,FALSE) -> 0 | CI13: =VLOOKUP($AS13,'3.3.3.Tarifas_EE'!$B:$AR,CI$1,FALSE) -> 628.33 | CK13: -0.12 | CL13: 394130.484 | CM13: 178747.888 | CN13: 818611.5618 | CO13: 6523270.828 | CP13: 36368.64 | CQ13: 22337.92 | CR13: 52131.98226 | CS13: 665815.8575 | CT13: 719440.8461 | CU13: 255569.0108 | CV13: 431825.4706 | CW13: 4372855.239 | CX13: 0 | CY13: 0 | CZ13: 0 | DA13: 0 | DB13: 0 | DC13: 744097.3412 | DD13: 2258796.833 | DE13: 6140262.212 | DF13: 0 | DG13: 22956.12 | DH13: 69426.29005 | DI13: 142773.3948 | DJ13: 0 | DK13: 0 | DL13: 0 | DM13: 0 | DN13: 0 | DO13: 0 | DP13: 0 | DQ13: 0 | DR13: 0 | DS13: 0 | DT13: 0 | DU13: 8425839.853 | DV13: 0 | DW13: 0 | DX13: 0 | DY13: 125188.9719 | DZ13: =EDATE(DZ12,1) -> 2019-11-01 | EA13: 32400446.74 | EC13: 3269248.671 | EE13: 35669695.42
C14: 2019-12-01 | AS14: 2019-12-01 | AT14: =VLOOKUP($AS14,'3.3.3.Tarifas_EE'!$B:$AR,AT$1,FALSE) -> Amarela | AU14: =VLOOKUP($AS14,'3.3.3.Tarifas_EE'!$B:$AR,AU$1,FALSE) -> 0.01343 | AV14: =VLOOKUP($AS14,'3.3.3.Tarifas_EE'!$B:$AR,AV$1,FALSE) -> 9.81 | AW14: =VLOOKUP($AS14,'3.3.3.Tarifas_EE'!$B:$AR,AW$1,FALSE) -> 3.7 | AX14: =VLOOKUP($AS14,'3.3.3.Tarifas_EE'!$B:$AR,AX$1,FALSE) -> 510.05 | AY14: =VLOOKUP($AS14,'3.3.3.Tarifas_EE'!$B:$AR,AY$1,FALSE) -> 332.46 | AZ14: =VLOOKUP($AS14,'3.3.3.Tarifas_EE'!$B:$AR,AZ$1,FALSE) -> 20.16 | BA14: =VLOOKUP($AS14,'3.3.3.Tarifas_EE'!$B:$AR,BA$1,FALSE) -> 6.68 | BB14: =VLOOKUP($AS14,'3.3.3.Tarifas_EE'!$B:$AR,BB$1,FALSE) -> 522.19 | BC14: =VLOOKUP($AS14,'3.3.3.Tarifas_EE'!$B:$AR,BC$1,FALSE) -> 344.6 | BD14: =VLOOKUP($AS14,'3.3.3.Tarifas_EE'!$B:$AR,BD$1,FALSE) -> 43.85 | BE14: =VLOOKUP($AS14,'3.3.3.Tarifas_EE'!$B:$AR,BE$1,FALSE) -> 13.95 | BF14: =VLOOKUP($AS14,'3.3.3.Tarifas_EE'!$B:$AR,BF$1,FALSE) -> 534.25 | BG14: =VLOOKUP($AS14,'3.3.3.Tarifas_EE'!$B:$AR,BG$1,FALSE) -> 356.66 | BH14: =VLOOKUP($AS14,'3.3.3.Tarifas_EE'!$B:$AR,BH$1,FALSE) -> 43.85 | BI14: =VLOOKUP($AS14,'3.3.3.Tarifas_EE'!$B:$AR,BI$1,FALSE) -> 13.95 | BJ14: =VLOOKUP($AS14,'3.3.3.Tarifas_EE'!$B:$AR,BJ$1,FALSE) -> 534.25 | BK14: =VLOOKUP($AS14,'3.3.3.Tarifas_EE'!$B:$AR,BK$1,FALSE) -> 356.66 | BL14: =VLOOKUP($AS14,'3.3.3.Tarifas_EE'!$B:$AR,BL$1,FALSE) -> 0 | BM14: =VLOOKUP($AS14,'3.3.3.Tarifas_EE'!$B:$AR,BM$1,FALSE) -> 13.95 | BN14: =VLOOKUP($AS14,'3.3.3.Tarifas_EE'!$B:$AR,BN$1,FALSE) -> 1599.69 | BO14: =VLOOKUP($AS14,'3.3.3.Tarifas_EE'!$B:$AR,BO$1,FALSE) -> 356.66 | BP14: =VLOOKUP($AS14,'3.3.3.Tarifas_EE'!$B:$AR,BP$1,FALSE) -> 0 | BQ14: =VLOOKUP($AS14,'3.3.3.Tarifas_EE'!$B:$AR,BQ$1,FALSE) -> 13.95 | BR14: =VLOOKUP($AS14,'3.3.3.Tarifas_EE'!$B:$AR,BR$1,FALSE) -> 1599.69 | BS14: =VLOOKUP($AS14,'3.3.3.Tarifas_EE'!$B:$AR,BS$1,FALSE) -> 356.66 | BT14: =VLOOKUP($AS14,'3.3.3.Tarifas_EE'!$B:$AR,BT$1,FALSE) -> 0 | BU14: =VLOOKUP($AS14,'3.3.3.Tarifas_EE'!$B:$AR,BU$1,FALSE) -> 45.52 | BV14: =VLOOKUP($AS14,'3.3.3.Tarifas_EE'!$B:$AR,BV$1,FALSE) -> 0 | BW14: =VLOOKUP($AS14,'3.3.3.Tarifas_EE'!$B:$AR,BW$1,FALSE) -> 371.46 | BX14: =VLOOKUP($AS14,'3.3.3.Tarifas_EE'!$B:$AR,BX$1,FALSE) -> 0 | BY14: =VLOOKUP($AS14,'3.3.3.Tarifas_EE'!$B:$AR,BY$1,FALSE) -> 45.52 | BZ14: =VLOOKUP($AS14,'3.3.3.Tarifas_EE'!$B:$AR,BZ$1,FALSE) -> 0 | CA14: =VLOOKUP($AS14,'3.3.3.Tarifas_EE'!$B:$AR,CA$1,FALSE) -> 371.46 | CB14: =VLOOKUP($AS14,'3.3.3.Tarifas_EE'!$B:$AR,CB$1,FALSE) -> 0 | CC14: =VLOOKUP($AS14,'3.3.3.Tarifas_EE'!$B:$AR,CC$1,FALSE) -> 0 | CD14: =VLOOKUP($AS14,'3.3.3.Tarifas_EE'!$B:$AR,CD$1,FALSE) -> 0 | CE14: =VLOOKUP($AS14,'3.3.3.Tarifas_EE'!$B:$AR,CE$1,FALSE) -> 628.33 | CF14: =VLOOKUP($AS14,'3.3.3.Tarifas_EE'!$B:$AR,CF$1,FALSE) -> 0 | CG14: =VLOOKUP($AS14,'3.3.3.Tarifas_EE'!$B:$AR,CG$1,FALSE) -> 0 | CH14: =VLOOKUP($AS14,'3.3.3.Tarifas_EE'!$B:$AR,CH$1,FALSE) -> 0 | CI14: =VLOOKUP($AS14,'3.3.3.Tarifas_EE'!$B:$AR,CI$1,FALSE) -> 628.33 | CK14: -0.12 | CL14: 392464.3536 | CM14: 178090.176 | CN14: 791095.1803 | CO14: 6612774.592 | CP14: 38426.5728 | CQ14: 22337.92 | CR14: 57957.8681 | CS14: 616083.1855 | CT14: 711693.1474 | CU14: 255822.633 | CV14: 372487.2206 | CW14: 3395613.858 | CX14: 1157.64 | CY14: 368.28 | CZ14: 0 | DA14: 0 | DB14: 0 | DC14: 751366.0836 | DD14: 1800087.517 | DE14: 6341098.913 | DF14: 0 | DG14: 22501.908 | DH14: 60326.74143 | DI14: 136963.2036 | DJ14: 0 | DK14: 0 | DL14: 0 | DM14: 0 | DN14: 0 | DO14: 0 | DP14: 0 | DQ14: 0 | DR14: 0 | DS14: 0 | DT14: 0 | DU14: 7615426.907 | DV14: 0 | DW14: 0 | DX14: 0 | DY14: 160406.2149 | DZ14: 2019-12-01 | EA14: 30334550.12 | EC14: 995950.186 | EE14: 31330500.3
C15: 2020-01-01 | AS15: 2020-01-01 | AT15: =VLOOKUP($AS15,'3.3.3.Tarifas_EE'!$B:$AR,AT$1,FALSE) -> Amarela | AU15: =VLOOKUP($AS15,'3.3.3.Tarifas_EE'!$B:$AR,AU$1,FALSE) -> 0.01343 | AV15: =VLOOKUP($AS15,'3.3.3.Tarifas_EE'!$B:$AR,AV$1,FALSE) -> 9.81 | AW15: =VLOOKUP($AS15,'3.3.3.Tarifas_EE'!$B:$AR,AW$1,FALSE) -> 3.7 | AX15: =VLOOKUP($AS15,'3.3.3.Tarifas_EE'!$B:$AR,AX$1,FALSE) -> 510.05 | AY15: =VLOOKUP($AS15,'3.3.3.Tarifas_EE'!$B:$AR,AY$1,FALSE) -> 332.46 | AZ15: =VLOOKUP($AS15,'3.3.3.Tarifas_EE'!$B:$AR,AZ$1,FALSE) -> 20.16 | BA15: =VLOOKUP($AS15,'3.3.3.Tarifas_EE'!$B:$AR,BA$1,FALSE) -> 6.68 | BB15: =VLOOKUP($AS15,'3.3.3.Tarifas_EE'!$B:$AR,BB$1,FALSE) -> 522.19 | BC15: =VLOOKUP($AS15,'3.3.3.Tarifas_EE'!$B:$AR,BC$1,FALSE) -> 344.6 | BD15: =VLOOKUP($AS15,'3.3.3.Tarifas_EE'!$B:$AR,BD$1,FALSE) -> 43.85 | BE15: =VLOOKUP($AS15,'3.3.3.Tarifas_EE'!$B:$AR,BE$1,FALSE) -> 13.95 | BF15: =VLOOKUP($AS15,'3.3.3.Tarifas_EE'!$B:$AR,BF$1,FALSE) -> 534.25 | BG15: =VLOOKUP($AS15,'3.3.3.Tarifas_EE'!$B:$AR,BG$1,FALSE) -> 356.66 | BH15: =VLOOKUP($AS15,'3.3.3.Tarifas_EE'!$B:$AR,BH$1,FALSE) -> 43.85 | BI15: =VLOOKUP($AS15,'3.3.3.Tarifas_EE'!$B:$AR,BI$1,FALSE) -> 13.95 | BJ15: =VLOOKUP($AS15,'3.3.3.Tarifas_EE'!$B:$AR,BJ$1,FALSE) -> 534.25 | BK15: =VLOOKUP($AS15,'3.3.3.Tarifas_EE'!$B:$AR,BK$1,FALSE) -> 356.66 | BL15: =VLOOKUP($AS15,'3.3.3.Tarifas_EE'!$B:$AR,BL$1,FALSE) -> 0 | BM15: =VLOOKUP($AS15,'3.3.3.Tarifas_EE'!$B:$AR,BM$1,FALSE) -> 13.95 | BN15: =VLOOKUP($AS15,'3.3.3.Tarifas_EE'!$B:$AR,BN$1,FALSE) -> 1599.69 | BO15: =VLOOKUP($AS15,'3.3.3.Tarifas_EE'!$B:$AR,BO$1,FALSE) -> 356.66 | BP15: =VLOOKUP($AS15,'3.3.3.Tarifas_EE'!$B:$AR,BP$1,FALSE) -> 0 | BQ15: =VLOOKUP($AS15,'3.3.3.Tarifas_EE'!$B:$AR,BQ$1,FALSE) -> 13.95 | BR15: =VLOOKUP($AS15,'3.3.3.Tarifas_EE'!$B:$AR,BR$1,FALSE) -> 1599.69 | BS15: =VLOOKUP($AS15,'3.3.3.Tarifas_EE'!$B:$AR,BS$1,FALSE) -> 356.66 | BT15: =VLOOKUP($AS15,'3.3.3.Tarifas_EE'!$B:$AR,BT$1,FALSE) -> 0 | BU15: =VLOOKUP($AS15,'3.3.3.Tarifas_EE'!$B:$AR,BU$1,FALSE) -> 45.52 | BV15: =VLOOKUP($AS15,'3.3.3.Tarifas_EE'!$B:$AR,BV$1,FALSE) -> 0 | BW15: =VLOOKUP($AS15,'3.3.3.Tarifas_EE'!$B:$AR,BW$1,FALSE) -> 371.46 | BX15: =VLOOKUP($AS15,'3.3.3.Tarifas_EE'!$B:$AR,BX$1,FALSE) -> 0 | BY15: =VLOOKUP($AS15,'3.3.3.Tarifas_EE'!$B:$AR,BY$1,FALSE) -> 45.52 | BZ15: =VLOOKUP($AS15,'3.3.3.Tarifas_EE'!$B:$AR,BZ$1,FALSE) -> 0 | CA15: =VLOOKUP($AS15,'3.3.3.Tarifas_EE'!$B:$AR,CA$1,FALSE) -> 371.46 | CB15: =VLOOKUP($AS15,'3.3.3.Tarifas_EE'!$B:$AR,CB$1,FALSE) -> 0 | CC15: =VLOOKUP($AS15,'3.3.3.Tarifas_EE'!$B:$AR,CC$1,FALSE) -> 0 | CD15: =VLOOKUP($AS15,'3.3.3.Tarifas_EE'!$B:$AR,CD$1,FALSE) -> 0 | CE15: =VLOOKUP($AS15,'3.3.3.Tarifas_EE'!$B:$AR,CE$1,FALSE) -> 628.33 | CF15: =VLOOKUP($AS15,'3.3.3.Tarifas_EE'!$B:$AR,CF$1,FALSE) -> 0 | CG15: =VLOOKUP($AS15,'3.3.3.Tarifas_EE'!$B:$AR,CG$1,FALSE) -> 0 | CH15: =VLOOKUP($AS15,'3.3.3.Tarifas_EE'!$B:$AR,CH$1,FALSE) -> 0 | CI15: =VLOOKUP($AS15,'3.3.3.Tarifas_EE'!$B:$AR,CI$1,FALSE) -> 628.33 | CK15: -0.12 | CL15: 394700.2488 | CM15: 178090.176 | CN15: 1015204.785 | CO15: 6622126.426 | CP15: 70839.0144 | CQ15: 27787.1968 | CR15: 71036.01221 | CS15: 651742.4211 | CT15: 710893.2182 | CU15: 268944.9404 | CV15: 390666.5941 | CW15: 4273441.086 | CX15: 1157.64 | CY15: 368.28 | CZ15: 0 | DA15: 0 | DB15: 0 | DC15: 739510.6594 | DD15: 2025136.642 | DE15: 6029918.798 | DF15: 0 | DG15: 22649.22 | DH15: 59273.76148 | DI15: 138570.7986 | DJ15: 0 | DK15: 0 | DL15: 0 | DM15: 0 | DN15: 0 | DO15: 0 | DP15: 0 | DQ15: 0 | DR15: 0 | DS15: 0 | DT15: 0 | DU15: 8109250.706 | DV15: 0 | DW15: 0 | DX15: 0 | DY15: 171057.8661 | DZ15: 2020-01-01 | EA15: 31972366.49 | EC15: 1044271.393 | EE15: 33016637.88
C16: 2020-02-01 | AS16: 2020-02-01 | AT16: =VLOOKUP($AS16,'3.3.3.Tarifas_EE'!$B:$AR,AT$1,FALSE) -> Verde | AU16: =VLOOKUP($AS16,'3.3.3.Tarifas_EE'!$B:$AR,AU$1,FALSE) -> 0 | AV16: =VLOOKUP($AS16,'3.3.3.Tarifas_EE'!$B:$AR,AV$1,FALSE) -> 9.81 | AW16: =VLOOKUP($AS16,'3.3.3.Tarifas_EE'!$B:$AR,AW$1,FALSE) -> 3.7 | AX16: =VLOOKUP($AS16,'3.3.3.Tarifas_EE'!$B:$AR,AX$1,FALSE) -> 510.05 | AY16: =VLOOKUP($AS16,'3.3.3.Tarifas_EE'!$B:$AR,AY$1,FALSE) -> 332.46 | AZ16: =VLOOKUP($AS16,'3.3.3.Tarifas_EE'!$B:$AR,AZ$1,FALSE) -> 20.16 | BA16: =VLOOKUP($AS16,'3.3.3.Tarifas_EE'!$B:$AR,BA$1,FALSE) -> 6.68 | BB16: =VLOOKUP($AS16,'3.3.3.Tarifas_EE'!$B:$AR,BB$1,FALSE) -> 522.19 | BC16: =VLOOKUP($AS16,'3.3.3.Tarifas_EE'!$B:$AR,BC$1,FALSE) -> 344.6 | BD16: =VLOOKUP($AS16,'3.3.3.Tarifas_EE'!$B:$AR,BD$1,FALSE) -> 43.85 | BE16: =VLOOKUP($AS16,'3.3.3.Tarifas_EE'!$B:$AR,BE$1,FALSE) -> 13.95 | BF16: =VLOOKUP($AS16,'3.3.3.Tarifas_EE'!$B:$AR,BF$1,FALSE) -> 534.25 | BG16: =VLOOKUP($AS16,'3.3.3.Tarifas_EE'!$B:$AR,BG$1,FALSE) -> 356.66 | BH16: =VLOOKUP($AS16,'3.3.3.Tarifas_EE'!$B:$AR,BH$1,FALSE) -> 43.85 | BI16: =VLOOKUP($AS16,'3.3.3.Tarifas_EE'!$B:$AR,BI$1,FALSE) -> 13.95 | BJ16: =VLOOKUP($AS16,'3.3.3.Tarifas_EE'!$B:$AR,BJ$1,FALSE) -> 534.25 | BK16: =VLOOKUP($AS16,'3.3.3.Tarifas_EE'!$B:$AR,BK$1,FALSE) -> 356.66 | BL16: =VLOOKUP($AS16,'3.3.3.Tarifas_EE'!$B:$AR,BL$1,FALSE) -> 0 | BM16: =VLOOKUP($AS16,'3.3.3.Tarifas_EE'!$B:$AR,BM$1,FALSE) -> 13.95 | BN16: =VLOOKUP($AS16,'3.3.3.Tarifas_EE'!$B:$AR,BN$1,FALSE) -> 1599.69 | BO16: =VLOOKUP($AS16,'3.3.3.Tarifas_EE'!$B:$AR,BO$1,FALSE) -> 356.66 | BP16: =VLOOKUP($AS16,'3.3.3.Tarifas_EE'!$B:$AR,BP$1,FALSE) -> 0 | BQ16: =VLOOKUP($AS16,'3.3.3.Tarifas_EE'!$B:$AR,BQ$1,FALSE) -> 13.95 | BR16: =VLOOKUP($AS16,'3.3.3.Tarifas_EE'!$B:$AR,BR$1,FALSE) -> 1599.69 | BS16: =VLOOKUP($AS16,'3.3.3.Tarifas_EE'!$B:$AR,BS$1,FALSE) -> 356.66 | BT16: =VLOOKUP($AS16,'3.3.3.Tarifas_EE'!$B:$AR,BT$1,FALSE) -> 0 | BU16: =VLOOKUP($AS16,'3.3.3.Tarifas_EE'!$B:$AR,BU$1,FALSE) -> 45.52 | BV16: =VLOOKUP($AS16,'3.3.3.Tarifas_EE'!$B:$AR,BV$1,FALSE) -> 0 | BW16: =VLOOKUP($AS16,'3.3.3.Tarifas_EE'!$B:$AR,BW$1,FALSE) -> 371.46 | BX16: =VLOOKUP($AS16,'3.3.3.Tarifas_EE'!$B:$AR,BX$1,FALSE) -> 0 | BY16: =VLOOKUP($AS16,'3.3.3.Tarifas_EE'!$B:$AR,BY$1,FALSE) -> 45.52 | BZ16: =VLOOKUP($AS16,'3.3.3.Tarifas_EE'!$B:$AR,BZ$1,FALSE) -> 0 | CA16: =VLOOKUP($AS16,'3.3.3.Tarifas_EE'!$B:$AR,CA$1,FALSE) -> 371.46 | CB16: =VLOOKUP($AS16,'3.3.3.Tarifas_EE'!$B:$AR,CB$1,FALSE) -> 0 | CC16: =VLOOKUP($AS16,'3.3.3.Tarifas_EE'!$B:$AR,CC$1,FALSE) -> 0 | CD16: =VLOOKUP($AS16,'3.3.3.Tarifas_EE'!$B:$AR,CD$1,FALSE) -> 0 | CE16: =VLOOKUP($AS16,'3.3.3.Tarifas_EE'!$B:$AR,CE$1,FALSE) -> 628.33 | CF16: =VLOOKUP($AS16,'3.3.3.Tarifas_EE'!$B:$AR,CF$1,FALSE) -> 0 | CG16: =VLOOKUP($AS16,'3.3.3.Tarifas_EE'!$B:$AR,CG$1,FALSE) -> 0 | CH16: =VLOOKUP($AS16,'3.3.3.Tarifas_EE'!$B:$AR,CH$1,FALSE) -> 0 | CI16: =VLOOKUP($AS16,'3.3.3.Tarifas_EE'!$B:$AR,CI$1,FALSE) -> 628.33 | CK16: -0.12 | CL16: 395943.372 | CM16: 178747.888 | CN16: 745105.2776 | CO16: 6468182.924 | CP16: 71247.0528 | CQ16: 26599.76 | CR16: 100599.6946 | CS16: 745550.0672 | CT16: 717680.4615 | CU16: 256849.5204 | CV16: 412829.4639 | CW16: 3402579.057 | CX16: 1157.64 | CY16: 368.28 | CZ16: 0 | DA16: 0 | DB16: 0 | DC16: 743426.4578 | DD16: 2114693.431 | DE16: 5765357.37 | DF16: 0 | DG16: 22501.908 | DH16: 61869.61044 | DI16: 139201.0311 | DJ16: 0 | DK16: 0 | DL16: 0 | DM16: 0 | DN16: 0 | DO16: 0 | DP16: 0 | DQ16: 0 | DR16: 0 | DS16: 0 | DT16: 0 | DU16: 7645182.303 | DV16: 0 | DW16: 0 | DX16: 0 | DY16: 166070.4339 | DZ16: 2020-02-01 | EA16: 30181743 | EC16: 0 | EE16: 30181743
C17: 2020-03-01 | AS17: 2020-03-01 | AT17: =VLOOKUP($AS17,'3.3.3.Tarifas_EE'!$B:$AR,AT$1,FALSE) -> Verde | AU17: =VLOOKUP($AS17,'3.3.3.Tarifas_EE'!$B:$AR,AU$1,FALSE) -> 0 | AV17: =VLOOKUP($AS17,'3.3.3.Tarifas_EE'!$B:$AR,AV$1,FALSE) -> 9.81 | AW17: =VLOOKUP($AS17,'3.3.3.Tarifas_EE'!$B:$AR,AW$1,FALSE) -> 3.7 | AX17: =VLOOKUP($AS17,'3.3.3.Tarifas_EE'!$B:$AR,AX$1,FALSE) -> 510.05 | AY17: =VLOOKUP($AS17,'3.3.3.Tarifas_EE'!$B:$AR,AY$1,FALSE) -> 332.46 | AZ17: =VLOOKUP($AS17,'3.3.3.Tarifas_EE'!$B:$AR,AZ$1,FALSE) -> 20.16 | BA17: =VLOOKUP($AS17,'3.3.3.Tarifas_EE'!$B:$AR,BA$1,FALSE) -> 6.68 | BB17: =VLOOKUP($AS17,'3.3.3.Tarifas_EE'!$B:$AR,BB$1,FALSE) -> 522.19 | BC17: =VLOOKUP($AS17,'3.3.3.Tarifas_EE'!$B:$AR,BC$1,FALSE) -> 344.6 | BD17: =VLOOKUP($AS17,'3.3.3.Tarifas_EE'!$B:$AR,BD$1,FALSE) -> 43.85 | BE17: =VLOOKUP($AS17,'3.3.3.Tarifas_EE'!$B:$AR,BE$1,FALSE) -> 13.95 | BF17: =VLOOKUP($AS17,'3.3.3.Tarifas_EE'!$B:$AR,BF$1,FALSE) -> 534.25 | BG17: =VLOOKUP($AS17,'3.3.3.Tarifas_EE'!$B:$AR,BG$1,FALSE) -> 356.66 | BH17: =VLOOKUP($AS17,'3.3.3.Tarifas_EE'!$B:$AR,BH$1,FALSE) -> 43.85 | BI17: =VLOOKUP($AS17,'3.3.3.Tarifas_EE'!$B:$AR,BI$1,FALSE) -> 13.95 | BJ17: =VLOOKUP($AS17,'3.3.3.Tarifas_EE'!$B:$AR,BJ$1,FALSE) -> 534.25 | BK17: =VLOOKUP($AS17,'3.3.3.Tarifas_EE'!$B:$AR,BK$1,FALSE) -> 356.66 | BL17: =VLOOKUP($AS17,'3.3.3.Tarifas_EE'!$B:$AR,BL$1,FALSE) -> 0 | BM17: =VLOOKUP($AS17,'3.3.3.Tarifas_EE'!$B:$AR,BM$1,FALSE) -> 13.95 | BN17: =VLOOKUP($AS17,'3.3.3.Tarifas_EE'!$B:$AR,BN$1,FALSE) -> 1599.69 | BO17: =VLOOKUP($AS17,'3.3.3.Tarifas_EE'!$B:$AR,BO$1,FALSE) -> 356.66 | BP17: =VLOOKUP($AS17,'3.3.3.Tarifas_EE'!$B:$AR,BP$1,FALSE) -> 0 | BQ17: =VLOOKUP($AS17,'3.3.3.Tarifas_EE'!$B:$AR,BQ$1,FALSE) -> 13.95 | BR17: =VLOOKUP($AS17,'3.3.3.Tarifas_EE'!$B:$AR,BR$1,FALSE) -> 1599.69 | BS17: =VLOOKUP($AS17,'3.3.3.Tarifas_EE'!$B:$AR,BS$1,FALSE) -> 356.66 | BT17: =VLOOKUP($AS17,'3.3.3.Tarifas_EE'!$B:$AR,BT$1,FALSE) -> 0 | BU17: =VLOOKUP($AS17,'3.3.3.Tarifas_EE'!$B:$AR,BU$1,FALSE) -> 45.52 | BV17: =VLOOKUP($AS17,'3.3.3.Tarifas_EE'!$B:$AR,BV$1,FALSE) -> 0 | BW17: =VLOOKUP($AS17,'3.3.3.Tarifas_EE'!$B:$AR,BW$1,FALSE) -> 371.46 | BX17: =VLOOKUP($AS17,'3.3.3.Tarifas_EE'!$B:$AR,BX$1,FALSE) -> 0 | BY17: =VLOOKUP($AS17,'3.3.3.Tarifas_EE'!$B:$AR,BY$1,FALSE) -> 45.52 | BZ17: =VLOOKUP($AS17,'3.3.3.Tarifas_EE'!$B:$AR,BZ$1,FALSE) -> 0 | CA17: =VLOOKUP($AS17,'3.3.3.Tarifas_EE'!$B:$AR,CA$1,FALSE) -> 371.46 | CB17: =VLOOKUP($AS17,'3.3.3.Tarifas_EE'!$B:$AR,CB$1,FALSE) -> 0 | CC17: =VLOOKUP($AS17,'3.3.3.Tarifas_EE'!$B:$AR,CC$1,FALSE) -> 0 | CD17: =VLOOKUP($AS17,'3.3.3.Tarifas_EE'!$B:$AR,CD$1,FALSE) -> 0 | CE17: =VLOOKUP($AS17,'3.3.3.Tarifas_EE'!$B:$AR,CE$1,FALSE) -> 628.33 | CF17: =VLOOKUP($AS17,'3.3.3.Tarifas_EE'!$B:$AR,CF$1,FALSE) -> 0 | CG17: =VLOOKUP($AS17,'3.3.3.Tarifas_EE'!$B:$AR,CG$1,FALSE) -> 0 | CH17: =VLOOKUP($AS17,'3.3.3.Tarifas_EE'!$B:$AR,CH$1,FALSE) -> 0 | CI17: =VLOOKUP($AS17,'3.3.3.Tarifas_EE'!$B:$AR,CI$1,FALSE) -> 628.33 | CK17: -0.12 | CL17: 397436.8464 | CM17: 178842.312 | CN17: 880455.0835 | CO17: 7076335.033 | CP17: 37468.5696 | CQ17: 23431.3024 | CR17: 60295.94249 | CS17: 765853.1272 | CT17: 336109.9694 | CU17: 117607.0262 | CV17: 361998.8673 | CW17: 2832466.92 | CX17: 4514.796 | CY17: 847.044 | CZ17: 0 | DA17: 77.2097568 | DB17: 0 | DC17: 401944.5976 | DD17: 1865811.485 | DE17: 5560537.461 | DF17: 0 | DG17: 22280.94 | DH17: 60326.74143 | DI17: 133506.9685 | DJ17: 0 | DK17: 0 | DL17: 0 | DM17: 0 | DN17: 0 | DO17: 0 | DP17: 0 | DQ17: 0 | DR17: 0 | DS17: 0 | DT17: 0 | DU17: 7852378.042 | DV17: 0 | DW17: 0 | DX17: 0 | DY17: 134638.5524 | DZ17: 2020-03-01 | EA17: 29105164.84 | EC17: 0 | EE17: 29105164.84
C18: 2020-04-01 | AS18: 2020-04-01 | AT18: =VLOOKUP($AS18,'3.3.3.Tarifas_EE'!$B:$AR,AT$1,FALSE) -> Verde | AU18: =VLOOKUP($AS18,'3.3.3.Tarifas_EE'!$B:$AR,AU$1,FALSE) -> 0 | AV18: =VLOOKUP($AS18,'3.3.3.Tarifas_EE'!$B:$AR,AV$1,FALSE) -> 9.81 | AW18: =VLOOKUP($AS18,'3.3.3.Tarifas_EE'!$B:$AR,AW$1,FALSE) -> 3.7 | AX18: =VLOOKUP($AS18,'3.3.3.Tarifas_EE'!$B:$AR,AX$1,FALSE) -> 510.05 | AY18: =VLOOKUP($AS18,'3.3.3.Tarifas_EE'!$B:$AR,AY$1,FALSE) -> 332.46 | AZ18: =VLOOKUP($AS18,'3.3.3.Tarifas_EE'!$B:$AR,AZ$1,FALSE) -> 20.16 | BA18: =VLOOKUP($AS18,'3.3.3.Tarifas_EE'!$B:$AR,BA$1,FALSE) -> 6.68 | BB18: =VLOOKUP($AS18,'3.3.3.Tarifas_EE'!$B:$AR,BB$1,FALSE) -> 522.19 | BC18: =VLOOKUP($AS18,'3.3.3.Tarifas_EE'!$B:$AR,BC$1,FALSE) -> 344.6 | BD18: =VLOOKUP($AS18,'3.3.3.Tarifas_EE'!$B:$AR,BD$1,FALSE) -> 43.85 | BE18: =VLOOKUP($AS18,'3.3.3.Tarifas_EE'!$B:$AR,BE$1,FALSE) -> 13.95 | BF18: =VLOOKUP($AS18,'3.3.3.Tarifas_EE'!$B:$AR,BF$1,FALSE) -> 534.25 | BG18: =VLOOKUP($AS18,'3.3.3.Tarifas_EE'!$B:$AR,BG$1,FALSE) -> 356.66 | BH18: =VLOOKUP($AS18,'3.3.3.Tarifas_EE'!$B:$AR,BH$1,FALSE) -> 43.85 | BI18: =VLOOKUP($AS18,'3.3.3.Tarifas_EE'!$B:$AR,BI$1,FALSE) -> 13.95 | BJ18: =VLOOKUP($AS18,'3.3.3.Tarifas_EE'!$B:$AR,BJ$1,FALSE) -> 534.25 | BK18: =VLOOKUP($AS18,'3.3.3.Tarifas_EE'!$B:$AR,BK$1,FALSE) -> 356.66 | BL18: =VLOOKUP($AS18,'3.3.3.Tarifas_EE'!$B:$AR,BL$1,FALSE) -> 0 | BM18: =VLOOKUP($AS18,'3.3.3.Tarifas_EE'!$B:$AR,BM$1,FALSE) -> 13.95 | BN18: =VLOOKUP($AS18,'3.3.3.Tarifas_EE'!$B:$AR,BN$1,FALSE) -> 1599.69 | BO18: =VLOOKUP($AS18,'3.3.3.Tarifas_EE'!$B:$AR,BO$1,FALSE) -> 356.66 | BP18: =VLOOKUP($AS18,'3.3.3.Tarifas_EE'!$B:$AR,BP$1,FALSE) -> 0 | BQ18: =VLOOKUP($AS18,'3.3.3.Tarifas_EE'!$B:$AR,BQ$1,FALSE) -> 13.95 | BR18: =VLOOKUP($AS18,'3.3.3.Tarifas_EE'!$B:$AR,BR$1,FALSE) -> 1599.69 | BS18: =VLOOKUP($AS18,'3.3.3.Tarifas_EE'!$B:$AR,BS$1,FALSE) -> 356.66 | BT18: =VLOOKUP($AS18,'3.3.3.Tarifas_EE'!$B:$AR,BT$1,FALSE) -> 0 | BU18: =VLOOKUP($AS18,'3.3.3.Tarifas_EE'!$B:$AR,BU$1,FALSE) -> 45.52 | BV18: =VLOOKUP($AS18,'3.3.3.Tarifas_EE'!$B:$AR,BV$1,FALSE) -> 0 | BW18: =VLOOKUP($AS18,'3.3.3.Tarifas_EE'!$B:$AR,BW$1,FALSE) -> 371.46 | BX18: =VLOOKUP($AS18,'3.3.3.Tarifas_EE'!$B:$AR,BX$1,FALSE) -> 0 | BY18: =VLOOKUP($AS18,'3.3.3.Tarifas_EE'!$B:$AR,BY$1,FALSE) -> 45.52 | BZ18: =VLOOKUP($AS18,'3.3.3.Tarifas_EE'!$B:$AR,BZ$1,FALSE) -> 0 | CA18: =VLOOKUP($AS18,'3.3.3.Tarifas_EE'!$B:$AR,CA$1,FALSE) -> 371.46 | CB18: =VLOOKUP($AS18,'3.3.3.Tarifas_EE'!$B:$AR,CB$1,FALSE) -> 0 | CC18: =VLOOKUP($AS18,'3.3.3.Tarifas_EE'!$B:$AR,CC$1,FALSE) -> 0 | CD18: =VLOOKUP($AS18,'3.3.3.Tarifas_EE'!$B:$AR,CD$1,FALSE) -> 0 | CE18: =VLOOKUP($AS18,'3.3.3.Tarifas_EE'!$B:$AR,CE$1,FALSE) -> 628.33 | CF18: =VLOOKUP($AS18,'3.3.3.Tarifas_EE'!$B:$AR,CF$1,FALSE) -> 0 | CG18: =VLOOKUP($AS18,'3.3.3.Tarifas_EE'!$B:$AR,CG$1,FALSE) -> 0 | CH18: =VLOOKUP($AS18,'3.3.3.Tarifas_EE'!$B:$AR,CH$1,FALSE) -> 0 | CI18: =VLOOKUP($AS18,'3.3.3.Tarifas_EE'!$B:$AR,CI$1,FALSE) -> 628.33 | CK18: -0.12 | CL18: 400466.9592 | CM18: 180037.264 | CN18: 703047.2482 | CO18: 6707542.475 | CP18: 36599.2704 | CQ18: 22426.096 | CR18: 53812.0137 | CS18: 685169.7514 | CT18: 714030.4226 | CU18: 257174.7116 | CV18: 408976.1964 | CW18: 2991233.406 | CX18: 4553.384 | CY18: 1448.568 | CZ18: 0 | DA18: 25.7365856 | DB18: 0 | DC18: 741454.4412 | DD18: 2014970.036 | DE18: 5918033.7 | DF18: 0 | DG18: 22293.216 | DH18: 60095.87417 | DI18: 134153.5217 | DJ18: 0 | DK18: 0 | DL18: 0 | DM18: 0 | DN18: 0 | DO18: 0 | DP18: 0 | DQ18: 0 | DR18: 0 | DS18: 0 | DT18: 0 | DU18: 7645838.632 | DV18: 0 | DW18: 0 | DX18: 0 | DY18: 125587.6347 | DZ18: 2020-04-01 | EA18: 29828970.56 | EC18: 0 | EE18: 29828970.56
C19: 2020-05-01 | AS19: 2020-05-01 | AT19: =VLOOKUP($AS19,'3.3.3.Tarifas_EE'!$B:$AR,AT$1,FALSE) -> Verde | AU19: =VLOOKUP($AS19,'3.3.3.Tarifas_EE'!$B:$AR,AU$1,FALSE) -> 0 | AV19: =VLOOKUP($AS19,'3.3.3.Tarifas_EE'!$B:$AR,AV$1,FALSE) -> 9.81 | AW19: =VLOOKUP($AS19,'3.3.3.Tarifas_EE'!$B:$AR,AW$1,FALSE) -> 3.7 | AX19: =VLOOKUP($AS19,'3.3.3.Tarifas_EE'!$B:$AR,AX$1,FALSE) -> 510.05 | AY19: =VLOOKUP($AS19,'3.3.3.Tarifas_EE'!$B:$AR,AY$1,FALSE) -> 332.46 | AZ19: =VLOOKUP($AS19,'3.3.3.Tarifas_EE'!$B:$AR,AZ$1,FALSE) -> 20.16 | BA19: =VLOOKUP($AS19,'3.3.3.Tarifas_EE'!$B:$AR,BA$1,FALSE) -> 6.68 | BB19: =VLOOKUP($AS19,'3.3.3.Tarifas_EE'!$B:$AR,BB$1,FALSE) -> 522.19 | BC19: =VLOOKUP($AS19,'3.3.3.Tarifas_EE'!$B:$AR,BC$1,FALSE) -> 344.6 | BD19: =VLOOKUP($AS19,'3.3.3.Tarifas_EE'!$B:$AR,BD$1,FALSE) -> 43.85 | BE19: =VLOOKUP($AS19,'3.3.3.Tarifas_EE'!$B:$AR,BE$1,FALSE) -> 13.95 | BF19: =VLOOKUP($AS19,'3.3.3.Tarifas_EE'!$B:$AR,BF$1,FALSE) -> 534.25 | BG19: =VLOOKUP($AS19,'3.3.3.Tarifas_EE'!$B:$AR,BG$1,FALSE) -> 356.66 | BH19: =VLOOKUP($AS19,'3.3.3.Tarifas_EE'!$B:$AR,BH$1,FALSE) -> 43.85 | BI19: =VLOOKUP($AS19,'3.3.3.Tarifas_EE'!$B:$AR,BI$1,FALSE) -> 13.95 | BJ19: =VLOOKUP($AS19,'3.3.3.Tarifas_EE'!$B:$AR,BJ$1,FALSE) -> 534.25 | BK19: =VLOOKUP($AS19,'3.3.3.Tarifas_EE'!$B:$AR,BK$1,FALSE) -> 356.66 | BL19: =VLOOKUP($AS19,'3.3.3.Tarifas_EE'!$B:$AR,BL$1,FALSE) -> 0 | BM19: =VLOOKUP($AS19,'3.3.3.Tarifas_EE'!$B:$AR,BM$1,FALSE) -> 13.95 | BN19: =VLOOKUP($AS19,'3.3.3.Tarifas_EE'!$B:$AR,BN$1,FALSE) -> 1599.69 | BO19: =VLOOKUP($AS19,'3.3.3.Tarifas_EE'!$B:$AR,BO$1,FALSE) -> 356.66 | BP19: =VLOOKUP($AS19,'3.3.3.Tarifas_EE'!$B:$AR,BP$1,FALSE) -> 0 | BQ19: =VLOOKUP($AS19,'3.3.3.Tarifas_EE'!$B:$AR,BQ$1,FALSE) -> 13.95 | BR19: =VLOOKUP($AS19,'3.3.3.Tarifas_EE'!$B:$AR,BR$1,FALSE) -> 1599.69 | BS19: =VLOOKUP($AS19,'3.3.3.Tarifas_EE'!$B:$AR,BS$1,FALSE) -> 356.66 | BT19: =VLOOKUP($AS19,'3.3.3.Tarifas_EE'!$B:$AR,BT$1,FALSE) -> 0 | BU19: =VLOOKUP($AS19,'3.3.3.Tarifas_EE'!$B:$AR,BU$1,FALSE) -> 45.52 | BV19: =VLOOKUP($AS19,'3.3.3.Tarifas_EE'!$B:$AR,BV$1,FALSE) -> 0 | BW19: =VLOOKUP($AS19,'3.3.3.Tarifas_EE'!$B:$AR,BW$1,FALSE) -> 371.46 | BX19: =VLOOKUP($AS19,'3.3.3.Tarifas_EE'!$B:$AR,BX$1,FALSE) -> 0 | BY19: =VLOOKUP($AS19,'3.3.3.Tarifas_EE'!$B:$AR,BY$1,FALSE) -> 45.52 | BZ19: =VLOOKUP($AS19,'3.3.3.Tarifas_EE'!$B:$AR,BZ$1,FALSE) -> 0 | CA19: =VLOOKUP($AS19,'3.3.3.Tarifas_EE'!$B:$AR,CA$1,FALSE) -> 371.46 | CB19: =VLOOKUP($AS19,'3.3.3.Tarifas_EE'!$B:$AR,CB$1,FALSE) -> 0 | CC19: =VLOOKUP($AS19,'3.3.3.Tarifas_EE'!$B:$AR,CC$1,FALSE) -> 0 | CD19: =VLOOKUP($AS19,'3.3.3.Tarifas_EE'!$B:$AR,CD$1,FALSE) -> 0 | CE19: =VLOOKUP($AS19,'3.3.3.Tarifas_EE'!$B:$AR,CE$1,FALSE) -> 628.33 | CF19: =VLOOKUP($AS19,'3.3.3.Tarifas_EE'!$B:$AR,CF$1,FALSE) -> 0 | CG19: =VLOOKUP($AS19,'3.3.3.Tarifas_EE'!$B:$AR,CG$1,FALSE) -> 0 | CH19: =VLOOKUP($AS19,'3.3.3.Tarifas_EE'!$B:$AR,CH$1,FALSE) -> 0 | CI19: =VLOOKUP($AS19,'3.3.3.Tarifas_EE'!$B:$AR,CI$1,FALSE) -> 628.33 | CK19: -0.12 | CL19: 395857.044 | CM19: 178759.284 | CN19: 825586.5227 | CO19: 6668372.046 | CP19: 48491.52 | CQ19: 24153.36587 | CR19: 65972.25223 | CS19: 688369.0683 | CT19: 651641.3442 | CU19: 235327.9738 | CV19: 396463.9688 | CW19: 3544698.261 | CX19: 2090.183333 | CY19: 566.742 | CZ19: 0 | DA19: 17.15772373 | DB19: 0 | DC19: 686966.5968 | DD19: 2013249.324 | DE19: 5959201.409 | DF19: 0 | DG19: 22530.552 | DH19: 61886.50317 | DI19: 137528.1531 | DJ19: 0 | DK19: 0 | DL19: 0 | DM19: 0 | DN19: 0 | DO19: 0 | DP19: 0 | DQ19: 0 | DR19: 0 | DS19: 0 | DT19: 0 | DU19: 7882319.407 | DV19: 0 | DW19: 0 | DX19: 0 | DY19: 147158.279 | DZ19: 2020-05-01 | EA19: 30637206.96 | EC19: 0 | EE19: =(EA19+EC19) -> 30637206.96
C20: 2020-06-01 | AS20: 2020-06-01 | AT20: =VLOOKUP($AS20,'3.3.3.Tarifas_EE'!$B:$AR,AT$1,FALSE) -> Verde | AU20: =VLOOKUP($AS20,'3.3.3.Tarifas_EE'!$B:$AR,AU$1,FALSE) -> 0 | AV20: =VLOOKUP($AS20,'3.3.3.Tarifas_EE'!$B:$AR,AV$1,FALSE) -> 9.81 | AW20: =VLOOKUP($AS20,'3.3.3.Tarifas_EE'!$B:$AR,AW$1,FALSE) -> 3.7 | AX20: =VLOOKUP($AS20,'3.3.3.Tarifas_EE'!$B:$AR,AX$1,FALSE) -> 510.05 | AY20: =VLOOKUP($AS20,'3.3.3.Tarifas_EE'!$B:$AR,AY$1,FALSE) -> 332.46 | AZ20: =VLOOKUP($AS20,'3.3.3.Tarifas_EE'!$B:$AR,AZ$1,FALSE) -> 20.16 | BA20: =VLOOKUP($AS20,'3.3.3.Tarifas_EE'!$B:$AR,BA$1,FALSE) -> 6.68 | BB20: =VLOOKUP($AS20,'3.3.3.Tarifas_EE'!$B:$AR,BB$1,FALSE) -> 522.19 | BC20: =VLOOKUP($AS20,'3.3.3.Tarifas_EE'!$B:$AR,BC$1,FALSE) -> 344.6 | BD20: =VLOOKUP($AS20,'3.3.3.Tarifas_EE'!$B:$AR,BD$1,FALSE) -> 43.85 | BE20: =VLOOKUP($AS20,'3.3.3.Tarifas_EE'!$B:$AR,BE$1,FALSE) -> 13.95 | BF20: =VLOOKUP($AS20,'3.3.3.Tarifas_EE'!$B:$AR,BF$1,FALSE) -> 534.25 | BG20: =VLOOKUP($AS20,'3.3.3.Tarifas_EE'!$B:$AR,BG$1,FALSE) -> 356.66 | BH20: =VLOOKUP($AS20,'3.3.3.Tarifas_EE'!$B:$AR,BH$1,FALSE) -> 43.85 | BI20: =VLOOKUP($AS20,'3.3.3.Tarifas_EE'!$B:$AR,BI$1,FALSE) -> 13.95 | BJ20: =VLOOKUP($AS20,'3.3.3.Tarifas_EE'!$B:$AR,BJ$1,FALSE) -> 534.25 | BK20: =VLOOKUP($AS20,'3.3.3.Tarifas_EE'!$B:$AR,BK$1,FALSE) -> 356.66 | BL20: =VLOOKUP($AS20,'3.3.3.Tarifas_EE'!$B:$AR,BL$1,FALSE) -> 0 | BM20: =VLOOKUP($AS20,'3.3.3.Tarifas_EE'!$B:$AR,BM$1,FALSE) -> 13.95 | BN20: =VLOOKUP($AS20,'3.3.3.Tarifas_EE'!$B:$AR,BN$1,FALSE) -> 1599.69 | BO20: =VLOOKUP($AS20,'3.3.3.Tarifas_EE'!$B:$AR,BO$1,FALSE) -> 356.66 | BP20: =VLOOKUP($AS20,'3.3.3.Tarifas_EE'!$B:$AR,BP$1,FALSE) -> 0 | BQ20: =VLOOKUP($AS20,'3.3.3.Tarifas_EE'!$B:$AR,BQ$1,FALSE) -> 13.95 | BR20: =VLOOKUP($AS20,'3.3.3.Tarifas_EE'!$B:$AR,BR$1,FALSE) -> 1599.69 | BS20: =VLOOKUP($AS20,'3.3.3.Tarifas_EE'!$B:$AR,BS$1,FALSE) -> 356.66 | BT20: =VLOOKUP($AS20,'3.3.3.Tarifas_EE'!$B:$AR,BT$1,FALSE) -> 0 | BU20: =VLOOKUP($AS20,'3.3.3.Tarifas_EE'!$B:$AR,BU$1,FALSE) -> 45.52 | BV20: =VLOOKUP($AS20,'3.3.3.Tarifas_EE'!$B:$AR,BV$1,FALSE) -> 0 | BW20: =VLOOKUP($AS20,'3.3.3.Tarifas_EE'!$B:$AR,BW$1,FALSE) -> 371.46 | BX20: =VLOOKUP($AS20,'3.3.3.Tarifas_EE'!$B:$AR,BX$1,FALSE) -> 0 | BY20: =VLOOKUP($AS20,'3.3.3.Tarifas_EE'!$B:$AR,BY$1,FALSE) -> 45.52 | BZ20: =VLOOKUP($AS20,'3.3.3.Tarifas_EE'!$B:$AR,BZ$1,FALSE) -> 0 | CA20: =VLOOKUP($AS20,'3.3.3.Tarifas_EE'!$B:$AR,CA$1,FALSE) -> 371.46 | CB20: =VLOOKUP($AS20,'3.3.3.Tarifas_EE'!$B:$AR,CB$1,FALSE) -> 0 | CC20: =VLOOKUP($AS20,'3.3.3.Tarifas_EE'!$B:$AR,CC$1,FALSE) -> 0 | CD20: =VLOOKUP($AS20,'3.3.3.Tarifas_EE'!$B:$AR,CD$1,FALSE) -> 0 | CE20: =VLOOKUP($AS20,'3.3.3.Tarifas_EE'!$B:$AR,CE$1,FALSE) -> 628.33 | CF20: =VLOOKUP($AS20,'3.3.3.Tarifas_EE'!$B:$AR,CF$1,FALSE) -> 0 | CG20: =VLOOKUP($AS20,'3.3.3.Tarifas_EE'!$B:$AR,CG$1,FALSE) -> 0 | CH20: =VLOOKUP($AS20,'3.3.3.Tarifas_EE'!$B:$AR,CH$1,FALSE) -> 0 | CI20: =VLOOKUP($AS20,'3.3.3.Tarifas_EE'!$B:$AR,CI$1,FALSE) -> 628.33 | CK20: -0.12 | CL20: 396144.804 | CM20: 178761.1833 | CN20: 826749.0162 | CO20: 6692555.583 | CP20: 50512 | CQ20: 24455.94018 | CR20: 68278.96389 | CS20: 692127.9368 | CT20: 640341.4272 | CU20: 231954.4676 | CV20: 390570.3852 | CW20: 3406672.098 | CX20: 2438.547222 | CY20: 661.199 | CZ20: 0 | DA20: 20.01734436 | DB20: 0 | DC20: 677444.8061 | DD20: 1972324.739 | DE20: 5929024.609 | DF20: 0 | DG20: 22459.624 | DH20: 60629.87202 | DI20: 136653.9461 | DJ20: 0 | DK20: 0 | DL20: 0 | DM20: 0 | DN20: 0 | DO20: 0 | DP20: 0 | DQ20: 0 | DR20: 0 | DS20: 0 | DT20: 0 | DU20: 7791732.666 | DV20: 0 | DW20: 0 | DX20: 0 | DY20: 150819.8302 | DZ20: 2020-06-01 | EA20: 30343333.66 | EC20: 0 | EE20: 30343333.66
C21: 2020-07-01 | AS21: 2020-07-01 | AT21: =VLOOKUP($AS21,'3.3.3.Tarifas_EE'!$B:$AR,AT$1,FALSE) -> Verde | AU21: =VLOOKUP($AS21,'3.3.3.Tarifas_EE'!$B:$AR,AU$1,FALSE) -> 0 | AV21: =VLOOKUP($AS21,'3.3.3.Tarifas_EE'!$B:$AR,AV$1,FALSE) -> 9.81 | AW21: =VLOOKUP($AS21,'3.3.3.Tarifas_EE'!$B:$AR,AW$1,FALSE) -> 3.7 | AX21: =VLOOKUP($AS21,'3.3.3.Tarifas_EE'!$B:$AR,AX$1,FALSE) -> 510.05 | AY21: =VLOOKUP($AS21,'3.3.3.Tarifas_EE'!$B:$AR,AY$1,FALSE) -> 332.46 | AZ21: =VLOOKUP($AS21,'3.3.3.Tarifas_EE'!$B:$AR,AZ$1,FALSE) -> 20.16 | BA21: =VLOOKUP($AS21,'3.3.3.Tarifas_EE'!$B:$AR,BA$1,FALSE) -> 6.68 | BB21: =VLOOKUP($AS21,'3.3.3.Tarifas_EE'!$B:$AR,BB$1,FALSE) -> 522.19 | BC21: =VLOOKUP($AS21,'3.3.3.Tarifas_EE'!$B:$AR,BC$1,FALSE) -> 344.6 | BD21: =VLOOKUP($AS21,'3.3.3.Tarifas_EE'!$B:$AR,BD$1,FALSE) -> 43.85 | BE21: =VLOOKUP($AS21,'3.3.3.Tarifas_EE'!$B:$AR,BE$1,FALSE) -> 13.95 | BF21: =VLOOKUP($AS21,'3.3.3.Tarifas_EE'!$B:$AR,BF$1,FALSE) -> 534.25 | BG21: =VLOOKUP($AS21,'3.3.3.Tarifas_EE'!$B:$AR,BG$1,FALSE) -> 356.66 | BH21: =VLOOKUP($AS21,'3.3.3.Tarifas_EE'!$B:$AR,BH$1,FALSE) -> 43.85 | BI21: =VLOOKUP($AS21,'3.3.3.Tarifas_EE'!$B:$AR,BI$1,FALSE) -> 13.95 | BJ21: =VLOOKUP($AS21,'3.3.3.Tarifas_EE'!$B:$AR,BJ$1,FALSE) -> 534.25 | BK21: =VLOOKUP($AS21,'3.3.3.Tarifas_EE'!$B:$AR,BK$1,FALSE) -> 356.66 | BL21: =VLOOKUP($AS21,'3.3.3.Tarifas_EE'!$B:$AR,BL$1,FALSE) -> 0 | BM21: =VLOOKUP($AS21,'3.3.3.Tarifas_EE'!$B:$AR,BM$1,FALSE) -> 13.95 | BN21: =VLOOKUP($AS21,'3.3.3.Tarifas_EE'!$B:$AR,BN$1,FALSE) -> 1599.69 | BO21: =VLOOKUP($AS21,'3.3.3.Tarifas_EE'!$B:$AR,BO$1,FALSE) -> 356.66 | BP21: =VLOOKUP($AS21,'3.3.3.Tarifas_EE'!$B:$AR,BP$1,FALSE) -> 0 | BQ21: =VLOOKUP($AS21,'3.3.3.Tarifas_EE'!$B:$AR,BQ$1,FALSE) -> 13.95 | BR21: =VLOOKUP($AS21,'3.3.3.Tarifas_EE'!$B:$AR,BR$1,FALSE) -> 1599.69 | BS21: =VLOOKUP($AS21,'3.3.3.Tarifas_EE'!$B:$AR,BS$1,FALSE) -> 356.66 | BT21: =VLOOKUP($AS21,'3.3.3.Tarifas_EE'!$B:$AR,BT$1,FALSE) -> 0 | BU21: =VLOOKUP($AS21,'3.3.3.Tarifas_EE'!$B:$AR,BU$1,FALSE) -> 45.52 | BV21: =VLOOKUP($AS21,'3.3.3.Tarifas_EE'!$B:$AR,BV$1,FALSE) -> 0 | BW21: =VLOOKUP($AS21,'3.3.3.Tarifas_EE'!$B:$AR,BW$1,FALSE) -> 371.46 | BX21: =VLOOKUP($AS21,'3.3.3.Tarifas_EE'!$B:$AR,BX$1,FALSE) -> 0 | BY21: =VLOOKUP($AS21,'3.3.3.Tarifas_EE'!$B:$AR,BY$1,FALSE) -> 45.52 | BZ21: =VLOOKUP($AS21,'3.3.3.Tarifas_EE'!$B:$AR,BZ$1,FALSE) -> 0 | CA21: =VLOOKUP($AS21,'3.3.3.Tarifas_EE'!$B:$AR,CA$1,FALSE) -> 371.46 | CB21: =VLOOKUP($AS21,'3.3.3.Tarifas_EE'!$B:$AR,CB$1,FALSE) -> 0 | CC21: =VLOOKUP($AS21,'3.3.3.Tarifas_EE'!$B:$AR,CC$1,FALSE) -> 0 | CD21: =VLOOKUP($AS21,'3.3.3.Tarifas_EE'!$B:$AR,CD$1,FALSE) -> 0 | CE21: =VLOOKUP($AS21,'3.3.3.Tarifas_EE'!$B:$AR,CE$1,FALSE) -> 628.33 | CF21: =VLOOKUP($AS21,'3.3.3.Tarifas_EE'!$B:$AR,CF$1,FALSE) -> 0 | CG21: =VLOOKUP($AS21,'3.3.3.Tarifas_EE'!$B:$AR,CG$1,FALSE) -> 0 | CH21: =VLOOKUP($AS21,'3.3.3.Tarifas_EE'!$B:$AR,CH$1,FALSE) -> 0 | CI21: =VLOOKUP($AS21,'3.3.3.Tarifas_EE'!$B:$AR,CI$1,FALSE) -> 628.33 | CK21: -0.12 | CL21: 396758.2124 | CM21: 178873.0179 | CN21: 832691.3222 | CO21: 6705852.414 | CP21: 52526.23787 | CQ21: 24808.94354 | CR21: 69999.14653 | CS21: 704802.062 | CT21: 628449.4739 | CU21: 227976.44 | CV21: 393584.246 | CW21: 3408515.138 | CX21: 2652.031759 | CY21: 710.0188333 | CZ21: 0 | DA21: 23.35356841 | DB21: 0 | DC21: 665124.5931 | DD21: 2001030.943 | DE21: 5860345.558 | DF21: 0 | DG21: 22452.57667 | DH21: 60680.39378 | DI21: 136602.4032 | DJ21: 0 | DK21: 0 | DL21: 0 | DM21: 0 | DN21: 0 | DO21: 0 | DP21: 0 | DQ21: 0 | DR21: 0 | DS21: 0 | DT21: 0 | DU21: 7821116.959 | DV21: 0 | DW21: 0 | DX21: 0 | DY21: 149222.0994 | DZ21: 2020-07-01 | EA21: 30344797.58 | EC21: 0 | EE21: 30344797.58
C22: Total | AV22: Check | AW22: =SUM(AV10:CI21) -> 116139.48 | CK22: TOTAL | CL22: =SUM(CL10:CL21) -> 4751343.964 | CM22: 2142474.093 | CN22: 10188810.23 | CO22: 80214519.3 | CP22: 551726.7243 | CQ22: 286704.2368 | CR22: 779625.2888 | CS22: 8369893.406 | CT22: 7982152.865 | CU22: 2878482.751 | CV22: 4846502.81 | CW22: 43469115.9 | CX22: 19721.86231 | CY22: 5338.411833 | CZ22: 0 | DA22: 163.4749789 | DB22: 0 | DC22: 8354033.479 | DD22: 24586123.21 | DE22: 71556396.65 | DF22: 0 | DG22: 269972.2007 | DH22: 736318.1249 | DI22: 1604645.075 | DJ22: 0 | DK22: 0 | DL22: 0 | DM22: 0 | DN22: 0 | DO22: 0 | DP22: 0 | DQ22: 0 | DR22: 0 | DS22: 0 | DT22: 0 | DU22: 94596713.66 | DV22: 0 | DW22: 0 | DX22: 0 | DY22: 1632770.902 | EA22: 369823548.6 | EC22: 12575867.22 | EE22: =SUM(EE10:EE21) -> 382399415.8
D23: Check | E23: =SUM(D10:AQ21) -> 0 | AW23: =SUM('3.3.3.Tarifas_EE'!$E$59:$AR$70) -> 116139.48 | EA23: =SUM(CL22:DY22) -> 369823548.6
D25: Perfil de consumo da Copasa no PR0
D26: AES | E26: AES | F26: AES | G26: AES | H26: AES | I26: AES | J26: AES | K26: AES | L26: AES | M26: AES | N26: AES | O26: AES | P26: ADM | Q26: ADM | R26: ADM | S26: ADM | T26: AES | U26: AES | V26: AES | W26: AES | X26: ADM | Y26: ADM | Z26: ADM | AA26: ADM | AB26: AES | AC26: AES | AD26: AES | AE26: AES | AF26: ADM | AG26: ADM | AH26: ADM | AI26: ADM | AJ26: AES | AK26: AES | AL26: AES | AM26: AES | AN26: ADM | AO26: ADM | AP26: ADM | AQ26: ADM | AV26: =CONCATENATE(TEXT("Tarifas previstas para ",),TEXT(Sumário!S8,"MMM/AA"),TEXT(" - ",),TEXT(Sumário!T8,"MMM/AA")) -> Tarifas previstas para ago/20 - jul/21 | CL26: =CONCATENATE(TEXT("Faturamento simulado com tarifas vigentes no período ",),TEXT(Sumário!S8,"MMM/AA"),TEXT(" - ",),TEXT(Sumário!T8,"MMM/AA")) -> Faturamento simulado com tarifas vigentes no período ago/20 - jul/21 | EJ26: Para NT:
D27: A2 | H27: A3 | L27: A4 | P27: A4 | T27: A4 | X27: A4 | AB27: A4 | AF27: A4 | AJ27: B3 | AN27: B3 | AV27: A2 | AZ27: A3 | BD27: A4 | BH27: A4 | BL27: A4 | BP27: A4 | BT27: A4 | BX27: A4 | CB27: B3 | CF27: B3 | CL27: A2 | CP27: A3 | CT27: A4 | CX27: A4 | DB27: A4 | DF27: A4 | DJ27: A4 | DN27: A4 | DR27: B3 | DV27: B3 | EA27: TOTAL sem bandeiras | EB27: IEE mensal sem bandeiras | EC27: Bandeiras | EE27: TOTAL com bandeiras | EF27: IEE mensal com bandeiras
D28: AZ_AES | H28: AZ_AES | L28: AZ_AES | P28: AZ_ADM | T28: VD_AES | X28: VD_ADM | AB28: EQ_AES | AF28: EQ_ADM | AJ28: EQ_AES | AN28: EQ_ADM | AV28: AZ_AES | AZ28: AZ_AES | BD28: AZ_AES | BH28: AZ_ADM | BL28: VD_AES | BP28: VD_ADM | BT28: EQ_AES | BX28: EQ_ADM | CB28: EQ_AES | CF28: EQ_ADM | CL28: AZ_AES | CP28: AZ_AES | CT28: AZ_AES | CX28: AZ_ADM | DB28: VD_AES | DF28: VD_ADM | DJ28: EQ_AES | DN28: EQ_ADM | DR28: EQ_AES | DV28: EQ_ADM | EJ28: =CONCATENATE(TEXT("Faturamento 0, com tarifas e bandeiras observadas no período ",),TEXT(Sumário!S7,"MMM/AA"),TEXT("-",),TEXT(Sumário!T7,"MMM/AA")) -> Faturamento 0, com tarifas e bandeiras observadas no período ago/19-jul/20 | EM28: =CONCATENATE(TEXT("Faturamento 1, com tarifas e bandeiras previstas para o período ",),TEXT(Sumário!S8,"MMM/AA"),TEXT("-",),TEXT(Sumário!T8,"MMM/AA")) -> Faturamento 1, com tarifas e bandeiras previstas para o período ago/20-jul/21 | EQ28: IEE sem bandeiras | ER28: IEE total (com bandeiras)
D29: D_P | E29: D_FP | F29: E_P | G29: E_FP | H29: D_P | I29: D_FP | J29: E_P | K29: E_FP | L29: D_P | M29: D_FP | N29: E_P | O29: E_FP | P29: D_P | Q29: D_FP | R29: E_P | S29: E_FP | T29: D_P | U29: D_FP | V29: E_P | W29: E_FP | X29: D_P | Y29: D_FP | Z29: E_P | AA29: E_FP | AB29: D_P | AC29: D_FP | AD29: E_P | AE29: E_FP | AF29: D_P | AG29: D_FP | AH29: E_P | AI29: E_FP | AJ29: D_P | AK29: D_FP | AL29: E_P | AM29: E_FP | AN29: D_P | AO29: D_FP | AP29: E_P | AQ29: E_FP | AV29: D_P | AW29: D_FP | AX29: E_P | AY29: E_FP | AZ29: D_P | BA29: D_FP | BB29: E_P | BC29: E_FP | BD29: D_P | BE29: D_FP | BF29: E_P | BG29: E_FP | BH29: D_P | BI29: D_FP | BJ29: E_P | BK29: E_FP | BL29: D_P | BM29: D_FP | BN29: E_P | BO29: E_FP | BP29: D_P | BQ29: D_FP | BR29: E_P | BS29: E_FP | BT29: D_P | BU29: D_FP | BV29: E_P | BW29: E_FP | BX29: D_P | BY29: D_FP | BZ29: E_P | CA29: E_FP | CB29: D_P | CC29: D_FP | CD29: E_P | CE29: E_FP | CF29: D_P | CG29: D_FP | CH29: E_P | CI29: E_FP | CL29: D_P | CM29: D_FP | CN29: E_P | CO29: E_FP | CP29: D_P | CQ29: D_FP | CR29: E_P | CS29: E_FP | CT29: D_P | CU29: D_FP | CV29: E_P | CW29: E_FP | CX29: D_P | CY29: D_FP | CZ29: E_P | DA29: E_FP | DB29: D_P | DC29: D_FP | DD29: E_P | DE29: E_FP | DF29: D_P | DG29: D_FP | DH29: E_P | DI29: E_FP | DJ29: D_P | DK29: D_FP | DL29: E_P | DM29: E_FP | DN29: D_P | DO29: D_FP | DP29: E_P | DQ29: E_FP | DR29: D_P | DS29: D_FP | DT29: E_P | DU29: E_FP | DV29: D_P | DW29: D_FP | DX29: E_P | DY29: E_FP
D30: kW | E30: kW | F30: kWh | G30: kWh | H30: kW | I30: kW | J30: kWh | K30: kWh | L30: kW | M30: kW | N30: kWh | O30: kWh | P30: kW | Q30: kW | R30: kWh | S30: kWh | T30: kW | U30: kW | V30: kWh | W30: kWh | X30: kW | Y30: kW | Z30: kWh | AA30: kWh | AB30: kW | AC30: kW | AD30: kWh | AE30: kWh | AF30: kW | AG30: kW | AH30: kWh | AI30: kWh | AJ30: kW | AK30: kW | AL30: kWh | AM30: kWh | AN30: kW | AO30: kW | AP30: kWh | AQ30: kWh | AS30: mês | AT30: Bandeira | AU30: Valor | AV30: R$/kW | AW30: R$/kW | AX30: R$/MWh | AY30: R$/MWh | AZ30: R$/kW | BA30: R$/kW | BB30: R$/MWh | BC30: R$/MWh | BD30: R$/kW | BE30: R$/kW | BF30: R$/MWh | BG30: R$/MWh | BH30: R$/kW | BI30: R$/kW | BJ30: R$/MWh | BK30: R$/MWh | BL30: R$/kW | BM30: R$/kW | BN30: R$/MWh | BO30: R$/MWh | BP30: R$/kW | BQ30: R$/kW | BR30: R$/MWh | BS30: R$/MWh | BT30: R$/kW | BU30: R$/kW | BV30: R$/MWh | BW30: R$/MWh | BX30: R$/kW | BY30: R$/kW | BZ30: R$/MWh | CA30: R$/MWh | CB30: R$/kW | CC30: R$/kW | CD30: R$/MWh | CE30: R$/MWh | CF30: R$/kW | CG30: R$/kW | CH30: R$/MWh | CI30: R$/MWh | CL30: R$ | CM30: R$ | CN30: R$ | CO30: R$ | CP30: R$ | CQ30: R$ | CR30: R$ | CS30: R$ | CT30: R$ | CU30: R$ | CV30: R$ | CW30: R$ | CX30: R$ | CY30: R$ | CZ30: R$ | DA30: R$ | DB30: R$ | DC30: R$ | DD30: R$ | DE30: R$ | DF30: R$ | DG30: R$ | DH30: R$ | DI30: R$ | DJ30: R$ | DK30: R$ | DL30: R$ | DM30: R$ | DN30: R$ | DO30: R$ | DP30: R$ | DQ30: R$ | DR30: R$ | DS30: R$ | DT30: R$ | DU30: R$ | DV30: R$ | DW30: R$ | DX30: R$ | DY30: R$ | EA30: R$ | EB30: % | EC30: R$ | EE30: R$ | EF30: % | EK30: Sem bandeiras | EL30: Com bandeiras | EN30: Sem bandeiras | EO30: Com bandeiras
C31: =C10 -> 2019-08-01 | D31: =D10 -> 0 | E31: =E10 -> 0 | F31: 0 | G31: 0 | H31: 0 | I31: 0 | J31: 0 | K31: 0 | L31: 0 | M31: 0 | N31: 0 | O31: 0 | P31: 0 | Q31: 0 | R31: 0 | S31: 0 | T31: 0 | U31: 0 | V31: 0 | W31: 0 | X31: 0 | Y31: 0 | Z31: 0 | AA31: 0 | AB31: 0 | AC31: 0 | AD31: 0 | AE31: 0 | AF31: 0 | AG31: 0 | AH31: 0 | AI31: 0 | AJ31: 0 | AK31: 0 | AL31: 0 | AM31: 0 | AN31: 0 | AO31: 0 | AP31: 0 | AQ31: 0 | AS31: =EDATE(AS10,12) -> 2020-08-01 | AT31: =VLOOKUP($AS31,'3.3.3.Tarifas_EE'!$B:$AR,AT$1,FALSE) -> Verde | AU31: =VLOOKUP($AS31,'3.3.3.Tarifas_EE'!$B:$AR,AU$1,FALSE) -> 0 | AV31: =VLOOKUP($AS31,'3.3.3.Tarifas_EE'!$B:$AR,AV$1,FALSE) -> 9.81 | AW31: =VLOOKUP($AS31,'3.3.3.Tarifas_EE'!$B:$AR,AW$1,FALSE) -> 3.7 | AX31: =VLOOKUP($AS31,'3.3.3.Tarifas_EE'!$B:$AR,AX$1,FALSE) -> 510.05 | AY31: =VLOOKUP($AS31,'3.3.3.Tarifas_EE'!$B:$AR,AY$1,FALSE) -> 332.46 | AZ31: =VLOOKUP($AS31,'3.3.3.Tarifas_EE'!$B:$AR,AZ$1,FALSE) -> 20.16 | BA31: =VLOOKUP($AS31,'3.3.3.Tarifas_EE'!$B:$AR,BA$1,FALSE) -> 6.68 | BB31: =VLOOKUP($AS31,'3.3.3.Tarifas_EE'!$B:$AR,BB$1,FALSE) -> 522.19 | BC31: =VLOOKUP($AS31,'3.3.3.Tarifas_EE'!$B:$AR,BC$1,FALSE) -> 344.6 | BD31: =VLOOKUP($AS31,'3.3.3.Tarifas_EE'!$B:$AR,BD$1,FALSE) -> 43.85 | BE31: =VLOOKUP($AS31,'3.3.3.Tarifas_EE'!$B:$AR,BE$1,FALSE) -> 13.95 | BF31: =VLOOKUP($AS31,'3.3.3.Tarifas_EE'!$B:$AR,BF$1,FALSE) -> 534.25 | BG31: =VLOOKUP($AS31,'3.3.3.Tarifas_EE'!$B:$AR,BG$1,FALSE) -> 356.66 | BH31: =VLOOKUP($AS31,'3.3.3.Tarifas_EE'!$B:$AR,BH$1,FALSE) -> 43.85 | BI31: =VLOOKUP($AS31,'3.3.3.Tarifas_EE'!$B:$AR,BI$1,FALSE) -> 13.95 | BJ31: =VLOOKUP($AS31,'3.3.3.Tarifas_EE'!$B:$AR,BJ$1,FALSE) -> 534.25 | BK31: =VLOOKUP($AS31,'3.3.3.Tarifas_EE'!$B:$AR,BK$1,FALSE) -> 356.66 | BL31: =VLOOKUP($AS31,'3.3.3.Tarifas_EE'!$B:$AR,BL$1,FALSE) -> 0 | BM31: =VLOOKUP($AS31,'3.3.3.Tarifas_EE'!$B:$AR,BM$1,FALSE) -> 13.95 | BN31: =VLOOKUP($AS31,'3.3.3.Tarifas_EE'!$B:$AR,BN$1,FALSE) -> 1599.69 | BO31: =VLOOKUP($AS31,'3.3.3.Tarifas_EE'!$B:$AR,BO$1,FALSE) -> 356.66 | BP31: =VLOOKUP($AS31,'3.3.3.Tarifas_EE'!$B:$AR,BP$1,FALSE) -> 0 | BQ31: =VLOOKUP($AS31,'3.3.3.Tarifas_EE'!$B:$AR,BQ$1,FALSE) -> 13.95 | BR31: =VLOOKUP($AS31,'3.3.3.Tarifas_EE'!$B:$AR,BR$1,FALSE) -> 1599.69 | BS31: =VLOOKUP($AS31,'3.3.3.Tarifas_EE'!$B:$AR,BS$1,FALSE) -> 356.66 | BT31: =VLOOKUP($AS31,'3.3.3.Tarifas_EE'!$B:$AR,BT$1,FALSE) -> 0 | BU31: =VLOOKUP($AS31,'3.3.3.Tarifas_EE'!$B:$AR,BU$1,FALSE) -> 45.52 | BV31: =VLOOKUP($AS31,'3.3.3.Tarifas_EE'!$B:$AR,BV$1,FALSE) -> 0 | BW31: =VLOOKUP($AS31,'3.3.3.Tarifas_EE'!$B:$AR,BW$1,FALSE) -> 371.46 | BX31: =VLOOKUP($AS31,'3.3.3.Tarifas_EE'!$B:$AR,BX$1,FALSE) -> 0 | BY31: =VLOOKUP($AS31,'3.3.3.Tarifas_EE'!$B:$AR,BY$1,FALSE) -> 45.52 | BZ31: =VLOOKUP($AS31,'3.3.3.Tarifas_EE'!$B:$AR,BZ$1,FALSE) -> 0 | CA31: =VLOOKUP($AS31,'3.3.3.Tarifas_EE'!$B:$AR,CA$1,FALSE) -> 371.46 | CB31: =VLOOKUP($AS31,'3.3.3.Tarifas_EE'!$B:$AR,CB$1,FALSE) -> 0 | CC31: =VLOOKUP($AS31,'3.3.3.Tarifas_EE'!$B:$AR,CC$1,FALSE) -> 0 | CD31: =VLOOKUP($AS31,'3.3.3.Tarifas_EE'!$B:$AR,CD$1,FALSE) -> 0 | CE31: =VLOOKUP($AS31,'3.3.3.Tarifas_EE'!$B:$AR,CE$1,FALSE) -> 628.33 | CF31: =VLOOKUP($AS31,'3.3.3.Tarifas_EE'!$B:$AR,CF$1,FALSE) -> 0 | CG31: =VLOOKUP($AS31,'3.3.3.Tarifas_EE'!$B:$AR,CG$1,FALSE) -> 0 | CH31: =VLOOKUP($AS31,'3.3.3.Tarifas_EE'!$B:$AR,CH$1,FALSE) -> 0 | CI31: =VLOOKUP($AS31,'3.3.3.Tarifas_EE'!$B:$AR,CI$1,FALSE) -> 628.33 | CK31: =-IF($AS31<$AS$20,$CL$47,IF($AS31<$AS$41,$CL$48,$CL$49)) -> -0.12 | CL31: 397031.1048 | CM31: 178373.448 | CN31: 889783.8572 | CO31: 6835184.986 | CP31: 36368.64 | CQ31: 22402.5824 | CR31: 60821.64161 | CS31: 689330.9204 | CT31: 718312.533 | CU31: 258498.9238 | CV31: 469063.3794 | CW31: 3652478.478 | CX31: 0 | CY31: 0 | CZ31: 0 | DA31: 0 | DB31: 0 | DC31: 714124.5052 | DD31: 2174452.858 | DE31: 5961877.857 | DF31: 0 | DG31: 22293.216 | DH31: 55596.77804 | DI31: 111640.9143 | DJ31: 0 | DK31: 0 | DL31: 0 | DM31: 0 | DN31: 0 | DO31: 0 | DP31: 0 | DQ31: 0 | DR31: 0 | DS31: 0 | DT31: 0 | DU31: 7807150.547 | DV31: 0 | DW31: 0 | DX31: 0 | DY31: 90732.56106 | DZ31: =AS31 -> 2020-08-01 | EA31: =SUM(CL31:DY31) -> 31145519.73 | EB31: =EA31/EA10-1 -> 0 | EC31: =SUMIF($D$9:$AQ$9,"kWh",D31:AQ31)*AU31 -> 0 | EE31: =(EA31+EC31) -> 31145519.73 | EF31: =EE31/EE10-1 -> -0.0885049185 | EJ31: =C31 -> 2019-08-01 | EK31: =EA10 -> 31145519.73 | EL31: =EE10 -> 34169706.85 | EM31: =DZ31 -> 2020-08-01 | EN31: =EA31 -> 31145519.73 | EO31: =EE31 -> 31145519.73 | EQ31: =EN31/EK31-1 -> 0 | ER31: =EO31/EL31-1 -> -0.0885049185
C32: =EDATE(C31,1) -> 2019-09-01 | D32: 0 | E32: =E11 -> 0 | F32: 0 | G32: 0 | H32: 0 | I32: 0 | J32: 0 | K32: 0 | L32: 0 | M32: 0 | N32: 0 | O32: 0 | P32: 0 | Q32: 0 | R32: 0 | S32: 0 | T32: 0 | U32: 0 | V32: 0 | W32: 0 | X32: 0 | Y32: 0 | Z32: 0 | AA32: 0 | AB32: 0 | AC32: 0 | AD32: 0 | AE32: 0 | AF32: 0 | AG32: 0 | AH32: 0 | AI32: 0 | AJ32: 0 | AK32: 0 | AL32: 0 | AM32: 0 | AN32: 0 | AO32: 0 | AP32: 0 | AQ32: 0 | AS32: =EDATE(AS31,1) -> 2020-09-01 | AT32: =VLOOKUP($AS32,'3.3.3.Tarifas_EE'!$B:$AR,AT$1,FALSE) -> Verde | AU32: =VLOOKUP($AS32,'3.3.3.Tarifas_EE'!$B:$AR,AU$1,FALSE) -> 0 | AV32: =VLOOKUP($AS32,'3.3.3.Tarifas_EE'!$B:$AR,AV$1,FALSE) -> 9.81 | AW32: =VLOOKUP($AS32,'3.3.3.Tarifas_EE'!$B:$AR,AW$1,FALSE) -> 3.7 | AX32: =VLOOKUP($AS32,'3.3.3.Tarifas_EE'!$B:$AR,AX$1,FALSE) -> 510.05 | AY32: =VLOOKUP($AS32,'3.3.3.Tarifas_EE'!$B:$AR,AY$1,FALSE) -> 332.46 | AZ32: =VLOOKUP($AS32,'3.3.3.Tarifas_EE'!$B:$AR,AZ$1,FALSE) -> 20.16 | BA32: =VLOOKUP($AS32,'3.3.3.Tarifas_EE'!$B:$AR,BA$1,FALSE) -> 6.68 | BB32: =VLOOKUP($AS32,'3.3.3.Tarifas_EE'!$B:$AR,BB$1,FALSE) -> 522.19 | BC32: =VLOOKUP($AS32,'3.3.3.Tarifas_EE'!$B:$AR,BC$1,FALSE) -> 344.6 | BD32: =VLOOKUP($AS32,'3.3.3.Tarifas_EE'!$B:$AR,BD$1,FALSE) -> 43.85 | BE32: =VLOOKUP($AS32,'3.3.3.Tarifas_EE'!$B:$AR,BE$1,FALSE) -> 13.95 | BF32: =VLOOKUP($AS32,'3.3.3.Tarifas_EE'!$B:$AR,BF$1,FALSE) -> 534.25 | BG32: =VLOOKUP($AS32,'3.3.3.Tarifas_EE'!$B:$AR,BG$1,FALSE) -> 356.66 | BH32: =VLOOKUP($AS32,'3.3.3.Tarifas_EE'!$B:$AR,BH$1,FALSE) -> 43.85 | BI32: =VLOOKUP($AS32,'3.3.3.Tarifas_EE'!$B:$AR,BI$1,FALSE) -> 13.95 | BJ32: =VLOOKUP($AS32,'3.3.3.Tarifas_EE'!$B:$AR,BJ$1,FALSE) -> 534.25 | BK32: =VLOOKUP($AS32,'3.3.3.Tarifas_EE'!$B:$AR,BK$1,FALSE) -> 356.66 | BL32: =VLOOKUP($AS32,'3.3.3.Tarifas_EE'!$B:$AR,BL$1,FALSE) -> 0 | BM32: =VLOOKUP($AS32,'3.3.3.Tarifas_EE'!$B:$AR,BM$1,FALSE) -> 13.95 | BN32: =VLOOKUP($AS32,'3.3.3.Tarifas_EE'!$B:$AR,BN$1,FALSE) -> 1599.69 | BO32: =VLOOKUP($AS32,'3.3.3.Tarifas_EE'!$B:$AR,BO$1,FALSE) -> 356.66 | BP32: =VLOOKUP($AS32,'3.3.3.Tarifas_EE'!$B:$AR,BP$1,FALSE) -> 0 | BQ32: =VLOOKUP($AS32,'3.3.3.Tarifas_EE'!$B:$AR,BQ$1,FALSE) -> 13.95 | BR32: =VLOOKUP($AS32,'3.3.3.Tarifas_EE'!$B:$AR,BR$1,FALSE) -> 1599.69 | BS32: =VLOOKUP($AS32,'3.3.3.Tarifas_EE'!$B:$AR,BS$1,FALSE) -> 356.66 | BT32: =VLOOKUP($AS32,'3.3.3.Tarifas_EE'!$B:$AR,BT$1,FALSE) -> 0 | BU32: =VLOOKUP($AS32,'3.3.3.Tarifas_EE'!$B:$AR,BU$1,FALSE) -> 45.52 | BV32: =VLOOKUP($AS32,'3.3.3.Tarifas_EE'!$B:$AR,BV$1,FALSE) -> 0 | BW32: =VLOOKUP($AS32,'3.3.3.Tarifas_EE'!$B:$AR,BW$1,FALSE) -> 371.46 | BX32: =VLOOKUP($AS32,'3.3.3.Tarifas_EE'!$B:$AR,BX$1,FALSE) -> 0 | BY32: =VLOOKUP($AS32,'3.3.3.Tarifas_EE'!$B:$AR,BY$1,FALSE) -> 45.52 | BZ32: =VLOOKUP($AS32,'3.3.3.Tarifas_EE'!$B:$AR,BZ$1,FALSE) -> 0 | CA32: =VLOOKUP($AS32,'3.3.3.Tarifas_EE'!$B:$AR,CA$1,FALSE) -> 371.46 | CB32: =VLOOKUP($AS32,'3.3.3.Tarifas_EE'!$B:$AR,CB$1,FALSE) -> 0 | CC32: =VLOOKUP($AS32,'3.3.3.Tarifas_EE'!$B:$AR,CC$1,FALSE) -> 0 | CD32: =VLOOKUP($AS32,'3.3.3.Tarifas_EE'!$B:$AR,CD$1,FALSE) -> 0 | CE32: =VLOOKUP($AS32,'3.3.3.Tarifas_EE'!$B:$AR,CE$1,FALSE) -> 628.33 | CF32: =VLOOKUP($AS32,'3.3.3.Tarifas_EE'!$B:$AR,CF$1,FALSE) -> 0 | CG32: =VLOOKUP($AS32,'3.3.3.Tarifas_EE'!$B:$AR,CG$1,FALSE) -> 0 | CH32: =VLOOKUP($AS32,'3.3.3.Tarifas_EE'!$B:$AR,CH$1,FALSE) -> 0 | CI32: =VLOOKUP($AS32,'3.3.3.Tarifas_EE'!$B:$AR,CI$1,FALSE) -> 628.33 | CK32: =-IF($AS32<$AS$20,$CL$47,IF($AS32<$AS$41,$CL$48,$CL$49)) -> -0.12 | CL32: 394907.436 | CM32: 177715.736 | CN32: 883188.9923 | CO32: 6538688.993 | CP32: 36510.5664 | CQ32: 22361.4336 | CR32: 57144.96448 | CS32: 709796.2182 | CT32: 724111.1517 | CU32: 258285.3214 | CV32: 404848.3672 | CW32: 4046295.317 | CX32: 0 | CY32: 0 | CZ32: 0 | DA32: 0 | DB32: 0 | DC32: 742609.7356 | DD32: 2238481.922 | DE32: 6158731.351 | DF32: 0 | DG32: 22293.216 | DH32: 58668.43879 | DI32: 118045.5578 | DJ32: 0 | DK32: 0 | DL32: 0 | DM32: 0 | DN32: 0 | DO32: 0 | DP32: 0 | DQ32: 0 | DR32: 0 | DS32: 0 | DT32: 0 | DU32: 8136172.887 | DV32: 0 | DW32: 0 | DX32: 0 | DY32: 102385.5692 | DZ32: =EDATE(DZ31,1) -> 2020-09-01 | EA32: =SUM(CL32:DY32) -> 31831243.17 | EB32: 0 | EC32: =SUMIF($D$9:$AQ$9,"kWh",D32:AQ32)*AU32 -> 0 | EE32: =(EA32+EC32) -> 31831243.17 | EF32: =EE32/EE11-1 -> -0.088292249 | EJ32: =EDATE(EJ31,1) -> 2019-09-01 | EK32: =EA11 -> 31831243.17 | EL32: =EE11 -> 34913867.01 | EM32: =EDATE(EM31,1) -> 2020-09-01 | EN32: =EA32 -> 31831243.17 | EO32: =EE32 -> 31831243.17 | EQ32: 0 | ER32: -0.088292249
C33: =EDATE(C32,1) -> 2019-10-01 | D33: 0 | E33: 0 | F33: 0 | G33: 0 | H33: 0 | I33: 0 | J33: 0 | K33: 0 | L33: 0 | M33: 0 | N33: 0 | O33: 0 | P33: 0 | Q33: 0 | R33: 0 | S33: 0 | T33: 0 | U33: 0 | V33: 0 | W33: 0 | X33: 0 | Y33: 0 | Z33: 0 | AA33: 0 | AB33: 0 | AC33: 0 | AD33: 0 | AE33: 0 | AF33: 0 | AG33: 0 | AH33: 0 | AI33: 0 | AJ33: 0 | AK33: 0 | AL33: 0 | AM33: 0 | AN33: 0 | AO33: 0 | AP33: 0 | AQ33: 0 | AS33: =EDATE(AS32,1) -> 2020-10-01 | AT33: =VLOOKUP($AS33,'3.3.3.Tarifas_EE'!$B:$AR,AT$1,FALSE) -> Verde | AU33: =VLOOKUP($AS33,'3.3.3.Tarifas_EE'!$B:$AR,AU$1,FALSE) -> 0 | AV33: =VLOOKUP($AS33,'3.3.3.Tarifas_EE'!$B:$AR,AV$1,FALSE) -> 9.81 | AW33: =VLOOKUP($AS33,'3.3.3.Tarifas_EE'!$B:$AR,AW$1,FALSE) -> 3.7 | AX33: =VLOOKUP($AS33,'3.3.3.Tarifas_EE'!$B:$AR,AX$1,FALSE) -> 510.05 | AY33: =VLOOKUP($AS33,'3.3.3.Tarifas_EE'!$B:$AR,AY$1,FALSE) -> 332.46 | AZ33: =VLOOKUP($AS33,'3.3.3.Tarifas_EE'!$B:$AR,AZ$1,FALSE) -> 20.16 | BA33: =VLOOKUP($AS33,'3.3.3.Tarifas_EE'!$B:$AR,BA$1,FALSE) -> 6.68 | BB33: =VLOOKUP($AS33,'3.3.3.Tarifas_EE'!$B:$AR,BB$1,FALSE) -> 522.19 | BC33: =VLOOKUP($AS33,'3.3.3.Tarifas_EE'!$B:$AR,BC$1,FALSE) -> 344.6 | BD33: =VLOOKUP($AS33,'3.3.3.Tarifas_EE'!$B:$AR,BD$1,FALSE) -> 43.85 | BE33: =VLOOKUP($AS33,'3.3.3.Tarifas_EE'!$B:$AR,BE$1,FALSE) -> 13.95 | BF33: =VLOOKUP($AS33,'3.3.3.Tarifas_EE'!$B:$AR,BF$1,FALSE) -> 534.25 | BG33: =VLOOKUP($AS33,'3.3.3.Tarifas_EE'!$B:$AR,BG$1,FALSE) -> 356.66 | BH33: =VLOOKUP($AS33,'3.3.3.Tarifas_EE'!$B:$AR,BH$1,FALSE) -> 43.85 | BI33: =VLOOKUP($AS33,'3.3.3.Tarifas_EE'!$B:$AR,BI$1,FALSE) -> 13.95 | BJ33: =VLOOKUP($AS33,'3.3.3.Tarifas_EE'!$B:$AR,BJ$1,FALSE) -> 534.25 | BK33: =VLOOKUP($AS33,'3.3.3.Tarifas_EE'!$B:$AR,BK$1,FALSE) -> 356.66 | BL33: =VLOOKUP($AS33,'3.3.3.Tarifas_EE'!$B:$AR,BL$1,FALSE) -> 0 | BM33: =VLOOKUP($AS33,'3.3.3.Tarifas_EE'!$B:$AR,BM$1,FALSE) -> 13.95 | BN33: =VLOOKUP($AS33,'3.3.3.Tarifas_EE'!$B:$AR,BN$1,FALSE) -> 1599.69 | BO33: =VLOOKUP($AS33,'3.3.3.Tarifas_EE'!$B:$AR,BO$1,FALSE) -> 356.66 | BP33: =VLOOKUP($AS33,'3.3.3.Tarifas_EE'!$B:$AR,BP$1,FALSE) -> 0 | BQ33: =VLOOKUP($AS33,'3.3.3.Tarifas_EE'!$B:$AR,BQ$1,FALSE) -> 13.95 | BR33: =VLOOKUP($AS33,'3.3.3.Tarifas_EE'!$B:$AR,BR$1,FALSE) -> 1599.69 | BS33: =VLOOKUP($AS33,'3.3.3.Tarifas_EE'!$B:$AR,BS$1,FALSE) -> 356.66 | BT33: =VLOOKUP($AS33,'3.3.3.Tarifas_EE'!$B:$AR,BT$1,FALSE) -> 0 | BU33: =VLOOKUP($AS33,'3.3.3.Tarifas_EE'!$B:$AR,BU$1,FALSE) -> 45.52 | BV33: =VLOOKUP($AS33,'3.3.3.Tarifas_EE'!$B:$AR,BV$1,FALSE) -> 0 | BW33: =VLOOKUP($AS33,'3.3.3.Tarifas_EE'!$B:$AR,BW$1,FALSE) -> 371.46 | BX33: =VLOOKUP($AS33,'3.3.3.Tarifas_EE'!$B:$AR,BX$1,FALSE) -> 0 | BY33: =VLOOKUP($AS33,'3.3.3.Tarifas_EE'!$B:$AR,BY$1,FALSE) -> 45.52 | BZ33: =VLOOKUP($AS33,'3.3.3.Tarifas_EE'!$B:$AR,BZ$1,FALSE) -> 0 | CA33: =VLOOKUP($AS33,'3.3.3.Tarifas_EE'!$B:$AR,CA$1,FALSE) -> 371.46 | CB33: =VLOOKUP($AS33,'3.3.3.Tarifas_EE'!$B:$AR,CB$1,FALSE) -> 0 | CC33: =VLOOKUP($AS33,'3.3.3.Tarifas_EE'!$B:$AR,CC$1,FALSE) -> 0 | CD33: =VLOOKUP($AS33,'3.3.3.Tarifas_EE'!$B:$AR,CD$1,FALSE) -> 0 | CE33: =VLOOKUP($AS33,'3.3.3.Tarifas_EE'!$B:$AR,CE$1,FALSE) -> 628.33 | CF33: =VLOOKUP($AS33,'3.3.3.Tarifas_EE'!$B:$AR,CF$1,FALSE) -> 0 | CG33: =VLOOKUP($AS33,'3.3.3.Tarifas_EE'!$B:$AR,CG$1,FALSE) -> 0 | CH33: =VLOOKUP($AS33,'3.3.3.Tarifas_EE'!$B:$AR,CH$1,FALSE) -> 0 | CI33: =VLOOKUP($AS33,'3.3.3.Tarifas_EE'!$B:$AR,CI$1,FALSE) -> 628.33 | CK33: -0.12 | CL33: 395503.0992 | CM33: 177435.72 | CN33: 977291.3811 | CO33: 6763632.998 | CP33: 36368.64 | CQ33: 23601.776 | CR33: 61574.80669 | CS33: 755252.7902 | CT33: 709448.8694 | CU33: 254471.782 | CV33: 413188.6508 | CW33: 4142267.044 | CX33: 0 | CY33: 0 | CZ33: 0 | DA33: 0 | DB33: 0 | DC33: 745963.6615 | DD33: 2107087.481 | DE33: 5932007.411 | DF33: 0 | DG33: 22759.704 | DH33: 67537.12015 | DI33: 139005.182 | DJ33: 0 | DK33: 0 | DL33: 0 | DM33: 0 | DN33: 0 | DO33: 0 | DP33: 0 | DQ33: 0 | DR33: 0 | DS33: 0 | DT33: 0 | DU33: 7864304.75 | DV33: 0 | DW33: 0 | DX33: 0 | DY33: 109502.8893 | DZ33: =EDATE(DZ32,1) -> 2020-10-01 | EA33: =SUM(CL33:DY33) -> 31698205.76 | EB33: 0 | EC33: 0 | EE33: =(EA33+EC33) -> 31698205.76 | EF33: -0.03529105115 | EJ33: =EDATE(EJ32,1) -> 2019-10-01 | EK33: 31698205.76 | EL33: 32857791.77 | EM33: =EDATE(EM32,1) -> 2020-10-01 | EN33: 31698205.76 | EO33: 31698205.76 | EQ33: 0 | ER33: -0.03529105115
C34: 2019-11-01 | D34: 0 | E34: 0 | F34: 0 | G34: 0 | H34: 0 | I34: 0 | J34: 0 | K34: 0 | L34: 0 | M34: 0 | N34: 0 | O34: 0 | P34: 0 | Q34: 0 | R34: 0 | S34: 0 | T34: 0 | U34: 0 | V34: 0 | W34: 0 | X34: 0 | Y34: 0 | Z34: 0 | AA34: 0 | AB34: 0 | AC34: 0 | AD34: 0 | AE34: 0 | AF34: 0 | AG34: 0 | AH34: 0 | AI34: 0 | AJ34: 0 | AK34: 0 | AL34: 0 | AM34: 0 | AN34: 0 | AO34: 0 | AP34: 0 | AQ34: 0 | AS34: 2020-11-01 | AT34: =VLOOKUP($AS34,'3.3.3.Tarifas_EE'!$B:$AR,AT$1,FALSE) -> Verde | AU34: =VLOOKUP($AS34,'3.3.3.Tarifas_EE'!$B:$AR,AU$1,FALSE) -> 0 | AV34: =VLOOKUP($AS34,'3.3.3.Tarifas_EE'!$B:$AR,AV$1,FALSE) -> 9.81 | AW34: =VLOOKUP($AS34,'3.3.3.Tarifas_EE'!$B:$AR,AW$1,FALSE) -> 3.7 | AX34: =VLOOKUP($AS34,'3.3.3.Tarifas_EE'!$B:$AR,AX$1,FALSE) -> 510.05 | AY34: =VLOOKUP($AS34,'3.3.3.Tarifas_EE'!$B:$AR,AY$1,FALSE) -> 332.46 | AZ34: =VLOOKUP($AS34,'3.3.3.Tarifas_EE'!$B:$AR,AZ$1,FALSE) -> 20.16 | BA34: =VLOOKUP($AS34,'3.3.3.Tarifas_EE'!$B:$AR,BA$1,FALSE) -> 6.68 | BB34: =VLOOKUP($AS34,'3.3.3.Tarifas_EE'!$B:$AR,BB$1,FALSE) -> 522.19 | BC34: =VLOOKUP($AS34,'3.3.3.Tarifas_EE'!$B:$AR,BC$1,FALSE) -> 344.6 | BD34: =VLOOKUP($AS34,'3.3.3.Tarifas_EE'!$B:$AR,BD$1,FALSE) -> 43.85 | BE34: =VLOOKUP($AS34,'3.3.3.Tarifas_EE'!$B:$AR,BE$1,FALSE) -> 13.95 | BF34: =VLOOKUP($AS34,'3.3.3.Tarifas_EE'!$B:$AR,BF$1,FALSE) -> 534.25 | BG34: =VLOOKUP($AS34,'3.3.3.Tarifas_EE'!$B:$AR,BG$1,FALSE) -> 356.66 | BH34: =VLOOKUP($AS34,'3.3.3.Tarifas_EE'!$B:$AR,BH$1,FALSE) -> 43.85 | BI34: =VLOOKUP($AS34,'3.3.3.Tarifas_EE'!$B:$AR,BI$1,FALSE) -> 13.95 | BJ34: =VLOOKUP($AS34,'3.3.3.Tarifas_EE'!$B:$AR,BJ$1,FALSE) -> 534.25 | BK34: =VLOOKUP($AS34,'3.3.3.Tarifas_EE'!$B:$AR,BK$1,FALSE) -> 356.66 | BL34: =VLOOKUP($AS34,'3.3.3.Tarifas_EE'!$B:$AR,BL$1,FALSE) -> 0 | BM34: =VLOOKUP($AS34,'3.3.3.Tarifas_EE'!$B:$AR,BM$1,FALSE) -> 13.95 | BN34: =VLOOKUP($AS34,'3.3.3.Tarifas_EE'!$B:$AR,BN$1,FALSE) -> 1599.69 | BO34: =VLOOKUP($AS34,'3.3.3.Tarifas_EE'!$B:$AR,BO$1,FALSE) -> 356.66 | BP34: =VLOOKUP($AS34,'3.3.3.Tarifas_EE'!$B:$AR,BP$1,FALSE) -> 0 | BQ34: =VLOOKUP($AS34,'3.3.3.Tarifas_EE'!$B:$AR,BQ$1,FALSE) -> 13.95 | BR34: =VLOOKUP($AS34,'3.3.3.Tarifas_EE'!$B:$AR,BR$1,FALSE) -> 1599.69 | BS34: =VLOOKUP($AS34,'3.3.3.Tarifas_EE'!$B:$AR,BS$1,FALSE) -> 356.66 | BT34: =VLOOKUP($AS34,'3.3.3.Tarifas_EE'!$B:$AR,BT$1,FALSE) -> 0 | BU34: =VLOOKUP($AS34,'3.3.3.Tarifas_EE'!$B:$AR,BU$1,FALSE) -> 45.52 | BV34: =VLOOKUP($AS34,'3.3.3.Tarifas_EE'!$B:$AR,BV$1,FALSE) -> 0 | BW34: =VLOOKUP($AS34,'3.3.3.Tarifas_EE'!$B:$AR,BW$1,FALSE) -> 371.46 | BX34: =VLOOKUP($AS34,'3.3.3.Tarifas_EE'!$B:$AR,BX$1,FALSE) -> 0 | BY34: =VLOOKUP($AS34,'3.3.3.Tarifas_EE'!$B:$AR,BY$1,FALSE) -> 45.52 | BZ34: =VLOOKUP($AS34,'3.3.3.Tarifas_EE'!$B:$AR,BZ$1,FALSE) -> 0 | CA34: =VLOOKUP($AS34,'3.3.3.Tarifas_EE'!$B:$AR,CA$1,FALSE) -> 371.46 | CB34: =VLOOKUP($AS34,'3.3.3.Tarifas_EE'!$B:$AR,CB$1,FALSE) -> 0 | CC34: =VLOOKUP($AS34,'3.3.3.Tarifas_EE'!$B:$AR,CC$1,FALSE) -> 0 | CD34: =VLOOKUP($AS34,'3.3.3.Tarifas_EE'!$B:$AR,CD$1,FALSE) -> 0 | CE34: =VLOOKUP($AS34,'3.3.3.Tarifas_EE'!$B:$AR,CE$1,FALSE) -> 628.33 | CF34: =VLOOKUP($AS34,'3.3.3.Tarifas_EE'!$B:$AR,CF$1,FALSE) -> 0 | CG34: =VLOOKUP($AS34,'3.3.3.Tarifas_EE'!$B:$AR,CG$1,FALSE) -> 0 | CH34: =VLOOKUP($AS34,'3.3.3.Tarifas_EE'!$B:$AR,CH$1,FALSE) -> 0 | CI34: =VLOOKUP($AS34,'3.3.3.Tarifas_EE'!$B:$AR,CI$1,FALSE) -> 628.33 | CK34: -0.12 | CL34: 394130.484 | CM34: 178747.888 | CN34: 818611.5618 | CO34: 6523270.828 | CP34: 36368.64 | CQ34: 22337.92 | CR34: 52131.98226 | CS34: 665815.8575 | CT34: 719440.8461 | CU34: 255569.0108 | CV34: 431825.4706 | CW34: 4372855.239 | CX34: 0 | CY34: 0 | CZ34: 0 | DA34: 0 | DB34: 0 | DC34: 744097.3412 | DD34: 2258796.833 | DE34: 6140262.212 | DF34: 0 | DG34: 22956.12 | DH34: 69426.29005 | DI34: 142773.3948 | DJ34: 0 | DK34: 0 | DL34: 0 | DM34: 0 | DN34: 0 | DO34: 0 | DP34: 0 | DQ34: 0 | DR34: 0 | DS34: 0 | DT34: 0 | DU34: 8425839.853 | DV34: 0 | DW34: 0 | DX34: 0 | DY34: 125188.9719 | DZ34: =EDATE(DZ33,1) -> 2020-11-01 | EA34: 32400446.74 | EB34: 0 | EC34: 0 | EE34: 32400446.74 | EF34: -0.09165339466 | EJ34: =EDATE(EJ33,1) -> 2019-11-01 | EK34: 32400446.74 | EL34: 35669695.42 | EM34: =EDATE(EM33,1) -> 2020-11-01 | EN34: 32400446.74 | EO34: 32400446.74 | EQ34: 0 | ER34: -0.09165339466
C35: 2019-12-01 | D35: 0 | E35: 0 | F35: 0 | G35: 0 | H35: 0 | I35: 0 | J35: 0 | K35: 0 | L35: 0 | M35: 0 | N35: 0 | O35: 0 | P35: 0 | Q35: 0 | R35: 0 | S35: 0 | T35: 0 | U35: 0 | V35: 0 | W35: 0 | X35: 0 | Y35: 0 | Z35: 0 | AA35: 0 | AB35: 0 | AC35: 0 | AD35: 0 | AE35: 0 | AF35: 0 | AG35: 0 | AH35: 0 | AI35: 0 | AJ35: 0 | AK35: 0 | AL35: 0 | AM35: 0 | AN35: 0 | AO35: 0 | AP35: 0 | AQ35: 0 | AS35: 2020-12-01 | AT35: =VLOOKUP($AS35,'3.3.3.Tarifas_EE'!$B:$AR,AT$1,FALSE) -> Verde | AU35: =VLOOKUP($AS35,'3.3.3.Tarifas_EE'!$B:$AR,AU$1,FALSE) -> 0 | AV35: =VLOOKUP($AS35,'3.3.3.Tarifas_EE'!$B:$AR,AV$1,FALSE) -> 9.81 | AW35: =VLOOKUP($AS35,'3.3.3.Tarifas_EE'!$B:$AR,AW$1,FALSE) -> 3.7 | AX35: =VLOOKUP($AS35,'3.3.3.Tarifas_EE'!$B:$AR,AX$1,FALSE) -> 510.05 | AY35: =VLOOKUP($AS35,'3.3.3.Tarifas_EE'!$B:$AR,AY$1,FALSE) -> 332.46 | AZ35: =VLOOKUP($AS35,'3.3.3.Tarifas_EE'!$B:$AR,AZ$1,FALSE) -> 20.16 | BA35: =VLOOKUP($AS35,'3.3.3.Tarifas_EE'!$B:$AR,BA$1,FALSE) -> 6.68 | BB35: =VLOOKUP($AS35,'3.3.3.Tarifas_EE'!$B:$AR,BB$1,FALSE) -> 522.19 | BC35: =VLOOKUP($AS35,'3.3.3.Tarifas_EE'!$B:$AR,BC$1,FALSE) -> 344.6 | BD35: =VLOOKUP($AS35,'3.3.3.Tarifas_EE'!$B:$AR,BD$1,FALSE) -> 43.85 | BE35: =VLOOKUP($AS35,'3.3.3.Tarifas_EE'!$B:$AR,BE$1,FALSE) -> 13.95 | BF35: =VLOOKUP($AS35,'3.3.3.Tarifas_EE'!$B:$AR,BF$1,FALSE) -> 534.25 | BG35: =VLOOKUP($AS35,'3.3.3.Tarifas_EE'!$B:$AR,BG$1,FALSE) -> 356.66 | BH35: =VLOOKUP($AS35,'3.3.3.Tarifas_EE'!$B:$AR,BH$1,FALSE) -> 43.85 | BI35: =VLOOKUP($AS35,'3.3.3.Tarifas_EE'!$B:$AR,BI$1,FALSE) -> 13.95 | BJ35: =VLOOKUP($AS35,'3.3.3.Tarifas_EE'!$B:$AR,BJ$1,FALSE) -> 534.25 | BK35: =VLOOKUP($AS35,'3.3.3.Tarifas_EE'!$B:$AR,BK$1,FALSE) -> 356.66 | BL35: =VLOOKUP($AS35,'3.3.3.Tarifas_EE'!$B:$AR,BL$1,FALSE) -> 0 | BM35: =VLOOKUP($AS35,'3.3.3.Tarifas_EE'!$B:$AR,BM$1,FALSE) -> 13.95 | BN35: =VLOOKUP($AS35,'3.3.3.Tarifas_EE'!$B:$AR,BN$1,FALSE) -> 1599.69 | BO35: =VLOOKUP($AS35,'3.3.3.Tarifas_EE'!$B:$AR,BO$1,FALSE) -> 356.66 | BP35: =VLOOKUP($AS35,'3.3.3.Tarifas_EE'!$B:$AR,BP$1,FALSE) -> 0 | BQ35: =VLOOKUP($AS35,'3.3.3.Tarifas_EE'!$B:$AR,BQ$1,FALSE) -> 13.95 | BR35: =VLOOKUP($AS35,'3.3.3.Tarifas_EE'!$B:$AR,BR$1,FALSE) -> 1599.69 | BS35: =VLOOKUP($AS35,'3.3.3.Tarifas_EE'!$B:$AR,BS$1,FALSE) -> 356.66 | BT35: =VLOOKUP($AS35,'3.3.3.Tarifas_EE'!$B:$AR,BT$1,FALSE) -> 0 | BU35: =VLOOKUP($AS35,'3.3.3.Tarifas_EE'!$B:$AR,BU$1,FALSE) -> 45.52 | BV35: =VLOOKUP($AS35,'3.3.3.Tarifas_EE'!$B:$AR,BV$1,FALSE) -> 0 | BW35: =VLOOKUP($AS35,'3.3.3.Tarifas_EE'!$B:$AR,BW$1,FALSE) -> 371.46 | BX35: =VLOOKUP($AS35,'3.3.3.Tarifas_EE'!$B:$AR,BX$1,FALSE) -> 0 | BY35: =VLOOKUP($AS35,'3.3.3.Tarifas_EE'!$B:$AR,BY$1,FALSE) -> 45.52 | BZ35: =VLOOKUP($AS35,'3.3.3.Tarifas_EE'!$B:$AR,BZ$1,FALSE) -> 0 | CA35: =VLOOKUP($AS35,'3.3.3.Tarifas_EE'!$B:$AR,CA$1,FALSE) -> 371.46 | CB35: =VLOOKUP($AS35,'3.3.3.Tarifas_EE'!$B:$AR,CB$1,FALSE) -> 0 | CC35: =VLOOKUP($AS35,'3.3.3.Tarifas_EE'!$B:$AR,CC$1,FALSE) -> 0 | CD35: =VLOOKUP($AS35,'3.3.3.Tarifas_EE'!$B:$AR,CD$1,FALSE) -> 0 | CE35: =VLOOKUP($AS35,'3.3.3.Tarifas_EE'!$B:$AR,CE$1,FALSE) -> 628.33 | CF35: =VLOOKUP($AS35,'3.3.3.Tarifas_EE'!$B:$AR,CF$1,FALSE) -> 0 | CG35: =VLOOKUP($AS35,'3.3.3.Tarifas_EE'!$B:$AR,CG$1,FALSE) -> 0 | CH35: =VLOOKUP($AS35,'3.3.3.Tarifas_EE'!$B:$AR,CH$1,FALSE) -> 0 | CI35: =VLOOKUP($AS35,'3.3.3.Tarifas_EE'!$B:$AR,CI$1,FALSE) -> 628.33 | CK35: -0.12 | CL35: 392464.3536 | CM35: 178090.176 | CN35: 791095.1803 | CO35: 6612774.592 | CP35: 38426.5728 | CQ35: 22337.92 | CR35: 57957.8681 | CS35: 616083.1855 | CT35: 711693.1474 | CU35: 255822.633 | CV35: 372487.2206 | CW35: 3395613.858 | CX35: 1157.64 | CY35: 368.28 | CZ35: 0 | DA35: 0 | DB35: 0 | DC35: 751366.0836 | DD35: 1800087.517 | DE35: 6341098.913 | DF35: 0 | DG35: 22501.908 | DH35: 60326.74143 | DI35: 136963.2036 | DJ35: 0 | DK35: 0 | DL35: 0 | DM35: 0 | DN35: 0 | DO35: 0 | DP35: 0 | DQ35: 0 | DR35: 0 | DS35: 0 | DT35: 0 | DU35: 7615426.907 | DV35: 0 | DW35: 0 | DX35: 0 | DY35: 160406.2149 | DZ35: 2020-12-01 | EA35: 30334550.12 | EB35: 0 | EC35: 0 | EE35: 30334550.12 | EF35: -0.03178851842 | EJ35: 2019-12-01 | EK35: 30334550.12 | EL35: 31330500.3 | EM35: 2020-12-01 | EN35: 30334550.12 | EO35: 30334550.12 | EQ35: 0 | ER35: -0.03178851842
C36: 2020-01-01 | D36: 0 | E36: 0 | F36: 0 | G36: 0 | H36: 0 | I36: 0 | J36: 0 | K36: 0 | L36: 0 | M36: 0 | N36: 0 | O36: 0 | P36: 0 | Q36: 0 | R36: 0 | S36: 0 | T36: 0 | U36: 0 | V36: 0 | W36: 0 | X36: 0 | Y36: 0 | Z36: 0 | AA36: 0 | AB36: 0 | AC36: 0 | AD36: 0 | AE36: 0 | AF36: 0 | AG36: 0 | AH36: 0 | AI36: 0 | AJ36: 0 | AK36: 0 | AL36: 0 | AM36: 0 | AN36: 0 | AO36: 0 | AP36: 0 | AQ36: 0 | AS36: 2021-01-01 | AT36: =VLOOKUP($AS36,'3.3.3.Tarifas_EE'!$B:$AR,AT$1,FALSE) -> Verde | AU36: =VLOOKUP($AS36,'3.3.3.Tarifas_EE'!$B:$AR,AU$1,FALSE) -> 0 | AV36: =VLOOKUP($AS36,'3.3.3.Tarifas_EE'!$B:$AR,AV$1,FALSE) -> 9.81 | AW36: =VLOOKUP($AS36,'3.3.3.Tarifas_EE'!$B:$AR,AW$1,FALSE) -> 3.7 | AX36: =VLOOKUP($AS36,'3.3.3.Tarifas_EE'!$B:$AR,AX$1,FALSE) -> 510.05 | AY36: =VLOOKUP($AS36,'3.3.3.Tarifas_EE'!$B:$AR,AY$1,FALSE) -> 332.46 | AZ36: =VLOOKUP($AS36,'3.3.3.Tarifas_EE'!$B:$AR,AZ$1,FALSE) -> 20.16 | BA36: =VLOOKUP($AS36,'3.3.3.Tarifas_EE'!$B:$AR,BA$1,FALSE) -> 6.68 | BB36: =VLOOKUP($AS36,'3.3.3.Tarifas_EE'!$B:$AR,BB$1,FALSE) -> 522.19 | BC36: =VLOOKUP($AS36,'3.3.3.Tarifas_EE'!$B:$AR,BC$1,FALSE) -> 344.6 | BD36: =VLOOKUP($AS36,'3.3.3.Tarifas_EE'!$B:$AR,BD$1,FALSE) -> 43.85 | BE36: =VLOOKUP($AS36,'3.3.3.Tarifas_EE'!$B:$AR,BE$1,FALSE) -> 13.95 | BF36: =VLOOKUP($AS36,'3.3.3.Tarifas_EE'!$B:$AR,BF$1,FALSE) -> 534.25 | BG36: =VLOOKUP($AS36,'3.3.3.Tarifas_EE'!$B:$AR,BG$1,FALSE) -> 356.66 | BH36: =VLOOKUP($AS36,'3.3.3.Tarifas_EE'!$B:$AR,BH$1,FALSE) -> 43.85 | BI36: =VLOOKUP($AS36,'3.3.3.Tarifas_EE'!$B:$AR,BI$1,FALSE) -> 13.95 | BJ36: =VLOOKUP($AS36,'3.3.3.Tarifas_EE'!$B:$AR,BJ$1,FALSE) -> 534.25 | BK36: =VLOOKUP($AS36,'3.3.3.Tarifas_EE'!$B:$AR,BK$1,FALSE) -> 356.66 | BL36: =VLOOKUP($AS36,'3.3.3.Tarifas_EE'!$B:$AR,BL$1,FALSE) -> 0 | BM36: =VLOOKUP($AS36,'3.3.3.Tarifas_EE'!$B:$AR,BM$1,FALSE) -> 13.95 | BN36: =VLOOKUP($AS36,'3.3.3.Tarifas_EE'!$B:$AR,BN$1,FALSE) -> 1599.69 | BO36: =VLOOKUP($AS36,'3.3.3.Tarifas_EE'!$B:$AR,BO$1,FALSE) -> 356.66 | BP36: =VLOOKUP($AS36,'3.3.3.Tarifas_EE'!$B:$AR,BP$1,FALSE) -> 0 | BQ36: =VLOOKUP($AS36,'3.3.3.Tarifas_EE'!$B:$AR,BQ$1,FALSE) -> 13.95 | BR36: =VLOOKUP($AS36,'3.3.3.Tarifas_EE'!$B:$AR,BR$1,FALSE) -> 1599.69 | BS36: =VLOOKUP($AS36,'3.3.3.Tarifas_EE'!$B:$AR,BS$1,FALSE) -> 356.66 | BT36: =VLOOKUP($AS36,'3.3.3.Tarifas_EE'!$B:$AR,BT$1,FALSE) -> 0 | BU36: =VLOOKUP($AS36,'3.3.3.Tarifas_EE'!$B:$AR,BU$1,FALSE) -> 45.52 | BV36: =VLOOKUP($AS36,'3.3.3.Tarifas_EE'!$B:$AR,BV$1,FALSE) -> 0 | BW36: =VLOOKUP($AS36,'3.3.3.Tarifas_EE'!$B:$AR,BW$1,FALSE) -> 371.46 | BX36: =VLOOKUP($AS36,'3.3.3.Tarifas_EE'!$B:$AR,BX$1,FALSE) -> 0 | BY36: =VLOOKUP($AS36,'3.3.3.Tarifas_EE'!$B:$AR,BY$1,FALSE) -> 45.52 | BZ36: =VLOOKUP($AS36,'3.3.3.Tarifas_EE'!$B:$AR,BZ$1,FALSE) -> 0 | CA36: =VLOOKUP($AS36,'3.3.3.Tarifas_EE'!$B:$AR,CA$1,FALSE) -> 371.46 | CB36: =VLOOKUP($AS36,'3.3.3.Tarifas_EE'!$B:$AR,CB$1,FALSE) -> 0 | CC36: =VLOOKUP($AS36,'3.3.3.Tarifas_EE'!$B:$AR,CC$1,FALSE) -> 0 | CD36: =VLOOKUP($AS36,'3.3.3.Tarifas_EE'!$B:$AR,CD$1,FALSE) -> 0 | CE36: =VLOOKUP($AS36,'3.3.3.Tarifas_EE'!$B:$AR,CE$1,FALSE) -> 628.33 | CF36: =VLOOKUP($AS36,'3.3.3.Tarifas_EE'!$B:$AR,CF$1,FALSE) -> 0 | CG36: =VLOOKUP($AS36,'3.3.3.Tarifas_EE'!$B:$AR,CG$1,FALSE) -> 0 | CH36: =VLOOKUP($AS36,'3.3.3.Tarifas_EE'!$B:$AR,CH$1,FALSE) -> 0 | CI36: =VLOOKUP($AS36,'3.3.3.Tarifas_EE'!$B:$AR,CI$1,FALSE) -> 628.33 | CK36: -0.12 | CL36: 394700.2488 | CM36: 178090.176 | CN36: 1015204.785 | CO36: 6622126.426 | CP36: 70839.0144 | CQ36: 27787.1968 | CR36: 71036.01221 | CS36: 651742.4211 | CT36: 710893.2182 | CU36: 268944.9404 | CV36: 390666.5941 | CW36: 4273441.086 | CX36: 1157.64 | CY36: 368.28 | CZ36: 0 | DA36: 0 | DB36: 0 | DC36: 739510.6594 | DD36: 2025136.642 | DE36: 6029918.798 | DF36: 0 | DG36: 22649.22 | DH36: 59273.76148 | DI36: 138570.7986 | DJ36: 0 | DK36: 0 | DL36: 0 | DM36: 0 | DN36: 0 | DO36: 0 | DP36: 0 | DQ36: 0 | DR36: 0 | DS36: 0 | DT36: 0 | DU36: 8109250.706 | DV36: 0 | DW36: 0 | DX36: 0 | DY36: 171057.8661 | DZ36: 2021-01-01 | EA36: 31972366.49 | EB36: 0 | EC36: 0 | EE36: 31972366.49 | EF36: -0.0316286412 | EJ36: 2020-01-01 | EK36: 31972366.49 | EL36: 33016637.88 | EM36: 2021-01-01 | EN36: 31972366.49 | EO36: 31972366.49 | EQ36: 0 | ER36: -0.0316286412
C37: 2020-02-01 | D37: 0 | E37: 0 | F37: 0 | G37: 0 | H37: 0 | I37: 0 | J37: 0 | K37: 0 | L37: 0 | M37: 0 | N37: 0 | O37: 0 | P37: 0 | Q37: 0 | R37: 0 | S37: 0 | T37: 0 | U37: 0 | V37: 0 | W37: 0 | X37: 0 | Y37: 0 | Z37: 0 | AA37: 0 | AB37: 0 | AC37: 0 | AD37: 0 | AE37: 0 | AF37: 0 | AG37: 0 | AH37: 0 | AI37: 0 | AJ37: 0 | AK37: 0 | AL37: 0 | AM37: 0 | AN37: 0 | AO37: =AO16 -> 0 | AP37: =AP16 -> 0 | AQ37: =AQ16 -> 0 | AS37: 2021-02-01 | AT37: =VLOOKUP($AS37,'3.3.3.Tarifas_EE'!$B:$AR,AT$1,FALSE) -> Verde | AU37: =VLOOKUP($AS37,'3.3.3.Tarifas_EE'!$B:$AR,AU$1,FALSE) -> 0 | AV37: =VLOOKUP($AS37,'3.3.3.Tarifas_EE'!$B:$AR,AV$1,FALSE) -> 9.81 | AW37: =VLOOKUP($AS37,'3.3.3.Tarifas_EE'!$B:$AR,AW$1,FALSE) -> 3.7 | AX37: =VLOOKUP($AS37,'3.3.3.Tarifas_EE'!$B:$AR,AX$1,FALSE) -> 510.05 | AY37: =VLOOKUP($AS37,'3.3.3.Tarifas_EE'!$B:$AR,AY$1,FALSE) -> 332.46 | AZ37: =VLOOKUP($AS37,'3.3.3.Tarifas_EE'!$B:$AR,AZ$1,FALSE) -> 20.16 | BA37: =VLOOKUP($AS37,'3.3.3.Tarifas_EE'!$B:$AR,BA$1,FALSE) -> 6.68 | BB37: =VLOOKUP($AS37,'3.3.3.Tarifas_EE'!$B:$AR,BB$1,FALSE) -> 522.19 | BC37: =VLOOKUP($AS37,'3.3.3.Tarifas_EE'!$B:$AR,BC$1,FALSE) -> 344.6 | BD37: =VLOOKUP($AS37,'3.3.3.Tarifas_EE'!$B:$AR,BD$1,FALSE) -> 43.85 | BE37: =VLOOKUP($AS37,'3.3.3.Tarifas_EE'!$B:$AR,BE$1,FALSE) -> 13.95 | BF37: =VLOOKUP($AS37,'3.3.3.Tarifas_EE'!$B:$AR,BF$1,FALSE) -> 534.25 | BG37: =VLOOKUP($AS37,'3.3.3.Tarifas_EE'!$B:$AR,BG$1,FALSE) -> 356.66 | BH37: =VLOOKUP($AS37,'3.3.3.Tarifas_EE'!$B:$AR,BH$1,FALSE) -> 43.85 | BI37: =VLOOKUP($AS37,'3.3.3.Tarifas_EE'!$B:$AR,BI$1,FALSE) -> 13.95 | BJ37: =VLOOKUP($AS37,'3.3.3.Tarifas_EE'!$B:$AR,BJ$1,FALSE) -> 534.25 | BK37: =VLOOKUP($AS37,'3.3.3.Tarifas_EE'!$B:$AR,BK$1,FALSE) -> 356.66 | BL37: =VLOOKUP($AS37,'3.3.3.Tarifas_EE'!$B:$AR,BL$1,FALSE) -> 0 | BM37: =VLOOKUP($AS37,'3.3.3.Tarifas_EE'!$B:$AR,BM$1,FALSE) -> 13.95 | BN37: =VLOOKUP($AS37,'3.3.3.Tarifas_EE'!$B:$AR,BN$1,FALSE) -> 1599.69 | BO37: =VLOOKUP($AS37,'3.3.3.Tarifas_EE'!$B:$AR,BO$1,FALSE) -> 356.66 | BP37: =VLOOKUP($AS37,'3.3.3.Tarifas_EE'!$B:$AR,BP$1,FALSE) -> 0 | BQ37: =VLOOKUP($AS37,'3.3.3.Tarifas_EE'!$B:$AR,BQ$1,FALSE) -> 13.95 | BR37: =VLOOKUP($AS37,'3.3.3.Tarifas_EE'!$B:$AR,BR$1,FALSE) -> 1599.69 | BS37: =VLOOKUP($AS37,'3.3.3.Tarifas_EE'!$B:$AR,BS$1,FALSE) -> 356.66 | BT37: =VLOOKUP($AS37,'3.3.3.Tarifas_EE'!$B:$AR,BT$1,FALSE) -> 0 | BU37: =VLOOKUP($AS37,'3.3.3.Tarifas_EE'!$B:$AR,BU$1,FALSE) -> 45.52 | BV37: =VLOOKUP($AS37,'3.3.3.Tarifas_EE'!$B:$AR,BV$1,FALSE) -> 0 | BW37: =VLOOKUP($AS37,'3.3.3.Tarifas_EE'!$B:$AR,BW$1,FALSE) -> 371.46 | BX37: =VLOOKUP($AS37,'3.3.3.Tarifas_EE'!$B:$AR,BX$1,FALSE) -> 0 | BY37: =VLOOKUP($AS37,'3.3.3.Tarifas_EE'!$B:$AR,BY$1,FALSE) -> 45.52 | BZ37: =VLOOKUP($AS37,'3.3.3.Tarifas_EE'!$B:$AR,BZ$1,FALSE) -> 0 | CA37: =VLOOKUP($AS37,'3.3.3.Tarifas_EE'!$B:$AR,CA$1,FALSE) -> 371.46 | CB37: =VLOOKUP($AS37,'3.3.3.Tarifas_EE'!$B:$AR,CB$1,FALSE) -> 0 | CC37: =VLOOKUP($AS37,'3.3.3.Tarifas_EE'!$B:$AR,CC$1,FALSE) -> 0 | CD37: =VLOOKUP($AS37,'3.3.3.Tarifas_EE'!$B:$AR,CD$1,FALSE) -> 0 | CE37: =VLOOKUP($AS37,'3.3.3.Tarifas_EE'!$B:$AR,CE$1,FALSE) -> 628.33 | CF37: =VLOOKUP($AS37,'3.3.3.Tarifas_EE'!$B:$AR,CF$1,FALSE) -> 0 | CG37: =VLOOKUP($AS37,'3.3.3.Tarifas_EE'!$B:$AR,CG$1,FALSE) -> 0 | CH37: =VLOOKUP($AS37,'3.3.3.Tarifas_EE'!$B:$AR,CH$1,FALSE) -> 0 | CI37: =VLOOKUP($AS37,'3.3.3.Tarifas_EE'!$B:$AR,CI$1,FALSE) -> 628.33 | CK37: -0.12 | CL37: 395943.372 | CM37: 178747.888 | CN37: 745105.2776 | CO37: 6468182.924 | CP37: 71247.0528 | CQ37: 26599.76 | CR37: 100599.6946 | CS37: 745550.0672 | CT37: 717680.4615 | CU37: 256849.5204 | CV37: 412829.4639 | CW37: 3402579.057 | CX37: 1157.64 | CY37: 368.28 | CZ37: 0 | DA37: 0 | DB37: 0 | DC37: 743426.4578 | DD37: 2114693.431 | DE37: 5765357.37 | DF37: 0 | DG37: 22501.908 | DH37: 61869.61044 | DI37: 139201.0311 | DJ37: 0 | DK37: 0 | DL37: 0 | DM37: 0 | DN37: 0 | DO37: 0 | DP37: 0 | DQ37: 0 | DR37: 0 | DS37: 0 | DT37: 0 | DU37: 7645182.303 | DV37: 0 | DW37: 0 | DX37: 0 | DY37: 166070.4339 | DZ37: 2021-02-01 | EA37: 30181743 | EB37: 0 | EC37: 0 | EE37: 30181743 | EF37: 0 | EJ37: 2020-02-01 | EK37: 30181743 | EL37: 30181743 | EM37: 2021-02-01 | EN37: 30181743 | EO37: 30181743 | EQ37: 0 | ER37: 0
C38: 2020-03-01 | D38: 0 | E38: =E17 -> 0 | F38: 0 | G38: 0 | H38: 0 | I38: 0 | J38: 0 | K38: 0 | L38: 0 | M38: 0 | N38: 0 | O38: 0 | P38: 0 | Q38: 0 | R38: 0 | S38: 0 | T38: =T17 -> 0 | U38: 0 | V38: 0 | W38: 0 | X38: 0 | Y38: 0 | Z38: 0 | AA38: 0 | AB38: 0 | AC38: 0 | AD38: 0 | AE38: 0 | AF38: 0 | AG38: 0 | AH38: 0 | AI38: 0 | AJ38: 0 | AK38: 0 | AL38: 0 | AM38: 0 | AN38: 0 | AO38: 0 | AP38: 0 | AQ38: 0 | AS38: 2021-03-01 | AT38: =VLOOKUP($AS38,'3.3.3.Tarifas_EE'!$B:$AR,AT$1,FALSE) -> Verde | AU38: =VLOOKUP($AS38,'3.3.3.Tarifas_EE'!$B:$AR,AU$1,FALSE) -> 0 | AV38: =VLOOKUP($AS38,'3.3.3.Tarifas_EE'!$B:$AR,AV$1,FALSE) -> 9.81 | AW38: =VLOOKUP($AS38,'3.3.3.Tarifas_EE'!$B:$AR,AW$1,FALSE) -> 3.7 | AX38: =VLOOKUP($AS38,'3.3.3.Tarifas_EE'!$B:$AR,AX$1,FALSE) -> 510.05 | AY38: =VLOOKUP($AS38,'3.3.3.Tarifas_EE'!$B:$AR,AY$1,FALSE) -> 332.46 | AZ38: =VLOOKUP($AS38,'3.3.3.Tarifas_EE'!$B:$AR,AZ$1,FALSE) -> 20.16 | BA38: =VLOOKUP($AS38,'3.3.3.Tarifas_EE'!$B:$AR,BA$1,FALSE) -> 6.68 | BB38: =VLOOKUP($AS38,'3.3.3.Tarifas_EE'!$B:$AR,BB$1,FALSE) -> 522.19 | BC38: =VLOOKUP($AS38,'3.3.3.Tarifas_EE'!$B:$AR,BC$1,FALSE) -> 344.6 | BD38: =VLOOKUP($AS38,'3.3.3.Tarifas_EE'!$B:$AR,BD$1,FALSE) -> 43.85 | BE38: =VLOOKUP($AS38,'3.3.3.Tarifas_EE'!$B:$AR,BE$1,FALSE) -> 13.95 | BF38: =VLOOKUP($AS38,'3.3.3.Tarifas_EE'!$B:$AR,BF$1,FALSE) -> 534.25 | BG38: =VLOOKUP($AS38,'3.3.3.Tarifas_EE'!$B:$AR,BG$1,FALSE) -> 356.66 | BH38: =VLOOKUP($AS38,'3.3.3.Tarifas_EE'!$B:$AR,BH$1,FALSE) -> 43.85 | BI38: =VLOOKUP($AS38,'3.3.3.Tarifas_EE'!$B:$AR,BI$1,FALSE) -> 13.95 | BJ38: =VLOOKUP($AS38,'3.3.3.Tarifas_EE'!$B:$AR,BJ$1,FALSE) -> 534.25 | BK38: =VLOOKUP($AS38,'3.3.3.Tarifas_EE'!$B:$AR,BK$1,FALSE) -> 356.66 | BL38: =VLOOKUP($AS38,'3.3.3.Tarifas_EE'!$B:$AR,BL$1,FALSE) -> 0 | BM38: =VLOOKUP($AS38,'3.3.3.Tarifas_EE'!$B:$AR,BM$1,FALSE) -> 13.95 | BN38: =VLOOKUP($AS38,'3.3.3.Tarifas_EE'!$B:$AR,BN$1,FALSE) -> 1599.69 | BO38: =VLOOKUP($AS38,'3.3.3.Tarifas_EE'!$B:$AR,BO$1,FALSE) -> 356.66 | BP38: =VLOOKUP($AS38,'3.3.3.Tarifas_EE'!$B:$AR,BP$1,FALSE) -> 0 | BQ38: =VLOOKUP($AS38,'3.3.3.Tarifas_EE'!$B:$AR,BQ$1,FALSE) -> 13.95 | BR38: =VLOOKUP($AS38,'3.3.3.Tarifas_EE'!$B:$AR,BR$1,FALSE) -> 1599.69 | BS38: =VLOOKUP($AS38,'3.3.3.Tarifas_EE'!$B:$AR,BS$1,FALSE) -> 356.66 | BT38: =VLOOKUP($AS38,'3.3.3.Tarifas_EE'!$B:$AR,BT$1,FALSE) -> 0 | BU38: =VLOOKUP($AS38,'3.3.3.Tarifas_EE'!$B:$AR,BU$1,FALSE) -> 45.52 | BV38: =VLOOKUP($AS38,'3.3.3.Tarifas_EE'!$B:$AR,BV$1,FALSE) -> 0 | BW38: =VLOOKUP($AS38,'3.3.3.Tarifas_EE'!$B:$AR,BW$1,FALSE) -> 371.46 | BX38: =VLOOKUP($AS38,'3.3.3.Tarifas_EE'!$B:$AR,BX$1,FALSE) -> 0 | BY38: =VLOOKUP($AS38,'3.3.3.Tarifas_EE'!$B:$AR,BY$1,FALSE) -> 45.52 | BZ38: =VLOOKUP($AS38,'3.3.3.Tarifas_EE'!$B:$AR,BZ$1,FALSE) -> 0 | CA38: =VLOOKUP($AS38,'3.3.3.Tarifas_EE'!$B:$AR,CA$1,FALSE) -> 371.46 | CB38: =VLOOKUP($AS38,'3.3.3.Tarifas_EE'!$B:$AR,CB$1,FALSE) -> 0 | CC38: =VLOOKUP($AS38,'3.3.3.Tarifas_EE'!$B:$AR,CC$1,FALSE) -> 0 | CD38: =VLOOKUP($AS38,'3.3.3.Tarifas_EE'!$B:$AR,CD$1,FALSE) -> 0 | CE38: =VLOOKUP($AS38,'3.3.3.Tarifas_EE'!$B:$AR,CE$1,FALSE) -> 628.33 | CF38: =VLOOKUP($AS38,'3.3.3.Tarifas_EE'!$B:$AR,CF$1,FALSE) -> 0 | CG38: =VLOOKUP($AS38,'3.3.3.Tarifas_EE'!$B:$AR,CG$1,FALSE) -> 0 | CH38: =VLOOKUP($AS38,'3.3.3.Tarifas_EE'!$B:$AR,CH$1,FALSE) -> 0 | CI38: =VLOOKUP($AS38,'3.3.3.Tarifas_EE'!$B:$AR,CI$1,FALSE) -> 628.33 | CK38: -0.12 | CL38: 397436.8464 | CM38: 178842.312 | CN38: 880455.0835 | CO38: 7076335.033 | CP38: 37468.5696 | CQ38: 23431.3024 | CR38: 60295.94249 | CS38: 765853.1272 | CT38: 336109.9694 | CU38: 117607.0262 | CV38: 361998.8673 | CW38: 2832466.92 | CX38: 4514.796 | CY38: 847.044 | CZ38: 0 | DA38: 77.2097568 | DB38: 0 | DC38: 401944.5976 | DD38: 1865811.485 | DE38: 5560537.461 | DF38: 0 | DG38: 22280.94 | DH38: 60326.74143 | DI38: 133506.9685 | DJ38: 0 | DK38: 0 | DL38: 0 | DM38: 0 | DN38: 0 | DO38: 0 | DP38: 0 | DQ38: 0 | DR38: 0 | DS38: 0 | DT38: 0 | DU38: 7852378.042 | DV38: 0 | DW38: 0 | DX38: 0 | DY38: 134638.5524 | DZ38: 2021-03-01 | EA38: 29105164.84 | EB38: 0 | EC38: 0 | EE38: 29105164.84 | EF38: 0 | EJ38: 2020-03-01 | EK38: 29105164.84 | EL38: 29105164.84 | EM38: 2021-03-01 | EN38: 29105164.84 | EO38: 29105164.84 | EQ38: 0 | ER38: 0
C39: 2020-04-01 | D39: 0 | E39: 0 | F39: 0 | G39: 0 | H39: 0 | I39: 0 | J39: 0 | K39: 0 | L39: 0 | M39: 0 | N39: 0 | O39: 0 | P39: 0 | Q39: 0 | R39: 0 | S39: 0 | T39: 0 | U39: 0 | V39: 0 | W39: 0 | X39: 0 | Y39: 0 | Z39: 0 | AA39: 0 | AB39: 0 | AC39: 0 | AD39: 0 | AE39: 0 | AF39: 0 | AG39: 0 | AH39: 0 | AI39: 0 | AJ39: 0 | AK39: 0 | AL39: 0 | AM39: 0 | AN39: 0 | AO39: 0 | AP39: 0 | AQ39: 0 | AS39: 2021-04-01 | AT39: =VLOOKUP($AS39,'3.3.3.Tarifas_EE'!$B:$AR,AT$1,FALSE) -> Verde | AU39: =VLOOKUP($AS39,'3.3.3.Tarifas_EE'!$B:$AR,AU$1,FALSE) -> 0 | AV39: =VLOOKUP($AS39,'3.3.3.Tarifas_EE'!$B:$AR,AV$1,FALSE) -> 9.81 | AW39: =VLOOKUP($AS39,'3.3.3.Tarifas_EE'!$B:$AR,AW$1,FALSE) -> 3.7 | AX39: =VLOOKUP($AS39,'3.3.3.Tarifas_EE'!$B:$AR,AX$1,FALSE) -> 510.05 | AY39: =VLOOKUP($AS39,'3.3.3.Tarifas_EE'!$B:$AR,AY$1,FALSE) -> 332.46 | AZ39: =VLOOKUP($AS39,'3.3.3.Tarifas_EE'!$B:$AR,AZ$1,FALSE) -> 20.16 | BA39: =VLOOKUP($AS39,'3.3.3.Tarifas_EE'!$B:$AR,BA$1,FALSE) -> 6.68 | BB39: =VLOOKUP($AS39,'3.3.3.Tarifas_EE'!$B:$AR,BB$1,FALSE) -> 522.19 | BC39: =VLOOKUP($AS39,'3.3.3.Tarifas_EE'!$B:$AR,BC$1,FALSE) -> 344.6 | BD39: =VLOOKUP($AS39,'3.3.3.Tarifas_EE'!$B:$AR,BD$1,FALSE) -> 43.85 | BE39: =VLOOKUP($AS39,'3.3.3.Tarifas_EE'!$B:$AR,BE$1,FALSE) -> 13.95 | BF39: =VLOOKUP($AS39,'3.3.3.Tarifas_EE'!$B:$AR,BF$1,FALSE) -> 534.25 | BG39: =VLOOKUP($AS39,'3.3.3.Tarifas_EE'!$B:$AR,BG$1,FALSE) -> 356.66 | BH39: =VLOOKUP($AS39,'3.3.3.Tarifas_EE'!$B:$AR,BH$1,FALSE) -> 43.85 | BI39: =VLOOKUP($AS39,'3.3.3.Tarifas_EE'!$B:$AR,BI$1,FALSE) -> 13.95 | BJ39: =VLOOKUP($AS39,'3.3.3.Tarifas_EE'!$B:$AR,BJ$1,FALSE) -> 534.25 | BK39: =VLOOKUP($AS39,'3.3.3.Tarifas_EE'!$B:$AR,BK$1,FALSE) -> 356.66 | BL39: =VLOOKUP($AS39,'3.3.3.Tarifas_EE'!$B:$AR,BL$1,FALSE) -> 0 | BM39: =VLOOKUP($AS39,'3.3.3.Tarifas_EE'!$B:$AR,BM$1,FALSE) -> 13.95 | BN39: =VLOOKUP($AS39,'3.3.3.Tarifas_EE'!$B:$AR,BN$1,FALSE) -> 1599.69 | BO39: =VLOOKUP($AS39,'3.3.3.Tarifas_EE'!$B:$AR,BO$1,FALSE) -> 356.66 | BP39: =VLOOKUP($AS39,'3.3.3.Tarifas_EE'!$B:$AR,BP$1,FALSE) -> 0 | BQ39: =VLOOKUP($AS39,'3.3.3.Tarifas_EE'!$B:$AR,BQ$1,FALSE) -> 13.95 | BR39: =VLOOKUP($AS39,'3.3.3.Tarifas_EE'!$B:$AR,BR$1,FALSE) -> 1599.69 | BS39: =VLOOKUP($AS39,'3.3.3.Tarifas_EE'!$B:$AR,BS$1,FALSE) -> 356.66 | BT39: =VLOOKUP($AS39,'3.3.3.Tarifas_EE'!$B:$AR,BT$1,FALSE) -> 0 | BU39: =VLOOKUP($AS39,'3.3.3.Tarifas_EE'!$B:$AR,BU$1,FALSE) -> 45.52 | BV39: =VLOOKUP($AS39,'3.3.3.Tarifas_EE'!$B:$AR,BV$1,FALSE) -> 0 | BW39: =VLOOKUP($AS39,'3.3.3.Tarifas_EE'!$B:$AR,BW$1,FALSE) -> 371.46 | BX39: =VLOOKUP($AS39,'3.3.3.Tarifas_EE'!$B:$AR,BX$1,FALSE) -> 0 | BY39: =VLOOKUP($AS39,'3.3.3.Tarifas_EE'!$B:$AR,BY$1,FALSE) -> 45.52 | BZ39: =VLOOKUP($AS39,'3.3.3.Tarifas_EE'!$B:$AR,BZ$1,FALSE) -> 0 | CA39: =VLOOKUP($AS39,'3.3.3.Tarifas_EE'!$B:$AR,CA$1,FALSE) -> 371.46 | CB39: =VLOOKUP($AS39,'3.3.3.Tarifas_EE'!$B:$AR,CB$1,FALSE) -> 0 | CC39: =VLOOKUP($AS39,'3.3.3.Tarifas_EE'!$B:$AR,CC$1,FALSE) -> 0 | CD39: =VLOOKUP($AS39,'3.3.3.Tarifas_EE'!$B:$AR,CD$1,FALSE) -> 0 | CE39: =VLOOKUP($AS39,'3.3.3.Tarifas_EE'!$B:$AR,CE$1,FALSE) -> 628.33 | CF39: =VLOOKUP($AS39,'3.3.3.Tarifas_EE'!$B:$AR,CF$1,FALSE) -> 0 | CG39: =VLOOKUP($AS39,'3.3.3.Tarifas_EE'!$B:$AR,CG$1,FALSE) -> 0 | CH39: =VLOOKUP($AS39,'3.3.3.Tarifas_EE'!$B:$AR,CH$1,FALSE) -> 0 | CI39: =VLOOKUP($AS39,'3.3.3.Tarifas_EE'!$B:$AR,CI$1,FALSE) -> 628.33 | CK39: -0.12 | CL39: 400466.9592 | CM39: 180037.264 | CN39: 703047.2482 | CO39: 6707542.475 | CP39: 36599.2704 | CQ39: 22426.096 | CR39: 53812.0137 | CS39: 685169.7514 | CT39: 714030.4226 | CU39: 257174.7116 | CV39: 408976.1964 | CW39: 2991233.406 | CX39: 4553.384 | CY39: 1448.568 | CZ39: 0 | DA39: 25.7365856 | DB39: 0 | DC39: 741454.4412 | DD39: 2014970.036 | DE39: 5918033.7 | DF39: 0 | DG39: 22293.216 | DH39: 60095.87417 | DI39: 134153.5217 | DJ39: 0 | DK39: 0 | DL39: 0 | DM39: 0 | DN39: 0 | DO39: 0 | DP39: 0 | DQ39: 0 | DR39: 0 | DS39: 0 | DT39: 0 | DU39: 7645838.632 | DV39: 0 | DW39: 0 | DX39: 0 | DY39: 125587.6347 | DZ39: 2021-04-01 | EA39: 29828970.56 | EB39: 0 | EC39: 0 | EE39: 29828970.56 | EF39: 0 | EJ39: 2020-04-01 | EK39: 29828970.56 | EL39: 29828970.56 | EM39: 2021-04-01 | EN39: 29828970.56 | EO39: 29828970.56 | EQ39: 0 | ER39: 0
C40: 2020-05-01 | D40: 0 | E40: 0 | F40: 0 | G40: 0 | H40: 0 | I40: 0 | J40: 0 | K40: 0 | L40: 0 | M40: 0 | N40: 0 | O40: 0 | P40: 0 | Q40: 0 | R40: 0 | S40: 0 | T40: 0 | U40: 0 | V40: 0 | W40: 0 | X40: 0 | Y40: 0 | Z40: 0 | AA40: 0 | AB40: 0 | AC40: 0 | AD40: 0 | AE40: 0 | AF40: 0 | AG40: 0 | AH40: 0 | AI40: 0 | AJ40: 0 | AK40: 0 | AL40: 0 | AM40: 0 | AN40: 0 | AO40: 0 | AP40: 0 | AQ40: 0 | AS40: 2021-05-01 | AT40: =VLOOKUP($AS40,'3.3.3.Tarifas_EE'!$B:$AR,AT$1,FALSE) -> Verde | AU40: =VLOOKUP($AS40,'3.3.3.Tarifas_EE'!$B:$AR,AU$1,FALSE) -> 0 | AV40: =VLOOKUP($AS40,'3.3.3.Tarifas_EE'!$B:$AR,AV$1,FALSE) -> 9.81 | AW40: =VLOOKUP($AS40,'3.3.3.Tarifas_EE'!$B:$AR,AW$1,FALSE) -> 3.7 | AX40: =VLOOKUP($AS40,'3.3.3.Tarifas_EE'!$B:$AR,AX$1,FALSE) -> 510.05 | AY40: =VLOOKUP($AS40,'3.3.3.Tarifas_EE'!$B:$AR,AY$1,FALSE) -> 332.46 | AZ40: =VLOOKUP($AS40,'3.3.3.Tarifas_EE'!$B:$AR,AZ$1,FALSE) -> 20.16 | BA40: =VLOOKUP($AS40,'3.3.3.Tarifas_EE'!$B:$AR,BA$1,FALSE) -> 6.68 | BB40: =VLOOKUP($AS40,'3.3.3.Tarifas_EE'!$B:$AR,BB$1,FALSE) -> 522.19 | BC40: =VLOOKUP($AS40,'3.3.3.Tarifas_EE'!$B:$AR,BC$1,FALSE) -> 344.6 | BD40: =VLOOKUP($AS40,'3.3.3.Tarifas_EE'!$B:$AR,BD$1,FALSE) -> 43.85 | BE40: =VLOOKUP($AS40,'3.3.3.Tarifas_EE'!$B:$AR,BE$1,FALSE) -> 13.95 | BF40: =VLOOKUP($AS40,'3.3.3.Tarifas_EE'!$B:$AR,BF$1,FALSE) -> 534.25 | BG40: =VLOOKUP($AS40,'3.3.3.Tarifas_EE'!$B:$AR,BG$1,FALSE) -> 356.66 | BH40: =VLOOKUP($AS40,'3.3.3.Tarifas_EE'!$B:$AR,BH$1,FALSE) -> 43.85 | BI40: =VLOOKUP($AS40,'3.3.3.Tarifas_EE'!$B:$AR,BI$1,FALSE) -> 13.95 | BJ40: =VLOOKUP($AS40,'3.3.3.Tarifas_EE'!$B:$AR,BJ$1,FALSE) -> 534.25 | BK40: =VLOOKUP($AS40,'3.3.3.Tarifas_EE'!$B:$AR,BK$1,FALSE) -> 356.66 | BL40: =VLOOKUP($AS40,'3.3.3.Tarifas_EE'!$B:$AR,BL$1,FALSE) -> 0 | BM40: =VLOOKUP($AS40,'3.3.3.Tarifas_EE'!$B:$AR,BM$1,FALSE) -> 13.95 | BN40: =VLOOKUP($AS40,'3.3.3.Tarifas_EE'!$B:$AR,BN$1,FALSE) -> 1599.69 | BO40: =VLOOKUP($AS40,'3.3.3.Tarifas_EE'!$B:$AR,BO$1,FALSE) -> 356.66 | BP40: =VLOOKUP($AS40,'3.3.3.Tarifas_EE'!$B:$AR,BP$1,FALSE) -> 0 | BQ40: =VLOOKUP($AS40,'3.3.3.Tarifas_EE'!$B:$AR,BQ$1,FALSE) -> 13.95 | BR40: =VLOOKUP($AS40,'3.3.3.Tarifas_EE'!$B:$AR,BR$1,FALSE) -> 1599.69 | BS40: =VLOOKUP($AS40,'3.3.3.Tarifas_EE'!$B:$AR,BS$1,FALSE) -> 356.66 | BT40: =VLOOKUP($AS40,'3.3.3.Tarifas_EE'!$B:$AR,BT$1,FALSE) -> 0 | BU40: =VLOOKUP($AS40,'3.3.3.Tarifas_EE'!$B:$AR,BU$1,FALSE) -> 45.52 | BV40: =VLOOKUP($AS40,'3.3.3.Tarifas_EE'!$B:$AR,BV$1,FALSE) -> 0 | BW40: =VLOOKUP($AS40,'3.3.3.Tarifas_EE'!$B:$AR,BW$1,FALSE) -> 371.46 | BX40: =VLOOKUP($AS40,'3.3.3.Tarifas_EE'!$B:$AR,BX$1,FALSE) -> 0 | BY40: =VLOOKUP($AS40,'3.3.3.Tarifas_EE'!$B:$AR,BY$1,FALSE) -> 45.52 | BZ40: =VLOOKUP($AS40,'3.3.3.Tarifas_EE'!$B:$AR,BZ$1,FALSE) -> 0 | CA40: =VLOOKUP($AS40,'3.3.3.Tarifas_EE'!$B:$AR,CA$1,FALSE) -> 371.46 | CB40: =VLOOKUP($AS40,'3.3.3.Tarifas_EE'!$B:$AR,CB$1,FALSE) -> 0 | CC40: =VLOOKUP($AS40,'3.3.3.Tarifas_EE'!$B:$AR,CC$1,FALSE) -> 0 | CD40: =VLOOKUP($AS40,'3.3.3.Tarifas_EE'!$B:$AR,CD$1,FALSE) -> 0 | CE40: =VLOOKUP($AS40,'3.3.3.Tarifas_EE'!$B:$AR,CE$1,FALSE) -> 628.33 | CF40: =VLOOKUP($AS40,'3.3.3.Tarifas_EE'!$B:$AR,CF$1,FALSE) -> 0 | CG40: =VLOOKUP($AS40,'3.3.3.Tarifas_EE'!$B:$AR,CG$1,FALSE) -> 0 | CH40: =VLOOKUP($AS40,'3.3.3.Tarifas_EE'!$B:$AR,CH$1,FALSE) -> 0 | CI40: =VLOOKUP($AS40,'3.3.3.Tarifas_EE'!$B:$AR,CI$1,FALSE) -> 628.33 | CK40: -0.12 | CL40: 395857.044 | CM40: 178759.284 | CN40: 825586.5227 | CO40: 6668372.046 | CP40: 48491.52 | CQ40: 24153.36587 | CR40: 65972.25223 | CS40: 688369.0683 | CT40: 651641.3442 | CU40: 235327.9738 | CV40: 396463.9688 | CW40: 3544698.261 | CX40: 2090.183333 | CY40: 566.742 | CZ40: 0 | DA40: 17.15772373 | DB40: 0 | DC40: 686966.5968 | DD40: 2013249.324 | DE40: 5959201.409 | DF40: 0 | DG40: 22530.552 | DH40: 61886.50317 | DI40: 137528.1531 | DJ40: 0 | DK40: 0 | DL40: 0 | DM40: 0 | DN40: 0 | DO40: 0 | DP40: 0 | DQ40: 0 | DR40: 0 | DS40: 0 | DT40: 0 | DU40: 7882319.407 | DV40: 0 | DW40: 0 | DX40: 0 | DY40: 147158.279 | DZ40: 2021-05-01 | EA40: 30637206.96 | EB40: 0 | EC40: 0 | EE40: 30637206.96 | EF40: 0 | EJ40: 2020-05-01 | EK40: 30637206.96 | EL40: 30637206.96 | EM40: 2021-05-01 | EN40: 30637206.96 | EO40: 30637206.96 | EQ40: 0 | ER40: 0
C41: 2020-06-01 | D41: 0 | E41: 0 | F41: 0 | G41: 0 | H41: 0 | I41: 0 | J41: 0 | K41: 0 | L41: 0 | M41: 0 | N41: 0 | O41: 0 | P41: 0 | Q41: 0 | R41: 0 | S41: 0 | T41: 0 | U41: 0 | V41: 0 | W41: 0 | X41: 0 | Y41: 0 | Z41: 0 | AA41: 0 | AB41: 0 | AC41: 0 | AD41: 0 | AE41: 0 | AF41: 0 | AG41: 0 | AH41: 0 | AI41: 0 | AJ41: 0 | AK41: 0 | AL41: 0 | AM41: 0 | AN41: 0 | AO41: 0 | AP41: 0 | AQ41: 0 | AS41: 2021-06-01 | AT41: =VLOOKUP($AS41,'3.3.3.Tarifas_EE'!$B:$AR,AT$1,FALSE) -> Verde | AU41: =VLOOKUP($AS41,'3.3.3.Tarifas_EE'!$B:$AR,AU$1,FALSE) -> 0 | AV41: =VLOOKUP($AS41,'3.3.3.Tarifas_EE'!$B:$AR,AV$1,FALSE) -> 9.81 | AW41: =VLOOKUP($AS41,'3.3.3.Tarifas_EE'!$B:$AR,AW$1,FALSE) -> 3.7 | AX41: =VLOOKUP($AS41,'3.3.3.Tarifas_EE'!$B:$AR,AX$1,FALSE) -> 510.05 | AY41: =VLOOKUP($AS41,'3.3.3.Tarifas_EE'!$B:$AR,AY$1,FALSE) -> 332.46 | AZ41: =VLOOKUP($AS41,'3.3.3.Tarifas_EE'!$B:$AR,AZ$1,FALSE) -> 20.16 | BA41: =VLOOKUP($AS41,'3.3.3.Tarifas_EE'!$B:$AR,BA$1,FALSE) -> 6.68 | BB41: =VLOOKUP($AS41,'3.3.3.Tarifas_EE'!$B:$AR,BB$1,FALSE) -> 522.19 | BC41: =VLOOKUP($AS41,'3.3.3.Tarifas_EE'!$B:$AR,BC$1,FALSE) -> 344.6 | BD41: =VLOOKUP($AS41,'3.3.3.Tarifas_EE'!$B:$AR,BD$1,FALSE) -> 43.85 | BE41: =VLOOKUP($AS41,'3.3.3.Tarifas_EE'!$B:$AR,BE$1,FALSE) -> 13.95 | BF41: =VLOOKUP($AS41,'3.3.3.Tarifas_EE'!$B:$AR,BF$1,FALSE) -> 534.25 | BG41: =VLOOKUP($AS41,'3.3.3.Tarifas_EE'!$B:$AR,BG$1,FALSE) -> 356.66 | BH41: =VLOOKUP($AS41,'3.3.3.Tarifas_EE'!$B:$AR,BH$1,FALSE) -> 43.85 | BI41: =VLOOKUP($AS41,'3.3.3.Tarifas_EE'!$B:$AR,BI$1,FALSE) -> 13.95 | BJ41: =VLOOKUP($AS41,'3.3.3.Tarifas_EE'!$B:$AR,BJ$1,FALSE) -> 534.25 | BK41: =VLOOKUP($AS41,'3.3.3.Tarifas_EE'!$B:$AR,BK$1,FALSE) -> 356.66 | BL41: =VLOOKUP($AS41,'3.3.3.Tarifas_EE'!$B:$AR,BL$1,FALSE) -> 0 | BM41: =VLOOKUP($AS41,'3.3.3.Tarifas_EE'!$B:$AR,BM$1,FALSE) -> 13.95 | BN41: =VLOOKUP($AS41,'3.3.3.Tarifas_EE'!$B:$AR,BN$1,FALSE) -> 1599.69 | BO41: =VLOOKUP($AS41,'3.3.3.Tarifas_EE'!$B:$AR,BO$1,FALSE) -> 356.66 | BP41: =VLOOKUP($AS41,'3.3.3.Tarifas_EE'!$B:$AR,BP$1,FALSE) -> 0 | BQ41: =VLOOKUP($AS41,'3.3.3.Tarifas_EE'!$B:$AR,BQ$1,FALSE) -> 13.95 | BR41: =VLOOKUP($AS41,'3.3.3.Tarifas_EE'!$B:$AR,BR$1,FALSE) -> 1599.69 | BS41: =VLOOKUP($AS41,'3.3.3.Tarifas_EE'!$B:$AR,BS$1,FALSE) -> 356.66 | BT41: =VLOOKUP($AS41,'3.3.3.Tarifas_EE'!$B:$AR,BT$1,FALSE) -> 0 | BU41: =VLOOKUP($AS41,'3.3.3.Tarifas_EE'!$B:$AR,BU$1,FALSE) -> 45.52 | BV41: =VLOOKUP($AS41,'3.3.3.Tarifas_EE'!$B:$AR,BV$1,FALSE) -> 0 | BW41: =VLOOKUP($AS41,'3.3.3.Tarifas_EE'!$B:$AR,BW$1,FALSE) -> 371.46 | BX41: =VLOOKUP($AS41,'3.3.3.Tarifas_EE'!$B:$AR,BX$1,FALSE) -> 0 | BY41: =VLOOKUP($AS41,'3.3.3.Tarifas_EE'!$B:$AR,BY$1,FALSE) -> 45.52 | BZ41: =VLOOKUP($AS41,'3.3.3.Tarifas_EE'!$B:$AR,BZ$1,FALSE) -> 0 | CA41: =VLOOKUP($AS41,'3.3.3.Tarifas_EE'!$B:$AR,CA$1,FALSE) -> 371.46 | CB41: =VLOOKUP($AS41,'3.3.3.Tarifas_EE'!$B:$AR,CB$1,FALSE) -> 0 | CC41: =VLOOKUP($AS41,'3.3.3.Tarifas_EE'!$B:$AR,CC$1,FALSE) -> 0 | CD41: =VLOOKUP($AS41,'3.3.3.Tarifas_EE'!$B:$AR,CD$1,FALSE) -> 0 | CE41: =VLOOKUP($AS41,'3.3.3.Tarifas_EE'!$B:$AR,CE$1,FALSE) -> 628.33 | CF41: =VLOOKUP($AS41,'3.3.3.Tarifas_EE'!$B:$AR,CF$1,FALSE) -> 0 | CG41: =VLOOKUP($AS41,'3.3.3.Tarifas_EE'!$B:$AR,CG$1,FALSE) -> 0 | CH41: =VLOOKUP($AS41,'3.3.3.Tarifas_EE'!$B:$AR,CH$1,FALSE) -> 0 | CI41: =VLOOKUP($AS41,'3.3.3.Tarifas_EE'!$B:$AR,CI$1,FALSE) -> 628.33 | CK41: -0.12 | CL41: 396144.804 | CM41: 178761.1833 | CN41: 826749.0162 | CO41: 6692555.583 | CP41: 50512 | CQ41: 24455.94018 | CR41: 68278.96389 | CS41: 692127.9368 | CT41: 640341.4272 | CU41: 231954.4676 | CV41: 390570.3852 | CW41: 3406672.098 | CX41: 2438.547222 | CY41: 661.199 | CZ41: 0 | DA41: 20.01734436 | DB41: 0 | DC41: 677444.8061 | DD41: 1972324.739 | DE41: 5929024.609 | DF41: 0 | DG41: 22459.624 | DH41: 60629.87202 | DI41: 136653.9461 | DJ41: 0 | DK41: 0 | DL41: 0 | DM41: 0 | DN41: 0 | DO41: 0 | DP41: 0 | DQ41: 0 | DR41: 0 | DS41: 0 | DT41: 0 | DU41: 7791732.666 | DV41: 0 | DW41: 0 | DX41: 0 | DY41: 150819.8302 | DZ41: 2021-06-01 | EA41: =SUM(CL41:DY41) -> 30343333.66 | EB41: 0 | EC41: 0 | EE41: 30343333.66 | EF41: 0 | EJ41: 2020-06-01 | EK41: 30343333.66 | EL41: 30343333.66 | EM41: 2021-06-01 | EN41: =EA41 -> 30343333.66 | EO41: 30343333.66 | EQ41: =EN41/EK41-1 -> 0 | ER41: 0
C42: 2020-07-01 | D42: 0 | E42: 0 | F42: 0 | G42: 0 | H42: 0 | I42: 0 | J42: 0 | K42: 0 | L42: 0 | M42: 0 | N42: 0 | O42: 0 | P42: 0 | Q42: 0 | R42: 0 | S42: 0 | T42: 0 | U42: 0 | V42: 0 | W42: 0 | X42: 0 | Y42: 0 | Z42: 0 | AA42: 0 | AB42: 0 | AC42: 0 | AD42: 0 | AE42: 0 | AF42: 0 | AG42: 0 | AH42: 0 | AI42: 0 | AJ42: 0 | AK42: 0 | AL42: 0 | AM42: 0 | AN42: 0 | AO42: 0 | AP42: 0 | AQ42: 0 | AS42: 2021-07-01 | AT42: =VLOOKUP($AS42,'3.3.3.Tarifas_EE'!$B:$AR,AT$1,FALSE) -> Verde | AU42: =VLOOKUP($AS42,'3.3.3.Tarifas_EE'!$B:$AR,AU$1,FALSE) -> 0 | AV42: =VLOOKUP($AS42,'3.3.3.Tarifas_EE'!$B:$AR,AV$1,FALSE) -> 9.81 | AW42: =VLOOKUP($AS42,'3.3.3.Tarifas_EE'!$B:$AR,AW$1,FALSE) -> 3.7 | AX42: =VLOOKUP($AS42,'3.3.3.Tarifas_EE'!$B:$AR,AX$1,FALSE) -> 510.05 | AY42: =VLOOKUP($AS42,'3.3.3.Tarifas_EE'!$B:$AR,AY$1,FALSE) -> 332.46 | AZ42: =VLOOKUP($AS42,'3.3.3.Tarifas_EE'!$B:$AR,AZ$1,FALSE) -> 20.16 | BA42: =VLOOKUP($AS42,'3.3.3.Tarifas_EE'!$B:$AR,BA$1,FALSE) -> 6.68 | BB42: =VLOOKUP($AS42,'3.3.3.Tarifas_EE'!$B:$AR,BB$1,FALSE) -> 522.19 | BC42: =VLOOKUP($AS42,'3.3.3.Tarifas_EE'!$B:$AR,BC$1,FALSE) -> 344.6 | BD42: =VLOOKUP($AS42,'3.3.3.Tarifas_EE'!$B:$AR,BD$1,FALSE) -> 43.85 | BE42: =VLOOKUP($AS42,'3.3.3.Tarifas_EE'!$B:$AR,BE$1,FALSE) -> 13.95 | BF42: =VLOOKUP($AS42,'3.3.3.Tarifas_EE'!$B:$AR,BF$1,FALSE) -> 534.25 | BG42: =VLOOKUP($AS42,'3.3.3.Tarifas_EE'!$B:$AR,BG$1,FALSE) -> 356.66 | BH42: =VLOOKUP($AS42,'3.3.3.Tarifas_EE'!$B:$AR,BH$1,FALSE) -> 43.85 | BI42: =VLOOKUP($AS42,'3.3.3.Tarifas_EE'!$B:$AR,BI$1,FALSE) -> 13.95 | BJ42: =VLOOKUP($AS42,'3.3.3.Tarifas_EE'!$B:$AR,BJ$1,FALSE) -> 534.25 | BK42: =VLOOKUP($AS42,'3.3.3.Tarifas_EE'!$B:$AR,BK$1,FALSE) -> 356.66 | BL42: =VLOOKUP($AS42,'3.3.3.Tarifas_EE'!$B:$AR,BL$1,FALSE) -> 0 | BM42: =VLOOKUP($AS42,'3.3.3.Tarifas_EE'!$B:$AR,BM$1,FALSE) -> 13.95 | BN42: =VLOOKUP($AS42,'3.3.3.Tarifas_EE'!$B:$AR,BN$1,FALSE) -> 1599.69 | BO42: =VLOOKUP($AS42,'3.3.3.Tarifas_EE'!$B:$AR,BO$1,FALSE) -> 356.66 | BP42: =VLOOKUP($AS42,'3.3.3.Tarifas_EE'!$B:$AR,BP$1,FALSE) -> 0 | BQ42: =VLOOKUP($AS42,'3.3.3.Tarifas_EE'!$B:$AR,BQ$1,FALSE) -> 13.95 | BR42: =VLOOKUP($AS42,'3.3.3.Tarifas_EE'!$B:$AR,BR$1,FALSE) -> 1599.69 | BS42: =VLOOKUP($AS42,'3.3.3.Tarifas_EE'!$B:$AR,BS$1,FALSE) -> 356.66 | BT42: =VLOOKUP($AS42,'3.3.3.Tarifas_EE'!$B:$AR,BT$1,FALSE) -> 0 | BU42: =VLOOKUP($AS42,'3.3.3.Tarifas_EE'!$B:$AR,BU$1,FALSE) -> 45.52 | BV42: =VLOOKUP($AS42,'3.3.3.Tarifas_EE'!$B:$AR,BV$1,FALSE) -> 0 | BW42: =VLOOKUP($AS42,'3.3.3.Tarifas_EE'!$B:$AR,BW$1,FALSE) -> 371.46 | BX42: =VLOOKUP($AS42,'3.3.3.Tarifas_EE'!$B:$AR,BX$1,FALSE) -> 0 | BY42: =VLOOKUP($AS42,'3.3.3.Tarifas_EE'!$B:$AR,BY$1,FALSE) -> 45.52 | BZ42: =VLOOKUP($AS42,'3.3.3.Tarifas_EE'!$B:$AR,BZ$1,FALSE) -> 0 | CA42: =VLOOKUP($AS42,'3.3.3.Tarifas_EE'!$B:$AR,CA$1,FALSE) -> 371.46 | CB42: =VLOOKUP($AS42,'3.3.3.Tarifas_EE'!$B:$AR,CB$1,FALSE) -> 0 | CC42: =VLOOKUP($AS42,'3.3.3.Tarifas_EE'!$B:$AR,CC$1,FALSE) -> 0 | CD42: =VLOOKUP($AS42,'3.3.3.Tarifas_EE'!$B:$AR,CD$1,FALSE) -> 0 | CE42: =VLOOKUP($AS42,'3.3.3.Tarifas_EE'!$B:$AR,CE$1,FALSE) -> 628.33 | CF42: =VLOOKUP($AS42,'3.3.3.Tarifas_EE'!$B:$AR,CF$1,FALSE) -> 0 | CG42: =VLOOKUP($AS42,'3.3.3.Tarifas_EE'!$B:$AR,CG$1,FALSE) -> 0 | CH42: =VLOOKUP($AS42,'3.3.3.Tarifas_EE'!$B:$AR,CH$1,FALSE) -> 0 | CI42: =VLOOKUP($AS42,'3.3.3.Tarifas_EE'!$B:$AR,CI$1,FALSE) -> 628.33 | CK42: -0.12 | CL42: 396758.2124 | CM42: 178873.0179 | CN42: 832691.3222 | CO42: 6705852.414 | CP42: 52526.23787 | CQ42: 24808.94354 | CR42: 69999.14653 | CS42: 704802.062 | CT42: 628449.4739 | CU42: 227976.44 | CV42: 393584.246 | CW42: 3408515.138 | CX42: 2652.031759 | CY42: 710.0188333 | CZ42: 0 | DA42: 23.35356841 | DB42: 0 | DC42: 665124.5931 | DD42: 2001030.943 | DE42: 5860345.558 | DF42: 0 | DG42: 22452.57667 | DH42: 60680.39378 | DI42: 136602.4032 | DJ42: 0 | DK42: 0 | DL42: 0 | DM42: 0 | DN42: 0 | DO42: 0 | DP42: 0 | DQ42: 0 | DR42: 0 | DS42: 0 | DT42: 0 | DU42: 7821116.959 | DV42: 0 | DW42: 0 | DX42: 0 | DY42: 149222.0994 | DZ42: 2021-07-01 | EA42: 30344797.58 | EB42: 0 | EC42: 0 | EE42: 30344797.58 | EF42: 0 | EJ42: 2020-07-01 | EK42: 30344797.58 | EL42: 30344797.58 | EM42: 2021-07-01 | EN42: 30344797.58 | EO42: 30344797.58 | EQ42: 0 | ER42: 0
C43: Total | D43: =SUM(D31:D42) -> 0 | E43: =SUM(E31:E42) -> 0 | F43: 0 | G43: 0 | H43: 0 | I43: 0 | J43: 0 | K43: 0 | L43: =SUM(L31:L42) -> 0 | M43: 0 | N43: 0 | O43: 0 | P43: 0 | Q43: 0 | R43: 0 | S43: 0 | T43: 0 | U43: 0 | V43: 0 | W43: 0 | X43: 0 | Y43: 0 | Z43: 0 | AA43: 0 | AB43: 0 | AC43: 0 | AD43: 0 | AE43: 0 | AF43: 0 | AG43: 0 | AH43: 0 | AI43: 0 | AJ43: 0 | AK43: 0 | AL43: 0 | AM43: 0 | AN43: 0 | AO43: 0 | AP43: 0 | AQ43: 0 | AV43: Check | AW43: =SUM(AV31:CI42) -> 116139.48 | CK43: TOTAL | CL43: =SUM(CL31:CL42) -> 4751343.964 | CM43: 2142474.093 | CN43: 10188810.23 | CO43: 80214519.3 | CP43: 551726.7243 | CQ43: 286704.2368 | CR43: 779625.2888 | CS43: 8369893.406 | CT43: 7982152.865 | CU43: 2878482.751 | CV43: 4846502.81 | CW43: 43469115.9 | CX43: 19721.86231 | CY43: 5338.411833 | CZ43: 0 | DA43: 163.4749789 | DB43: 0 | DC43: 8354033.479 | DD43: 24586123.21 | DE43: 71556396.65 | DF43: 0 | DG43: 269972.2007 | DH43: 736318.1249 | DI43: 1604645.075 | DJ43: 0 | DK43: 0 | DL43: 0 | DM43: 0 | DN43: 0 | DO43: 0 | DP43: 0 | DQ43: 0 | DR43: 0 | DS43: 0 | DT43: 0 | DU43: 94596713.66 | DV43: 0 | DW43: 0 | DX43: 0 | DY43: 1632770.902 | EA43: =SUM(EA31:EA42) -> 369823548.6 | EB43: =EA43/EA22-1 -> 0 | EC43: 0 | EE43: =SUM(EE31:EE42) -> 369823548.6 | EF43: =EE43/EE22-1 -> -0.0328867323 | EJ43: Total | EK43: =SUM(EK31:EK42) -> 369823548.6 | EL43: =SUM(EL31:EL42) -> 382399415.8 | EM43: Total | EN43: =SUM(EN31:EN42) -> 369823548.6 | EO43: =SUM(EO31:EO42) -> 369823548.6 | EQ43: 0 | ER43: -0.0328867323
D44: Check | E44: =SUM(D43:AQ43) -> 0 | F44: =E44=E23 -> TRUE | AW44: =SUM('3.3.3.Tarifas_EE'!$E$71:$AR$82) -> 116139.48 | EA44: =SUM(CL43:DY43) -> 369823548.6 | EC44: =EC43/EC22-1 -> -1 | EN44: =EN43/EK43-1 -> 0 | EO44: =EO43/EL43-1 -> -0.0328867323
CL45: Desconto CDE | CM45: Valores que seriam aplicados caso não fosse considerado o adiamento do Reajuste Cemig 2020 | EE45: IEE | EF45: =EF43 -> -0.0328867323 | EJ45: Faturamentos simulados pela Arsae. Não são considerados os tributos (PIS/Cofins e ICMS) na estimação do IEE, mas apenas na posterior compensação por diferenças entre previsto e realizado.
C46: Para Procv: | D46: 9 | E46: 10 | F46: 11 | G46: 12 | H46: 13 | I46: 14 | J46: 15 | K46: 16 | L46: 17 | M46: 18 | N46: 19 | O46: 20 | P46: 21 | Q46: 22 | R46: 23 | S46: 24 | T46: 25 | U46: 26 | V46: 27 | W46: 28 | X46: 29 | Y46: 30 | Z46: 31 | AA46: 32 | AB46: 33 | AC46: 34 | AD46: 35 | AE46: 36 | AF46: 37 | AG46: 38 | AH46: 39 | AI46: 40 | AJ46: 41 | AK46: 42 | AL46: 43 | AM46: 44 | AN46: 45 | AO46: 46 | AP46: 47 | AQ46: 48 | CK46: até mai/19 | CL46: 0.15 | EQ46: =EQ43=EB43 -> TRUE | ER46: =ER43=EF43 -> TRUE
CK47: até mai/20 | CL47: =CL46-(CL46*20%) -> 0.12 | EL47: =EL43-EK43 -> 12575867.22 | EO47: =EO43-EN43 -> 0
CK48: até mai/21 | CL48: 0.12 | CM48: =CL47-(CL47*20%) -> 0.096 | EA48: =EA22/EE22 -> 0.9671132677 | EB48: tarifas
CK49: até mai/22 | CL49: 0.12 | CM49: =CM48-(CM48*20%) -> 0.0768 | EA49: =EC22/EE22 -> 0.0328867323 | EB49: bandeiras
EA50: =EA48*EB43+EA49*EC44 -> -0.0328867323 | EB50: =IF(EA50-EF45<0.00000000001,"verdadeiro","falso") -> verdadeiro | EK50: Bandeiras PR0 | EM50: Bandeiras previstas PR1 | EO50: Diferença
EA51: =EB43 -> 0 | EB51: variação nas tarifas | EJ51: Tarifas PR0 | EK51: =EL43 -> 382399415.8 | EM51: =EK43+(EO43-EN43) -> 369823548.6 | EO51: =EM51-EK51 -> -12575867.22
EA52: =EC44 -> -1 | EB52: variação nas bandeiras | EJ52: Tarifas PR1 | EK52: =EN43+(EL43-EK43) -> 382399415.8 | EM52: =EO43 -> 369823548.6 | EO52: =EM52-EK52 -> -12575867.22
EJ53: Diferença | EK53: =EK52-EK51 -> 0 | EM53: =EM52-EM51 -> 0 | EO53: =EM52-EK51 -> -12575867.22
EO54: =EM53+EO52-EO53 -> 0
EJ55: Impacto do reajuste das tarifas da Cemig sentido pelo prestador | EO55: =EK52/EK51-1 -> 0 | EQ55: -> impacto no faturamento total, se fossem mantidas as mesmas bandeiras
EJ56: Impacto da mudança nas bandeiras sentido pelo prestador | EO56: =EM51/EK51-1 -> -0.0328867323 | EQ56: -> impacto no faturamento total, se fossem mantidas as mesmas tarifas
EJ58: Impacto do reajuste das tarifas da Cemig sentido pelo prestador | EO58: =EN43/EK43-1 -> 0 | EQ58: -> impacto isolado na variação de tarifas, se não existissem bandeiras
EJ59: Impacto da mudança nas bandeiras sentido pelo prestador | EO59: =(EO43-EN43)/(EL43-EK43)-1 -> -1 | EQ59: -> impacto isolado da variação de bandeiras, sem considerar o faturamento com tarifas
EJ61: IEE | EK61: =EM52/EK51-1 -> -0.0328867323 | EO61: =IF(AND(EB43-EO58<0.000000000001,EB43-EO58>-0.000000000001),"VERDADEIRO","falso") -> VERDADEIRO
EK62: =IF(AND(EK61-EF45<0.000000000001,EK61-EF45>-0.000000000001),"VERDADEIRO","falso") -> VERDADEIRO | EO62: =IF(AND(EC44-EO59<0.000000000001,EC44-EO59>-0.000000000001),"VERDADEIRO","falso") -> VERDADEIRO
EJ65: Mês | EK65: Bandeira | EL65: Valor | EM65: Mês | EN65: Bandeira | EO65: Valor
EJ66: =EJ31 -> 2019-08-01 | EK66: =VLOOKUP(EJ66,'3.3.3.Tarifas_EE'!$B:$D,2,FALSE) -> Vermelha 1 | EL66: =VLOOKUP(EJ66,'3.3.3.Tarifas_EE'!$B:$D,3,FALSE) -> 0.04 | EM66: =EM31 -> 2020-08-01 | EN66: =VLOOKUP(EM66,'3.3.3.Tarifas_EE'!$B:$D,2,FALSE) -> Verde | EO66: =VLOOKUP(EM66,'3.3.3.Tarifas_EE'!$B:$D,3,FALSE) -> 0
EJ67: =EDATE(EJ66,1) -> 2019-09-01 | EK67: =VLOOKUP(EJ67,'3.3.3.Tarifas_EE'!$B:$D,2,FALSE) -> Vermelha 1 | EL67: =VLOOKUP(EJ67,'3.3.3.Tarifas_EE'!$B:$D,3,FALSE) -> 0.04 | EM67: =EDATE(EM66,1) -> 2020-09-01 | EN67: =VLOOKUP(EM67,'3.3.3.Tarifas_EE'!$B:$D,2,FALSE) -> Verde | EO67: =VLOOKUP(EM67,'3.3.3.Tarifas_EE'!$B:$D,3,FALSE) -> 0
EJ68: =EDATE(EJ67,1) -> 2019-10-01 | EK68: =VLOOKUP(EJ68,'3.3.3.Tarifas_EE'!$B:$D,2,FALSE) -> Amarela | EL68: =VLOOKUP(EJ68,'3.3.3.Tarifas_EE'!$B:$D,3,FALSE) -> 0.015 | EM68: =EDATE(EM67,1) -> 2020-10-01 | EN68: =VLOOKUP(EM68,'3.3.3.Tarifas_EE'!$B:$D,2,FALSE) -> Verde | EO68: =VLOOKUP(EM68,'3.3.3.Tarifas_EE'!$B:$D,3,FALSE) -> 0
EJ69: 2019-11-01 | EK69: =VLOOKUP(EJ69,'3.3.3.Tarifas_EE'!$B:$D,2,FALSE) -> Vermelha 1 | EL69: =VLOOKUP(EJ69,'3.3.3.Tarifas_EE'!$B:$D,3,FALSE) -> 0.04169 | EM69: 2020-11-01 | EN69: =VLOOKUP(EM69,'3.3.3.Tarifas_EE'!$B:$D,2,FALSE) -> Verde | EO69: =VLOOKUP(EM69,'3.3.3.Tarifas_EE'!$B:$D,3,FALSE) -> 0
EJ70: 2019-12-01 | EK70: =VLOOKUP(EJ70,'3.3.3.Tarifas_EE'!$B:$D,2,FALSE) -> Amarela | EL70: =VLOOKUP(EJ70,'3.3.3.Tarifas_EE'!$B:$D,3,FALSE) -> 0.01343 | EM70: 2020-12-01 | EN70: =VLOOKUP(EM70,'3.3.3.Tarifas_EE'!$B:$D,2,FALSE) -> Verde | EO70: =VLOOKUP(EM70,'3.3.3.Tarifas_EE'!$B:$D,3,FALSE) -> 0
EJ71: 2020-01-01 | EK71: =VLOOKUP(EJ71,'3.3.3.Tarifas_EE'!$B:$D,2,FALSE) -> Amarela | EL71: =VLOOKUP(EJ71,'3.3.3.Tarifas_EE'!$B:$D,3,FALSE) -> 0.01343 | EM71: 2021-01-01 | EN71: =VLOOKUP(EM71,'3.3.3.Tarifas_EE'!$B:$D,2,FALSE) -> Verde | EO71: =VLOOKUP(EM71,'3.3.3.Tarifas_EE'!$B:$D,3,FALSE) -> 0
EJ72: 2020-02-01 | EK72: =VLOOKUP(EJ72,'3.3.3.Tarifas_EE'!$B:$D,2,FALSE) -> Verde | EL72: =VLOOKUP(EJ72,'3.3.3.Tarifas_EE'!$B:$D,3,FALSE) -> 0 | EM72: 2021-02-01 | EN72: =VLOOKUP(EM72,'3.3.3.Tarifas_EE'!$B:$D,2,FALSE) -> Verde | EO72: =VLOOKUP(EM72,'3.3.3.Tarifas_EE'!$B:$D,3,FALSE) -> 0
EJ73: 2020-03-01 | EK73: =VLOOKUP(EJ73,'3.3.3.Tarifas_EE'!$B:$D,2,FALSE) -> Verde | EL73: =VLOOKUP(EJ73,'3.3.3.Tarifas_EE'!$B:$D,3,FALSE) -> 0 | EM73: 2021-03-01 | EN73: =VLOOKUP(EM73,'3.3.3.Tarifas_EE'!$B:$D,2,FALSE) -> Verde | EO73: =VLOOKUP(EM73,'3.3.3.Tarifas_EE'!$B:$D,3,FALSE) -> 0
EJ74: 2020-04-01 | EK74: =VLOOKUP(EJ74,'3.3.3.Tarifas_EE'!$B:$D,2,FALSE) -> Verde | EL74: =VLOOKUP(EJ74,'3.3.3.Tarifas_EE'!$B:$D,3,FALSE) -> 0 | EM74: 2021-04-01 | EN74: =VLOOKUP(EM74,'3.3.3.Tarifas_EE'!$B:$D,2,FALSE) -> Verde | EO74: =VLOOKUP(EM74,'3.3.3.Tarifas_EE'!$B:$D,3,FALSE) -> 0
EJ75: 2020-05-01 | EK75: =VLOOKUP(EJ75,'3.3.3.Tarifas_EE'!$B:$D,2,FALSE) -> Verde | EL75: =VLOOKUP(EJ75,'3.3.3.Tarifas_EE'!$B:$D,3,FALSE) -> 0 | EM75: 2021-05-01 | EN75: =VLOOKUP(EM75,'3.3.3.Tarifas_EE'!$B:$D,2,FALSE) -> Verde | EO75: =VLOOKUP(EM75,'3.3.3.Tarifas_EE'!$B:$D,3,FALSE) -> 0
EJ76: 2020-06-01 | EK76: =VLOOKUP(EJ76,'3.3.3.Tarifas_EE'!$B:$D,2,FALSE) -> Verde | EL76: =VLOOKUP(EJ76,'3.3.3.Tarifas_EE'!$B:$D,3,FALSE) -> 0 | EM76: 2021-06-01 | EN76: =VLOOKUP(EM76,'3.3.3.Tarifas_EE'!$B:$D,2,FALSE) -> Verde | EO76: =VLOOKUP(EM76,'3.3.3.Tarifas_EE'!$B:$D,3,FALSE) -> 0
EJ77: 2020-07-01 | EK77: =VLOOKUP(EJ77,'3.3.3.Tarifas_EE'!$B:$D,2,FALSE) -> Verde | EL77: =VLOOKUP(EJ77,'3.3.3.Tarifas_EE'!$B:$D,3,FALSE) -> 0 | EM77: 2021-07-01 | EN77: =VLOOKUP(EM77,'3.3.3.Tarifas_EE'!$B:$D,2,FALSE) -> Verde | EO77: =VLOOKUP(EM77,'3.3.3.Tarifas_EE'!$B:$D,3,FALSE) -> 0

Sheet 3.3.3.Tarifas_EE
B1: Tarifas efetivas | C1: Cemig
B3: Mês | C3: Bandeiras | E3: A2 | I3: A3 | M3: A4 | Q3: A4 | U3: A4 | Y3: A4 | AC3: A4 | AG3: A4 | AK3: B3 | AO3: B3
E4: AZ_AES | I4: AZ_AES | M4: AZ_AES | Q4: AZ_ADM | U4: VD_AES | Y4: VD_ADM | AC4: EQ_AES | AG4: EQ_ADM | AK4: EQ_AES | AO4: EQ_ADM
E5: D_P | F5: D_FP | G5: E_P | H5: E_FP | I5: D_P | J5: D_FP | K5: E_P | L5: E_FP | M5: D_P | N5: D_FP | O5: E_P | P5: E_FP | Q5: D_P | R5: D_FP | S5: E_P | T5: E_FP | U5: D_P | V5: D_FP | W5: E_P | X5: E_FP | Y5: D_P | Z5: D_FP | AA5: E_P | AB5: E_FP | AC5: D_P | AD5: D_FP | AE5: E_P | AF5: E_FP | AG5: D_P | AH5: D_FP | AI5: E_P | AJ5: E_FP | AK5: D_P | AL5: D_FP | AM5: E_P | AN5: E_FP | AO5: D_P | AP5: D_FP | AQ5: E_P | AR5: E_FP
C6: Cor | D6: Valor | E6: R$/kW | F6: R$/kW | G6: R$/MWh | H6: R$/MWh | I6: R$/kW | J6: R$/kW | K6: R$/MWh | L6: R$/MWh | M6: R$/kW | N6: R$/kW | O6: R$/MWh | P6: R$/MWh | Q6: R$/kW | R6: R$/kW | S6: R$/MWh | T6: R$/MWh | U6: R$/kW | V6: R$/kW | W6: R$/MWh | X6: R$/MWh | Y6: R$/kW | Z6: R$/kW | AA6: R$/MWh | AB6: R$/MWh | AC6: R$/kW | AD6: R$/kW | AE6: R$/MWh | AF6: R$/MWh | AG6: R$/kW | AH6: R$/kW | AI6: R$/MWh | AJ6: R$/MWh | AK6: R$/kW | AL6: R$/kW | AM6: R$/MWh | AN6: R$/MWh | AO6: R$/kW | AP6: R$/kW | AQ6: R$/MWh | AR6: R$/MWh
B7: 2015-04-01 | C7: Vermelha | D7: 0.055 | E7: 6.78 | F7: 2.45 | G7: 435.52 | H7: 297.4 | I7: 17.88 | J7: 5.47 | K7: 446.87 | L7: 308.75 | M7: 30 | N7: 9 | O7: 447.88 | P7: 309.76 | Q7: 30 | R7: 9 | S7: 447.88 | T7: 309.76 | V7: 9 | W7: 1174.98 | X7: 309.76 | Z7: 9 | AA7: 1174.98 | AB7: 309.76 | AD7: 30.6 | AF7: 321.27 | AH7: 30.6 | AJ7: 321.27 | AN7: 509.74 | AR7: 509.74
B8: 2015-05-01 | C8: Vermelha | D8: 0.055 | E8: 6.78 | F8: 2.45 | G8: 435.52 | H8: 297.4 | I8: 17.88 | J8: 5.47 | K8: 446.87 | L8: 308.75 | M8: 30 | N8: 9 | O8: 447.88 | P8: 309.76 | Q8: 30 | R8: 9 | S8: 447.88 | T8: 309.76 | V8: 9 | W8: 1174.98 | X8: 309.76 | Z8: 9 | AA8: 1174.98 | AB8: 309.76 | AD8: 30.6 | AF8: 321.27 | AH8: 30.6 | AJ8: 321.27 | AN8: 509.74 | AR8: 509.74
B9: 2015-06-01 | C9: Vermelha | D9: 0.055 | E9: 6.78 | F9: 2.45 | G9: 435.52 | H9: 297.4 | I9: 17.88 | J9: 5.47 | K9: 446.87 | L9: 308.75 | M9: 30 | N9: 9 | O9: 447.88 | P9: 309.76 | Q9: 30 | R9: 9 | S9: 447.88 | T9: 309.76 | V9: 9 | W9: 1174.98 | X9: 309.76 | Z9: 9 | AA9: 1174.98 | AB9: 309.76 | AD9: 30.6 | AF9: 321.27 | AH9: 30.6 | AJ9: 321.27 | AN9: 509.74 | AR9: 509.74
B10: 2015-07-01 | C10: Vermelha | D10: 0.055 | E10: 6.78 | F10: 2.45 | G10: 435.52 | H10: 297.4 | I10: 17.88 | J10: 5.47 | K10: 446.87 | L10: 308.75 | M10: 30 | N10: 9 | O10: 447.88 | P10: 309.76 | Q10: 30 | R10: 9 | S10: 447.88 | T10: 309.76 | V10: 9 | W10: 1174.98 | X10: 309.76 | Z10: 9 | AA10: 1174.98 | AB10: 309.76 | AD10: 30.6 | AF10: 321.27 | AH10: 30.6 | AJ10: 321.27 | AN10: 509.74 | AR10: 509.74
B11: 2015-08-01 | C11: Vermelha | D11: 0.055 | E11: 6.78 | F11: 2.45 | G11: 435.52 | H11: 297.4 | I11: 17.88 | J11: 5.47 | K11: 446.87 | L11: 308.75 | M11: 30 | N11: 9 | O11: 447.88 | P11: 309.76 | Q11: 30 | R11: 9 | S11: 447.88 | T11: 309.76 | V11: 9 | W11: 1174.98 | X11: 309.76 | Z11: 9 | AA11: 1174.98 | AB11: 309.76 | AD11: 30.6 | AF11: 321.27 | AH11: 30.6 | AJ11: 321.27 | AN11: 509.74 | AR11: 509.74
B12: 2015-09-01 | C12: Vermelha | D12: 0.045 | E12: 6.78 | F12: 2.45 | G12: 435.52 | H12: 297.4 | I12: 17.88 | J12: 5.47 | K12: 446.87 | L12: 308.75 | M12: 30 | N12: 9 | O12: 447.88 | P12: 309.76 | Q12: 30 | R12: 9 | S12: 447.88 | T12: 309.76 | V12: 9 | W12: 1174.98 | X12: 309.76 | Z12: 9 | AA12: 1174.98 | AB12: 309.76 | AD12: 30.6 | AF12: 321.27 | AH12: 30.6 | AJ12: 321.27 | AN12: 509.74 | AR12: 509.74
B13: 2015-10-01 | C13: Vermelha | D13: 0.045 | E13: 6.78 | F13: 2.45 | G13: 435.52 | H13: 297.4 | I13: 17.88 | J13: 5.47 | K13: 446.87 | L13: 308.75 | M13: 30 | N13: 9 | O13: 447.88 | P13: 309.76 | Q13: 30 | R13: 9 | S13: 447.88 | T13: 309.76 | V13: 9 | W13: 1174.98 | X13: 309.76 | Z13: 9 | AA13: 1174.98 | AB13: 309.76 | AD13: 30.6 | AF13: 321.27 | AH13: 30.6 | AJ13: 321.27 | AN13: 509.74 | AR13: 509.74
B14: 2015-11-01 | C14: Vermelha | D14: 0.045 | E14: 6.78 | F14: 2.45 | G14: 435.52 | H14: 297.4 | I14: 17.88 | J14: 5.47 | K14: 446.87 | L14: 308.75 | M14: 30 | N14: 9 | O14: 447.88 | P14: 309.76 | Q14: 30 | R14: 9 | S14: 447.88 | T14: 309.76 | V14: 9 | W14: 1174.98 | X14: 309.76 | Z14: 9 | AA14: 1174.98 | AB14: 309.76 | AD14: 30.6 | AF14: 321.27 | AH14: 30.6 | AJ14: 321.27 | AN14: 509.74 | AR14: 509.74
B15: 2015-12-01 | C15: Vermelha | D15: 0.045 | E15: 6.78 | F15: 2.45 | G15: 435.52 | H15: 297.4 | I15: 17.88 | J15: 5.47 | K15: 446.87 | L15: 308.75 | M15: 30 | N15: 9 | O15: 447.88 | P15: 309.76 | Q15: 30 | R15: 9 | S15: 447.88 | T15: 309.76 | V15: 9 | W15: 1174.98 | X15: 309.76 | Z15: 9 | AA15: 1174.98 | AB15: 309.76 | AD15: 30.6 | AF15: 321.27 | AH15: 30.6 | AJ15: 321.27 | AN15: 509.74 | AR15: 509.74
B16: 2016-01-01 | C16: Vermelha | D16: 0.045 | E16: 6.78 | F16: 2.45 | G16: 435.52 | H16: 297.4 | I16: 17.88 | J16: 5.47 | K16: 446.87 | L16: 308.75 | M16: 30 | N16: 9 | O16: 447.88 | P16: 309.76 | Q16: 30 | R16: 9 | S16: 447.88 | T16: 309.76 | V16: 9 | W16: 1174.98 | X16: 309.76 | Z16: 9 | AA16: 1174.98 | AB16: 309.76 | AD16: 30.6 | AF16: 321.27 | AH16: 30.6 | AJ16: 321.27 | AN16: 509.74 | AR16: 509.74
B17: 2016-02-01 | C17: Vermelha 1 | D17: 0.03 | E17: 6.78 | F17: 2.45 | G17: 435.52 | H17: 297.4 | I17: 17.88 | J17: 5.47 | K17: 446.87 | L17: 308.75 | M17: 30 | N17: 9 | O17: 447.88 | P17: 309.76 | Q17: 30 | R17: 9 | S17: 447.88 | T17: 309.76 | V17: 9 | W17: 1174.98 | X17: 309.76 | Z17: 9 | AA17: 1174.98 | AB17: 309.76 | AD17: 30.6 | AF17: 321.27 | AH17: 30.6 | AJ17: 321.27 | AN17: 509.74 | AR17: 509.74
B18: 2016-03-01 | C18: Amarela | D18: 0.015 | E18: 6.78 | F18: 2.45 | G18: 435.52 | H18: 297.4 | I18: 17.88 | J18: 5.47 | K18: 446.87 | L18: 308.75 | M18: 30 | N18: 9 | O18: 447.88 | P18: 309.76 | Q18: 30 | R18: 9 | S18: 447.88 | T18: 309.76 | V18: 9 | W18: 1174.98 | X18: 309.76 | Z18: 9 | AA18: 1174.98 | AB18: 309.76 | AD18: 30.6 | AF18: 321.27 | AH18: 30.6 | AJ18: 321.27 | AN18: 509.74 | AR18: 509.74
B19: 2016-04-01 | C19: Verde | D19: 0 | E19: 6.78 | F19: 2.45 | G19: 435.52 | H19: 297.4 | I19: 17.88 | J19: 5.47 | K19: 446.87 | L19: 308.75 | M19: 30 | N19: 9 | O19: 447.88 | P19: 309.76 | Q19: 30 | R19: 9 | S19: 447.88 | T19: 309.76 | V19: 9 | W19: 1174.98 | X19: 309.76 | Z19: 9 | AA19: 1174.98 | AB19: 309.76 | AD19: 30.6 | AF19: 321.27 | AH19: 30.6 | AJ19: 321.27 | AN19: 509.74 | AR19: 509.74
B20: 2016-05-01 | C20: Verde | D20: 0 | E20: 6.78 | F20: 2.45 | G20: 435.52 | H20: 297.4 | I20: 17.88 | J20: 5.47 | K20: 446.87 | L20: 308.75 | M20: 30 | N20: 9 | O20: 447.88 | P20: 309.76 | Q20: 30 | R20: 9 | S20: 447.88 | T20: 309.76 | V20: 9 | W20: 1174.98 | X20: 309.76 | Z20: 9 | AA20: 1174.98 | AB20: 309.76 | AD20: 30.6 | AF20: 321.27 | AH20: 30.6 | AJ20: 321.27 | AN20: 509.74 | AR20: 509.74
B21: 2016-06-01 | C21: Verde | D21: 0 | E21: 6.21 | F21: 2.06 | G21: 442.42 | H21: 313.28 | I21: 18.64 | J21: 5.26 | K21: 453.5 | L21: 324.36 | M21: 31.67 | N21: 9.06 | O21: 454.42 | P21: 325.28 | Q21: 31.67 | R21: 9.06 | S21: 454.42 | T21: 325.28 | V21: 9.06 | W21: 1221.63 | X21: 325.28 | Z21: 9.06 | AA21: 1221.63 | AB21: 325.28 | AD21: 31.86 | AF21: 336.04 | AH21: 31.86 | AJ21: 336.04 | AN21: 531.22 | AR21: 531.22
B22: 2016-07-01 | C22: Verde | D22: 0 | E22: 6.21 | F22: 2.06 | G22: 442.42 | H22: 313.28 | I22: 18.64 | J22: 5.26 | K22: 453.5 | L22: 324.36 | M22: 31.67 | N22: 9.06 | O22: 454.42 | P22: 325.28 | Q22: 31.67 | R22: 9.06 | S22: 454.42 | T22: 325.28 | V22: 9.06 | W22: 1221.63 | X22: 325.28 | Z22: 9.06 | AA22: 1221.63 | AB22: 325.28 | AD22: 31.86 | AF22: 336.04 | AH22: 31.86 | AJ22: 336.04 | AN22: 531.22 | AR22: 531.22
B23: 2016-08-01 | C23: Verde | D23: 0 | E23: 6.21 | F23: 2.06 | G23: 442.42 | H23: 313.28 | I23: 18.64 | J23: 5.26 | K23: 453.5 | L23: 324.36 | M23: 31.67 | N23: 9.06 | O23: 454.42 | P23: 325.28 | Q23: 31.67 | R23: 9.06 | S23: 454.42 | T23: 325.28 | V23: 9.06 | W23: 1221.63 | X23: 325.28 | Z23: 9.06 | AA23: 1221.63 | AB23: 325.28 | AD23: 31.86 | AF23: 336.04 | AH23: 31.86 | AJ23: 336.04 | AN23: 531.22 | AR23: 531.22
B24: 2016-09-01 | C24: Verde | D24: 0 | E24: 6.21 | F24: 2.06 | G24: 442.42 | H24: 313.28 | I24: 18.64 | J24: 5.26 | K24: 453.5 | L24: 324.36 | M24: 31.67 | N24: 9.06 | O24: 454.42 | P24: 325.28 | Q24: 31.67 | R24: 9.06 | S24: 454.42 | T24: 325.28 | V24: 9.06 | W24: 1221.63 | X24: 325.28 | Z24: 9.06 | AA24: 1221.63 | AB24: 325.28 | AD24: 31.86 | AF24: 336.04 | AH24: 31.86 | AJ24: 336.04 | AN24: 531.22 | AR24: 531.22
B25: 2016-10-01 | C25: Verde | D25: 0 | E25: 6.21 | F25: 2.06 | G25: 442.42 | H25: 313.28 | I25: 18.64 | J25: 5.26 | K25: 453.5 | L25: 324.36 | M25: 31.67 | N25: 9.06 | O25: 454.42 | P25: 325.28 | Q25: 31.67 | R25: 9.06 | S25: 454.42 | T25: 325.28 | V25: 9.06 | W25: 1221.63 | X25: 325.28 | Z25: 9.06 | AA25: 1221.63 | AB25: 325.28 | AD25: 31.86 | AF25: 336.04 | AH25: 31.86 | AJ25: 336.04 | AN25: 531.22 | AR25: 531.22
B26: 2016-11-01 | C26: Amarela | D26: 0.015 | E26: 6.21 | F26: 2.06 | G26: 442.42 | H26: 313.28 | I26: 18.64 | J26: 5.26 | K26: 453.5 | L26: 324.36 | M26: 31.67 | N26: 9.06 | O26: 454.42 | P26: 325.28 | Q26: 31.67 | R26: 9.06 | S26: 454.42 | T26: 325.28 | V26: 9.06 | W26: 1221.63 | X26: 325.28 | Z26: 9.06 | AA26: 1221.63 | AB26: 325.28 | AD26: 31.86 | AF26: 336.04 | AH26: 31.86 | AJ26: 336.04 | AN26: 531.22 | AR26: 531.22
B27: 2016-12-01 | C27: Verde | D27: 0 | E27: 6.21 | F27: 2.06 | G27: 442.42 | H27: 313.28 | I27: 18.64 | J27: 5.26 | K27: 453.5 | L27: 324.36 | M27: 31.67 | N27: 9.06 | O27: 454.42 | P27: 325.28 | Q27: 31.67 | R27: 9.06 | S27: 454.42 | T27: 325.28 | V27: 9.06 | W27: 1221.63 | X27: 325.28 | Z27: 9.06 | AA27: 1221.63 | AB27: 325.28 | AD27: 31.86 | AF27: 336.04 | AH27: 31.86 | AJ27: 336.04 | AN27: 531.22 | AR27: 531.22
B28: 2017-01-01 | C28: Verde | D28: 0 | E28: 6.21 | F28: 2.06 | G28: 442.42 | H28: 313.28 | I28: 18.64 | J28: 5.26 | K28: 453.5 | L28: 324.36 | M28: 31.67 | N28: 9.06 | O28: 454.42 | P28: 325.28 | Q28: 31.67 | R28: 9.06 | S28: 454.42 | T28: 325.28 | V28: 9.06 | W28: 1221.63 | X28: 325.28 | Z28: 9.06 | AA28: 1221.63 | AB28: 325.28 | AD28: 31.86 | AF28: 336.04 | AH28: 31.86 | AJ28: 336.04 | AN28: 531.22 | AR28: 531.22
B29: 2017-02-01 | C29: Verde | D29: 0 | E29: 6.21 | F29: 2.06 | G29: 442.42 | H29: 313.28 | I29: 18.64 | J29: 5.26 | K29: 453.5 | L29: 324.36 | M29: 31.67 | N29: 9.06 | O29: 454.42 | P29: 325.28 | Q29: 31.67 | R29: 9.06 | S29: 454.42 | T29: 325.28 | V29: 9.06 | W29: 1221.63 | X29: 325.28 | Z29: 9.06 | AA29: 1221.63 | AB29: 325.28 | AD29: 31.86 | AF29: 336.04 | AH29: 31.86 | AJ29: 336.04 | AN29: 531.22 | AR29: 531.22
B30: 2017-03-01 | C30: Amarela | D30: 0.02 | E30: 6.21 | F30: 2.06 | G30: 442.42 | H30: 313.28 | I30: 18.64 | J30: 5.26 | K30: 453.5 | L30: 324.36 | M30: 31.67 | N30: 9.06 | O30: 454.42 | P30: 325.28 | Q30: 31.67 | R30: 9.06 | S30: 454.42 | T30: 325.28 | V30: 9.06 | W30: 1221.63 | X30: 325.28 | Z30: 9.06 | AA30: 1221.63 | AB30: 325.28 | AD30: 31.86 | AF30: 336.04 | AH30: 31.86 | AJ30: 336.04 | AN30: 531.22 | AR30: 531.22
B31: 2017-04-01 | C31: Vermelha 1 | D31: 0.03 | E31: 6.21 | F31: 2.06 | G31: 380.7 | H31: 251.57 | I31: 18.64 | J31: 5.26 | K31: 391.78 | L31: 262.65 | M31: 31.67 | N31: 9.06 | O31: 392.7 | P31: 263.57 | Q31: 31.67 | R31: 9.06 | S31: 392.7 | T31: 263.57 | V31: 9.06 | W31: 1159.91 | X31: 268.94 | Z31: 9.06 | AA31: 1159.91 | AB31: 268.94 | AD31: 31.86 | AF31: 274.33 | AH31: 31.86 | AJ31: 274.33 | AN31: 469.51 | AR31: 469.51
B32: 2017-05-01 | C32: Vermelha 1 | D32: 0.03 | E32: 6.21 | F32: 2.06 | G32: 437.04 | H32: 307.91 | I32: 18.64 | J32: 5.26 | K32: 448.12 | L32: 318.99 | M32: 31.67 | N32: 9.06 | O32: 449.04 | P32: 319.91 | Q32: 31.67 | R32: 9.06 | S32: 449.04 | T32: 319.91 | V32: 9.06 | W32: 1216.25 | X32: 325.28 | Z32: 9.06 | AA32: 1216.25 | AB32: 325.28 | AD32: 31.86 | AF32: 330.67 | AH32: 31.86 | AJ32: 330.67 | AN32: 525.85 | AR32: 525.85
B33: 2017-06-01 | C33: Verde | D33: 0 | E33: 9.49 | F33: 3.75 | G33: 380.6 | H33: 254.75 | I33: 20.78 | J33: 7.15 | K33: 392.23 | L33: 266.38 | M33: 34.21 | N33: 11.05 | O33: 393.96 | P33: 268.11 | Q33: 34.21 | R33: 11.05 | S33: 393.96 | T33: 268.11 | V33: 11.05 | W33: 1222.64 | X33: 268.11 | Z33: 11.05 | AA33: 1222.64 | AB33: 268.11 | AD33: 35.68 | AF33: 278.59 | AH33: 35.68 | AJ33: 278.59 | AN33: 494.14 | AR33: 494.14
B34: 2017-07-01 | C34: Amarela | D34: 0.02 | E34: 9.49 | F34: 3.75 | G34: 380.6 | H34: 254.75 | I34: 20.78 | J34: 7.15 | K34: 392.23 | L34: 266.38 | M34: 34.21 | N34: 11.05 | O34: 393.96 | P34: 268.11 | Q34: 34.21 | R34: 11.05 | S34: 393.96 | T34: 268.11 | V34: 11.05 | W34: 1222.64 | X34: 268.11 | Z34: 11.05 | AA34: 1222.64 | AB34: 268.11 | AD34: 35.68 | AF34: 278.59 | AH34: 35.68 | AJ34: 278.59 | AN34: 494.14 | AR34: 494.14
B35: 2017-08-01 | C35: Vermelha 1 | D35: 0.03 | E35: 9.49 | F35: 3.75 | G35: 380.6 | H35: 254.75 | I35: 20.78 | J35: 7.15 | K35: 392.23 | L35: 266.38 | M35: 34.21 | N35: 11.05 | O35: 393.96 | P35: 268.11 | Q35: 34.21 | R35: 11.05 | S35: 393.96 | T35: 268.11 | V35: 11.05 | W35: 1222.64 | X35: 268.11 | Z35: 11.05 | AA35: 1222.64 | AB35: 268.11 | AD35: 35.68 | AF35: 278.59 | AH35: 35.68 | AJ35: 278.59 | AN35: 494.14 | AR35: 494.14
B36: 2017-09-01 | C36: Amarela | D36: 0.02 | E36: 9.49 | F36: 3.75 | G36: 380.6 | H36: 254.75 | I36: 20.78 | J36: 7.15 | K36: 392.23 | L36: 266.38 | M36: 34.21 | N36: 11.05 | O36: 393.96 | P36: 268.11 | Q36: 34.21 | R36: 11.05 | S36: 393.96 | T36: 268.11 | V36: 11.05 | W36: 1222.64 | X36: 268.11 | Z36: 11.05 | AA36: 1222.64 | AB36: 268.11 | AD36: 35.68 | AF36: 278.59 | AH36: 35.68 | AJ36: 278.59 | AN36: 494.14 | AR36: 494.14
B37: 2017-10-01 | C37: Vermelha 2 | D37: 0.035 | E37: 9.49 | F37: 3.75 | G37: 380.6 | H37: 254.75 | I37: 20.78 | J37: 7.15 | K37: 392.23 | L37: 266.38 | M37: 34.21 | N37: 11.05 | O37: 393.96 | P37: 268.11 | Q37: 34.21 | R37: 11.05 | S37: 393.96 | T37: 268.11 | V37: 11.05 | W37: 1222.64 | X37: 268.11 | Z37: 11.05 | AA37: 1222.64 | AB37: 268.11 | AD37: 35.68 | AF37: 278.59 | AH37: 35.68 | AJ37: 278.59 | AN37: 494.14 | AR37: 494.14
B38: 2017-11-01 | C38: Vermelha 2 | D38: 0.05 | E38: 9.49 | F38: 3.75 | G38: 380.6 | H38: 254.75 | I38: 20.78 | J38: 7.15 | K38: 392.23 | L38: 266.38 | M38: 34.21 | N38: 11.05 | O38: 393.96 | P38: 268.11 | Q38: 34.21 | R38: 11.05 | S38: 393.96 | T38: 268.11 | V38: 11.05 | W38: 1222.64 | X38: 268.11 | Z38: 11.05 | AA38: 1222.64 | AB38: 268.11 | AD38: 35.68 | AF38: 278.59 | AH38: 35.68 | AJ38: 278.59 | AN38: 494.14 | AR38: 494.14
B39: 2017-12-01 | C39: Vermelha 1 | D39: 0.03 | E39: 9.49 | F39: 3.75 | G39: 380.6 | H39: 254.75 | I39: 20.78 | J39: 7.15 | K39: 392.23 | L39: 266.38 | M39: 34.21 | N39: 11.05 | O39: 393.96 | P39: 268.11 | Q39: 34.21 | R39: 11.05 | S39: 393.96 | T39: 268.11 | V39: 11.05 | W39: 1222.64 | X39: 268.11 | Z39: 11.05 | AA39: 1222.64 | AB39: 268.11 | AD39: 35.68 | AF39: 278.59 | AH39: 35.68 | AJ39: 278.59 | AN39: 494.14 | AR39: 494.14
B40: 2018-01-01 | C40: Verde | D40: 0 | E40: 9.49 | F40: 3.75 | G40: 380.6 | H40: 254.75 | I40: 20.78 | J40: 7.15 | K40: 392.23 | L40: 266.38 | M40: 34.21 | N40: 11.05 | O40: 393.96 | P40: 268.11 | Q40: 34.21 | R40: 11.05 | S40: 393.96 | T40: 268.11 | V40: 11.05 | W40: 1222.64 | X40: 268.11 | Z40: 11.05 | AA40: 1222.64 | AB40: 268.11 | AD40: 35.68 | AF40: 278.59 | AH40: 35.68 | AJ40: 278.59 | AN40: 494.14 | AR40: 494.14
B41: 2018-02-01 | C41: Verde | D41: 0 | E41: 9.49 | F41: 3.75 | G41: 380.6 | H41: 254.75 | I41: 20.78 | J41: 7.15 | K41: 392.23 | L41: 266.38 | M41: 34.21 | N41: 11.05 | O41: 393.96 | P41: 268.11 | Q41: 34.21 | R41: 11.05 | S41: 393.96 | T41: 268.11 | V41: 11.05 | W41: 1222.64 | X41: 268.11 | Z41: 11.05 | AA41: 1222.64 | AB41: 268.11 | AD41: 35.68 | AF41: 278.59 | AH41: 35.68 | AJ41: 278.59 | AN41: 494.14 | AR41: 494.14
B42: 2018-03-01 | C42: Verde | D42: 0 | E42: 9.49 | F42: 3.75 | G42: 380.6 | H42: 254.75 | I42: 20.78 | J42: 7.15 | K42: 392.23 | L42: 266.38 | M42: 34.21 | N42: 11.05 | O42: 393.96 | P42: 268.11 | Q42: 34.21 | R42: 11.05 | S42: 393.96 | T42: 268.11 | V42: 11.05 | W42: 1222.64 | X42: 268.11 | Z42: 11.05 | AA42: 1222.64 | AB42: 268.11 | AD42: 35.68 | AF42: 278.59 | AH42: 35.68 | AJ42: 278.59 | AN42: 494.14 | AR42: 494.14
B43: 2018-04-01 | C43: Verde | D43: 0 | E43: 9.49 | F43: 3.75 | G43: 380.6 | H43: 254.75 | I43: 20.78 | J43: 7.15 | K43: 392.23 | L43: 266.38 | M43: 34.21 | N43: 11.05 | O43: 393.96 | P43: 268.11 | Q43: 34.21 | R43: 11.05 | S43: 393.96 | T43: 268.11 | V43: 11.05 | W43: 1222.64 | X43: 268.11 | Z43: 11.05 | AA43: 1222.64 | AB43: 268.11 | AD43: 35.68 | AF43: 278.59 | AH43: 35.68 | AJ43: 278.59 | AN43: 494.14 | AR43: 494.14
B44: 2018-05-01 | C44: Amarela | D44: 0.01 | E44: 9.49 | F44: 3.75 | G44: 380.6 | H44: 254.75 | I44: 20.78 | J44: 7.15 | K44: 392.23 | L44: 266.38 | M44: 34.21 | N44: 11.05 | O44: 393.96 | P44: 268.11 | Q44: 34.21 | R44: 11.05 | S44: 393.96 | T44: 268.11 | V44: 11.05 | W44: 1222.64 | X44: 268.11 | Z44: 11.05 | AA44: 1222.64 | AB44: 268.11 | AD44: 35.68 | AF44: 278.59 | AH44: 35.68 | AJ44: 278.59 | AN44: 494.14 | AR44: 494.14
B45: 2018-06-01 | C45: Vermelha 2 | D45: 0.05 | E45: 9.82 | F45: 4.21 | G45: 459.59 | H45: 304.88 | I45: 21.156 | J45: 7.71 | K45: 470.58 | L45: 315.87 | M45: 44.28 | N45: 14.59 | O45: 477.53 | P45: 322.82 | Q45: 44.28 | R45: 14.59 | S45: 477.53 | T45: 322.82 | V45: 14.59 | W45: 1543.33 | X45: 322.82 | Z45: 14.59 | AA45: 1543.33 | AB45: 322.82 | AD45: 46.47 | AF45: 335.71 | AH45: 46.47 | AJ45: 335.71 | AN45: 586.84 | AR45: 586.84
B46: 2018-07-01 | C46: Vermelha 2 | D46: 0.05 | E46: 9.82 | F46: 4.21 | G46: 459.59 | H46: 304.88 | I46: 21.156 | J46: 7.71 | K46: 470.58 | L46: 315.87 | M46: 44.28 | N46: 14.59 | O46: 477.53 | P46: 322.82 | Q46: 44.28 | R46: 14.59 | S46: 477.53 | T46: 322.82 | V46: 14.59 | W46: 1543.33 | X46: 322.82 | Z46: 14.59 | AA46: 1543.33 | AB46: 322.82 | AD46: 46.47 | AF46: 335.71 | AH46: 46.47 | AJ46: 335.71 | AN46: 586.84 | AR46: 586.84
B47: 2018-08-01 | C47: Vermelha 2 | D47: 0.05 | E47: 9.82 | F47: 4.21 | G47: 459.59 | H47: 304.88 | I47: 21.156 | J47: 7.71 | K47: 470.58 | L47: 315.87 | M47: 44.28 | N47: 14.59 | O47: 477.53 | P47: 322.82 | Q47: 44.28 | R47: 14.59 | S47: 477.53 | T47: 322.82 | V47: 14.59 | W47: 1543.33 | X47: 322.82 | Z47: 14.59 | AA47: 1543.33 | AB47: 322.82 | AD47: 46.47 | AF47: 335.71 | AH47: 46.47 | AJ47: 335.71 | AN47: 586.84 | AR47: 586.84
B48: 2018-09-01 | C48: Vermelha 2 | D48: 0.05 | E48: 9.82 | F48: 4.21 | G48: 459.59 | H48: 304.88 | I48: 21.156 | J48: 7.71 | K48: 470.58 | L48: 315.87 | M48: 44.28 | N48: 14.59 | O48: 477.53 | P48: 322.82 | Q48: 44.28 | R48: 14.59 | S48: 477.53 | T48: 322.82 | V48: 14.59 | W48: 1543.33 | X48: 322.82 | Z48: 14.59 | AA48: 1543.33 | AB48: 322.82 | AD48: 46.47 | AF48: 335.71 | AH48: 46.47 | AJ48: 335.71 | AN48: 586.84 | AR48: 586.84
B49: 2018-10-01 | C49: Vermelha 2 | D49: 0.05 | E49: 9.82 | F49: 4.21 | G49: 459.59 | H49: 304.88 | I49: 21.156 | J49: 7.71 | K49: 470.58 | L49: 315.87 | M49: 44.28 | N49: 14.59 | O49: 477.53 | P49: 322.82 | Q49: 44.28 | R49: 14.59 | S49: 477.53 | T49: 322.82 | V49: 14.59 | W49: 1543.33 | X49: 322.82 | Z49: 14.59 | AA49: 1543.33 | AB49: 322.82 | AD49: 46.47 | AF49: 335.71 | AH49: 46.47 | AJ49: 335.71 | AN49: 586.84 | AR49: 586.84
B50: 2018-11-01 | C50: Amarela | D50: 0.01 | E50: 9.82 | F50: 4.21 | G50: 459.59 | H50: 304.88 | I50: 21.156 | J50: 7.71 | K50: 470.58 | L50: 315.87 | M50: 44.28 | N50: 14.59 | O50: 477.53 | P50: 322.82 | Q50: 44.28 | R50: 14.59 | S50: 477.53 | T50: 322.82 | V50: 14.59 | W50: 1543.33 | X50: 322.82 | Z50: 14.59 | AA50: 1543.33 | AB50: 322.82 | AD50: 46.47 | AF50: 335.71 | AH50: 46.47 | AJ50: 335.71 | AN50: 586.84 | AR50: 586.84
B51: 2018-12-01 | C51: Verde | D51: 0 | E51: 9.82 | F51: 4.21 | G51: 459.59 | H51: 304.88 | I51: 21.156 | J51: 7.71 | K51: 470.58 | L51: 315.87 | M51: 44.28 | N51: 14.59 | O51: 477.53 | P51: 322.82 | Q51: 44.28 | R51: 14.59 | S51: 477.53 | T51: 322.82 | V51: 14.59 | W51: 1543.33 | X51: 322.82 | Z51: 14.59 | AA51: 1543.33 | AB51: 322.82 | AD51: 46.47 | AF51: 335.71 | AH51: 46.47 | AJ51: 335.71 | AN51: 586.84 | AR51: 586.84
B52: 2019-01-01 | C52: Verde | D52: 0 | E52: 9.82 | F52: 4.21 | G52: 459.59 | H52: 304.88 | I52: 21.156 | J52: 7.71 | K52: 470.58 | L52: 315.87 | M52: 44.28 | N52: 14.59 | O52: 477.53 | P52: 322.82 | Q52: 44.28 | R52: 14.59 | S52: 477.53 | T52: 322.82 | V52: 14.59 | W52: 1543.33 | X52: 322.82 | Z52: 14.59 | AA52: 1543.33 | AB52: 322.82 | AD52: 46.47 | AF52: 335.71 | AH52: 46.47 | AJ52: 335.71 | AN52: 586.84 | AR52: 586.84
B53: 2019-02-01 | C53: Verde | D53: 0 | E53: 9.82 | F53: 4.21 | G53: 459.59 | H53: 304.88 | I53: 21.156 | J53: 7.71 | K53: 470.58 | L53: 315.87 | M53: 44.28 | N53: 14.59 | O53: 477.53 | P53: 322.82 | Q53: 44.28 | R53: 14.59 | S53: 477.53 | T53: 322.82 | V53: 14.59 | W53: 1543.33 | X53: 322.82 | Z53: 14.59 | AA53: 1543.33 | AB53: 322.82 | AD53: 46.47 | AF53: 335.71 | AH53: 46.47 | AJ53: 335.71 | AN53: 586.84 | AR53: 586.84
B54: 2019-03-01 | C54: Verde | D54: 0 | E54: 9.82 | F54: 4.21 | G54: 459.59 | H54: 304.88 | I54: 21.156 | J54: 7.71 | K54: 470.58 | L54: 315.87 | M54: 44.28 | N54: 14.59 | O54: 477.53 | P54: 322.82 | Q54: 44.28 | R54: 14.59 | S54: 477.53 | T54: 322.82 | V54: 14.59 | W54: 1543.33 | X54: 322.82 | Z54: 14.59 | AA54: 1543.33 | AB54: 322.82 | AD54: 46.47 | AF54: 335.71 | AH54: 46.47 | AJ54: 335.71 | AN54: 586.84 | AR54: 586.84
B55: 2019-04-01 | C55: Verde | D55: 0 | E55: 9.82 | F55: 4.21 | G55: 459.59 | H55: 304.88 | I55: 21.156 | J55: 7.71 | K55: 470.58 | L55: 315.87 | M55: 44.28 | N55: 14.59 | O55: 477.53 | P55: 322.82 | Q55: 44.28 | R55: 14.59 | S55: 477.53 | T55: 322.82 | V55: 14.59 | W55: 1543.33 | X55: 322.82 | Z55: 14.59 | AA55: 1543.33 | AB55: 322.82 | AD55: 46.47 | AF55: 335.71 | AH55: 46.47 | AJ55: 335.71 | AN55: 586.84 | AR55: 586.84
B56: 2019-05-01 | C56: Amarela | D56: 0.01 | E56: 9.82 | F56: 4.21 | G56: 459.59 | H56: 304.88 | I56: 21.156 | J56: 7.71 | K56: 470.58 | L56: 315.87 | M56: 44.28 | N56: 14.59 | O56: 477.53 | P56: 322.82 | Q56: 44.28 | R56: 14.59 | S56: 477.53 | T56: 322.82 | V56: 14.59 | W56: 1543.33 | X56: 322.82 | Z56: 14.59 | AA56: 1543.33 | AB56: 322.82 | AD56: 46.47 | AF56: 335.71 | AH56: 46.47 | AJ56: 335.71 | AN56: 586.84 | AR56: 586.84
B57: 2019-06-01 | C57: Verde | D57: 0 | E57: 9.81 | F57: 3.7 | G57: 510.05 | H57: 332.46 | I57: 20.16 | J57: 6.68 | K57: 522.19 | L57: 344.6 | M57: 43.85 | N57: 13.95 | O57: 534.25 | P57: 356.66 | Q57: 43.85 | R57: 13.95 | S57: 534.25 | T57: 356.66 | U57: 0 | V57: 13.95 | W57: 1599.69 | X57: 356.66 | Y57: 0 | Z57: 13.95 | AA57: 1599.69 | AB57: 356.66 | AC57: 0 | AD57: 45.52 | AE57: 0 | AF57: 371.46 | AG57: 0 | AH57: 45.52 | AI57: 0 | AJ57: 371.46 | AK57: 0 | AL57: 0 | AM57: 0 | AN57: 628.33 | AO57: 0 | AP57: 0 | AQ57: 0 | AR57: 628.33
B58: 2019-07-01 | C58: Amarela | D58: 0.015 | E58: =E57 -> 9.81 | F58: 3.7 | G58: 510.05 | H58: 332.46 | I58: 20.16 | J58: 6.68 | K58: 522.19 | L58: 344.6 | M58: 43.85 | N58: 13.95 | O58: 534.25 | P58: 356.66 | Q58: 43.85 | R58: 13.95 | S58: 534.25 | T58: 356.66 | V58: 13.95 | W58: 1599.69 | X58: 356.66 | Z58: 13.95 | AA58: 1599.69 | AB58: 356.66 | AD58: 45.52 | AF58: 371.46 | AH58: 45.52 | AJ58: 371.46 | AN58: 628.33 | AR58: 628.33
B59: 2019-08-01 | C59: Vermelha 1 | D59: =D97 -> 0.04 | E59: 9.81 | F59: 3.7 | G59: 510.05 | H59: 332.46 | I59: 20.16 | J59: 6.68 | K59: 522.19 | L59: 344.6 | M59: 43.85 | N59: 13.95 | O59: 534.25 | P59: 356.66 | Q59: 43.85 | R59: 13.95 | S59: 534.25 | T59: 356.66 | V59: 13.95 | W59: 1599.69 | X59: 356.66 | Z59: 13.95 | AA59: 1599.69 | AB59: 356.66 | AD59: 45.52 | AF59: 371.46 | AH59: 45.52 | AJ59: 371.46 | AN59: 628.33 | AR59: 628.33
B60: 2019-09-01 | C60: Vermelha 1 | D60: =D59 -> 0.04 | E60: 9.81 | F60: 3.7 | G60: 510.05 | H60: 332.46 | I60: 20.16 | J60: 6.68 | K60: 522.19 | L60: 344.6 | M60: 43.85 | N60: 13.95 | O60: 534.25 | P60: 356.66 | Q60: 43.85 | R60: 13.95 | S60: 534.25 | T60: 356.66 | V60: 13.95 | W60: 1599.69 | X60: 356.66 | Z60: 13.95 | AA60: 1599.69 | AB60: 356.66 | AD60: 45.52 | AF60: 371.46 | AH60: 45.52 | AJ60: 371.46 | AN60: 628.33 | AR60: 628.33
B61: 2019-10-01 | C61: Amarela | D61: 0.015 | E61: 9.81 | F61: 3.7 | G61: 510.05 | H61: 332.46 | I61: 20.16 | J61: 6.68 | K61: 522.19 | L61: 344.6 | M61: 43.85 | N61: 13.95 | O61: 534.25 | P61: 356.66 | Q61: 43.85 | R61: 13.95 | S61: 534.25 | T61: 356.66 | V61: 13.95 | W61: 1599.69 | X61: 356.66 | Z61: 13.95 | AA61: 1599.69 | AB61: 356.66 | AD61: 45.52 | AF61: 371.46 | AH61: 45.52 | AJ61: 371.46 | AN61: 628.33 | AR61: 628.33
B62: 2019-11-01 | C62: Vermelha 1 | D62: =D103 -> 0.04169 | E62: 9.81 | F62: 3.7 | G62: 510.05 | H62: 332.46 | I62: 20.16 | J62: 6.68 | K62: 522.19 | L62: 344.6 | M62: 43.85 | N62: 13.95 | O62: 534.25 | P62: 356.66 | Q62: 43.85 | R62: 13.95 | S62: 534.25 | T62: 356.66 | V62: 13.95 | W62: 1599.69 | X62: 356.66 | Z62: 13.95 | AA62: 1599.69 | AB62: 356.66 | AD62: 45.52 | AF62: 371.46 | AH62: 45.52 | AJ62: 371.46 | AN62: 628.33 | AR62: 628.33
B63: 2019-12-01 | C63: Amarela | D63: =$D$102 -> 0.01343 | E63: 9.81 | F63: 3.7 | G63: 510.05 | H63: 332.46 | I63: 20.16 | J63: 6.68 | K63: 522.19 | L63: 344.6 | M63: 43.85 | N63: 13.95 | O63: 534.25 | P63: 356.66 | Q63: 43.85 | R63: 13.95 | S63: 534.25 | T63: 356.66 | V63: 13.95 | W63: 1599.69 | X63: 356.66 | Z63: 13.95 | AA63: 1599.69 | AB63: 356.66 | AD63: 45.52 | AF63: 371.46 | AH63: 45.52 | AJ63: 371.46 | AN63: 628.33 | AR63: 628.33
B64: 2020-01-01 | C64: Amarela | D64: =$D$102 -> 0.01343 | E64: 9.81 | F64: 3.7 | G64: 510.05 | H64: 332.46 | I64: 20.16 | J64: 6.68 | K64: 522.19 | L64: 344.6 | M64: 43.85 | N64: 13.95 | O64: 534.25 | P64: 356.66 | Q64: 43.85 | R64: 13.95 | S64: 534.25 | T64: 356.66 | V64: 13.95 | W64: 1599.69 | X64: 356.66 | Z64: 13.95 | AA64: 1599.69 | AB64: 356.66 | AD64: 45.52 | AF64: 371.46 | AH64: 45.52 | AJ64: 371.46 | AN64: 628.33 | AR64: 628.33
B65: 2020-02-01 | C65: Verde | D65: 0 | E65: 9.81 | F65: 3.7 | G65: 510.05 | H65: 332.46 | I65: 20.16 | J65: 6.68 | K65: 522.19 | L65: 344.6 | M65: 43.85 | N65: 13.95 | O65: 534.25 | P65: 356.66 | Q65: 43.85 | R65: 13.95 | S65: 534.25 | T65: 356.66 | V65: 13.95 | W65: 1599.69 | X65: 356.66 | Z65: 13.95 | AA65: 1599.69 | AB65: 356.66 | AD65: 45.52 | AF65: 371.46 | AH65: 45.52 | AJ65: 371.46 | AN65: 628.33 | AR65: 628.33
B66: 2020-03-01 | C66: Verde | D66: 0 | E66: 9.81 | F66: 3.7 | G66: 510.05 | H66: 332.46 | I66: 20.16 | J66: 6.68 | K66: 522.19 | L66: 344.6 | M66: 43.85 | N66: 13.95 | O66: 534.25 | P66: 356.66 | Q66: 43.85 | R66: 13.95 | S66: 534.25 | T66: 356.66 | V66: 13.95 | W66: 1599.69 | X66: 356.66 | Z66: 13.95 | AA66: 1599.69 | AB66: 356.66 | AD66: 45.52 | AF66: 371.46 | AH66: 45.52 | AJ66: 371.46 | AN66: 628.33 | AR66: 628.33
B67: 2020-04-01 | C67: Verde | D67: 0 | E67: 9.81 | F67: 3.7 | G67: 510.05 | H67: =H66 -> 332.46 | I67: 20.16 | J67: 6.68 | K67: 522.19 | L67: 344.6 | M67: 43.85 | N67: 13.95 | O67: 534.25 | P67: 356.66 | Q67: 43.85 | R67: 13.95 | S67: 534.25 | T67: 356.66 | V67: =V66 -> 13.95 | W67: 1599.69 | X67: 356.66 | Z67: =Z66 -> 13.95 | AA67: 1599.69 | AB67: 356.66 | AD67: =AD66 -> 45.52 | AF67: =AF66 -> 371.46 | AH67: =AH66 -> 45.52 | AJ67: =AJ66 -> 371.46 | AN67: =AN66 -> 628.33 | AR67: =AR66 -> 628.33
B68: 2020-05-01 | C68: Verde | D68: 0 | E68: =E67 -> 9.81 | F68: 3.7 | G68: 510.05 | H68: 332.46 | I68: 20.16 | J68: 6.68 | K68: 522.19 | L68: 344.6 | M68: 43.85 | N68: 13.95 | O68: 534.25 | P68: 356.66 | Q68: 43.85 | R68: 13.95 | S68: 534.25 | T68: 356.66 | V68: 13.95 | W68: 1599.69 | X68: 356.66 | Z68: 13.95 | AA68: 1599.69 | AB68: 356.66 | AD68: =AD67 -> 45.52 | AF68: =AF67 -> 371.46 | AH68: =AH67 -> 45.52 | AJ68: =AJ67 -> 371.46 | AN68: =AN67 -> 628.33 | AR68: =AR67 -> 628.33 | AS68: =SUM(E68:AR68) -> 9678.29 | AT68: =AS68=#REF! -> 
B69: 2020-06-01 | C69: Verde | D69: 0 | E69: 9.81 | F69: 3.7 | G69: 510.05 | H69: 332.46 | I69: 20.16 | J69: 6.68 | K69: 522.19 | L69: 344.6 | M69: 43.85 | N69: 13.95 | O69: 534.25 | P69: 356.66 | Q69: 43.85 | R69: 13.95 | S69: 534.25 | T69: 356.66 | V69: 13.95 | W69: 1599.69 | X69: 356.66 | Z69: 13.95 | AA69: 1599.69 | AB69: 356.66 | AD69: 45.52 | AF69: 371.46 | AH69: 45.52 | AJ69: 371.46 | AN69: 628.33 | AR69: 628.33
B70: 2020-07-01 | C70: Verde | D70: 0 | E70: 9.81 | F70: =F69 -> 3.7 | G70: 510.05 | H70: 332.46 | I70: 20.16 | J70: 6.68 | K70: 522.19 | L70: 344.6 | M70: 43.85 | N70: 13.95 | O70: 534.25 | P70: 356.66 | Q70: 43.85 | R70: 13.95 | S70: 534.25 | T70: 356.66 | V70: =V69 -> 13.95 | W70: =W69 -> 1599.69 | X70: =X69 -> 356.66 | Z70: =Z69 -> 13.95 | AA70: =AA69 -> 1599.69 | AB70: =AB69 -> 356.66 | AD70: =AD69 -> 45.52 | AF70: =AF69 -> 371.46 | AH70: =AH69 -> 45.52 | AJ70: =AJ69 -> 371.46 | AN70: =AN69 -> 628.33 | AR70: =AR69 -> 628.33
B71: 2020-08-01 | C71: Verde | D71: 0 | E71: =E70 -> 9.81 | F71: 3.7 | G71: 510.05 | H71: 332.46 | I71: 20.16 | J71: 6.68 | K71: 522.19 | L71: 344.6 | M71: 43.85 | N71: 13.95 | O71: 534.25 | P71: 356.66 | Q71: 43.85 | R71: 13.95 | S71: 534.25 | T71: 356.66 | V71: 13.95 | W71: 1599.69 | X71: 356.66 | Z71: 13.95 | AA71: 1599.69 | AB71: 356.66 | AD71: 45.52 | AF71: 371.46 | AH71: 45.52 | AJ71: 371.46 | AN71: 628.33 | AR71: 628.33
B72: 2020-09-01 | C72: Verde | D72: 0 | E72: =E71 -> 9.81 | F72: 3.7 | G72: 510.05 | H72: 332.46 | I72: 20.16 | J72: 6.68 | K72: 522.19 | L72: 344.6 | M72: 43.85 | N72: 13.95 | O72: 534.25 | P72: 356.66 | Q72: 43.85 | R72: 13.95 | S72: 534.25 | T72: 356.66 | V72: 13.95 | W72: 1599.69 | X72: 356.66 | Z72: 13.95 | AA72: 1599.69 | AB72: 356.66 | AD72: 45.52 | AF72: 371.46 | AH72: 45.52 | AJ72: 371.46 | AN72: 628.33 | AR72: 628.33
B73: 2020-10-01 | C73: Verde | D73: 0 | E73: =E72 -> 9.81 | F73: 3.7 | G73: 510.05 | H73: 332.46 | I73: 20.16 | J73: 6.68 | K73: 522.19 | L73: 344.6 | M73: 43.85 | N73: 13.95 | O73: 534.25 | P73: 356.66 | Q73: 43.85 | R73: 13.95 | S73: 534.25 | T73: 356.66 | V73: 13.95 | W73: 1599.69 | X73: 356.66 | Z73: 13.95 | AA73: 1599.69 | AB73: 356.66 | AD73: 45.52 | AF73: 371.46 | AH73: 45.52 | AJ73: 371.46 | AN73: 628.33 | AR73: 628.33
B74: 2020-11-01 | C74: Verde | D74: 0 | E74: =E73 -> 9.81 | F74: 3.7 | G74: 510.05 | H74: 332.46 | I74: 20.16 | J74: 6.68 | K74: 522.19 | L74: 344.6 | M74: 43.85 | N74: 13.95 | O74: 534.25 | P74: 356.66 | Q74: 43.85 | R74: 13.95 | S74: 534.25 | T74: 356.66 | V74: 13.95 | W74: 1599.69 | X74: 356.66 | Z74: 13.95 | AA74: 1599.69 | AB74: 356.66 | AD74: 45.52 | AF74: 371.46 | AH74: 45.52 | AJ74: 371.46 | AN74: 628.33 | AR74: 628.33
B75: 2020-12-01 | C75: Verde | D75: 0 | E75: =E74 -> 9.81 | F75: 3.7 | G75: 510.05 | H75: 332.46 | I75: 20.16 | J75: 6.68 | K75: 522.19 | L75: 344.6 | M75: 43.85 | N75: 13.95 | O75: 534.25 | P75: 356.66 | Q75: 43.85 | R75: 13.95 | S75: 534.25 | T75: 356.66 | V75: 13.95 | W75: 1599.69 | X75: 356.66 | Z75: 13.95 | AA75: 1599.69 | AB75: 356.66 | AD75: 45.52 | AF75: 371.46 | AH75: 45.52 | AJ75: 371.46 | AN75: 628.33 | AR75: 628.33
B76: 2021-01-01 | C76: Verde | D76: 0 | E76: =E75 -> 9.81 | F76: 3.7 | G76: 510.05 | H76: 332.46 | I76: 20.16 | J76: 6.68 | K76: 522.19 | L76: 344.6 | M76: 43.85 | N76: 13.95 | O76: 534.25 | P76: 356.66 | Q76: 43.85 | R76: 13.95 | S76: 534.25 | T76: 356.66 | V76: 13.95 | W76: 1599.69 | X76: 356.66 | Z76: 13.95 | AA76: 1599.69 | AB76: 356.66 | AD76: 45.52 | AF76: 371.46 | AH76: 45.52 | AJ76: 371.46 | AN76: 628.33 | AR76: 628.33
B77: 2021-02-01 | C77: Verde | D77: 0 | E77: =E76 -> 9.81 | F77: 3.7 | G77: 510.05 | H77: 332.46 | I77: 20.16 | J77: 6.68 | K77: 522.19 | L77: 344.6 | M77: 43.85 | N77: 13.95 | O77: 534.25 | P77: 356.66 | Q77: 43.85 | R77: 13.95 | S77: 534.25 | T77: 356.66 | V77: 13.95 | W77: 1599.69 | X77: 356.66 | Z77: 13.95 | AA77: 1599.69 | AB77: 356.66 | AD77: 45.52 | AF77: 371.46 | AH77: 45.52 | AJ77: 371.46 | AN77: 628.33 | AR77: 628.33
B78: 2021-03-01 | C78: Verde | D78: 0 | E78: =E77 -> 9.81 | F78: 3.7 | G78: 510.05 | H78: 332.46 | I78: 20.16 | J78: 6.68 | K78: 522.19 | L78: 344.6 | M78: 43.85 | N78: 13.95 | O78: 534.25 | P78: 356.66 | Q78: 43.85 | R78: 13.95 | S78: 534.25 | T78: 356.66 | V78: 13.95 | W78: 1599.69 | X78: 356.66 | Z78: 13.95 | AA78: 1599.69 | AB78: 356.66 | AD78: 45.52 | AF78: 371.46 | AH78: 45.52 | AJ78: 371.46 | AN78: 628.33 | AR78: 628.33
B79: 2021-04-01 | C79: Verde | D79: 0 | E79: =E78 -> 9.81 | F79: 3.7 | G79: 510.05 | H79: 332.46 | I79: 20.16 | J79: 6.68 | K79: 522.19 | L79: 344.6 | M79: 43.85 | N79: 13.95 | O79: 534.25 | P79: 356.66 | Q79: 43.85 | R79: 13.95 | S79: 534.25 | T79: 356.66 | V79: 13.95 | W79: 1599.69 | X79: 356.66 | Z79: 13.95 | AA79: 1599.69 | AB79: 356.66 | AD79: 45.52 | AF79: 371.46 | AH79: 45.52 | AJ79: 371.46 | AN79: 628.33 | AR79: 628.33
B80: 2021-05-01 | C80: Verde | D80: 0 | E80: =E79 -> 9.81 | F80: 3.7 | G80: 510.05 | H80: 332.46 | I80: 20.16 | J80: 6.68 | K80: 522.19 | L80: 344.6 | M80: 43.85 | N80: 13.95 | O80: 534.25 | P80: 356.66 | Q80: 43.85 | R80: 13.95 | S80: 534.25 | T80: 356.66 | V80: 13.95 | W80: 1599.69 | X80: 356.66 | Z80: 13.95 | AA80: 1599.69 | AB80: 356.66 | AD80: 45.52 | AF80: 371.46 | AH80: 45.52 | AJ80: 371.46 | AN80: 628.33 | AR80: 628.33
B81: 2021-06-01 | C81: Verde | D81: 0 | E81: =E80 -> 9.81 | F81: 3.7 | G81: 510.05 | H81: 332.46 | I81: 20.16 | J81: 6.68 | K81: 522.19 | L81: 344.6 | M81: 43.85 | N81: 13.95 | O81: 534.25 | P81: 356.66 | Q81: 43.85 | R81: 13.95 | S81: 534.25 | T81: 356.66 | V81: 13.95 | W81: 1599.69 | X81: 356.66 | Z81: 13.95 | AA81: 1599.69 | AB81: 356.66 | AD81: 45.52 | AF81: 371.46 | AH81: 45.52 | AJ81: 371.46 | AN81: 628.33 | AR81: 628.33
B82: 2021-07-01 | C82: Verde | D82: 0 | E82: =E81 -> 9.81 | F82: =F81 -> 3.7 | G82: 510.05 | H82: 332.46 | I82: 20.16 | J82: 6.68 | K82: 522.19 | L82: 344.6 | M82: 43.85 | N82: 13.95 | O82: 534.25 | P82: 356.66 | Q82: 43.85 | R82: 13.95 | S82: 534.25 | T82: 356.66 | V82: 13.95 | W82: 1599.69 | X82: 356.66 | Z82: 13.95 | AA82: 1599.69 | AB82: 356.66 | AD82: 45.52 | AF82: 371.46 | AH82: 45.52 | AJ82: 371.46 | AN82: 628.33 | AR82: 628.33
E84: =E45/E44-1 -> 0.03477344573 | F84: =F45/F44-1 -> 0.1226666667 | G84: 0.2075407252 | H84: 0.196781158 | I84: 0.01809432146 | J84: 0.07832167832 | K84: 0.1997552456 | L84: 0.1857872213 | M84: 0.2943583747 | N84: 0.320361991 | O84: 0.2121281348 | P84: 0.2040580359 | Q84: 0.2943583747 | R84: 0.320361991 | S84: 0.2121281348 | T84: 0.2040580359 | V84: 0.320361991 | W84: 0.2622930707 | X84: 0.2040580359 | Z84: 0.320361991 | AA84: 0.2622930707 | AB84: 0.2040580359 | AD84: 0.3024103139 | AF84: 0.205032485 | AH84: 0.3024103139 | AJ84: 0.205032485 | AN84: 0.1875986563 | AR84: 0.1875986563
C87: Verde | D87: =COUNTIF($C$44:$C$55,C87)/12 -> 0.4166666667 | H87: Previsão IPCA
C88: Amarela | D88: =COUNTIF($C$44:$C$55,C88)/12 -> 0.1666666667 | H88: 2019-05-01 | I88: =VLOOKUP(H88,'3.1.Índices_inflação'!$A$2:$AI$359,19,FALSE) -> 0.0013 | J88: =I88 -> 0.0013
C89: Vermelha 1 | D89: =COUNTIF($C$44:$C$55,C89)/12 -> 0 | H89: 2019-06-01 | I89: =VLOOKUP(H89,'3.1.Índices_inflação'!$A$2:$AI$359,19,FALSE) -> 0.0001 | J89: =(1+J88)*(1+I89)-1 -> 0.00140013
C90: Vermelha 2 | D90: =COUNTIF($C$44:$C$55,C90)/12 -> 0.4166666667 | H90: 2019-07-01 | I90: =VLOOKUP(H90,'3.1.Índices_inflação'!$A$2:$AI$359,19,FALSE) -> 0.0019 | J90: =(1+J89)*(1+I90)-1 -> 0.003302790247
D91: =SUM(D87:D90) -> 1 | H91: 2019-08-01 | I91: =VLOOKUP(H91,'3.1.Índices_inflação'!$A$2:$AI$359,19,FALSE) -> 0.0011 | J91: 0.004406423316
H92: 2019-09-01 | I92: =VLOOKUP(H92,'3.1.Índices_inflação'!$A$2:$AI$359,19,FALSE) -> -0.0004 | J92: 0.004004660747
H93: 2019-10-01 | I93: =VLOOKUP(H93,'3.1.Índices_inflação'!$A$2:$AI$359,19,FALSE) -> 0.001 | J93: 0.005008665408
C94: Resolução Homologatória nº 2.551/2019 | H94: 2019-11-01 | I94: =VLOOKUP(H94,'3.1.Índices_inflação'!$A$2:$AI$359,19,FALSE) -> 0.0051 | J94: 0.0101342096
C95: Verde | D95: 0 | H95: 2019-12-01 | I95: =VLOOKUP(H95,'3.1.Índices_inflação'!$A$2:$AI$359,19,FALSE) -> 0.0115 | J95: 0.02175075301
C96: Amarela | D96: 0.015 | H96: 2020-01-01 | I96: =VLOOKUP(H96,'3.1.Índices_inflação'!$A$2:$AI$359,19,FALSE) -> 0.0021 | J96: 0.02389642959
C97: Vermelha 1 | D97: 0.04 | H97: 2020-02-01 | I97: =VLOOKUP(H97,'3.1.Índices_inflação'!$A$2:$AI$359,19,FALSE) -> 0.0025 | J97: 0.02645617067
C98: Vermelha 2 | D98: 0.06 | H98: 2020-03-01 | I98: =VLOOKUP(H98,'3.1.Índices_inflação'!$A$2:$AI$359,19,FALSE) -> 0.0007 | J98: 0.02717468999
H99: 2020-04-01 | I99: =VLOOKUP(H99,'3.1.Índices_inflação'!$A$2:$AI$359,19,FALSE) -> -0.0031 | J99: =(1+J98)*(1+I99)-1 -> 0.02399044845 | K99: Previsão reajuste Cemig 2020
C100: Resolução Homologatória nº 2.628/2019
C101: Verde | D101: 0
C102: Amarela | D102: 0.01343
C103: Vermelha 1 | D103: 0.04169
C104: Vermelha 2 | D104: 0.06243

Sheet 4.Componentes Financeiros
A1: ARSAE-MG
A2: Gerência de Regulação Tarifária (GRT)
A3: Data: 13/04/2020
A4: Componentes Financeiros Copasa 2020
E7: Componentes financeiros 2020 | K7: =CONCATENATE(TEXT("Impacto da variação de mercado sobre os CF do PR anterior - ",),TEXT(Sumário!S7,"AAAA")) -> Impacto da variação de mercado sobre os CF do PR anterior - 2019
E8: Componentes Financeiros (CF) | F8: Valor em R$ | K8: Descrição | M8: Valor
E9: Compensação itens não administráveis | F9: 39855734.05 | K9: CF definidos | M9: 21106846.94 | N9: sem subsídio Copanor e sem repasse a municípios
E10: Compensação Tarifa Social | F10: -72624293.61 | K10: =CONCATENATE(TEXT("Total incorrido (",),TEXT(N10,"0,00%"),TEXT("*RT0 aplic.)",)) -> Total incorrido (0,40%*RT0 aplic.) | M10: =N10*'2.IRT_2020'!F8 -> 21997578.48 | N10: =M9/'1.Anterior (IRT_2019)'!R53 -> 0.004044143792
E11: Compensação JCP | F11: =-'6.Compensação JCP'!G18 -> -28621169.06 | K11: Compensação | M11: =M9-M10 -> -890731.5339
E12: Compensação receitas de ligação | F12: ='1.Anterior (IRT_2019)'!R47/'1.Anterior (IRT_2019)'!R53*'2.IRT_2020'!F8*(1+E41) -> 34846537.01 | K12: Compensação atualizada | M12: =M11*(1+E41) -> -926338.1274
E13: Correção no valor de receitas financeiras | F13: -5813319.798
E14: Custos regulatórios | F14: 8626830.433
E15: Compensação proteção de mananciais | F15: =-11413424*(1+E39) -> -11613113.91
E16: Subsídio Copanor | F16: ='5.Subsídio_Copanor'!K74 -> 63751817.64
E17: Compensação subsídio Copanor - IM | F17: =('5.Sub_Copanor_comp'!K74)*(1+E39) -> -9156684.879
E18: Compensação subsídio Copanor - VR | F18: =-2791465*(1+E39) -> -2840304.629
E19: Repasse a municípios | F19: 117497230
E20: Compensação repasse a municípios | F20: =1611058*(1+E39) -> 1639245.161
E21: Compensação referente às chuvas de janeiro | F21: =47016.7846390485*(1+E39) -> 47839.39295
E22: Comp. impacto var. de mercado no CF período anterior | F22: =M12 -> -926338.1274
E23: Comp. por correção da compensação energia elétrica 2019 | F23: 5447266.234
E24: Total | F24: =SUM(F9:F23) -> 140117275.9
E29: Impacto total dos Componentes Financeiros, com efeitos circulares
E30: Descrição | F30: Valor em R$
E31: Componentes Financeiros | F31: =F24 -> 140117275.9
E32: (+) Variação no PIS/Cofins | F32: ='2.IRT_2020'!S34-'2.IRT_2020'!R34 -> 6348825.01
E33: (+) Variação nas Receitas Irrecuperáveis | F33: ='2.IRT_2020'!S44-'2.IRT_2020'!R44 -> 3024721.614
E34: (+) Variação na remuneração da NCG | F34: ='2.IRT_2020'!S42-'2.IRT_2020'!R42 -> 293429.8764
E35: (+) Variação autosserviços de água e esgoto | F35: ='2.IRT_2020'!S29-'2.IRT_2020'!R29 -> 248094.5238
E36: Impacto total dos Componentes Financeiros | F36: =SUM(F31:F35) -> 150032346.9
F37: =SUM(F32:F35)-('2.IRT_2020'!S50-copiar_RTbase_FQ) -> 8.381903172e-08
E38: Selic acumulada jan a jul/20
E39: ='3.1.Índices_inflação'!P93/'3.1.Índices_inflação'!P86-1 -> 0.01749605625
E40: Selic acumulada PR0
E41: ='3.1.Índices_inflação'!P112 -> 0.03997455142

Sheet 5.Subsídio_Copanor
A1: ARSAE-MG
A2: Coordenadoria Econômica | N2: =K35+K45+K80+K90 -> 0 | O2: =N2=0 -> TRUE
A3: SUBSÍDIO COPANOR - Cálculo do aumento na tarifa da Copasa para investimento na Copanor
B6: Revisão 2017 | D6: Para a Copasa repassar o adicional arrecadado após dedução dos percentuais de PIS/Cofins, IR e CSLL, e utilizar recursos da sua geração de caixa para o pagamento de PLR e JCP:
O7: 57389935.61 | P7: 0.01235562135
J8: Receita Tarifária base | K8: 4514466140 | O8: 57389935.61 | P8: =O8=O7 -> TRUE
J9: Aumento tarifa | K9: 56859966.12 | M9: =K9/K8 -> 0.01259505872 | R9: 0.01235562135
J10: PIS e Cofins | K10: =9.25%*K9 -> 5259546.866 | R10: 0.001142894975
J11: PLR | K11: =25%*25%*95%*(K9-K10) -> 3063774.893
J12: JCP | K12: =25%/0.85*95%*(K9-K10) -> 14417764.2
J13: IR e CSLL | K13: =34%*(K9-K10-K11-K12) -> 11600419.25
J14: Valor repassado | K14: =K9-K10-K13 -> 40000000 | L14: =K14/K9 -> 0.7034826562 | M14: =K14/K8 -> 0.008860405363
D16: Se a Copasa repassasse o adicional arrecadado após dedução dos percentuais de PIS/Cofins, IR, CSLL, PLR e JCP
J18: Receita Tarifária base | K18: =K8 -> 4514466140
J19: Aumento tarifa | K19: 101001514 | M19: =K19/K18 -> 0.02237285891
J20: PIS e Cofins | K20: =9.25%*K19 -> 9342640.047
J21: PLR | K21: =25%*25%*95%*(K19-K20) -> 5442245.642
J22: JCP | K22: =25%/0.85*95%*(K19-K20) -> 25610567.73
J23: IR e CSLL | K23: =34%*(K19-K20-K21-K22) -> 20606060.61
J24: Valor repassado | K24: =K19-K20-K23-K21-K22 -> 40000000 | L24: =K24/K19 -> 0.3960336673 | M24: =K24/K18 -> 0.008860405363
B26: Reajuste 2018 | D26: Para a Copasa repassar o adicional arrecadado após dedução dos percentuais de PIS/Cofins, IR e CSLL, e utilizar recursos da sua geração de caixa para o pagamento de PLR e JCP:
J28: Receita Tarifária base | K28: =#REF! -> 
J29: Aumento alocado na tarifa | K29: 52797740.78 | M29: =K29/K28 ->  | N29: =K29-K35 -> 52797740.78 | R29: =K29/#REF! -> 
J30: (-) PIS e Cofins | K30: =9.25%*K29 -> 4883791.022 | R30: =K30/#REF! -> 
J31: (-) PLR | K31: =25%*25%*95%*(K29-K30) -> 2844890.767
J32: (-) JCP | K32: =50%/0.85*95%*(K29-K30-K31) -> 25185650.61
J33: (-) IR e CSLL | K33: =34%*(K29-K30-K31-K32) -> 6760358.848 | O33: 2018 - Subsídio atualizado INCC
J34: (=) Valor repassado | K34: =K29-K30-K33 -> 41153590.91 | L34: =K34/K29 -> 0.7794574219 | M34: =K34/K28 ->  | O34: =K14*(1+0.0288397726690399) -> 41153590.91 | P34: ='3.1.Índices_inflação'!H69/'3.1.Índices_inflação'!H57-1 -> 0.03956556015 | Q34: A variação de 2,88% tinha meses previstos. O realizado foi 3,96% no PR
K35: =K34-O34 -> 0 | L35: =K35=0 -> TRUE
D36: Se a Copasa repassasse o adicional arrecadado após dedução dos percentuais de PIS/Cofins, IR, CSLL, PLR e JCP | O36: =K30+K33 -> 11644149.87
O37: =K31+K32 -> 28030541.38
J38: Receita Tarifária base | K38: =K28 -> 
J39: Aumento tarifa | K39: 165572538.6 | M39: =K39/K38 ->  | N39: =K39-K45 -> 165572538.6
J40: PIS e Cofins | K40: =9.25%*K39 -> 15315459.82
J41: PLR | K41: =25%*25%*95%*(K39-K40) -> 8921514.053
J42: JCP | K42: =50%/0.85*95%*(K39-K40-K41) -> 78981639.11
J43: IR e CSLL | K43: =34%*(K39-K40-K41-K42) -> 21200334.71
J44: Valor repassado | K44: =K39-K40-K43-K41-K42 -> 41153590.91 | L44: =K44/K39 -> 0.2485532399 | M44: =K44/K38 -> 
K45: =K44-O34 -> 0 | L45: =K45=0 -> TRUE
B47: Reajuste 2019 | D47: Para a Copasa repassar o adicional arrecadado após dedução dos percentuais de PIS/Cofins, IR e CSLL, e utilizar recursos da sua geração de caixa para o pagamento de PLR e JCP:
J49: Receita Tarifária base | K49: 5063513709
J50: Aumento alocado na tarifa | K50: 59514188.56 | M50: 0.01175353558 | N50: =K50-K56 -> 59514188.56 | R50: =K50/'1.Anterior (IRT_2019)'!R53 -> 0.01140312131
J51: (-) PIS e Cofins | K51: 5505062.441 | R51: =K51/'1.Anterior (IRT_2019)'!R53 -> 0.001054788721
J52: (-) PLR | K52: 3206791.863
J53: (-) JCP | K53: 14194769.86
J54: (-) IR e CSLL | K54: 12446571.89 | O54: 2019 - Subsídio atualizado INCC até dezembro/18 | Q54: INCC acumulado de ago/18 a dez/18
J55: (=) Valor repassado | K55: 41562554.22 | L55: 0.6983637891 | M55: 0.008208243645 | O55: =O34*(1+Q55) -> 41562554.22 | Q55: ='3.1.Índices_inflação'!H74/'3.1.Índices_inflação'!H69-1 -> 0.009937488022
K56: 0 | L56: TRUE
D57: Se a Copasa repassasse o adicional arrecadado após dedução dos percentuais de PIS/Cofins, IR, CSLL, PLR e JCP | O57: =K51+K54 -> 17951634.33
O58: =K52+K53 -> 17401561.73
J59: Receita Tarifária base | K59: 5063513709
J60: Aumento tarifa | K60: 102378314.5 | M60: 0.02021882835 | N60: =K60-K66 -> 102378314.5
J61: PIS e Cofins | K61: 9469994.093
J62: PLR | K62: 5516431.526
J63: JCP | K63: 24418321.9
J64: IR e CSLL | K64: 21411012.78
J65: Valor repassado | K65: 41562554.22 | L65: 0.4059702918 | M65: 0.008208243645
K66: =K65-O55 -> 0 | L66: =K66=0 -> TRUE
B70: Obs.: Os valores 2017, 2018 e 2019 estão ocultos acima para consulta.
B71: Reajuste 2020 | D71: Para a Copasa repassar o adicional arrecadado após dedução dos percentuais de PIS/Cofins, IR e CSLL, e utilizar recursos da sua geração de caixa para o pagamento de PLR e JCP:
J73: Receita Tarifária base | K73: =copiar_RTbase_FQ -> 5454468501
J74: Aumento alocado na tarifa | K74: 63751817.64 | M74: =K74/K73 -> 0.01168799813 | N74: =K74-K80 -> 63751817.64 | R74: =K74/copiar_RTaplic -> 0.01137511071
J75: (-) PIS e Cofins | K75: =9.25%*K74 -> 5897043.132 | R75: =K75/copiar_RTaplic -> 0.001052197741
J76: (-) PLR | K76: =25%*25%*95%*(K74-K75) -> 3435127.236
J77: (-) JCP | K77: =25%/0.85*95%*(K74-K75-K76) -> 15205489.68
J78: (-) IR e CSLL | K78: =34%*(K74-K75-K76-K77) -> 13332813.58 | O78: 2020 - Subsídio atualizado INCC para o PR conforme resolução | Q78: INCC acumulado de ago/17 a dez/19
J79: (=) Valor repassado | K79: =K74-K75-K78 -> 44521960.93 | L79: =K79/K74 -> 0.6983637891 | M79: =K79/K73 -> 0.008162474661 | O79: =R79/12*5+R82/12*7 -> 44521960.93 | Q79: ='3.1.Índices_inflação'!H86/'3.1.Índices_inflação'!H57-1 -> 0.09339597472 | R79: =40000000*(1+Q79) -> 43735838.99
K80: =K79-O79 -> 0 | L80: =K80=0 -> TRUE
D81: Se a Copasa repassasse o adicional arrecadado após dedução dos percentuais de PIS/Cofins, IR, CSLL, PLR e JCP | Q81: INCC acumulado de ago/17 a dez/20
Q82: =(('3.1.Índices_inflação'!H93/'3.1.Índices_inflação'!H57)*((1+0.2%)^5))-1 -> 0.1270869149 | R82: =40000000*(1+Q82) -> 45083476.6
J83: Receita Tarifária base | K83: =K73 -> 5454468501
J84: Aumento tarifa | K84: 109668027 | M84: =K84/K83 -> 0.02010608861 | N84: =K84-K90 -> 109668027
J85: PIS e Cofins | K85: =9.25%*K84 -> 10144292.5
J86: PLR | K86: =25%*25%*95%*(K84-K85) -> 5909221.736
J87: JCP | K87: =25%/0.85*95%*(K84-K85-K86) -> 26156996.22
J88: IR e CSLL | K88: =34%*(K84-K85-K86-K87) -> 22935555.63
J89: Valor repassado | K89: =K84-K85-K88-K86-K87 -> 44521960.93 | L89: =K89/K84 -> 0.4059702918 | M89: =K89/K83 -> 0.008162474661
K90: =K89-O79 -> 0 | L90: =K90=0 -> TRUE

Sheet 5.Sub_Copanor_comp
A1: ARSAE-MG
A2: Coordenadoria Econômica | N2: =K35+K45+K80+K90 -> 0 | O2: =N2=0 -> TRUE
A3: SUBSÍDIO COPANOR - Cálculo da devolução aos usuários por subexecução em 2019
A4: Reajuste 2020
B71: Compensação por subexecução - reajuste 2020 | D71: Para a Copasa repassar o adicional arrecadado após dedução dos percentuais de PIS/Cofins, IR e CSLL, e utilizar recursos da sua geração de caixa para o pagamento de PLR e JCP:
J74: Aumento alocado na tarifa | K74: -8999233.778 | N74: =K74-K80 -> -8999233.778
J75: (-) PIS e Cofins | K75: =9.25%*K74 -> -832429.1245 | N75: =K79+K78+K75-N74 -> 0
J76: (-) PLR | K76: =25%*25%*95%*(K74-K75) -> -484904.0263
J77: (-) JCP | K77: =25%/0.85*95%*(K74-K75-K76) -> -2146413.411
J78: (-) IR e CSLL | K78: =34%*(K74-K75-K76-K77) -> -1882065.654
J79: (=) Valor repassado | K79: =K74-K75-K78 -> -6284739 | L79: =K79/K74 -> 0.6983637891 | O79: -6284739 | P79: -> relatório GFE
K80: =K79-O79 -> 0 | L80: =K80=0 -> TRUE | O80: Este valor ainda tem que ser atualizado pela Selic de jan a jul/20
D81: Se a Copasa repassasse o adicional arrecadado após dedução dos percentuais de PIS/Cofins, IR, CSLL, PLR e JCP | O81: Tanto faz atualizar pela Selic antes ou depois do acréscimo dos tributos
J84: Aumento tarifa | K84: -15480785.48 | N84: =K84-K90 -> -15480785.48
J85: PIS e Cofins | K85: =9.25%*K84 -> -1431972.657 | N85: =K89+K88+K85+K86+K87-N84 -> 0
J86: PLR | K86: =25%*25%*95%*(K84-K85) -> -834148.2615
J87: JCP | K87: =25%/0.85*95%*(K84-K85-K86) -> -3692332.746
J88: IR e CSLL | K88: =34%*(K84-K85-K86-K87) -> -3237592.818
J89: Valor repassado | K89: =K84-K85-K88-K86-K87 -> -6284739 | L89: =K89/K84 -> 0.4059702918
K90: =K89-O79 -> 0 | L90: =K90=0 -> TRUE

Sheet 6.Compensação JCP
A1: ARSAE-MG
A2: Cálculo do valor a ser compensado nas tarifas de ago/20 a jul/21 relativo à dedutibilidade do JCP da base de tributos sobre o lucro
A3: Data: 19/05/2020
B7: Estimativa dos tributos sobre o lucro e outros desembolsos, considerando distribuição de proventos em forma de JCP | F7: Compensação JCP | G7: =G11-G16 -> 8.940696716e-08
B8: Total de Custos de capital que compõe a Receita Tarifária de aplicação (RT0 aplic) | C8: ='1.Anterior (IRT_2019)'!R43*(1+'2.IRT_2020'!G8) -> 2325563273 | F8: Descrição | G8: Valor
B9: (-) Depreciação contábil registrada nos últimos 12 meses | C9: 611215257.9 | F9: Dividendos + IR/CSLL + PLR | G9: =C27+C29+C31 -> 738937020.5
B10: (-) Valor contábil de encargos sobre empréstimos, nos últimos 12 meses | C10: 284908616.5 | F10: JCP + IR/CSLL + PLR | G10: =C14+C17+C12 -> 711415992.2
A11: (a) | B11: (-) Participação nos Lucros e Resultados = 25% * 25% * (Base de cálculo PLR - 5% * LL) | C11: 63107907.53 | D11: =25%*25%*(C18-5%*C16) -> 63107907.53 | F11: Diferença (compensação) | G11: =G9-G10 -> 27521028.3
A12: (b) | B12: (-) Distribuição de 29,41%* em forma de Juros sobre o Capital Próprio | C12: 278417239.1 | D12: =(G24/(1-15%))*95%*C16 -> 278417239.1 | F12: ou, apresentando de outra forma: | I12: Comentários:
B13: (=) Base de cálculo de IRPJ e CSLL | C13: =C8-C9-C10-C11-C12 -> 1087914252 | F13: IR e CSLL a menos (e - c) | G13: =C27-C14 -> 96618460.85 | I13: Paga-se mais tributo com distribuição por dividendos
A14: (c ) | B14: (-) Tributos sobre o lucro (34% * Base de cálculo de IRPJ e CSLL) | C14: =34%*C13 -> 369890845.6 | E14: (-) | F14: PLR a mais (a - d) | G14: =C11-C25 -> 5754704.565 | I14: Paga-se mais PLR com distribuição por JCP
B15: (+) JCP | C15: =C12 -> 278417239.1 | E15: (-) | F15: Proventos a mais (IRRF e efeitos circulares) (b - f) | G15: =C12-C31 -> 63342727.98 | I15: Distribui-se mais resultado com JCP
B16: (=) Lucro Líquido (LL) -> Base de cálculo JCP | C16: =C13-C14+C15 -> 996440645.2 | F16: Benefício líquido (compensação) | G16: =G13-G14-G15 -> 27521028.3
B17: (+) PLR | C17: =C11 -> 63107907.53 | F17: Selic acumulada de ago/19 a jul/20 | G17: ='3.1.Índices_inflação'!P112 -> 0.03997455142
B18: (=) Base de cálculo PLR | C18: =C16+C17 -> 1059548553 | D18: =C8-C9-C10-C14 -> 1059548553 | F18: Compensação atualizada | G18: =G16*(1+G17) -> 28621169.06
B21: Estimativa dos tributos sobre o lucro e outros desembolsos, com a distribuição de proventos em forma de dividendos | F21: =IF(AND((C33-D33)<0.0001,(C33-D33)>-0.0001),"VERDADEIRO","FALSO") -> VERDADEIRO
B22: Total de Custos de capital que compõe a Receita Tarifária de aplicação (RT0 aplic) | C22: =C8 -> 2325563273
B23: (-) Depreciação contábil registrada nos últimos 12 meses | C23: =C9 -> 611215257.9 | G23: % médio de JCP no PR0
B24: (-) Valor contábil de encargos sobre empréstimos, nos últimos 12 meses | C24: =C10 -> 284908616.5 | G24: 0.25 | H24: =G24/(1-15%) -> 0.2941176471
A25: (d) | B25: (-) Participação nos Lucros e Resultados = 25% * 25% * (Base de cálculo PLR - 5% * LL) | C25: 57353202.97 | D25: =25%*25%*(C30-5%*C28) -> 57353202.97 | E25: (d)
B26: (=) Base de cálculo de IRPJ e CSLL | C26: =C22-C23-C24-C25 -> 1372086195
A27: (e) | B27: (-) Tributos sobre o lucro (34% * Base de cálculo de IRPJ e CSLL) | C27: =34%*C26 -> 466509306.4 | E27: (e)
B28: (=) Lucro Líquido (LL) -> Base de cálculo dividendos | C28: =C26-C27 -> 905576889
B29: (+) PLR | C29: =C25 -> 57353202.97
B30: (=) Base de cálculo PLR | C30: =C28+C29 -> 962930091.9 | D30: =C22-C23-C24-C27 -> 962930091.9
A31: (f) | B31: Distribuição de 25%* do LL ajustado em forma de dividendos | C31: 215074511.1 | D31: =G24*95%*C28 -> 215074511.1 | E31: (f)
C33: =C31+C30+C25+C18+C12+C11 -> 2636431505 | D33: =D31+D30+D25+D18+D12+D11 -> 2636431505
H36: =G24*95%*C16 -> 236654653.2
H37: =0.85*D12 -> 236654653.2
H39: =H37-D31 -> 21580142.12 | I39: a mais por efeitos circulares (pagando menos imposto o lucro é maior e as distribuições também). É um benefício adicional aos acionistas advindo da escolha pelo JCP; neutro para a Copasa devido à Arsae ter tido que considerar isso na compensação.
H40: =D12-H37 -> 41762585.87 | I40: a mais por causa do IRRF, não representa benefício à Copasa ou ao acionistra
H41: =H39+H40 -> 63342727.98
H42: =H41-G15 -> -4.768371582e-07
H44: =G14+G15 -> 69097432.55
H45: =H40/H44 -> 0.604401413
